Workbook

Sheet Paràmetres (hidden)
A1: COMPONENTS | B1: POSICIÓ | C1: PARÀMETRES DE CÀLCUL
A2: ='Tabla Forrajes'!B$1 -> MS % | B2: 1 | C2: 2
A3: ='Tabla Forrajes'!C$1 -> UFL | B3: =1+B2 -> 2 | C3: 1
A4: ='Tabla Forrajes'!D$1 -> UFV | B4: 3 | C4: 1
A5: ='Tabla Forrajes'!E1 -> MNT_PB | B5: 4 | C5: 1
A6: ='Tabla Forrajes'!F1 -> PDIA | B6: 5 | C6: 1
A7: ='Tabla Forrajes'!G1 -> PDI | B7: 6 | C7: 1
A8: ='Tabla Forrajes'!H1 -> BPR | B8: 7 | C8: 1
A9: ='Tabla Forrajes'!I1 -> UEL | B9: 8 | C9: 1
A10: ='Tabla Forrajes'!J1 -> UEB | B10: 9 | C10: 1
A11: ='Tabla Forrajes'!K1 -> UEM | B11: 10 | C11: 1
A12: ='Tabla Forrajes'!L1 -> NI ref | B12: 11 | C12: 1
A13: ='Tabla Forrajes'!M1 -> dMO | B13: 12 | C13: 1
A14: ='Tabla Forrajes'!N1 -> MOD | B14: 13 | C14: 1
A15: ='Tabla Forrajes'!O1 -> EE | B15: 14 | C15: 1
A16: ='Tabla Forrajes'!P1 -> FB | B16: 15 | C16: 1
A17: ='Tabla Forrajes'!Q1 -> NDF | B17: 16 | C17: 1
A18: ='Tabla Forrajes'!R1 -> ADF | B18: 17 | C18: 1
A19: ='Tabla Forrajes'!S1 -> Lignina | B19: 18 | C19: 1
A20: ='Tabla Forrajes'!T1 -> Cenizas | B20: 19 | C20: 1
A21: ='Tabla Forrajes'!U1 -> Ca | B21: 20 | C21: 1
A22: ='Tabla Forrajes'!V1 -> P | B22: 21 | C22: 1
A23: ='Tabla Forrajes'!W1 -> Mg | B23: 22 | C23: 1
A24: ='Tabla Forrajes'!X1 -> Cl | B24: 23 | C24: 1
A25: ='Tabla Forrajes'!Y1 -> K | B25: 24 | C25: 1
A26: ='Tabla Forrajes'!Z1 -> Na | B26: 25 | C26: 1
A27: ='Tabla Forrajes'!AA1 -> S | B27: 26 | C27: 1
A28: ='Tabla Forrajes'!AB1 -> Co | B28: 27 | C28: 1
A29: ='Tabla Forrajes'!AC1 -> Cu | B29: 28 | C29: 1
A30: ='Tabla Forrajes'!AD1 -> Mo | B30: 29 | C30: 1
A31: ='Tabla Forrajes'!AE1 -> Yodo | B31: 30 | C31: 1
A32: ='Tabla Forrajes'!AF1 -> Fe | B32: 31 | C32: 1
A33: ='Tabla Forrajes'!AG1 -> Mn | B33: 32 | C33: 1
A34: ='Tabla Forrajes'!AH1 -> Se | B34: 33 | C34: 1
A35: ='Tabla Forrajes'!AI1 -> Zn | B35: 34 | C35: 1
A36: ='Tabla Forrajes'!AJ1 -> Vit A | B36: 35 | C36: 1
A37: ='Tabla Forrajes'!AK1 -> Vit D | B37: 36 | C37: 1
A38: ='Tabla Forrajes'!AL1 -> Vit E | B38: 37 | C38: 1
A39: ='Tabla Forrajes'!AM1 -> AG | B39: 38 | C39: 1
A40: ='Tabla Forrajes'!AN1 -> DT_N | B40: 39 | C40: 1
A41: ='Tabla Forrajes'!AO1 -> PF | B41: 40 | C41: 1
A42: ='Tabla Forrajes'!AP1 -> MOF | B42: 41 | C42: 1

Sheet Tabla Forrajes
A1: Nombre | B1: MS % | C1: UFL | D1: UFV | E1: MNT_PB | F1: PDIA | G1: PDI | H1: BPR | I1: UEL | J1: UEB | K1: UEM | L1: NI ref | M1: dMO | N1: MOD | O1: EE | P1: FB | Q1: NDF | R1: ADF | S1: Lignina | T1: Cenizas | U1: Ca | V1: P | W1: Mg | X1: Cl | Y1: K | Z1: Na | AA1: S | AB1: Co | AC1: Cu | AD1: Mo | AE1: Yodo | AF1: Fe | AG1: Mn | AH1: Se | AI1: Zn | AJ1: Vit A | AK1: Vit D | AL1: Vit E | AM1: AG | AN1: DT_N | AO1: PF | AP1: MOF
A3: VERDE raigrás italiano Hoja otoño / invierno | B3: 16.6 | C3: 0.987525423 | D3: 0.968623439 | E3: 190 | F3: 37.05 | G3: 83.72930525 | H3: 43.99629972 | I3: 0.9908485486 | J3: 0.9829225231 | K3: 0.9787806617 | L3: 2.753201964 | M3: 0.75792 | N3: 649.53744 | O3: 41 | P3: 238 | Q3: 531.32 | R3: 265 | T3: 143 | U3: 2.28 | V3: 2.58 | AM3: 27.18 | AN3: 0.74 | AP3: 566.5326882
A4: VERDE raigrás italiano Hoja primavera | B4: 15.1 | C4: 1.1 | D4: 1.09899354 | E4: 191 | F4: 34.38 | G4: 86.07504607 | H4: 44.12488481 | I4: 0.9708980146 | J4: 0.9494630462 | K4: 0.9358514742 | L4: 2.879496281 | M4: 0.81287 | N4: 704.75829 | O4: 43 | P4: 178 | Q4: 462.92 | R4: 203 | T4: 133 | U4: 2 | V4: 2.4 | W4: 1.7 | Y4: 30 | Z4: 3 | AC4: 8.1 | AG4: 85.1 | AM4: 27.285 | AN4: 0.76 | AP4: 628.165719
A5: VERDE raigrás italiano Espiga a 10 cm | B5: 15.8 | C5: 1.073514419 | D5: 1.069426873 | E5: 168 | F5: 26.46 | G5: 77.8462145 | H5: 31.10451486 | I5: 0.9910346389 | J5: 0.9832391547 | K5: 0.9791911182 | L5: 2.752047879 | M5: 0.79572 | N5: 705.00792 | O5: 39 | P5: 188 | Q5: 474.32 | R5: 213 | T5: 114 | U5: 1.8 | V5: 2.1 | W5: 1.7 | Y5: 30 | Z5: 3 | AA5: 1 | AC5: 8.1 | AG5: 85.1 | AM5: 24.87 | AN5: 0.79 | AP5: 636.2376237
A6: VERDE raigrás italiano 1 semana antes inicio espigado | B6: 16.4 | C6: 0.9568987067 | D6: 0.9279323027 | E6: 112 | F6: 22.68 | G6: 69.96884231 | H6: -17.0368975 | I6: 1.057101244 | J6: 1.101295022 | K6: 1.137999252 | L6: 2.36799878 | M6: 0.7379 | N6: 663.3721 | O6: 33 | P6: 230 | Q6: 522.2 | R6: 257 | T6: 101 | U6: 1.8 | V6: 1.8 | W6: 1.7 | Y6: 30 | Z6: 3 | AA6: 1 | AC6: 6 | AG6: 80 | AI6: 23 | AJ6: 80000 | AK6: 30 | AL6: 20 | AM6: 18.99 | AN6: 0.73 | AP6: 597.0361265
A7: VERDE raigrás italiano Inicio espigado | B7: 16.5 | C7: 0.9368495611 | D7: 0.9041024886 | E7: 105 | F7: 21.2625 | G7: 67.81242603 | H7: -21.5953848 | I7: 1.067222853 | J7: 1.120433875 | K7: 1.164876603 | L7: 2.313361632 | M7: 0.72817 | N7: 654.62483 | O7: 32 | P7: 238 | Q7: 531.32 | R7: 265 | T7: 101 | U7: 1.8 | V7: 1.8 | W7: 1.7 | Y7: 30 | Z7: 3 | AA7: 1 | AC7: 5 | AG7: 80 | AI7: 23 | AJ7: 80000 | AK7: 30 | AL7: 20 | AM7: 18.255 | AN7: 0.73 | AP7: 589.3655744
A8: VERDE raigrás italiano Espigado | B8: 17.8 | C8: 0.8818407587 | D8: 0.8377966687 | E8: 88 | F8: 19.14 | G8: 63.38289694 | H8: -34.0522143 | I8: 1.091434895 | J8: 1.167439208 | K8: 1.232308365 | L8: 2.186774769 | M8: 0.69765 | N8: 629.97795 | O8: 30 | P8: 265 | Q8: 562.1 | R8: 293 | T8: 97 | U8: 1.8 | V8: 1.5 | AC8: 5 | AG8: 79.6 | AI8: 23.8 | AJ8: 80000 | AK8: 30 | AL8: 20 | AM8: 16.47 | AN8: 0.71 | AP8: 565.5384465
A9: VERDE raigrás italiano Final espigado | B9: 20.4 | C9: 0.8544008851 | D9: 0.8031831803 | E9: 80 | F9: 17.4 | G9: 60.32551195 | H9: -38.91893425 | I9: 1.096771795 | J9: 1.178039486 | K9: 1.247801042 | L9: 2.15962381 | M9: 0.67756 | N9: 617.93472 | O9: 29 | P9: 284 | Q9: 583.76 | R9: 313 | T9: 88 | U9: 1.8 | V9: 1.5 | W9: 2.3 | Y9: 26 | Z9: 1.5 | AJ9: 80000 | AK9: 30 | AL9: 20 | AM9: 15.63 | AN9: 0.71 | AP9: 554.2271801
A10: VERDE raigrás italiano Inicio floración | B10: 24 | C10: 0.8342394507 | D10: 0.7793634604 | E10: 70 | F10: 15.225 | G10: 57.3422064 | H10: -45.48047731 | I10: 1.094099952 | J10: 1.172721579 | K10: 1.240015355 | L10: 2.173183444 | M10: 0.66587 | N10: 608.60518 | O10: 28 | P10: 293 | Q10: 594.02 | R10: 322 | T10: 86 | U10: 1.8 | V10: 1.2 | AJ10: 80000 | AK10: 30 | AL10: 20 | AM10: 14.58 | AN10: 0.71 | AP10: 546.7382102
A11: VERDE raigrás italiano Floración | B11: 27.5 | C11: 0.8068536711 | D11: 0.7469697818 | E11: 60 | F11: 13.5 | G11: 54.39933876 | H11: -52.28407859 | I11: 1.094509341 | J11: 1.173534971 | K11: 1.241204453 | L11: 2.171101492 | M11: 0.64963 | N11: 595.06108 | O11: 27 | P11: 307 | Q11: 609.98 | R11: 337 | T11: 84 | U11: 1.8 | V11: 1.2 | AJ11: 80000 | AK11: 30 | AL11: 20 | AM11: 13.53 | AN11: 0.7 | AP11: 534.2709123
A12: VERDE Maíz Pastoso | B12: 30.7 | C12: 1.336519373 | D12: 1.297656969 | E12: 77.4 | F12: 13.932 | G12: 58.79146932 | H12: -42.36519209 | I12: 1.02870768 | J12: 1.049139944 | K12: 1.066392013 | L12: 1.4 | M12: 0.720464135 | N12: 687.4668776 | O12: 23.8 | P12: 208 | Q12: 454.4 | R12: 243.9 | S12: 29.5 | T12: 45.8 | U12: 0.84 | V12: 1.61 | AA12: 1.1 | AF12: 160 | AJ12: 80000 | AK12: 30 | AL12: 20 | AM12: 15.357 | AN12: 0.76 | AP12: 630.3086521
A13: VERDE Avena Inicio alargamiento tallos | B13: 14.9 | C13: 1.064086631 | D13: 1.064854725 | E13: 120 | F13: 26.1 | G13: 78.54094724 | H13: -13.57775696 | I13: 1.020791557 | J13: 1.034988504 | K13: 1.047364373 | L13: 2.572916273 | M13: 0.8100113766 | N13: 712 | O13: 34 | P13: 230 | Q13: 522.2 | R13: 257 | T13: 121 | U13: 2 | V13: 2.64 | AJ13: 80000 | AK13: 30 | AL13: 20 | AM13: 19.83 | AN13: 0.74 | AP13: 646.839457
A14: VERDE Avena Inicio espigado | B14: 20.6 | C14: 0.9133309306 | D14: 0.8741939522 | E14: 102 | F14: 19.89 | G14: 65.21758227 | H14: -21.9507916 | I14: 1.060258573 | J14: 1.1072336 | K14: 1.146303874 | L14: 2.350843351 | M14: 0.7104972376 | N14: 643 | O14: 32 | P14: 302 | Q14: 604.28 | R14: 331 | T14: 95 | U14: 1.8 | V14: 2.31 | AJ14: 80000 | AK14: 30 | AL14: 20 | AM14: 17.94 | AN14: 0.74 | AP14: 578.0360445
A15: VERDE Avena Floración | B15: 17.7 | C15: 0.8229420319 | D15: 0.7662555366 | E15: 101 | F15: 18.9375 | G15: 59.89304518 | H15: -17.97919135 | I15: 1.102855944 | J15: 1.190232315 | K15: 1.265754423 | L15: 2.128991841 | M15: 0.66 | N15: 594 | O15: 32 | P15: 333 | Q15: 639.62 | R15: 364 | T15: 100 | U15: 1.6 | V15: 1.98 | AJ15: 80000 | AK15: 30 | AL15: 20 | AM15: 17.835 | AN15: 0.75 | AP15: 526.5534262
A16: VERDE Avena Lechoso-pastoso | B16: 31.8 | C16: 0.735658448 | D16: 0.6565506562 | E16: 67 | F16: 12.5625 | G16: 48.69970816 | H16: -40.32371469 | I16: 1.10231487 | J16: 1.18914327 | K16: 1.26414502 | L16: 2.131702295 | M16: 0.5894396552 | N16: 547 | O16: 25 | P16: 270 | Q16: 567.8 | R16: 298 | T16: 72 | U16: 1.4 | V16: 1.65 | AJ16: 80000 | AK16: 30 | AL16: 20 | AM16: 14.265 | AN16: 0.75 | AP16: 482.6664074
A17: VERDE Avena Pastoso | B17: 38.3 | C17: 0.7072537332 | D17: 0.6232506884 | E17: 63 | F17: 12.285 | G17: 46.82400532 | H17: -42.66801408 | I17: 1.085210225 | J17: 1.155186303 | K17: 1.214532939 | L17: 2.218779543 | M17: 0.5698924731 | N17: 530 | O17: 25 | P17: 263 | Q17: 559.82 | R17: 291 | T17: 70 | U17: 1.2 | V17: 1.65 | AJ17: 80000 | AK17: 30 | AL17: 20 | AM17: 13.845 | AN17: 0.74 | AP17: 464.7846187
A18: VERDE Triticale Lechoso-pastoso | B18: 40.51 | C18: 0.7866308836 | D18: 0.7130740068 | E18: 71.9 | F18: 13.48125 | G18: 51.74268223 | H18: -38.67729114 | I18: 1.046395966 | J18: 1.081369429 | K18: 1.110363008 | L18: 2.426936796 | M18: 0.6102620087 | N18: 574.9278384 | O18: 14.8 | P18: 299 | Q18: 618.4 | R18: 350.1 | S18: 43.5 | T18: 57.9 | U18: 1.16 | V18: 0.99 | W18: 2.7 | Y18: 25 | Z18: 1.7 | AA18: 3 | AC18: 8.6 | AD18: 0.44 | AG18: 43.9 | AI18: 24.1 | AJ18: 80000 | AK18: 30 | AL18: 20 | AM18: 14.7795 | AN18: 0.75 | AP18: 510.8802662
A19: VERDE Alfalfa Inicio botones florales | B19: 19.83 | C19: 0.8954507068 | D19: 0.8453932124 | E19: 196.7 | F19: 33.93075 | G19: 74.37573864 | H19: 59.44643611 | I19: 0.9783295072 | J19: 0.9618149826 | K19: 0.9515972519 | L19: 2.83185017 | M19: 0.674826 | N19: 585.2091072 | O19: 22.6 | P19: 277.4 | Q19: 442.1 | R19: 334.4 | S19: 74.3 | T19: 132.8 | U19: 5.43 | V19: 1.75 | AC19: 8.8 | AD19: 1.3 | AG19: 26.7 | AI19: 32.3 | AJ19: 120000 | AK19: 20 | AL19: 100 | AM19: 20.3135 | AN19: 0.77 | AP19: 502.6782183
A20: VERDE Alfalfa Vegetativo 30 cm | B20: 14.4 | C20: 1.057970395 | D20: 1.037917837 | E20: 246 | F20: 40.59 | G20: 87.13790609 | H20: 95.11408255 | I20: 0.9343019937 | J20: 0.8904932233 | K20: 0.8622791436 | L20: 3.125183834 | M20: 0.75199 | N20: 654.98329 | O20: 33 | P20: 201 | Q20: 489.14 | R20: 259 | T20: 129 | U20: 4.95 | V20: 3.15 | AC20: 8.8 | AD20: 1.3 | AG20: 26.7 | AI20: 32.3 | AJ20: 120000 | AK20: 20 | AL20: 100 | AM20: 25.49 | AN20: 0.78 | AP20: 568.7888379
A21: VERDE Zulla hoja, 1º año | B21: 11 | C21: 1.096854529 | D21: 1.092315415 | E21: 233.5 | F21: 47.28375 | G21: 101.4759961 | H21: 71.57961546 | I21: 0.9440674911 | J21: 0.9059343706 | K21: 0.8812924975 | L21: 3.057759878 | M21: 0.789865 | N21: 687.814442 | O21: 27 | P21: 163.5 | Q21: 249.6 | R21: 234.1 | T21: 129.2 | U21: 3.3 | V21: 2.1 | AM21: 24.1775 | AN21: 0.73 | AP21: 598.1277405 | AQ21: 17.00377003 | AR21: 2.8672075 | AS21: 3.72277 | AT21: 18.7616 | AU21: 52.11987442
A22: VERDE Zulla tallo hoja, 1º año | B22: 11.5 | C22: 1.018584209 | D22: 0.9979952283 | E22: 186 | F22: 37.665 | G22: 91.19718606 | H22: 37.93595928 | I22: 0.988232989 | J22: 0.9784811434 | K22: 0.9730315989 | L22: 2.76946899 | M22: 0.754515 | N22: 664.0486515 | O22: 27 | P22: 198.5 | Q22: 280.5 | R22: 269.9 | T22: 119.9 | U22: 3.3 | V22: 2.1 | AM22: 19.19 | AN22: 0.73 | AP22: 583.7835984 | AQ22: 18.1417305 | AR22: 3.00187 | AS22: 3.98212 | AT22: 19.5596 | AU22: 49.1942568
A23: VERDE Zulla yemas florales, 1º año | B23: 11.91 | C23: 0.971662067 | D23: 0.9400058138 | E23: 170.3 | F23: 34.48575 | G23: 87.26725566 | H23: 27.64789741 | I23: 1.00280174 | J23: 1.003435006 | K23: 1.005537317 | L23: 2.679941156 | M23: 0.727447 | N23: 645.6819572 | O23: 27 | P23: 225.3 | Q23: 323.9 | R23: 304.2 | T23: 112.4 | U23: 3.6 | V23: 2.1 | AM23: 17.5415 | AN23: 0.73 | AP23: 567.4701334 | AQ23: 18.57255361 | AR23: 3.0463795 | AS23: 4.067842 | AT23: 19.82336 | AU23: 48.09598983
A24: VERDE Zulla Botones florales, 1º año | B24: 13.77 | C24: 0.9661408557 | D24: 0.9305393291 | E24: 168.9 | F24: 34.20225 | G24: 86.94535264 | H24: 26.68590212 | I24: 1.000730959 | J24: 0.9998558827 | K24: 1.000844288 | L24: 2.692507587 | M24: 0.717953 | N24: 645.1525658 | O24: 27 | P24: 234.7 | Q24: 348.5 | R24: 330.4 | T24: 101.4 | U24: 3.6 | V24: 2.1 | AM24: 17.3945 | AN24: 0.73 | AP24: 566.6355756 | AQ24: 18.61229065 | AR24: 3.0503485 | AS24: 4.075486 | AT24: 19.84688 | AU24: 47.99488794
A25: VERDE Zulla Inicio Floración, 1º año | B25: 14.5 | C25: 0.9196215428 | D25: 0.8756744961 | E25: 167 | F25: 32.565 | G25: 84.17295987 | H25: 28.74256271 | I25: 1.010019035 | J25: 1.015994101 | K25: 1.022087499 | L25: 2.63654613 | M25: 0.695127 | N25: 620.3313348 | O25: 23 | P25: 257.3 | Q25: 366 | R25: 334.1 | T25: 107.6 | U25: 3.6 | V25: 2.1 | AM25: 17.195 | AN25: 0.74 | AP25: 541.967139 | AQ25: 18.66656512 | AR25: 3.055735 | AS25: 4.08586 | AT25: 19.8788 | AU25: 47.8568487
A26: VERDE Zulla Floración, 1º año | B26: 14.92 | C26: 0.8896999035 | D26: 0.8413566291 | E26: 162.4 | F26: 31.668 | G26: 82.56252045 | H26: 26.45331179 | I26: 1.017849675 | J26: 1.029771407 | K26: 1.040391915 | L26: 2.590159344 | M26: 0.682098 | N26: 604.6116672 | O26: 23 | P26: 270.2 | Q26: 390.1 | R26: 346.3 | T26: 113.6 | U26: 2.7 | V26: 3.5 | AM26: 16.712 | AN26: 0.74 | AP26: 526.4629793 | AQ26: 18.79961472 | AR26: 3.068776 | AS26: 4.110976 | AT26: 19.95608 | AU26: 47.51869267
A27: VERDE Zulla Fructificación, 1º año | B27: 18.93 | C27: 0.7740194666 | D27: 0.7050334795 | E27: 130.8 | F27: 25.506 | G27: 74.01316404 | H27: 6.799556184 | I27: 1.056133358 | J27: 1.099480224 | K27: 1.135467666 | L27: 2.373278359 | M27: 0.618165 | N27: 549.4868685 | O27: 21 | P27: 333.5 | Q27: 519.6 | R27: 450.7 | T27: 111.1 | U27: 2.7 | V27: 3.5 | AM27: 13.394 | AN27: 0.74 | AP27: 474.5819724 | AQ27: 19.77666618 | AR27: 3.158362 | AS27: 4.283512 | AT27: 20.48696 | AU27: 45.04436717
A28: VERDE Zulla hoja, 2º año | B28: 11 | C28: 1.099747568 | D28: 1.095573936 | E28: 240.5 | F28: 48.70125 | G28: 102.775997 | H28: 76.87320774 | I28: 0.9385770623 | J28: 0.8972271293 | K28: 0.8705493025 | L28: 3.095494801 | M28: 0.790269 | N28: 686.9808417 | O28: 27 | P28: 163.1 | Q28: 272.8 | R28: 253.3 | T28: 130.7 | U28: 3.3 | V28: 2.1 | AM28: 24.9125 | AN28: 0.73 | AP28: 595.5743013 | AQ28: 16.85710078 | AR28: 2.8473625 | AS28: 3.68455 | AT28: 18.644 | AU28: 52.50054562
A29: VERDE Zulla tallo hoja, 2º año | B29: 10.03 | C29: 1.027185591 | D29: 1.007222315 | E29: 206.5 | F29: 41.81625 | G29: 95.04208597 | H29: 53.3796313 | I29: 0.9734076994 | J29: 0.9536197806 | K29: 0.9411371114 | L29: 2.863324384 | M29: 0.755121 | N29: 662.4676533 | O29: 27 | P29: 197.9 | Q29: 311.2 | R29: 290.4 | T29: 122.7 | U29: 3.3 | V29: 2.1 | AM29: 21.3425 | AN29: 0.73 | AP29: 577.1261293 | AQ29: 17.62009903 | AR29: 2.9437525 | AS29: 3.87019 | AT29: 19.2152 | AU29: 50.53011982
A30: VERDE Zulla yemas florales, 2º año | B30: 12.06 | C30: 0.9414798783 | D30: 0.9030186208 | E30: 177.4 | F30: 35.9235 | G30: 87.76027264 | H30: 34.30704275 | I30: 1.00595395 | J30: 1.008904022 | K30: 1.012728493 | L30: 2.660911447 | M30: 0.709469 | N30: 628.1638526 | O30: 27 | P30: 243.1 | Q30: 360.2 | R30: 330.5 | T30: 114.6 | U30: 3.6 | V30: 2.1 | AM30: 18.287 | AN30: 0.73 | AP30: 546.9396001 | AQ30: 18.37435685 | AR30: 3.026251 | AS30: 4.029076 | AT30: 19.70408 | AU30: 48.60073657
A31: VERDE Zulla Botones Florales, 2º año | B31: 12.51 | C31: 0.8951169505 | D31: 0.8483103437 | E31: 168.9 | F31: 34.20225 | G31: 85.02746379 | H31: 29.68260345 | I31: 1.021257856 | J31: 1.035817512 | K31: 1.048474402 | L31: 2.570192304 | M31: 0.686441 | N31: 605.6468943 | O31: 27 | P31: 265.9 | Q31: 382.3 | R31: 352.4 | T31: 117.7 | U31: 3.6 | V31: 2.1 | AM31: 17.3945 | AN31: 0.73 | AP31: 524.9568365 | AQ31: 18.61229065 | AR31: 3.0503485 | AS31: 4.075486 | AT31: 19.84688 | AU31: 47.99488794
A32: VERDE Zulla Inicio Floración, 2º año | B32: 15.37 | C32: 0.8688196702 | D32: 0.8142223989 | E32: 151.5 | F32: 29.5425 | G32: 80.22335033 | H32: 18.72117137 | I32: 1.03172308 | J32: 1.054574304 | K32: 1.073743818 | L32: 2.50970557 | M32: 0.666039 | N32: 598.4360415 | O32: 23 | P32: 286.1 | Q32: 406 | R32: 371.5 | T32: 101.5 | U32: 3.6 | V32: 2.1 | AM32: 15.5675 | AN32: 0.74 | AP32: 521.8195916 | AQ32: 19.12419778 | AR32: 3.0996775 | AS32: 4.17049 | AT32: 20.1392 | AU32: 46.69505782
A33: VERDE Zulla Floración, 2º año | B33: 17.12 | C33: 0.8321434211 | D33: 0.7722857657 | E33: 141.1 | F33: 27.5145 | G33: 77.40801428 | H33: 12.25538394 | I33: 1.04040746 | J33: 1.070362352 | K33: 1.095245434 | L33: 2.460435584 | M33: 0.64897 | N33: 579.984489 | O33: 23 | P33: 303 | Q33: 452.6 | R33: 406.5 | T33: 106.3 | U33: 2.7 | V33: 3.5 | AM33: 14.4755 | AN33: 0.74 | AP33: 504.7095418 | AQ33: 19.446103 | AR33: 3.1291615 | AS33: 4.227274 | AT33: 20.31392 | AU33: 45.8798973
A34: VERDE Zulla Fructificación, 2º año | B34: 20.03 | C34: 0.7714311913 | D34: 0.6990913505 | E34: 135.4 | F34: 26.403 | G34: 74.79356037 | H34: 10.38574942 | I34: 1.052200861 | J34: 1.092134028 | K34: 1.125249773 | L34: 2.394829046 | M34: 0.609681 | N34: 548.6519319 | O34: 21 | P34: 341.9 | Q34: 491.1 | R34: 452.9 | T34: 100.1 | U34: 2.7 | V34: 3.5 | AM34: 13.877 | AN34: 0.74 | AP34: 472.0479914 | AQ34: 19.62759064 | AR34: 3.145321 | AS34: 4.258396 | AT34: 20.40968 | AU34: 45.42098545
A35: VERDE Zulla Botones | B35: 11 | C35: 0.9871458131 | D35: 0.9668537027 | E35: 199 | F35: 40.2975 | G35: 86.21303252 | H35: 49.55476384 | I35: 0.9828422118 | J35: 0.9693798556 | K35: 0.9612993691 | L35: 2.803269123 | M35: 0.753 | N35: 637.791 | O35: 27 | P35: 200 | Q35: 488 | R35: 230 | T35: 153 | U35: 3.3 | V35: 2.1 | AJ35: 120000 | AK35: 20 | AL35: 100 | AM35: 20.555 | AN35: 0.73 | AP35: 554.1757463
A36: VERDE Zulla Floración | B36: 13.5 | C36: 0.8566351193 | D36: 0.8059033998 | E36: 155 | F36: 30.225 | G36: 70.91503133 | H36: 22.20440079 | I36: 1.033625341 | J36: 1.058015117 | K36: 1.078411657 | L36: 2.498842463 | M36: 0.67321 | N36: 586.36591 | O36: 23 | P36: 279 | Q36: 578.06 | R36: 305.05 | T36: 129 | U36: 3.6 | V36: 2.1 | AJ36: 120000 | AK36: 20 | AL36: 100 | AM36: 15.935 | AN36: 0.74 | AP36: 509.3963728
A37: VERDE Zulla Final floración | B37: 15.3 | C37: 0.8276145297 | D37: 0.7672213764 | E37: 152 | F37: 29.64 | G37: 68.69210074 | H37: 20.9161303 | I37: 1.041416423 | J37: 1.072209943 | K37: 1.097775658 | L37: 2.454764615 | M37: 0.64695 | N37: 574.4916 | O37: 21 | P37: 305 | Q37: 607.7 | R37: 329.75 | T37: 112 | U37: 2.7 | V37: 3.5 | AJ37: 120000 | AK37: 20 | AL37: 100 | AM37: 15.62 | AN37: 0.74 | AP37: 496.437687
A38: ENSILADO prehenificado raigrás italiano 1 semana antes inicio espigado | B38: 33.5 | C38: 0.9154038958 | D38: 0.8723292381 | E38: 123 | F38: 17 | G38: 67 | H38: 5 | I38: 1.05 | J38: 1.07 | K38: 1.35 | L38: 2 | M38: 0.73 | N38: 649.7 | O38: 36 | P38: 246 | Q38: 510 | R38: 275 | T38: 110 | U38: 1.84 | V38: 1.56 | AJ38: 8000 | AK38: 200 | AL38: 5 | AM38: 19 | AN38: 0.79 | AO38: 80 | AP38: 588.49475
A39: ENSILADO prehenificado raigrás italiano Inicio espigado | B39: 33.5 | C39: 0.88 | D39: 0.82 | E39: 117 | F39: 16 | G39: 65 | H39: 1 | I39: 1.06 | J39: 1.08 | K39: 1.39 | L39: 1.9 | M39: 0.706043 | N39: 631.9 | O39: 35 | P39: 254 | Q39: 520 | R39: 283 | T39: 110 | U39: 1.84 | V39: 1.56 | AJ39: 8000 | AK39: 200 | AL39: 5 | AM39: 19 | AN39: 0.79 | AO39: 80 | AP39: 570.0426753
A40: ENSILADO prehenificado raigrás italiano Final espigado | B40: 33.5 | C40: 0.78 | D40: 0.71 | E40: 95 | F40: 12 | G40: 59 | H40: -14 | I40: 1.11 | J40: 1.18 | K40: 1.62 | L40: 1.7 | M40: 0.66 | N40: 594.66 | O40: 33 | P40: 297 | Q40: 571 | R40: 327 | T40: 99 | U40: 1.84 | V40: 1.38 | AJ40: 8000 | AK40: 200 | AL40: 5 | AM40: 17 | AN40: 0.79 | AO40: 80 | AP40: 534.52605
A41: ENSILADO Prat natural plano, gramíneas en gran parte | B41: 48 | C41: 0.9301076693 | D41: 0.8656931921 | E41: 114.3 | F41: 15.0876 | G41: 51.5305866 | H41: -5.252929949 | I41: 1.131789867 | J41: 1.229566374 | K41: 1.638343115 | L41: 1.644820804 | M41: 0.668711 | N41: 599.165056 | O41: 22.2 | P41: 311.3 | Q41: 584.2 | R41: 385 | T41: 104 | U41: 3.48 | V41: 1.82 | AJ41: 8000 | AK41: 200 | AL41: 5 | AM41: 18.2569 | AN41: 0.78 | AO41: 115 | AP41: 535.9795542
A42: ENSILADO Maíz Lechoso | B42: 28.5 | C42: 0.9421569565 | D42: 0.8895769703 | E42: 78.1 | F42: 13.6675 | G42: 49.99866751 | H42: -39.59697674 | I42: 1.080663836 | J42: 1.19129726 | K42: 1.345532831 | L42: 1.4 | M42: 0.69 | N42: 651.222 | O42: 33.3 | P42: 232.6 | Q42: 488.2 | R42: 278.4 | S42: 30.4 | T42: 56.2 | U42: 1.44 | V42: 1.61 | AM42: 24 | AN42: 0.75 | AO42: 100 | AP42: 588.3446
A43: ENSILADO Maíz Lechoso-pastoso | B43: 28.5 | C43: 0.9787464011 | D43: 0.9339294308 | E43: 78.1 | F43: 13.6675 | G43: 51.60752582 | H43: -41.05332562 | I43: 1.042209484 | J43: 1.152562936 | K43: 1.284686536 | L43: 1.4 | M43: 0.71 | N43: 670.098 | O43: 33.3 | P43: 232.6 | Q43: 488.2 | R43: 278.4 | S43: 30.4 | T43: 56.2 | U43: 1.44 | V43: 1.61 | AM43: 24 | AN43: 0.75 | AO43: 125 | AP43: 608.5998
A44: ENSILADO Maíz Pastoso | B44: 30 | C44: 0.9962612852 | D44: 0.9540342158 | E44: 77 | F44: 13.475 | G44: 54.02881787 | H44: -42.65449475 | I44: 1.01329589 | J44: 1.116491162 | K44: 1.278523867 | L44: 1.4 | M44: 0.717 | N44: 680.2179 | O44: 34.4 | P44: 216.5 | Q44: 450.9 | R44: 287.5 | S44: 29.3 | T44: 51.3 | U44: 1.2 | V44: 1.54 | AM44: 24 | AN44: 0.75 | AO44: 80 | AP44: 619.39492
A45: ENSILADO Maíz Pastoso-vidrioso | B45: 32 | C45: 0.9831423928 | D45: 0.9382032062 | E45: 75.9 | F45: 13.2825 | G45: 52.11647112 | H45: -42.99002243 | I45: 1.004191288 | J45: 1.098575718 | K45: 1.284420211 | L45: 1.4 | M45: 0.7101910828 | N45: 673.6872611 | O45: 32.1 | P45: 203.7 | Q45: 432.7 | R45: 244.4 | S45: 22.9 | T45: 51.4 | U45: 1.2 | V45: 1.61 | AM45: 24 | AN45: 0.75 | AO45: 100 | AP45: 612.5872382
A46: ENSILADO Maíz vidrioso | B46: 32 | C46: 0.9640116468 | D46: 0.9154634589 | E46: 76 | F46: 13.3 | G46: 51.89904202 | H46: -42.13633028 | I46: 1.020614142 | J46: 1.114790276 | K46: 1.304256824 | L46: 1.4 | M46: 0.7008046463 | N46: 663.5218391 | O46: 32 | P46: 202 | Q46: 432.4 | R46: 244.4 | S46: 26.5 | T46: 53.2 | U46: 1.24 | V46: 1.61 | AM46: 24 | AN46: 0.75 | AO46: 80 | AP46: 601.7570275
A47: ENSILADO Avena Lechoso-pastoso | B47: 31 | C47: 0.6642411484 | D47: 0.5695207363 | E47: 96.6 | F47: 18.9336 | G47: 47.97507469 | H47: -17.51123621 | I47: 1.154955419 | J47: 1.282660589 | K47: 1.791224433 | L47: 1.504435061 | M47: 0.56 | N47: 508.704 | O47: 45 | P47: 333.4 | Q47: 600.1 | R47: 385.3 | S47: 49.3 | T47: 91.6 | U47: 2.16 | V47: 1.848 | AC47: 5 | AD47: 0.13 | AG47: 30 | AJ47: 5000 | AK47: 200 | AL47: 5 | AM47: 19 | AN47: 0.72 | AO47: 80 | AP47: 433.84195
A48: ENSILADO Cebada Lechoso-pastoso | B48: 30.5 | C48: 0.721420216 | D48: 0.6340131908 | E48: 98.8 | F48: 19.3648 | G48: 51.13221978 | H48: -18.30719857 | I48: 1.147495958 | J48: 1.265287422 | K48: 1.745392764 | L48: 1.543939505 | M48: 0.5903225806 | N48: 540.1451613 | O48: 40.7 | P48: 278.4 | Q48: 533.3 | R48: 328.5 | S48: 42.9 | T48: 85 | U48: 2.12 | V48: 1.782 | AJ48: 5000 | AK48: 200 | AL48: 5 | AM48: 19 | AN48: 0.72 | AO48: 80 | AP48: 466.9429565
A49: ENSILADO Sorgo Pastoso | B49: 24 | C49: 0.8946611737 | D49: 0.8448988526 | E49: 102.3 | F49: 26.4957 | G49: 67.48794219 | H49: -32.54844063 | I49: 1.126297354 | J49: 1.216028017 | K49: 1.608406605 | L49: 1.675435074 | M49: 0.701 | N49: 644.7097 | O49: 25 | P49: 293.4 | Q49: 586.4 | R49: 346.8 | S49: 42.4 | T49: 80.3 | U49: 2.24 | V49: 1.584 | AJ49: 5000 | AK49: 200 | AL49: 5 | AM49: 19 | AN49: 0.63 | AO49: 80 | AP49: 572.00891
A50: ENSILADO Triticale lechoso | B50: 28.1 | C50: 0.7185428841 | D50: 0.6315093177 | E50: 99.8 | F50: 19.5608 | G50: 51.20239422 | H50: -17.39059614 | I50: 1.146293336 | J50: 1.262798213 | K50: 1.742230253 | L50: 1.546742077 | M50: 0.5903225806 | N50: 537.6067742 | O50: 46.6 | P50: 329.3 | Q50: 589.7 | R50: 373.5 | S50: 46.2 | T50: 89.3 | U50: 1.96 | V50: 1.914 | AJ50: 5000 | AK50: 200 | AL50: 5 | AM50: 19 | AN50: 0.72 | AO50: 80 | AP50: 464.2085694
A51: ENSILADO prehenificado Alfalfa Inicio botones florales | B51: 45 | C51: 0.980732297 | D51: 0.9375437283 | E51: 213.6 | F51: 22.3212 | G51: 62.68377642 | H51: 81.82328754 | I51: 0.9797376592 | J51: 0.954797698 | K51: 1.099990717 | L51: 2.449821438 | M51: 0.709856 | N51: 621.9758272 | O51: 20.8 | P51: 247.2 | Q51: 407.2 | R51: 320.1 | S51: 64.3 | T51: 123.8 | U51: 3.84 | V51: 1.82 | AJ51: 3000 | AK51: 200 | AL51: 5 | AM51: 26.4988 | AN51: 0.83 | AO51: 80 | AP51: 550.6914111
A52: ENSILADO prehenificado Alfalfa antes floración | B52: 43 | C52: 0.9478567903 | D52: 0.9046584391 | E52: 198.2 | F52: 21.802 | G52: 61.32585238 | H52: 64.24775046 | I52: 0.9937421911 | J52: 0.9777668498 | K52: 1.121023222 | L52: 2.403858178 | M52: 0.707306 | N52: 605.0295524 | O52: 18.7 | P52: 249.7 | Q52: 424.6 | R52: 336.1 | S52: 65.9 | T52: 144.6 | U52: 3.84 | V52: 1.82 | AJ52: 3000 | AK52: 200 | AL52: 5 | AM52: 25.2206 | AN52: 0.8 | AO52: 80 | AP52: 534.6627196
A53: ENSILADO prehenificado Alfalfa rebrotes floración | B53: 47 | C53: 1.003207297 | D53: 0.9674763745 | E53: 219.7 | F53: 27.79205 | G53: 68.85859238 | H53: 78.00981843 | I53: 0.972568435 | J53: 0.942718323 | K53: 1.084479733 | L53: 2.484860488 | M53: 0.726176 | N53: 627.779152 | O53: 17.8 | P53: 231.2 | Q53: 391.4 | R53: 298.9 | S53: 61.9 | T53: 135.5 | U53: 5.22 | V53: 2.45 | AJ53: 3000 | AK53: 200 | AL53: 5 | AM53: 27.0051 | AN53: 0.79 | AO53: 80 | AP53: 551.9218578
A54: ENSILADO Zulla Botones Florales Floracion, Bolas | B54: 27.16 | C54: 0.754603903 | D54: 0.6728644459 | E54: 140.9 | F54: 16.27395 | G54: 57.0350509 | H54: 33.42177985 | I54: 1.075441606 | J54: 1.126048654 | K54: 1.267021205 | L54: 2.126863251 | M54: 0.60143 | N54: 526.25125 | O54: 27 | P54: 353.5 | Q54: 537.2 | R54: 351.6765 | T54: 125 | U54: 3.6 | V54: 2.1 | AM54: 20.4647 | AN54: 0.79 | AO54: 150 | AP54: 306.2478463 | AQ54: 18.9901 | AR54: 2.96 | AS54: 4.2346 | AT54: 20.182 | AU54: 48.0613
A55: ENSILADO Zulla Inicio Floración en Fructificación | B55: 19.66 | C55: 0.7669925154 | D55: 0.6858718121 | E55: 135.6 | F55: 15.6618 | G55: 56.90934942 | H55: 28.47470403 | I55: 1.080492689 | J55: 1.135321292 | K55: 1.273160331 | L55: 2.116607605 | M55: 0.605612 | N55: 535.7243752 | O55: 27 | P55: 349.4 | Q55: 589.3 | R55: 349.3026 | T55: 115.4 | U55: 3.6 | V55: 2.1 | AM55: 20.0248 | AN55: 0.79 | AO55: 150 | AP55: 316.8191373 | AQ55: 19.0484 | AR55: 2.96 | AS55: 4.2664 | AT55: 20.288 | AU55: 47.7592
A56: HENO Bromo Final vegetación | B56: 85 | C56: 0.7641928518 | D56: 0.6935543947 | E56: 100 | F56: 20.3 | G56: 58.49315002 | H56: -20.42784718 | I56: 1.083509489 | J56: 1.149054212 | K56: 1.470370044 | L56: 1.832722892 | M56: 0.62749 | N56: 564.741 | O56: 34 | P56: 320 | Q56: 640 | R56: 333 | T56: 100 | U56: 1.24 | V56: 2.03 | AJ56: 50000 | AK56: 50 | AL56: 5 | AM56: 15.93 | AN56: 0.71 | AP56: 494.5458579
A57: HENO Dáctilo Floración | B57: 85 | C57: 0.6267609342 | D57: 0.5315550907 | E57: 88 | F57: 17.248 | G57: 48.36165599 | H57: -22.60508827 | I57: 1.134465219 | J57: 1.249296501 | K57: 1.633810149 | L57: 1.649384319 | M57: 0.537152 | N57: 491.49408 | O57: 27 | P57: 372 | Q57: 684.08 | R57: 404 | T57: 85 | U57: 0.92 | V57: 1.26 | AJ57: 50000 | AK57: 50 | AL57: 5 | AM57: 14.934 | AN57: 0.72 | AP57: 418.5686824
A58: HENO Festuca Floración | B58: 88.2 | C58: 0.7394322088 | D58: 0.6592885094 | E58: 116 | F58: 23.548 | G58: 59.75765181 | H58: -7.64311645 | I58: 1.079354117 | J58: 1.140751809 | K58: 1.457997654 | L58: 1.848275155 | M58: 0.6004725 | N58: 550.6332825 | O58: 27 | P58: 331 | Q58: 637.34 | R58: 354.45 | T58: 83 | U58: 0.92 | V58: 1.26 | AJ58: 50000 | AK58: 50 | AL58: 5 | AM58: 17.258 | AN58: 0.71 | AP58: 474.7304096
A59: HENO raigrás italiano Espigado | B59: 85 | C59: 0.7551388452 | D59: 0.682416558 | E59: 79 | F59: 13.825 | G59: 52.18563094 | H59: -32.77260482 | I59: 1.106265531 | J59: 1.193403103 | K59: 1.540819033 | L59: 1.74892754 | M59: 0.622116 | N59: 566.12556 | O59: 26 | P59: 307 | Q59: 609.98 | R59: 337 | T59: 90 | U59: 1.6 | V59: 1.61 | W59: 2 | Y59: 20 | Z59: 2 | AC59: 4.9 | AG59: 110 | AI59: 26.5 | AJ59: 50000 | AK59: 50 | AL59: 5 | AM59: 14.187 | AN59: 0.75 | AP59: 502.8178696
A60: HENO raigrás italiano Floración | B60: 85 | C60: 0.6767027483 | D60: 0.590716319 | E60: 52 | F60: 10.92 | G60: 45.71239642 | H60: -52.98300282 | I60: 1.155610109 | J60: 1.294411723 | K60: 1.707296002 | L60: 1.578391115 | M60: 0.574748 | N60: 528.76816 | O60: 24 | P60: 344 | Q60: 652.16 | R60: 374 | T60: 80 | U60: 1.6 | V60: 1.26 | AJ60: 50000 | AK60: 50 | AL60: 5 | AM60: 11.946 | AN60: 0.7 | AP60: 466.1057416
A61: HENO raigrás italiano rebrotes de espigado con hojas | B61: 85 | C61: 0.8845575231 | D61: 0.835550182 | E61: 107 | F61: 23.219 | G61: 65.95615613 | H61: -22.33097018 | I61: 1.050313537 | J61: 1.087684312 | K61: 1.37366381 | L61: 1.961746987 | M61: 0.69441 | N61: 629.13546 | O61: 29 | P61: 256 | Q61: 567 | R61: 291 | T61: 94 | U61: 1.6 | V61: 1.89 | W61: 2 | Y61: 20 | Z61: 2 | AJ61: 50000 | AK61: 50 | AL61: 5 | AM61: 16.511 | AN61: 0.69 | AP61: 560.3751069
A62: HENO Avena Floración | B62: 90 | C62: 0.6748031786 | D62: 0.5822746186 | E62: 140 | F62: 33.32 | G62: 65.22813994 | H62: 6.340615698 | I62: 1.074914591 | J62: 1.131741987 | K62: 1.444961085 | L62: 1.864950459 | M62: 0.55566 | N62: 509.54022 | O62: 33 | P62: 320 | Q62: 620 | R62: 390 | S62: 60 | T62: 83 | U62: 2.52 | V62: 0.66 | AJ62: 50000 | AK62: 50 | AL62: 5 | AM62: 19.25 | AN62: 0.66 | AP62: 419.8801711
A63: HENO Avena Inicio espigado | B63: 90 | C63: 0.7865238981 | D63: 0.7057522891 | E63: 175 | F63: 41.65 | G63: 77.97898436 | H63: 25.71188765 | I63: 1.023756676 | J63: 1.039063255 | K63: 1.301625956 | L63: 2.070318916 | M63: 0.60695 | N63: 567.49825 | O63: 26 | P63: 290 | Q63: 580 | R63: 350 | S63: 40 | T63: 65 | U63: 2.52 | V63: 0.66 | AJ63: 50000 | AK63: 50 | AL63: 5 | AM63: 22.155 | AN63: 0.66 | AP63: 471.7400882
A64: HENO Cebada Espigado | B64: 78.5 | C64: 0.5919301713 | D64: 0.4925934379 | E64: 112 | F64: 26.656 | G64: 55.09811221 | H64: -9.266789075 | I64: 1.11967543 | J64: 1.218703295 | K64: 1.584554034 | L64: 1.700655693 | M64: 0.514628 | N64: 464.709084 | O64: 12.5 | P64: 285 | Q64: 584.9 | R64: 422 | T64: 97 | U64: 1.18 | V64: 1.65 | W64: 1.6 | Y64: 14.15 | Z64: 1.75 | AA64: 1.7 | AB64: 0.07 | AC64: 24 | AF64: 101 | AG64: 27 | AH64: 0.16 | AI64: 48 | AM64: 16.926 | AN64: 0.66 | AP64: 379.9275254
A65: HENO Cebada Inicio espigado | B65: 83.7 | C65: 0.7873403043 | D65: 0.7263260237 | E65: 108 | F65: 25.704 | G65: 65.002965 | H65: -20.29450546 | I65: 1.065656642 | J65: 1.11556277 | K65: 1.417509819 | L65: 1.901066789 | M65: 0.653002 | N65: 570.723748 | O65: 12.5 | P65: 285 | Q65: 584.9 | R65: 313 | T65: 126 | U65: 1.18 | V65: 1.65 | W65: 1.6 | Y65: 14.15 | Z65: 1.75 | AA65: 1.7 | AB65: 0.07 | AC65: 24 | AF65: 101 | AG65: 27 | AH65: 0.16 | AI65: 48 | AJ65: 50000 | AK65: 50 | AL65: 5 | AM65: 16.594 | AN65: 0.66 | AP65: 496.5856114
A66: HENO Cebada Lechoso | B66: 90 | C66: 0.7063206172 | D66: 0.6214014901 | E66: 135 | F66: 32.13 | G66: 65.96134992 | H66: 1.60549777 | I66: 1.06938303 | J66: 1.121640879 | K66: 1.428604953 | L66: 1.886302322 | M66: 0.58099 | N66: 526.37694 | O66: 12.5 | P66: 285 | Q66: 610 | R66: 370 | T66: 94 | U66: 1.44 | V66: 1.584 | W66: 1.6 | Y66: 14.15 | Z66: 1.75 | AA66: 1.7 | AB66: 0.07 | AC66: 24 | AF66: 101 | AG66: 27 | AH66: 0.16 | AI66: 48 | AJ66: 50000 | AK66: 50 | AL66: 5 | AM66: 18.835 | AN66: 0.66 | AP66: 439.8400866
A67: HENO Cebada vidrioso | B67: 76.3 | C67: 0.7403468234 | D67: 0.6622083638 | E67: 99 | F67: 23.562 | G67: 60.20475676 | H67: -25.00432611 | I67: 1.093450987 | J67: 1.167979739 | K67: 1.500772141 | L67: 1.795596257 | M67: 0.605886 | N67: 554.38569 | O67: 12.5 | P67: 285 | Q67: 584.9 | R67: 350 | T67: 85 | U67: 1.44 | V67: 1.584 | W67: 1.8 | Y67: 11.8 | Z67: 1.4 | AA67: 1.7 | AB67: 0.07 | AC67: 24 | AF67: 101 | AG67: 27 | AH67: 0.16 | AI67: 48 | AJ67: 50000 | AK67: 50 | AL67: 5 | AM67: 15.847 | AN67: 0.66 | AP67: 479.4760238
A68: PAJA trigo | B68: 88 | C68: 0.5448944996 | D68: 0.4422046337 | E68: 35 | F68: 7.84 | G68: 35.75192835 | H68: -59.96328956 | I68: 1.215855774 | J68: 1.428129804 | K68: 1.940357448 | L68: 1.388806399 | M68: 0.49196 | N68: 452.6032 | O68: 15 | P68: 420 | Q68: 738.8 | R68: 439 | T68: 80 | U68: 0.8 | V68: 0.66 | W68: 1.4 | Y68: 16.5 | Z68: 2.1 | AM68: 10.535 | AN68: 0.68 | AP68: 387.9456129
A69: PAJA Trigo tratada amoniaco | B69: 88 | C69: 0.565316952 | D69: 0.4605385981 | E69: 100 | F69: 22.4 | G69: 49.60791438 | H69: -16.60686793 | I69: 1.141925732 | J69: 1.264114285 | K69: 1.659586355 | L69: 1.623766568 | M69: 0.49287 | N69: 453.4404 | O69: 15 | P69: 420 | Q69: 738.8 | R69: 439 | T69: 80 | U69: 0.8 | V69: 0.7 | AM69: 15.93 | AN69: 0.66 | AP69: 371.8618627
A70: PAJA Maíz rastrojo | B70: 85 | C70: 0.6529503033 | D70: 0.5611555319 | E70: 59 | F70: 14.042 | G70: 47.1604761 | H70: -49.08081739 | I70: 1.157472222 | J70: 1.298062411 | K70: 1.714069322 | L70: 1.572153941 | M70: 0.554526 | N70: 514.600128 | O70: 13 | P70: 344 | Q70: 670 | R70: 390 | S70: 110 | T70: 72 | U70: 2.28 | V70: 0.66 | W70: 1.4 | Y70: 16.5 | Z70: 2.1 | AJ70: 50000 | AK70: 50 | AL70: 5 | AM70: 12.527 | AN70: 0.66 | AP70: 447.1601862
A71: PAJA Avena | B71: 88 | C71: 0.5381272518 | D71: 0.4366356893 | E71: 32 | F71: 7.392 | G71: 35.09975274 | H71: -62.00686823 | I71: 1.219499726 | J71: 1.436733453 | K71: 1.955627715 | L71: 1.377962083 | M71: 0.491918 | N71: 447.64538 | O71: 15 | P71: 420 | Q71: 738.8 | R71: 439 | T71: 90 | U71: 1.4 | V71: 0.66 | AJ71: 50000 | AK71: 50 | AL71: 5 | AM71: 10.286 | AN71: 0.67 | AP71: 383.5447598
A72: PAJA Cebada | B72: 88 | C72: 0.54583885 | D72: 0.4430524613 | E72: 38 | F72: 8.512 | G72: 36.3914354 | H72: -57.86991626 | I72: 1.212233533 | J72: 1.419628584 | K72: 1.925323806 | L72: 1.399650714 | M72: 0.492002 | N72: 452.64184 | O72: 12.5 | P72: 420 | Q72: 738.8 | R72: 439 | T72: 80 | U72: 1.4 | V72: 0.66 | W72: 1.4 | Y72: 16.5 | Z72: 2.1 | AC72: 3.1 | AG72: 17.6 | AI72: 7.3 | AJ72: 50000 | AK72: 50 | AL72: 5 | AM72: 10.784 | AN72: 0.68 | AP72: 387.2032859
A73: PAJA Cebada tratada amoniaco | B73: 88 | C73: 0.565316952 | D73: 0.4605385981 | E73: 100 | F73: 22.4 | G73: 49.60791438 | H73: -16.60686793 | I73: 1.141925732 | J73: 1.264114285 | K73: 1.659586355 | L73: 1.623766568 | M73: 0.49287 | N73: 453.4404 | O73: 12.5 | P73: 420 | Q73: 738.8 | R73: 439 | T73: 80 | U73: 1.4 | V73: 0.66 | AM73: 15.93 | AN73: 0.66 | AP73: 371.8618627
A74: HENO Alfalfa Botones florales | B74: 85 | C74: 0.5712355805 | D74: 0.464442748 | E74: 171 | F74: 35.91 | G74: 61.68676322 | H74: 42.44499475 | I74: 1.073184795 | J74: 1.127610305 | K74: 1.440095705 | L74: 1.871251216 | M74: 0.48796 | N74: 443.06768 | O74: 26 | P74: 372 | Q74: 684.08 | R74: 436 | T74: 92 | U74: 4.2 | V74: 1.75 | AC74: 7.1 | AG74: 29 | AI74: 24.6 | AJ74: 45000 | AK74: 400 | AL74: 10 | AM74: 21.823 | AN74: 0.72 | AP74: 344.9931188
A75: HENO Alfalfa Inicio vegetación | B75: 85 | C75: 0.7631700038 | D75: 0.6873563 | E75: 168.5 | F75: 35.385 | G75: 71.39879666 | H75: 32.37218784 | I75: 1.027253066 | J75: 1.045286018 | K75: 1.31089825 | L75: 2.055675061 | M75: 0.612562 | N75: 548.9168082 | O75: 21.2 | P75: 283.4 | Q75: 483.1 | R75: 326.7 | S75: 69.3 | T75: 103.9 | U75: 3.75 | V75: 1.68 | AB75: 0.1 | AC75: 4.6 | AD75: 0.6 | AG75: 42.9 | AH75: 0.03 | AI75: 21.3 | AJ75: 45000 | AK75: 400 | AL75: 10 | AM75: 21.6155 | AN75: 0.72 | AP75: 460.0530203
A76: HENO Alfalfa Floración | B76: 85 | C76: 0.5304260801 | D76: 0.4188102854 | E76: 160 | F76: 33.6 | G76: 57.35624758 | H76: 35.98633783 | I76: 1.094986479 | J76: 1.168978414 | K76: 1.506087001 | L76: 1.789259742 | M76: 0.4606 | N76: 421.9096 | O76: 24 | P76: 395 | Q76: 710.3 | R76: 460 | T76: 84 | U76: 4.2 | V76: 1.54 | AJ76: 45000 | AK76: 400 | AL76: 10 | AM76: 20.91 | AN76: 0.72 | AP76: 324.6684585
A77: HENO Alfalfa floración (Cataluña) | B77: 89 | C77: 0.7804774848 | D77: 0.7084236384 | E77: 174.5 | F77: 36.645 | G77: 73.40253262 | H77: 36.23664732 | I77: 1.017963166 | J77: 1.029102189 | K77: 1.286335584 | L77: 2.094928316 | M77: 0.623962 | N77: 555.950142 | O77: 19.8 | P77: 271.5 | Q77: 446.6 | R77: 316.7 | S77: 69.1 | T77: 109 | U77: 5.67 | V77: 2.1 | AB77: 0.1 | AC77: 4.6 | AD77: 0.6 | AG77: 42.9 | AH77: 0.03 | AI77: 21.3 | AJ77: 45000 | AK77: 400 | AL77: 10 | AM77: 22.1135 | AN77: 0.72 | AP77: 466.3887716
A78: HENO Alfalfa rebrotes (Cataluña) | B78: 89 | C78: 0.8220547044 | D78: 0.7561386752 | E78: 179.3 | F78: 37.653 | G78: 76.25857889 | H78: 38.09099042 | I78: 1.006503009 | J78: 1.009490389 | K78: 1.256671417 | L78: 2.14437983 | M78: 0.64471 | N78: 577.982515 | O78: 19.8 | P78: 259.6 | Q78: 442.1 | R78: 298.5 | S78: 65.8 | T78: 103.5 | U78: 3.3 | V78: 1.54 | AB78: 0.1 | AC78: 4.6 | AD78: 0.6 | AG78: 42.9 | AH78: 0.03 | AI78: 21.3 | AJ78: 45000 | AK78: 400 | AL78: 10 | AM78: 22.5119 | AN78: 0.72 | AP78: 488.6649455
A79: HENO Alfalfa rebrotes de floración | B79: 85 | C79: 0.5559914214 | D79: 0.4463183361 | E79: 174 | F79: 36.54 | G79: 61.35273255 | H79: 45.33409107 | I79: 1.075441268 | J79: 1.131707149 | K79: 1.446811059 | L79: 1.86256583 | M79: 0.47542 | N79: 434.53388 | O79: 24 | P79: 382 | Q79: 695.48 | R79: 447 | T79: 86 | U79: 3.66 | V79: 1.54 | AB79: 0.1 | AC79: 4.6 | AD79: 0.6 | AG79: 42.9 | AH79: 0.03 | AI79: 21.3 | AJ79: 45000 | AK79: 400 | AL79: 10 | AM79: 22.072 | AN79: 0.72 | AP79: 334.8526972
A80: HENO Alfalfa Sin especificar (primavera) IAMZ | B80: 90 | C80: 0.8022678479 | D80: 0.7359621515 | E80: 171 | F80: 35.91 | G80: 73.93543875 | H80: 32.77416797 | I80: 1.014835798 | J80: 1.023836553 | K80: 1.278138126 | L80: 2.108364335 | M80: 0.64072 | N80: 567.0372 | O80: 25 | P80: 300 | Q80: 394 | R80: 302 | T80: 115 | U80: 4.38 | V80: 3.15 | AJ80: 45000 | AK80: 400 | AL80: 10 | AM80: 21.823 | AN80: 0.72 | AP80: 479.4969685
A81: HENO Alfalfa Sin especificar (verano) IAMZ | B81: 90 | C81: 0.8027529859 | D81: 0.732612327 | E81: 187 | F81: 39.27 | G81: 76.69014372 | H81: 44.68883486 | I81: 1.004731173 | J81: 1.006321977 | K81: 1.25219197 | L81: 2.152050886 | M81: 0.631828 | N81: 566.117888 | O81: 25 | P81: 284 | Q81: 583.76 | R81: 309.8 | T81: 104 | U81: 5.82 | V81: 2.03 | AJ81: 45000 | AK81: 400 | AL81: 10 | AM81: 23.151 | AN81: 0.72 | AP81: 474.0078601
A82: HENO Zulla Final floración | B82: 87.6 | C82: 0.7974276922 | D82: 0.7271766252 | E82: 143 | F82: 30.03 | G82: 68.40600963 | H82: 11.57181812 | I82: 1.041902847 | J82: 1.071676354 | K82: 1.350515054 | L82: 1.995372678 | M82: 0.63274 | N82: 575.16066 | O82: 13.5 | P82: 287 | Q82: 414 | R82: 309 | T82: 91 | U82: 0.36 | V82: 0.21 | AJ82: 45000 | AK82: 400 | AL82: 10 | AM82: 19.499 | AN82: 0.72 | AP82: 493.9941847
A83: HENO Trébol blanco Vegetativo | B83: 90 | C83: 0.7981872668 | D83: 0.7236613654 | E83: 220 | F83: 56.1 | G83: 91.79713043 | H83: 57.22036526 | I83: 0.9822368086 | J83: 0.9683089799 | K83: 1.196312677 | L83: 2.252572334 | M83: 0.6202 | N83: 557.5598 | O83: 27 | P83: 212 | Q83: 360 | R83: 320 | S83: 70 | T83: 101 | U83: 4.05 | V83: 2.17 | W83: 4.3 | X83: 3.2 | Y83: 16.2 | Z83: 1.9 | AA83: 1.7 | AB83: 0.16 | AC83: 11 | AF83: 184 | AG83: 73 | AI83: 17 | AJ83: 45000 | AK83: 400 | AL83: 10 | AM83: 25.89 | AN83: 0.66 | AP83: 446.5874095
A84: HENO Trébol violeta Final floración | B84: 89 | C84: 0.7112930165 | D84: 0.6233057215 | E84: 160 | F84: 40.8 | G84: 73.88731868 | H84: 18.87200844 | I84: 1.049059571 | J84: 1.083978186 | K84: 1.370545909 | L84: 1.966209831 | M84: 0.5746 | N84: 525.759 | O84: 28 | P84: 288 | Q84: 460 | R84: 360 | S84: 80 | T84: 85 | U84: 4.59 | V84: 1.75 | AJ84: 45000 | AK84: 400 | AL84: 10 | AM84: 20.91 | AN84: 0.66 | AP84: 429.1792985
A85: HENO Veza Inicio botones | B85: 91.4 | C85: 0.9721214262 | D85: 0.932227536 | E85: 196 | F85: 49.98 | G85: 94.63849626 | H85: 33.46866561 | I85: 0.9680489979 | J85: 0.9458914147 | K85: 1.16210933 | L85: 2.318870324 | M85: 0.718468 | N85: 653.80588 | O85: 25 | P85: 204 | Q85: 492.56 | R85: 233.8 | T85: 90 | U85: 5.28 | V85: 1.54 | AJ85: 45000 | AK85: 400 | AL85: 10 | AM85: 23.898 | AN85: 0.66 | AP85: 556.6249568
A86: HENO Veza Botones | B86: 92 | C86: 0.7602900998 | D86: 0.6840692248 | E86: 217 | F86: 55.335 | G86: 89.49619547 | H86: 56.93371672 | I86: 0.9884905805 | J86: 0.9786155001 | K86: 1.211628532 | L86: 2.224098202 | M86: 0.6088 | N86: 533.9176 | O86: 25 | P86: 244 | Q86: 470 | R86: 330 | T86: 123 | U86: 5.28 | V86: 1.54 | AJ86: 45000 | AK86: 400 | AL86: 10 | AM86: 25.641 | AN86: 0.66 | AP86: 423.0359288
A87: HENO Veza Inicio floración | B87: 90 | C87: 0.7518572372 | D87: 0.6734733305 | E87: 225 | F87: 57.375 | G87: 90.85954176 | H87: 62.84705998 | I87: 0.9844856593 | J87: 0.9718713426 | K87: 1.201833094 | L87: 2.242225526 | M87: 0.60196 | N87: 527.91892 | O87: 25 | P87: 244 | Q87: 538.16 | R87: 336 | T87: 123 | U87: 5.28 | V87: 1.54 | AJ87: 45000 | AK87: 400 | AL87: 10 | AM87: 26.305 | AN87: 0.66 | AP87: 414.2272603
A88: HENO Veza Final floración | B88: 85 | C88: 0.9139505759 | D88: 0.8625564777 | E88: 197 | F88: 50.235 | G88: 92.18452814 | H88: 36.48201349 | I88: 0.9773405656 | J88: 0.960845548 | K88: 1.184313609 | L88: 2.275394642 | M88: 0.688144 | N88: 623.458464 | O88: 25 | P88: 232 | Q88: 524.48 | R88: 260.4 | T88: 94 | U88: 4.41 | V88: 2.17 | AJ88: 45000 | AK88: 400 | AL88: 10 | AM88: 23.981 | AN88: 0.66 | AP88: 523.89411
A89: HENO Veza Fructificación | B89: 91 | C89: 0.8320963568 | D89: 0.7657742026 | E89: 186 | F89: 47.43 | G89: 85.84481608 | H89: 32.08838466 | I89: 1.000806021 | J89: 0.9997563541 | K89: 1.242213475 | L89: 2.169337956 | M89: 0.64528 | N89: 583.33312 | O89: 20 | P89: 236 | Q89: 453 | R89: 298 | T89: 96 | U89: 4.53 | V89: 1.19 | AJ89: 45000 | AK89: 400 | AL89: 10 | AM89: 23.068 | AN89: 0.66 | AP89: 484.0280298
A90: HENO Veza Pastoso | B90: 90.2 | C90: 0.9492342693 | D90: 0.908971077 | E90: 188 | F90: 47.94 | G90: 91.99944958 | H90: 28.96923571 | I90: 0.9750278921 | J90: 0.9572930027 | K90: 1.178699078 | L90: 2.286233093 | M90: 0.71596 | N90: 640.7842 | O90: 20 | P90: 278 | Q90: 576.92 | R90: 236 | T90: 105 | U90: 4.8 | V90: 2.1 | AJ90: 45000 | AK90: 400 | AL90: 10 | AM90: 23.234 | AN90: 0.66 | AP90: 545.7686271
A91: HENO Veza (> 50%) - Avena corte precoz INRA | B91: 84 | C91: 0.73 | D91: 0.65 | E91: 158 | F91: 42 | G91: 93 | H91: -18.58155175 | I91: 1.020408163 | J91: 1.024501769 | K91: 0.86 | L91: 3.13 | M91: 0.68 | N91: 881 | P91: 333 | Q91: 674 | R91: 378 | T91: 119 | AN91: 0.6 | AP91: 799.8825
A92: HENO Veza (20-50%) - Avena corte precoz INRA | B92: 79 | C92: 0.72 | D92: 0.65 | E92: 104 | F92: 24 | G92: 75 | H92: -50.30615175 | I92: 1.065092359 | J92: 1.108776844 | K92: 1.21 | L92: 2.23 | M92: 0.68 | N92: 897 | P92: 280 | Q92: 595 | R92: 323 | T92: 103 | AN92: 0.63 | AP92: 833.8825
A93: HENO Veza (<20%) - Avena corte precoz INRA | B93: 75 | C93: 0.66 | D93: 129 | E93: 29 | F93: 81 | G93: -31.06451623 | H93: 1.031870043 | I93: 1.053472022 | J93: 1.21 | K93: 2.23 | L93: 0.7 | M93: 870 | O93: 270 | P93: 575 | Q93: 308 | S93: 130 | AM93: 0.64 | AO93: 803.2617
A94: HENO Veza (> 50%) - Avena corte tardío INRA | B94: 65 | C94: 0.55 | D94: 123 | E94: 31 | F94: 81 | G94: -43.47657607 | H94: 1.07880684 | I94: 1.128333036 | J94: 0.89 | K94: 3.02 | L94: 0.61 | M94: 929 | O94: 268 | P94: 584 | Q94: 309 | S94: 71 | AM94: 0.6 | AO94: 854.0553
A95: HENO Veza (20-50%) - Avena corte tardío INRA | B95: 64 | C95: 0.55 | D95: 99 | E95: 23 | F95: 72 | G95: -53.56774055 | H95: 1.090181359 | I95: 1.155366373 | J95: 1.39 | K95: 1.94 | L95: 0.63 | M95: 901 | O95: 333 | P95: 675 | Q95: 385 | S95: 99 | AM95: 0.63 | AO95: 835.4345
A96: HENO Veza (<20%) - Avena corte tardío INRA | B96: 86 | C96: 0.61 | D96: 0.52 | E96: 74 | F96: 17 | G96: 66 | H96: -72.15889383 | I96: 1.124534122 | J96: 1.228533002 | K96: 1.25 | L96: 2.16 | M96: 0.6 | N96: 916 | P96: 324 | Q96: 664 | R96: 377 | T96: 84 | AN96: 0.61 | AP96: 854.3657

Sheet Tabla Concentrados
A1: Concentrados | B1: MS | C1: UFL | D1: UFV | E1: MNT_PB | F1: PDIA | G1: PDI | H1: BPR | I1: UEL | J1: UEB | K1: UEM | L1: NI ref | M1: dMO | N1: MOD_TDN | O1: EE | P1: FB | Q1: NDF | R1: ADF | S1: Lignina | T1: Cenizas | U1: Ca | V1: P | W1: Mg | X1: Cl | Y1: K | Z1: Na | AA1: S | AB1: Co | AC1: Cu | AD1: Mo | AE1: Yodo | AF1: Fe | AG1: Mn | AH1: Se | AI1: Zn | AJ1: Vit A | AK1: Vit D | AL1: Vit E | AM1: AG | AN1: DT_N | AO1: dr | AP1: MOF
A3: Cebada grano | B3: 88.8 | C3: 1.078969989 | D3: 1.067752556 | E3: 112 | F3: 27.59508246 | G3: 89.46220189 | H3: -31.34737412 | I3: 0.2046 | L3: 2 | M3: 0.837328 | N3: 816.3948 | O3: 19 | P3: 54 | Q3: 215 | R3: 65 | S3: 12 | T3: 25 | U3: 0.44 | V3: 2.964 | W3: 1.3 | Y3: 5.55 | Z3: 0.35 | AB3: 0.01 | AC3: 4.1 | AD3: 0.3 | AF3: 90 | AG3: 17.6 | AH3: 0.02 | AI3: 24.4 | AJ3: 1000 | AL3: 25 | AM3: 14.25 | AN3: 0.7349259949 | AO3: 0.9294938772 | AP3: 596.0833771
A4: Maíz grano | B4: 86 | C4: 1.24475541 | D4: 1.26 | E4: 89 | F4: 43 | G4: 94 | H4: -53 | I4: 0.3291 | L4: 2 | M4: 0.882846 | N4: 870.486156 | O4: 43 | P4: 26 | Q4: 125 | R4: 31 | S4: 60 | T4: 14 | U4: 0.275 | V4: 2.175 | W4: 1.4 | Y4: 3.6 | Z4: 0.33 | AB4: 0.02 | AC4: 2.3 | AD4: 0.3 | AF4: 80 | AG4: 10.8 | AH4: 0.02 | AI4: 21.4 | AM4: 36.55 | AN4: 0.4465708975 | AO4: 0.8730044467 | AP4: 780.9036423
A5: Trigo grano | B5: 87 | C5: 1.191513797 | D5: 1.205062577 | E5: 157 | F5: 33.00144942 | G5: 96.50582734 | H5: 5.8944095 | I5: 0.1714 | L5: 2 | M5: 0.87875 | N5: 861.175 | O5: 23 | P5: 29 | Q5: 146 | R5: 38 | S5: 12 | T5: 20 | U5: 0.275 | V5: 2.808 | AB5: 0.02 | AC5: 4.4 | AD5: 0.3 | AG5: 33.7 | AH5: 0.04 | AI5: 32.5 | AL5: 12 | AM5: 17.25 | AN5: 0.7771204339 | AO5: 0.9431116475 | AP5: 740.1774934
A6: Avena | B6: 87.4 | C6: 1.002754804 | D6: 0.9548146189 | E6: 111 | F6: 20.39754399 | G6: 75.33304787 | H6: -14.56672481 | I6: 0.3208 | L6: 2 | M6: 0.72867 | N6: 706.8099 | O6: 67 | P6: 135 | Q6: 336 | R6: 162 | S6: 27 | T6: 30 | U6: 0.55 | V6: 3 | W6: 1.75 | Y6: 4.3 | Z6: 0.5 | AB6: 0.02 | AC6: 3.5 | AD6: 0.7 | AG6: 38.4 | AH6: 0.04 | AI6: 25.2 | AL6: 15 | AM6: 60.3 | AN6: 0.7980031538 | AO6: 0.9097253799 | AP6: 747.5170565
A7: Alforfón grano | B7: 88 | C7: 1.000775785 | D7: 0.9661592102 | E7: 125 | F7: 34.09988724 | G7: 90.96989041 | H7: -20.55937996 | I7: 0.2129 | L7: 2 | M7: 0.74393 | N7: 726.81961 | O7: 28 | P7: 118 | Q7: 301 | R7: 158.9 | S7: 33.4 | T7: 23 | U7: 0.605 | V7: 2.775 | W7: 1.2 | X7: 0.5 | Y7: 5.1 | Z7: 0.6 | AA7: 1.6 | AB7: 0.06 | AC7: 11 | AF7: 50 | AG7: 38 | AI7: 10 | AM7: 21 | AN7: 0.6993867196 | AO7: 0.9074752038 | AP7: 668.2667467
A8: Mijo grano | B8: 88 | C8: 1.009546491 | D8: 0.9776763056 | E8: 131 | F8: 35.90764594 | G8: 91.77812279 | H8: -15.03762007 | I8: 0.2129 | L8: 2 | M8: 0.752754 | N8: 721.138332 | O8: 42 | P8: 106 | Q8: 284.5 | R8: 143.86 | S8: 29.7 | T8: 42 | U8: 0.22 | V8: 2.4 | W8: 1.7 | X8: 0.34 | Y8: 4.66 | Z8: 0.45 | AM8: 37.8 | AN8: 0.6997481148 | AO8: 0.9129140598 | AP8: 460.6219971
A9: Centeno grano | B9: 86.5 | C9: 1.19 | D9: 1.21 | E9: 97 | F9: 20 | G9: 81 | H9: -34.72904868 | I9: 0.2129 | L9: 2 | M9: 0.88214 | N9: 864.4972 | O9: 16.2 | P9: 26 | Q9: 132 | R9: 42 | S9: 14 | T9: 20 | U9: 0.385 | V9: 3 | W9: 1.35 | Y9: 5.25 | Z9: 0.3 | AB9: 0.03 | AC9: 4.5 | AD9: 0.2 | AG9: 55 | AH9: 0.03 | AI9: 30 | AL9: 17 | AM9: 12.15 | AN9: 0.7769651377 | AO9: 0.9244544324 | AP9: 415.4862894
A10: Sorgo grano | B10: 86 | C10: 1.21 | D10: 1.23 | E10: 105 | F10: 47 | G10: 97.13096315 | H10: -48 | I10: 0.2129 | L10: 2 | M10: 0.884686 | N10: 869.646338 | O10: 37 | P10: 25 | Q10: 107 | R10: 49 | S10: 4 | T10: 17 | U10: 0.165 | V10: 2.4 | W10: 1.75 | Y10: 3.6 | Z10: 0.4 | AC10: 10 | AF10: 160 | AG10: 14 | AI10: 14 | AJ10: 14000 | AL10: 12 | AM10: 33.3 | AN10: 0.5226342292 | AO10: 0.9376856804 | AP10: 581.7628756
A11: Triticale grano | B11: 87.1 | C11: 1.191793332 | D11: 1.210362141 | E11: 130 | F11: 38.225488 | G11: 101.2965379 | H11: -26.94851539 | I11: 0.2129 | L11: 2 | M11: 0.87145 | N11: 852.2781 | O11: 17 | P11: 33 | Q11: 148 | R11: 40 | S11: 13 | T11: 22 | U11: 0.275 | V11: 3.45 | AM11: 12.75 | AN11: 0.6853862298 | AO11: 0.9346133045 | AP11: 618.0604347
A12: Trigo salvado trigo duro | B12: 87.7 | C12: 1.017694369 | D12: 0.9779078471 | E12: 167 | F12: 34.63114108 | G12: 88.47767853 | H12: 25.24478524 | I12: 0.3057772 | L12: 2 | M12: 0.731538 | N12: 692.034948 | O12: 58 | P12: 118 | Q12: 481 | R12: 148 | S12: 38 | T12: 54 | U12: 0.935 | V12: 7.8 | AC12: 10 | AF12: 200 | AG12: 90 | AI12: 80 | AJ12: 1000 | AL12: 21 | AM12: 46.4 | AN12: 0.7727450842 | AO12: 0.9125087639 | AP12: 677.3417032
A13: Maíz copos | B13: 89 | C13: 1.285459442 | D13: 1.315633547 | E13: 100 | F13: 41.4985065 | G13: 103.9464693 | H13: -59.77494194 | I13: 0.231567 | L13: 2 | M13: 0.88266 | N13: 868.53744 | O13: 43 | P13: 26 | Q13: 90 | R13: 30 | S13: 10 | T13: 16 | U13: 0.165 | V13: 2.175 | W13: 1.4 | X13: 0.5 | Y13: 3.7 | Z13: 0.3 | AA13: 1.2 | AB13: 0.05 | AC13: 4 | AF13: 30 | AG13: 5 | AH13: 0.08 | AI13: 14 | AJ13: 1000 | AL13: 25 | AM13: 36.55 | AN13: 0.5536620228 | AO13: 0.9297552219 | AP13: 841.6236618
A14: Maíz bagazo | B14: 88.1 | C14: 1.203463873 | D14: 1.20550115 | E14: 151 | F14: 56.28378672 | G14: 116.7748185 | H14: -22.64723712 | I14: 0.2876 | L14: 2 | M14: 0.850092 | N14: 833.940252 | O14: 34 | P14: 68 | Q14: 272 | R14: 78 | S14: 11 | T14: 19 | U14: 0.5 | V14: 3.7 | W14: 1.8 | Y14: 3.5 | Z14: 9.5 | AM14: 25.5 | AN14: 0.6042201418 | AO14: 0.9417869599 | AP14: 567.5727337
A15: Maíz hominyfeed (mezcla salvado, germen y almidón) | B15: 90 | C15: 1.153355136 | D15: 1.157966805 | E15: 114 | F15: 46.52415979 | G15: 107.3745235 | H15: -49.99869329 | I15: 0.2535785 | L15: 2 | M15: 0.837476 | N15: 816.5391 | O15: 19 | P15: 54 | Q15: 215 | R15: 65 | S15: 12 | T15: 25 | U15: 0.275 | V15: 4.275 | W15: 2.6 | X15: 0.6 | Y15: 6.5 | Z15: 0.9 | AA15: 0.3 | AB15: 0.06 | AC15: 15 | AF15: 75 | AG15: 16 | AH15: 0.11 | AI15: 3 | AM15: 16.15 | AN15: 0.5612101445 | AO15: 0.9300731538 | AP15: 380.3273066
A16: Maíz gluten feed | B16: 87.7 | C16: 1.056307439 | D16: 1.029893853 | E16: 216 | F16: 53.8646516 | G16: 111.0030461 | H16: 49.88125855 | I16: 0.3125 | L16: 2 | M16: 0.825072 | N16: 769.792176 | O16: 45 | P16: 88 | Q16: 343 | R16: 100 | S16: 13 | T16: 67 | U16: 1.65 | V16: 5.304 | W16: 3.5 | Y16: 10.25 | Z16: 7 | AJ16: 3000 | AL16: 14 | AM16: 40.5 | AN16: 0.7383081976 | AO16: 0.9529277751 | AP16: 400.0063135
A17: Maíz gluten meal | B17: 89.3 | C17: 1.647747782 | D17: 1.703959302 | E17: 661 | F17: 427.8502116 | G17: 474.6927582 | H17: 117.5185209 | I17: 0.4868 | L17: 2 | M17: 0.943652 | N17: 929.49722 | O17: 35 | P17: 21 | Q17: 107 | R17: 28 | S17: 6 | T17: 15 | U17: 0.11 | V17: 2.72 | AJ17: 14000 | AL17: 26 | AM17: 28 | AN17: 0.3436078323 | AO17: 0.986113493 | AP17: 749.4135605
A18: Maíz carozo | B18: 90 | C18: 0.5231913971 | D18: 0.4115298955 | E18: 44 | F18: 14.39853914 | G18: 59.97738242 | H18: -62.53694262 | I18: 0.4692912 | L18: 2 | M18: 0.455276 | N18: 437.06496 | O18: 5 | P18: 302 | Q18: 822 | R18: 408 | S18: 38 | T18: 40 | U18: 0.66 | V18: 0.525 | AM18: 2 | AN18: 0.6232120323 | AO18: 0.8684978132 | AP18: 521.7862692
A19: Maíz salvado | B19: 88.3 | C19: 1.112973677 | D19: 1.10078662 | E19: 101 | F19: 43.23835933 | G19: 96.34428969 | H19: -50.71801618 | I19: 0.3706 | L19: 2 | M19: 0.707252 | N19: 669.060392 | O19: 40 | P19: 150 | Q19: 557 | R19: 164 | S19: 19 | T19: 54 | U19: 0.165 | V19: 1.875 | AM19: 34 | AN19: 0.5317077588 | AO19: 0.9141782203 | AP19: 556.4050738
A20: Maíz torta de gérmenes a presión | B20: 88.1 | C20: 1.17895975 | D20: 1.171602179 | E20: 146 | F20: 59.1015472 | G20: 113.8847817 | H20: -23.87880397 | I20: 0.2642698 | L20: 2 | M20: 0.801524 | N20: 763.050848 | O20: 82 | P20: 72 | Q20: 285 | R20: 82 | S20: 11 | T20: 48 | U20: 0.33 | V20: 3.525 | W20: 4.5 | Y20: 1.8 | Z20: 8.5 | AM20: 65.6 | AN20: 0.5685588128 | AO20: 0.9382625715 | AP20: 625.9611681
A21: Maíz torta de gérmenes con disolvente | B21: 87.9 | C21: 1.041990023 | D21: 1.023538393 | E21: 135 | F21: 54.17190727 | G21: 111.6965778 | H21: -33.88229766 | I21: 0.2686721 | L21: 2 | M21: 0.79028 | N21: 752.34656 | O21: 17 | P21: 79 | Q21: 310 | R21: 89 | S21: 12 | T21: 48 | U21: 0.495 | V21: 3.75 | W21: 4.5 | Y21: 1.8 | Z21: 8.5 | AJ21: 1000 | AL21: 94 | AM21: 12.75 | AN21: 0.5703343944 | AO21: 0.9339201973 | AP21: 543.5361192
A22: Maíz extrusionado | B22: 90.3 | C22: 1.26592428 | D22: 1.305945141 | E22: 96.35 | F22: 55.42277845 | G22: 120.6512297 | H22: -82.39695502 | I22: 0.21464959 | L22: 2 | M22: 0.9181304 | N22: 904.9093222 | O22: 4.32 | P22: 2.55 | Q22: 12.18 | R22: 3.1 | S22: 0.55 | T22: 14.4 | U22: 0.165 | V22: 2.175 | W22: 1.4 | X22: 0.5 | Y22: 3.7 | Z22: 0.3 | AA22: 1.2 | AB22: 0.05 | AC22: 4 | AF22: 30 | AG22: 5 | AH22: 0.08 | AI22: 14 | AJ22: 1000 | AL22: 25 | AM22: 3.672 | AN22: 0.3880056001 | AO22: 0.9399161825 | AP22: 296.3737151
A23: Alforfón segundas | B23: 89 | C23: 1.185521315 | D23: 1.168586189 | E23: 335 | F23: 98.39838218 | G23: 150.650279 | H23: 125.2564113 | I23: 0.2129 | L23: 2 | M23: 0.79562 | N23: 751.8609 | O23: 82 | P23: 83 | Q23: 251.39 | R23: 114.99 | S23: 22.61 | T23: 55 | U23: 0.275 | V23: 2.925 | AM23: 65.6 | AN23: 0.6946621902 | AO23: 0.9619722962 | AP23: 273.3737151
A24: Cebada bagazo cervecería fresco | B24: 20.5 | C24: 0.8640921799 | D24: 0.7703702942 | E24: 300 | F24: 129.9487159 | G24: 172.9796551 | H24: 53.5641575 | I24: 0.4951 | L24: 2 | M24: 0.6385 | N24: 606.575 | O24: 86 | P24: 150 | Q24: 525 | R24: 206 | S24: 47 | T24: 50 | U24: 1.815 | V24: 4.446 | W24: 1.6 | Y24: 0.7 | Z24: 1.6 | AB24: 0.08 | AC24: 22.2 | AD24: 0.5 | AG24: 38.5 | AH24: 0.06 | AI24: 85 | AL24: 29 | AM24: 38.7 | AN24: 0.5325076887 | AO24: 0.9265657975 | AP24: 565.2052521
A25: Cebada bagazo cervecería seco | B25: 91.9 | C25: 0.871193565 | D25: 0.7805426295 | E25: 262.4 | F25: 107.6156328 | G25: 151.6383987 | H25: 35.09442835 | I25: 0.4951 | L25: 2 | M25: 0.62732 | N25: 601.348952 | O25: 79.9 | P25: 161.6 | Q25: 643.3 | R25: 236.4 | S25: 78.9 | T25: 41.4 | U25: 1.265 | V25: 4.914 | AB25: 0.08 | AC25: 22.2 | AD25: 0.5 | AG25: 38.5 | AH25: 0.06 | AI25: 85 | AL25: 29 | AM25: 35.955 | AN25: 0.5371850665 | AO25: 0.886143731 | AP25: 529.6572154
A26: Cebada malta, grano germinado y secado | B26: 89.6 | C26: 0.8231856487 | D26: 0.7581965961 | E26: 255 | F26: 66.35502136 | G26: 127.2527654 | H26: 71.69727487 | I26: 0.2959 | L26: 2 | M26: 0.89925 | N26: 840.79875 | O26: 23 | P26: 10 | Q26: 94 | R26: 10 | S26: 6 | T26: 65 | U26: 1.485 | V26: 5.625 | AL26: 16 | AM26: 10.35 | AN26: 0.7318227862 | AO26: 0.9703127509 | AP26: 363.3900279
A27: Cebada salvado | B27: 89 | C27: 0.7604950037 | D27: 0.683000715 | E27: 118 | F27: 25.13276462 | G27: 75.56717545 | H27: -8.043766921 | I27: 0.3630071 | L27: 2 | M27: 0.620602 | N27: 581.504074 | O27: 32 | P27: 187 | Q27: 539 | R27: 239 | S27: 28 | T27: 63 | U27: 0.44 | V27: 2.925 | AB27: 0.03 | AC27: 11.7 | AD27: 0.6 | AG27: 123 | AH27: 0.05 | AI27: 59 | AM27: 25.6 | AN27: 0.7651033494 | AO27: 0.9067371975 | AP27: 563.5193635
A28: Cacao torta | B28: 86.6 | C28: 0.9215256292 | D28: 0.8794694618 | E28: 232 | F28: 88.67087909 | G28: 140.270913 | H28: 25.81494705 | I28: 0.34659281 | L28: 2 | M28: 0.745465 | N28: 673.154895 | O28: 20 | P28: 161 | Q28: 363.86 | R28: 212.9 | S28: 47.29 | T28: 97 | U28: 1.43 | V28: 0.884 | AM28: 15 | AN28: 0.5829749087 | AO28: 0.9164965682 | AP28: 268.232459
A29: Cacahuete, torta 48 | B29: 88.6 | C29: 1.194433583 | D29: 1.186516039 | E29: 524 | F29: 143.3022223 | G29: 198.101494 | H29: 261.736138 | I29: 0.2876 | L29: 2 | M29: 0.84376 | N29: 789.75936 | O29: 16 | P29: 77 | Q29: 150 | R29: 101 | S29: 26 | T29: 64 | U29: 0.99 | V29: 4.29 | W29: 3 | AB29: 0.3 | AC29: 14.5 | AD29: 1.7 | AF29: 450 | AG29: 47.5 | AH29: 0.11 | AI29: 61.5 | AM29: 12 | AN29: 0.7179423819 | AO29: 0.969580348 | AP29: 807.1947924
A30: Coco torta | B30: 90 | C30: 0.9709595673 | D30: 0.9339995141 | E30: 239 | F30: 87.26903545 | G30: 138.2098434 | H30: 30.48498753 | I30: 0.2876 | L30: 2 | M30: 0.71604 | N30: 660.18888 | O30: 18 | P30: 178 | Q30: 580 | R30: 316 | S30: 78 | T30: 78 | U30: 1.1 | V30: 4.488 | W30: 4 | Z30: 0.6 | AC30: 20 | AF30: 500 | AG30: 60 | AI30: 70 | AM30: 16.2 | AN30: 0.5872269422 | AO30: 0.8846081419 | AP30: 201.6193367
A31: Colza, grano | B31: 89.9 | C31: 1.96875359 | D31: 2.026164505 | E31: 217 | F31: 41.88482236 | G31: 81.98060891 | H31: 90.24033351 | I31: 0.2959 | L31: 2 | M31: 0.84608 | N31: 798.69952 | O31: 457 | P31: 68 | Q31: 199 | R31: 116 | S31: 41 | T31: 56 | U31: 1.815 | V31: 3.763 | AM31: 388.45 | AN31: 0.7911253228 | AO31: 0.924083365 | AP31: 581.9454468
A32: Colza, grano semidescascarillado | B32: 90 | C32: 2.006824385 | D32: 2.066056386 | E32: 217 | F32: 41.88482236 | G32: 80.92224091 | H32: 91.89403351 | I32: 0.2959 | L32: 2 | M32: 0.84608 | N32: 798.69952 | O32: 480 | P32: 68 | Q32: 115 | R32: 84 | S32: 41 | T32: 56 | U32: 1.815 | V32: 3.763 | AM32: 379.2 | AN32: 0.7911253228 | AO32: 0.924083365 | AP32: 817.1113866
A33: Colza, turtó | B33: 90 | C33: 0.958005025 | D33: 0.9098593603 | E33: 418 | F33: 103.9119909 | G33: 155.8627084 | H33: 193.047004 | I33: 0.3125 | L33: 2 | M33: 0.7842 | N33: 704.9958 | O33: 26 | P33: 120 | Q33: 287 | R33: 182 | S33: 74 | T33: 101 | U33: 4.62 | V33: 8.804 | W33: 5.15 | Y33: 12.4 | Z33: 0.75 | AB33: 0.1 | AC33: 5.5 | AD33: 0.5 | AF33: 300 | AG33: 63.5 | AH33: 0.07 | AI33: 64.5 | AL33: 20 | AM33: 20.8 | AN33: 0.7277738088 | AO33: 0.9131864885 | AP33: 325.121416
A34: Colza, turtó tanne, curtido | B34: 89 | C34: 1.240309081 | D34: 1.253284486 | E34: 391 | F34: 143.4249536 | G34: 193.4731611 | H34: 118.7396757 | I34: 0.3374 | L34: 2 | M34: 0.77349 | N34: 713.93127 | O34: 26 | P34: 129 | Q34: 302 | R34: 193 | S34: 79 | T34: 77 | U34: 4.62 | V34: 8.804 | Y34: 12.4 | Z34: 0.75 | AB34: 0.1 | AC34: 5.5 | AD34: 0.5 | AF34: 300 | AG34: 63.5 | AH34: 0.07 | AI34: 64.5 | AM34: 17.94 | AN34: 0.5952070214 | AO34: 0.9061810788 | AP34: 550.0468057
A35: Algodón, grano | B35: 92 | C35: 1.105745464 | D35: 1.027155353 | E35: 220 | F35: 48.76444907 | G35: 91.65479282 | H35: 70.58383788 | I35: 0.5034 | L35: 2 | M35: 0.64652 | N35: 618.71964 | O35: 198 | P35: 276 | Q35: 456 | R35: 354 | S35: 105 | T35: 43 | U35: 1.155 | V35: 4.736 | AM35: 188.1 | AN35: 0.7394108541 | AO35: 0.8505979247 | AP35: 581.8575174
A36: Algodón torta sin aceite | B36: 89 | C36: 1.150192028 | D36: 1.125943813 | E36: 466 | F36: 160.9221094 | G36: 212.6445717 | H36: 184.5836527 | I36: 0.2994882 | L36: 2 | M36: 0.802196 | N36: 750.855456 | O36: 20 | P36: 127 | Q36: 232 | R36: 138 | S36: 32 | T36: 64 | U36: 2.585 | V36: 5.922 | W36: 5.2 | Y36: 15.2 | Z36: 0.4 | AM36: 15 | AN36: 0.6409096727 | AO36: 0.9616700558 | AP36: 814.2065213
A37: Algodón cáscara | B37: 91 | C37: 0.3662081422 | D37: 0.2380788633 | E37: 81 | F37: 16.10308659 | G37: 54.6536023 | H37: -25.8351808 | I37: 0.65129486 | L37: 2 | M37: 0.323182 | N37: 309.608356 | O37: 19 | P37: 547 | Q37: 900 | R37: 697.4 | S37: 184.6 | T37: 42 | U37: 0.77 | V37: 0.693 | AM37: 14.25 | AN37: 0.7237543586 | AO37: 0.7196621715 | AP37: 816.2571164
A38: Habón grano | B38: 86.9 | C38: 1.286607118 | D38: 1.320957789 | E38: 302 | F38: 51.43027974 | G38: 115.0698849 | H38: 130.983117 | I38: 0.1714 | L38: 2 | M38: 0.9143 | N38: 876.8137 | O38: 16 | P38: 90 | Q38: 171 | R38: 108 | S38: 24.7 | T38: 41 | U38: 0.715 | V38: 3.264 | W38: 1.6 | X38: 0.8 | Y38: 12 | Z38: 0.25 | AB38: 0.4 | AC38: 13.8 | AD38: 1 | AF38: 100 | AG38: 12.7 | AH38: 0.02 | AI38: 43.7 | AM38: 12.8 | AN38: 0.8224539482 | AO38: 0.9591817888 | AP38: 509.2308572
A39: Girasol, grano | B39: 93 | C39: 1.708471184 | D39: 1.695156001 | E39: 174 | F39: 24.64749869 | G39: 60.41910651 | H39: 72.58686279 | I39: 0.2627 | L39: 2 | M39: 0.74312 | N39: 714.13832 | O39: 485 | P39: 164 | Q39: 294 | R39: 200 | S39: 56 | T39: 39 | U39: 0.99 | V39: 3.12 | AM39: 460.75 | AN39: 0.8418449238 | AO39: 0.8956544094 | AP39: 566.2107452
A40: Girasol torta descascarillado | B40: 91 | C40: 0.9910764189 | D40: 0.9439708695 | E40: 417 | F40: 80.25381508 | G40: 133.123438 | H40: 220.1112143 | I40: 0.3208 | L40: 2 | M40: 0.745917 | N40: 691.465059 | O40: 22 | P40: 176 | Q40: 299 | R40: 220 | S40: 70 | T40: 73 | U40: 2.09 | V40: 6.435 | W40: 5.5 | X40: 1.2 | Y40: 12 | Z40: 0.33 | AM40: 16.5 | AN40: 0.790120834 | AO40: 0.9169809263 | AP40: 601.9494415
A41: Lenteja grano | B41: 88 | C41: 1.292742572 | D41: 1.330655343 | E41: 281 | F41: 49.08181296 | G41: 113.199967 | H41: 113.2253843 | I41: 0.1714 | L41: 2 | M41: 0.91963 | N41: 886.52332 | O41: 19.3 | P41: 49 | Q41: 160 | R41: 72 | S41: 3 | T41: 36 | U41: 0.605 | V41: 3.06 | AM41: 14.475 | AN41: 0.8216657174 | AO41: 0.9794436099 | AP41: 617.4800936
A42: Lino, grano | B42: 90.3 | C42: 1.657583747 | D42: 1.660671498 | E42: 253 | F42: 51.01194867 | G42: 92.3191443 | H42: 111.0075068 | I42: 0.3208 | L42: 2 | M42: 0.780518 | N42: 743.3653432 | O42: 362 | P42: 101.9 | Q42: 244.7 | R42: 148.4 | S42: 62 | T42: 47.6 | U42: 2.314507198 | V42: 4.526024363 | W42: 3.986710963 | X42: 0.6644518272 | Y42: 7.973421927 | Z42: 0.7751937984 | AA42: 2.990033223 | AC42: 13.28903654 | AD42: 0.2214839424 | AF42: 163.8981174 | AG42: 32.11517165 | AI42: 49.83388704 | AM42: 343.9 | AN42: 0.7776919873 | AO42: 0.9069770052 | AP42: 614.3463707
A43: Linaza torta sin aceite | B43: 89 | C43: 1.151871054 | D43: 1.134141167 | E43: 377 | F43: 129.4671117 | G43: 180.6322598 | H43: 120.744456 | I43: 0.3064061 | L43: 2 | M43: 0.803904 | N43: 752.454144 | O43: 58 | P43: 118 | Q43: 236 | R43: 149 | S43: 88 | T43: 64 | U43: 2.585 | V43: 6.298 | W43: 6.1 | Y43: 14 | Z43: 1.3 | AB43: 0.6 | AC43: 21 | AD43: 0.6 | AF43: 250 | AG43: 59 | AH43: 0.5 | AI43: 73 | AL43: 9 | AM43: 43.5 | AN43: 0.6169566624 | AO43: 0.8965410847 | AP43: 595.3582566
A44: Palmito torta (palmiste) | B44: 90 | C44: 0.8319475036 | D44: 0.7632996493 | E44: 206 | F44: 83.76805509 | G44: 136.5208369 | H44: -3.926221648 | I44: 0.4287 | L44: 2 | M44: 0.73056 | N44: 699.14592 | O44: 19 | P44: 167 | Q44: 632 | R44: 241 | S44: 103 | T44: 43 | U44: 1.705 | V44: 4.556 | AM44: 17.1 | AN44: 0.5228718322 | AO44: 0.8522679473 | AP44: 614.3463707
A45: Judía grano | B45: 88 | C45: 1.269417567 | D45: 1.306008103 | E45: 257 | F45: 44.57202968 | G45: 108.5638422 | H45: 93.98279293 | I45: 0.1714 | L45: 2 | M45: 0.91937 | N45: 878.91772 | O45: 19 | P45: 51 | Q45: 162 | R45: 74 | S45: 3 | T45: 44 | U45: 0.715 | V45: 3.468 | W45: 1.6 | Y45: 14 | Z45: 0.4 | AM45: 15.2 | AN45: 0.8221354136 | AO45: 0.9750789946 | AP45: 689.6784425
A46: Guisante grano | B46: 85.7 | C46: 1.262578618 | D46: 1.297789954 | E46: 259 | F46: 44.91173193 | G46: 108.9957771 | H46: 95.45867945 | I46: 0.1714 | L46: 2 | M46: 0.91768 | N46: 877.30208 | O46: 15 | P46: 64 | Q46: 162 | R46: 74 | S46: 3 | T46: 44 | U46: 0.495 | V46: 3.128 | W46: 1.45 | Y46: 11 | Z46: 0.3 | AB46: 0.07 | AC46: 7.2 | AD46: 1.1 | AG46: 8 | AH46: 0.2 | AI46: 37 | AM46: 12 | AN46: 0.8222202176 | AO46: 0.9753885851 | AP46: 696.3958697
A47: Soja, grano extrusionado | B47: 88 | C47: 1.485485602 | D47: 1.497390722 | E47: 402 | F47: 188.4323551 | G47: 238.0406285 | H47: 109.2870728 | I47: 0.3208 | L47: 2 | M47: 0.97179 | N47: 912.51081 | O47: 213 | P47: 74 | Q47: 146 | R47: 92 | S47: 7 | T47: 61 | U47: 1.54 | V47: 4.48 | AM47: 202.35 | AN47: 0.526666784 | AO47: 0.9902901084 | AP47: 704.0018085
A48: Soja, grano tostado | B48: 88.6 | C48: 1.490185728 | D48: 1.502445871 | E48: 397.3 | F48: 133.307895 | G48: 185.6891829 | H48: 158.2262376 | I48: 0.2959 | L48: 2 | M48: 0.975779 | N48: 918.5007727 | O48: 216.7 | P48: 63.2 | Q48: 132 | R48: 77.78 | S48: 13.5 | T48: 58.7 | U48: 1.986455982 | V48: 4.187358916 | W48: 2.595936795 | X48: 0.5643340858 | Y48: 20.76749436 | Z48: 0.9029345372 | AA48: 3.16027088 | AC48: 38.37471783 | AD48: 4.514672686 | AF48: 161.3995485 | AG48: 31.6027088 | AH48: 0.316027088 | AI48: 45.14672686 | AM48: 205.865 | AN48: 0.6587213001 | AO48: 0.9831688769 | AP48: 771.7510797
A49: Soja torta 44 | B49: 87.2 | C49: 1.165625863 | D49: 1.159793832 | E49: 488 | F49: 153.419998 | G49: 207.0695265 | H49: 219.1726116 | I49: 0.2781056 | L49: 2 | M49: 0.849655 | N49: 779.133635 | O49: 22 | P49: 84 | Q49: 163 | R49: 104 | S49: 8 | T49: 83 | U49: 1.87 | V49: 4.9 | W49: 2.7 | Y49: 20 | Z49: 1.95 | AB49: 0.3 | AC49: 17.1 | AD49: 2.3 | AF49: 200 | AG49: 43.7 | AH49: 0.2 | AI49: 54.6 | AL49: 7 | AM49: 16.5 | AN49: 0.6819996035 | AO49: 0.9886316028 | AP49: 737.9075552
A50: Soja torta 46 | B50: 87.2 | C50: 1.204239972 | D50: 1.205333606 | E50: 505 | F50: 160.0692099 | G50: 214.4558798 | H50: 229.0708283 | I50: 0.2686721 | L50: 2 | M50: 0.863895 | N50: 799.102875 | O50: 20 | P50: 72 | Q50: 143 | R50: 89 | S50: 7 | T50: 75 | U50: 1.87 | V50: 5.18 | W50: 2.7 | Y50: 20 | Z50: 1.95 | AB50: 0.3 | AC50: 17.1 | AD50: 2.3 | AF50: 200 | AG50: 43.7 | AH50: 0.2 | AI50: 54.6 | AM50: 15 | AN50: 0.6799548883 | AO50: 0.99038767 | AP50: 751.5420857
A51: Soja torta 48 | B51: 88.3 | C51: 1.223810674 | D51: 1.22687166 | E51: 520 | F51: 165.0816182 | G51: 219.3151576 | H51: 239.0600948 | I51: 0.2674143 | L51: 2 | M51: 0.867341 | N51: 804.025107 | O51: 23 | P51: 70 | Q51: 140 | R51: 87 | S51: 7 | T51: 73 | U51: 1.87 | V51: 5.46 | W51: 2.7 | Y51: 19.7 | Z51: 1.95 | AB51: 0.3 | AC51: 17.1 | AD51: 2.3 | AF51: 200 | AG51: 43.7 | AH51: 0.2 | AI51: 54.6 | AM51: 17.25 | AN51: 0.6794639687 | AO51: 0.9904179858 | AP51: 186.2528251
A52: Soja torta 50 | B52: 87.8 | C52: 1.225744301 | D52: 1.225565004 | E52: 544 | F52: 172.4045434 | G52: 225.7154558 | H52: 256.1016993 | I52: 0.2498051 | L52: 2 | M52: 0.862027 | N52: 797.374975 | O52: 28 | P52: 77 | Q52: 102 | R52: 59 | S52: 6 | T52: 75 | U52: 1.65 | V52: 5.46 | W52: 2.7 | Y52: 19.7 | Z52: 1.95 | AB52: 0.3 | AC52: 17.1 | AD52: 2.3 | AF52: 200 | AG52: 43.7 | AH52: 0.2 | AI52: 54.6 | AM52: 21 | AN52: 0.6801163265 | AO52: 0.9907355167 | AP52: 299.4175209
A53: Soja torta 48 curtido "Tanne" | B53: 88.8 | C53: 1.223810674 | D53: 1.22687166 | E53: 520 | F53: 165.0816182 | G53: 219.3151576 | H53: 239.0600948 | I53: 0.2674143 | L53: 2 | M53: 0.867341 | N53: 804.025107 | O53: 23 | P53: 70 | Q53: 140 | R53: 87 | S53: 7 | T53: 73 | U53: 1.87 | V53: 5.46 | AB53: 0.3 | AC53: 17.1 | AD53: 2.3 | AF53: 200 | AG53: 43.7 | AH53: 0.2 | AI53: 54.6 | AM53: 15.18 | AN53: 0.6794639687 | AO53: 0.9904179858 | AP53: 152.5275173
A54: Altramuz grano | B54: 86.7 | C54: 1.49857485 | D54: 1.544346092 | E54: 399 | F54: 69.09881582 | G54: 127.2670334 | H54: 218.10216 | I54: 0.1714 | L54: 2 | M54: 0.90507 | N54: 864.34185 | O54: 104 | P54: 161 | Q54: 229 | R54: 172 | S54: 17 | T54: 45 | U54: 1.1 | V54: 3.128 | W54: 2.5 | Y54: 9.5 | Z54: 0.55 | AM54: 93.6 | AN54: 0.822898728 | AO54: 0.9778585299 | AP54: 864.527247
A55: Altramuz extrusionado | B55: 88 | C55: 1.52751288 | D55: 1.578192665 | E55: 406 | F55: 69.23209069 | G55: 127.7145253 | H55: 223.2811959 | I55: 0.1714 | L55: 2 | M55: 0.91027 | N55: 877.50028 | O55: 109 | P55: 121 | Q55: 214 | R55: 175 | S55: 34.4 | T55: 36 | U55: 1.1 | V55: 3.06 | W55: 1.7 | X55: 0.23 | Y55: 10 | Z55: 0.11 | AM55: 83.93 | AN55: 0.8224029302 | AO55: 0.9601644388 | AP55: 769.7935828
A56: Pulpas (cítricos) ensitjades | B56: 21 | C56: 1.224764853 | D56: 1.238763409 | E56: 73 | F56: 20.57651646 | G56: 79.53725613 | H56: -58.87615574 | I56: 0.2212 | L56: 2 | M56: 0.87228 | N56: 824.3046 | O56: 97 | P56: 156 | Q56: 356.65 | R56: 206.62 | S56: 44.65 | T56: 55 | U56: 11.22 | V56: 1.35 | W56: 1.6 | Y56: 6.2 | Z56: 0.9 | AA56: 0.2 | AB56: 0.16 | AC56: 6 | AF56: 160 | AG56: 7 | AI56: 16 | AM56: 58.2 | AN56: 0.6807836781 | AO56: 0.883006504 | AP56: 785.4935134
A57: Pulpas (cítricos) | B57: 90 | C57: 1.09457765 | D57: 1.103551588 | E57: 70 | F57: 20.49453097 | G57: 82.57976854 | H57: -65.70818372 | I57: 0.2212 | L57: 2 | M57: 0.87931 | N57: 822.15485 | O57: 28 | P57: 137 | Q57: 223 | R57: 158 | S57: 14 | T57: 65 | U57: 4.6 | V57: 1.17 | AM57: 16.8 | AN57: 0.6799461392 | AO57: 0.9147804468 | AP57: 367.9099184
A58: Algarrobo (algarroba) | B58: 87 | C58: 0.843494905 | D58: 0.8273952756 | E58: 58 | F58: 20.57803675 | G58: 81.08159627 | H58: -76.25681175 | I58: 0.288174289 | L58: 2 | M58: 0.8014563863 | N58: 771.8025 | O58: 11 | P58: 87 | Q58: 257.16 | R58: 120.01 | S58: 23.83 | T58: 37 | U58: 0.825 | V58: 0.408 | AM58: 9.9 | AN58: 0.6052595731 | AO58: 0.8988026382 | AP58: 645.9087874
A59: Algarrobo pulpa deshidratada sin semilla, IAMZ | B59: 86 | C59: 0.8175571336 | D59: 0.8010099087 | E59: 56 | F59: 19.88740459 | G59: 81.02326077 | H59: -78.36477527 | I59: 0.286199543 | L59: 2 | M59: 0.8034925234 | N59: 773.7633 | O59: 0.1 | P59: 84.5 | Q59: 253.55 | R59: 116.87 | S59: 23.07 | T59: 37 | U59: 0.825 | V59: 0.408 | AM59: 0.08 | AN59: 0.6049783161 | AO59: 0.8990195713 | AP59: 332.8963114
A60: Oliva molienda "orujo" | B60: 89 | C60: 0.3555684594 | D60: 0.2315284959 | E60: 111 | F60: 37.77367179 | G60: 72.19608588 | H60: -21.36502202 | I60: 0.5864 | L60: 2 | M60: 0.33429 | N60: 306.87822 | O60: 74 | P60: 339 | Q60: 620.51 | R60: 456.32 | S60: 108.36 | T60: 82 | U60: 7.7 | V60: 2.312 | AM60: 54.76 | AN60: 0.5799513971 | AO60: 0.8101523183 | AP60: 255.9763332
A61: Oliva pulpa sin extracción, IAMZ | B61: 68.5 | C61: 0.5285256608 | D61: 0.4118821932 | E61: 114 | F61: 44.70328847 | G61: 84.48223093 | H61: -28.4745976 | I61: 0.5864 | L61: 2 | M61: 0.458 | N61: 425.024 | O61: 74 | P61: 200 | Q61: 341 | R61: 295 | S61: 60.21 | T61: 72 | U61: 6.545 | V61: 1.088 | AM61: 54.76 | AN61: 0.5473115864 | AO61: 0.8662340312 | AP61: 172.2609194
A62: Oliva pulpa de extracción ( "orujo"), IAMZ | B62: 87.6 | C62: 0.2835820822 | D62: 0.1630785602 | E62: 66 | F62: 20.21048157 | G62: 53.34965943 | H62: -38.25996541 | I62: 0.5864 | L62: 2 | M62: 0.26932 | N62: 252.89148 | O62: 74 | P62: 412 | Q62: 725.77 | R62: 527.95 | S62: 134.64 | T62: 61 | U62: 3.08 | V62: 0.612 | AM62: 54.76 | AN62: 0.6005460193 | AO62: 0.7665949833 | AP62: 731.0116457
A63: Patata-ITEB | B63: 13 | C63: 1.224039877 | D63: 1.270348111 | E63: 100 | F63: 34.23948908 | G63: 100.5831692 | H63: -56.86200025 | I63: 0.1216 | L63: 2 | M63: 0.9445 | N63: 901.9975 | O63: 0.8 | P63: 30 | Q63: 174.97 | R63: 48.46 | S63: 7.28 | T63: 45 | U63: 0.55 | V63: 1.36 | W63: 1 | X63: 22 | AM63: 0.64 | AN63: 0.6332974699 | AO63: 0.9337129217 | AP63: 746.3181739
A64: Patata pulpa-ITEB | B64: 17 | C64: 1.047562058 | D64: 1.040325904 | E64: 50 | F64: 15.36772122 | G64: 77.36979178 | H64: -80.57823525 | I64: 0.1216 | L64: 2 | M64: 0.8101 | N64: 789.8475 | O64: 2.5 | P64: 150 | Q64: 348 | R64: 199.09 | S64: 43.7 | T64: 25 | U64: 2.75 | V64: 0.34 | W64: 0.8 | X64: 6 | AM64: 2 | AN64: 0.6489216562 | AO64: 0.8754582267 | AP64: 866.032
A65: Manzana desechos | B65: 22 | C65: 1.10018865 | D65: 1.102760433 | E65: 23 | F65: 8.795543217 | G65: 71.56469958 | H65: -100.0868068 | I65: 0.4868 | L65: 2 | M65: 0.82908 | N65: 813.32748 | O65: 18 | P65: 68 | Q65: 229.76 | R65: 96.16 | S65: 18 | T65: 19 | U65: 0.33 | V65: 0.408 | AM65: 16.2 | AN65: 0.5724362337 | AO65: 0.8944044201 | AP65: 695.25
A66: Manzana molienda ( "marco") deshidratada | B66: 94.1 | C66: 0.5535459391 | D66: 0.4298652377 | E66: 79 | F66: 22.41772409 | G66: 65.61179369 | H66: -39.82073375 | I66: 0.4868 | L66: 2 | M66: 0.44368 | N66: 435.25008 | O66: 39 | P66: 478 | Q66: 354 | R66: 610.79 | S66: 121 | T66: 19 | U66: 1.045 | V66: 1.088 | AM66: 35.1 | AN66: 0.6412637776 | AO66: 0.7910231575 | AP66: 0
A67: Manzana residuo deshidratado, NRC | B67: 89 | C67: 1.017592193 | D67: 0.9832011689 | E67: 49 | F67: 17.45620144 | G67: 73.71511167 | H67: -76.13454724 | I67: 0.4868 | L67: 2 | M67: 0.7332 | N67: 717.0696 | O67: 51 | P67: 170 | Q67: 376.83 | R67: 260 | S67: 50.24 | T67: 22 | U67: 0.715 | V67: 0.748 | W67: 0.7 | Y67: 4.6 | Z67: 1.2 | AA67: 0.2 | AC67: 10 | AF67: 300 | AG67: 7 | AM67: 45.9 | AN67: 0.5885548453 | AO67: 0.8658481085 | AP67: 628.0150685
A68: Uva vinaza sin pepitas | B68: 67 | C68: 0.6608050597 | D68: 0.5617156148 | E68: 172 | F68: 20.01576435 | G68: 59.87298187 | H68: -4.236902376 | I68: 0.5864 | L68: 2 | M68: 0.54433 | N68: 483.36504 | O68: 97 | P68: 103 | Q68: 777 | R68: 685 | S68: 536 | T68: 112 | U68: 3.3 | V68: 1.7 | AM68: 72.75 | AN68: 0.6891352988 | AO68: 0.3743452458 | AP68: 0
A69: Uva pulpa | B69: 90 | C69: 0.3048901197 | D69: 0.1865548158 | E69: 120 | F69: 11.60850895 | G69: 48.20840292 | H69: -20.98733433 | I69: 0.5864 | L69: 2 | M69: 0.30492 | N69: 292.41828 | O69: 7 | P69: 372 | Q69: 754 | R69: 653 | S69: 499 | T69: 41 | U69: 4.4 | V69: 2.72 | AM69: 5.25 | AN69: 0.754650443 | AO69: 0.3942846922 | AP69: 477.3495771
A70: Uva torta de huesos | B70: 89 | C70: 0.1623041941 | D70: 0.0678723051 | E70: 112 | F70: -1.654010677 | G70: 29.6262119 | H70: -16.03534777 | I70: 0.5864 | L70: 2 | M70: 0.18833 | N70: 181.17346 | O70: 16 | P70: 503 | Q70: 847 | R70: 751 | S70: 644 | T70: 38 | U70: 3.63 | V70: 0.884 | AM70: 12 | AN70: 1.063280888 | AO70: 0.2333714493 | AP70: 842.2541643
A71: Remolacha pulpas ensitjades | B71: 22 | C71: 1.00766597 | D71: 1.00149028 | E71: 98 | F71: 33.63126047 | G71: 93.73194347 | H71: -53.22731718 | I71: 0.2876 | L71: 2 | M71: 0.85378 | N71: 778.64736 | O71: 9 | P71: 206 | Q71: 428.74 | R71: 269.38 | S71: 62.22 | T71: 88 | U71: 2.6 | V71: 0.68 | AB71: 0.1 | AC71: 4.6 | AD71: 0.3 | AG71: 52.4 | AH71: 0.03 | AI71: 9.6 | AM71: 4.5 | AN71: 0.6057580172 | AO71: 0.8704707824 | AP71: 468.1746973
A72: Remolacha pulpas deshidratadas | B72: 90 | C72: 1.025471629 | D72: 1.019108024 | E72: 98 | F72: 34.16981377 | G72: 94.98664694 | H72: -54.34630184 | I72: 0.2876 | L72: 2 | M72: 0.855001 | N72: 794.2104289 | O72: 9 | P72: 202.7 | Q72: 507.9 | R72: 302.1 | S72: 55.1 | T72: 71.1 | U72: 2.12 | V72: 0.68 | W72: 2.233333333 | X72: 0.4 | Y72: 4 | Z72: 2.233333333 | AA72: 2.2 | AB72: 0.09333333333 | AC72: 7.733333333 | AD72: 0.3 | AF72: 243 | AG72: 47.6 | AH72: 0.03 | AI72: 9.733333333 | AK72: 0.6 | AM72: 4 | AN72: 0.6031402548 | AO72: 0.8785763064 | AP72: 592.8381002
A73: Melaza Remolacha | B73: 76 | C73: 1.184004733 | D73: 1.207089514 | E73: 146 | F73: 10.22 | G73: 76.74012851 | H73: 17.6422992 | I73: -0.7084 | L73: 3 | M73: 0.89 | N73: 878.252 | O73: 2 | P73: 0 | Q73: 0 | R73: 0 | S73: 0 | T73: 13.2 | U73: 1.925 | V73: 0.34 | W73: 16.5 | Y73: 55 | Z73: 12.5 | AM73: 2 | AN73: 0.93 | AO73: 1
A74: Melaza caña | B74: 75 | C74: 0.8610639099 | D74: 0.8391616233 | E74: 45 | F74: 3.15 | G74: 61.811424 | H74: -64.008475 | I74: -1.5384 | L74: 4 | M74: 0.8 | N74: 710.4 | O74: 12 | P74: 0 | Q74: 0 | R74: 0 | S74: 0 | T74: 112 | U74: 5.115 | V74: 0.748 | W74: 4.7 | X74: 27 | Y74: 33 | Z74: 1.7 | AM74: 12 | AN74: 0.93 | AO74: 1
A75: Grasa vegetal, manteca de cerdo (todos los tipos) | B75: 99.9 | C75: 3.61 | D75: 3.94 | E75: 1e-07 | F75: 1e-07 | G75: 1e-07 | H75: -14 | I75: 0.25 | L75: 2 | M75: 0.9 | N75: 1e-07 | O75: 999 | P75: 1e-07 | Q75: 1e-07 | R75: 1e-07 | S75: 1e-07 | T75: 1e-07 | U75: 5.5e-08 | V75: 6.8e-08 | W75: 1e-07 | X75: 1e-07 | Y75: 1e-07 | Z75: 1e-07 | AA75: 1e-07 | AB75: 1e-07 | AC75: 1e-07 | AD75: 1e-07 | AF75: 1e-07 | AG75: 1e-07 | AH75: 1e-07 | AI75: 1e-07 | AJ75: 1300 | AK75: 1e-07 | AL75: 95 | AM75: 999 | AN75: 0 | AO75: 0
A76: Levadura cervecería | B76: 93.3 | C76: 1.18 | D76: 1.17 | E76: 476 | F76: 87 | G76: 143 | H76: 278 | I76: 0.15 | L76: 2 | M76: 0.84 | N76: 756 | O76: 40 | P76: 21 | Q76: 88 | R76: 25 | S76: 7 | T76: 32 | U76: 1.65 | V76: 9.18 | W76: 2.4 | AM76: 32 | AN76: 0.815157707 | AO76: 0.98880568
A77: Urea | B77: 99 | C77: 0.26 | D77: 0.2 | E77: 2870 | F77: 1e-06 | G77: 71 | H77: 2557 | I77: 0.23 | L77: 2 | M77: 0.99 | N77: 1e-06 | O77: 1e-06 | P77: 1e-06 | Q77: 1e-06 | R77: 1e-06 | S77: 1e-06 | T77: 1e-06 | W77: 1e-06 | X77: 1e-06 | Y77: 1e-06 | Z77: 1e-06 | AA77: 1e-06 | AB77: 1e-06 | AC77: 1e-06 | AD77: 1e-06 | AF77: 1e-06 | AG77: 1e-06 | AH77: 1e-06 | AI77: 1e-06 | AJ77: 1e-06 | AK77: 1e-06 | AL77: 1e-06 | AM77: 0 | AN77: 0 | AO77: 0
A78: Residuo pan deshidratado, NRC | B78: 92 | C78: 1.096141567 | D78: 1.054875419 | E78: 107 | F78: 22.01612961 | G78: 70.4665579 | H78: -10.7237942 | I78: 0.294457 | L78: 2 | M78: 0.714218 | N78: 628.1690154 | O78: 127 | P78: 130 | Q78: 180 | R78: 130 | S78: 10 | T78: 44 | U78: 0.77 | V78: 1.768 | W78: 2.6 | X78: 16.1 | Y78: 5.3 | Z78: 12.4 | AA78: 0.2 | AB78: 1.05 | AC78: 5 | AF78: 31 | AG78: 71 | AI78: 16 | AJ78: 2000 | AL78: 45 | AN78: 0.7773884271 | AO78: 0.9242925602
A79: Mandioca | B79: 85 | C79: 1.142097463 | D79: 1.174454355 | E79: 31 | F79: 10.10542253 | G79: 75.49002249 | H79: -97.45343744 | I79: 0.1216 | L79: 2 | M79: 0.91762 | N79: 861.64518 | O79: 8.2 | P79: 54 | Q79: 118 | R79: 59 | S79: 14.01 | T79: 61 | U79: 1.375 | V79: 0.68 | W79: 0.9 | Y79: 7.5 | Z79: 0.35 | AC79: 2 | AF79: 50 | AG79: 5 | AI79: 30 | AM79: 6.56 | AN79: 0.638999494 | AO79: 0.9029942241
A80: Alfalfa deshidratada y aglomerados | B80: 90.2 | C80: 0.7398701174 | D80: 0.6738447078 | E80: 233 | F80: 68.64631679 | G80: 116.147103 | H80: 51.38002158 | I80: 0.3789 | L80: 2 | M80: 0.6658 | N80: 579.9118 | O80: 34 | P80: 237 | Q80: 405 | R80: 280 | S80: 76 | T80: 129 | U80: 3.84 | V80: 1.768 | AM80: 17 | AN80: 0.6663643659 | AO80: 0.8830573093
A81: Gramíneas deshidratadas y aglomeradas | B81: 91 | C81: 0.8289959418 | D81: 0.7851460594 | E81: 105 | F81: 26.82240135 | G81: 80.52058238 | H81: -29.85340787 | I81: 0.3818741 | L81: 2 | M81: 0.72207 | N81: 649.14093 | O81: 25 | P81: 238 | Q81: 508 | R81: 269 | S81: 73.08 | T81: 101 | U81: 2.365 | V81: 1.836 | AM81: 12.5 | AN81: 0.7018778114 | AO81: 0.8568682611

Sheet Tabla Minerales-aa
A1: INGREDIENTES | B1: MS | C1: UFL | D1: UFV | E1: MNT_PB | F1: PDIA | G1: PDI | H1: BPR | I1: UEL | J1: UEB | K1: UEM | L1: NI ref | M1: dMO | N1: MOD_TDN | O1: EE | P1: FB | Q1: NDF | R1: ADF | S1: Lignina | T1: Cenizas | U1: Ca | V1: P | W1: Mg | X1: Cl | Y1: K | Z1: Na | AA1: S | AB1: Co | AC1: Cu | AD1: Mo | AE1: Yodo | AF1: Fe | AG1: Mn | AH1: Se | AI1: Zn | AJ1: Vit A | AK1: Vit D | AL1: Vit E | AM1: AG | AN1: DT_N | AO1: dr | AP1: MOF
A3: Carbonato cálcico | B3: 98 | T3: 955 | U3: 145.54 | W3: 14 | X3: 0.2 | Y3: 0.7 | Z3: 0.7 | AA3: 0.7 | AC3: 12 | AF3: 620
A4: Fosfato bicálcico | B4: 98.8 | T4: 836 | U4: 244 | V4: 122.4 | W4: 5 | X4: 0.4 | Y4: 1.2 | Z4: 0.8 | AA4: 11 | AC4: 15 | AF4: 7800
A5: Fosfato monocálcico | B5: 98.8 | U5: 88.2 | V5: 155.04
A6: Óxido magnésico | B6: 100 | U6: 30 | W6: 510
A7: Harina de huesos | B7: 100 | U7: 11.8 | V7: 10.2
A8: Fosfato sódico | B8: 100 | V8: 13.6 | Z8: 19
A9: Fosfórico | B9: 100 | V9: 21.488
A10: Bicarbonato sódico | B10: 99.7 | Z10: 270
A11: Carbonato de cobalto | B11: 100 | AB11: 49
A12: Carbonato de manganeso | B12: 100 | AG12: 47
A13: Carbonato de zinc | B13: 100 | AI13: 52
A14: Cloruro potásico | B14: 100 | Y14: 52
A15: Cloruro sódico | B15: 98 | X15: 570 | Z15: 360
A16: Yoduro potásico | B16: 100 | AE16: 76
A17: Óxido de cobre | B17: 100 | AC17: 80
A18: Óxido de manganeso | B18: 100 | AG18: 77
A19: Óxido de zinc | B19: 100 | AI19: 80
A20: Sulfato de cobalto | B20: 100 | AB20: 22
A21: Sulfato de cobre | B21: 100 | AC21: 25
A22: Sulfato de zinc | B22: 100 | AI22: 23
A23: Sulfato magnésico | B23: 100 | W23: 10 | AA23: 13
A24: Sulfato sódico | B24: 100 | Z24: 32 | AA24: 22

Sheet CálculosEV (hidden)
D1: =OFFSET('Tabla Forrajes'!$A$1,0,D2,1,1) -> MS % | E1: =OFFSET('Tabla Forrajes'!$A$1,0,E2,1,1) -> UEB | F1: =OFFSET('Tabla Forrajes'!$A$1,0,F2,1,1) -> UFL | G1: =OFFSET('Tabla Forrajes'!$A$1,0,G2,1,1) -> PDI | H1: =OFFSET('Tabla Forrajes'!$A$1,0,H2,1,1) -> BPR | I1: =OFFSET('Tabla Forrajes'!$A$1,0,I2,1,1) -> NI ref | J1: =OFFSET('Tabla Forrajes'!$A$1,0,J2,1,1) -> Ca | K1: =OFFSET('Tabla Forrajes'!$A$1,0,K2,1,1) -> P | L1: =OFFSET('Tabla Forrajes'!$A$1,0,L2,1,1) -> Mg | M1: =OFFSET('Tabla Forrajes'!$A$1,0,M2,1,1) -> K | N1: =OFFSET('Tabla Forrajes'!$A$1,0,N2,1,1) -> Na | O1: =OFFSET('Tabla Forrajes'!$A$1,0,O2,1,1) -> S | P1: =OFFSET('Tabla Forrajes'!$A$1,0,P2,1,1) -> Cl | Q1: =OFFSET('Tabla Forrajes'!$A$1,0,Q2,1,1) -> Co | R1: =OFFSET('Tabla Forrajes'!$A$1,0,R2,1,1) -> Cu | S1: =OFFSET('Tabla Forrajes'!$A$1,0,S2,1,1) -> Mn | T1: =OFFSET('Tabla Forrajes'!$A$1,0,T2,1,1) -> Zn | U1: =OFFSET('Tabla Forrajes'!$A$1,0,U2,1,1) -> Yodo | V1: =OFFSET('Tabla Forrajes'!$A$1,0,V2,1,1) -> Se | W1: =OFFSET('Tabla Forrajes'!$A$1,0,W2,1,1) -> Vit A | X1: =OFFSET('Tabla Forrajes'!$A$1,0,X2,1,1) -> Vit D | Y1: =OFFSET('Tabla Forrajes'!$A$1,0,Y2,1,1) -> Vit E | Z1: =OFFSET('Tabla Forrajes'!$A$1,0,Z2,1,1) -> AG | AA1: =OFFSET('Tabla Forrajes'!$A$1,0,AA2,1,1) -> MNT_PB | AB1: =OFFSET('Tabla Forrajes'!$A$1,0,AB2,1,1) -> PDIA | AC1: =OFFSET('Tabla Forrajes'!$A$1,0,AC2,1,1) -> dMO | AD1: =OFFSET('Tabla Forrajes'!$A$1,0,AD2,1,1) -> MOD | AE1: =OFFSET('Tabla Forrajes'!$A$1,0,AE2,1,1) -> EE | AF1: =OFFSET('Tabla Forrajes'!$A$1,0,AF2,1,1) -> FB | AG1: =OFFSET('Tabla Forrajes'!$A$1,0,AG2,1,1) -> NDF | AH1: =OFFSET('Tabla Forrajes'!$A$1,0,AH2,1,1) -> ADF | AI1: =OFFSET('Tabla Forrajes'!$A$1,0,AI2,1,1) -> Lignina | AJ1: =OFFSET('Tabla Forrajes'!$A$1,0,AJ2,1,1) -> Cenizas | AK1: =OFFSET('Tabla Forrajes'!$A$1,0,AK2,1,1) -> Mo | AL1: =OFFSET('Tabla Forrajes'!$A$1,0,AL2,1,1) -> DT_N | AM1: =OFFSET('Tabla Forrajes'!$A$1,0,AM2,1,1) -> MOF | BI1: AG | BJ1: MNT_PB | BK1: PDIA | BL1: dMO | BM1: MOD | BN1: EE | BO1: FB | BP1: NDF | BQ1: ADF | BR1: Lignina | BS1: Cenizas | BT1: Mo
A2: TIPUS | B2: INGREDIENTS UTILITZATS | C2: Nº | D2: 1 | E2: 9 | F2: =E29+1 -> 2 | G2: 6 | H2: 7 | I2: 11 | J2: 20 | K2: 21 | L2: 22 | M2: 24 | N2: 25 | O2: 26 | P2: 23 | Q2: 27 | R2: 28 | S2: 32 | T2: 34 | U2: 30 | V2: 33 | W2: 35 | X2: 36 | Y2: 37 | Z2: 38 | AA2: 4 | AB2: 5 | AC2: 12 | AD2: 13 | AE2: 14 | AF2: 15 | AG2: 16 | AH2: 17 | AI2: 18 | AJ2: 19 | AK2: 29 | AL2: 39 | AM2: 41 | AN2: UEB | AO2: UFV | AP2: PDI | AQ2: BPR | AR2: NI ref | AS2: Ca | AT2: P | AU2: Mg | AV2: K | AW2: Na | AX2: S | AY2: Cl | AZ2: Co | BA2: Cu | BB2: Mn | BC2: Zn | BD2: Iodo | BE2: Se | BF2: Vit A | BG2: Vit D | BH2: Vit E | BI2: AG | BJ2: MNT_PB | BK2: PDIA | BL2: dMO | BM2: MOD | BN2: EE | BO2: FB | BP2: NDF | BQ2: ADF | BR2: Lignina | BS2: Cenizas | BT2: Mo | BU2: DT_N | BV2: MOF
A3: FARRATGES | B3: =IF(OFFSET('Tabla Forrajes'!$A$1,C3,0,1,1)=0,"",OFFSET('Tabla Forrajes'!$A$1,C3,0,1,1)) -> ENSILADO Prat natural plano, gramíneas en gran parte | C3: 40 | D3: =OFFSET('Tabla Forrajes'!$A$1,$C3,$D$2,1,1) -> 48 | E3: =OFFSET('Tabla Forrajes'!$A$1,$C3,$E$2,1,1) -> 1.229566374 | F3: =OFFSET('Tabla Forrajes'!$A$1,$C3,$F$2,1,1) -> 0.9301076693 | G3: =OFFSET('Tabla Forrajes'!$A$1,$C3,$G$2,1,1) -> 51.5305866 | H3: =OFFSET('Tabla Forrajes'!$A$1,$C3,$H$2,1,1) -> -5.252929949 | I3: =OFFSET('Tabla Forrajes'!$A$1,$C3,$I$2,1,1) -> 1.644820804 | J3: =OFFSET('Tabla Forrajes'!$A$1,$C3,$J$2,1,1) -> 3.48 | K3: =OFFSET('Tabla Forrajes'!$A$1,$C3,$K$2,1,1) -> 1.82 | L3: =OFFSET('Tabla Forrajes'!$A$1,$C3,$L$2,1,1) -> 0 | M3: =OFFSET('Tabla Forrajes'!$A$1,$C3,$M$2,1,1) -> 0 | N3: =OFFSET('Tabla Forrajes'!$A$1,$C3,$N$2,1,1) -> 0 | O3: =OFFSET('Tabla Forrajes'!$A$1,$C3,$O$2,1,1) -> 0 | P3: =OFFSET('Tabla Forrajes'!$A$1,$C3,$P$2,1,1) -> 0 | Q3: =OFFSET('Tabla Forrajes'!$A$1,$C3,$Q$2,1,1) -> 0 | R3: =OFFSET('Tabla Forrajes'!$A$1,$C3,$R$2,1,1) -> 0 | S3: =OFFSET('Tabla Forrajes'!$A$1,$C3,$S$2,1,1) -> 0 | T3: =OFFSET('Tabla Forrajes'!$A$1,$C3,$T$2,1,1) -> 0 | U3: =OFFSET('Tabla Forrajes'!$A$1,$C3,$U$2,1,1) -> 0 | V3: =OFFSET('Tabla Forrajes'!$A$1,$C3,$V$2,1,1) -> 0 | W3: =OFFSET('Tabla Forrajes'!$A$1,$C3,$W$2,1,1) -> 8000 | X3: =OFFSET('Tabla Forrajes'!$A$1,$C3,$X$2,1,1) -> 200 | Y3: =OFFSET('Tabla Forrajes'!$A$1,$C3,$Y$2,1,1) -> 5 | Z3: =OFFSET('Tabla Forrajes'!$A$1,$C3,$Z$2,1,1) -> 18.2569 | AA3: =OFFSET('Tabla Forrajes'!$A$1,$C3,$AA$2,1,1) -> 114.3 | AB3: =OFFSET('Tabla Forrajes'!$A$1,$C3,$AB$2,1,1) -> 15.0876 | AC3: =OFFSET('Tabla Forrajes'!$A$1,$C3,$AC$2,1,1) -> 0.668711 | AD3: =OFFSET('Tabla Forrajes'!$A$1,$C3,$AD$2,1,1) -> 599.165056 | AE3: =OFFSET('Tabla Forrajes'!$A$1,$C3,$AE$2,1,1) -> 22.2 | AF3: =OFFSET('Tabla Forrajes'!$A$1,$C3,$AF$2,1,1) -> 311.3 | AG3: =OFFSET('Tabla Forrajes'!$A$1,$C3,$AG$2,1,1) -> 584.2 | AH3: =OFFSET('Tabla Forrajes'!$A$1,$C3,$AH$2,1,1) -> 385 | AI3: =OFFSET('Tabla Forrajes'!$A$1,$C3,$AI$2,1,1) -> 0 | AJ3: =OFFSET('Tabla Forrajes'!$A$1,$C3,$AJ$2,1,1) -> 104 | AK3: =OFFSET('Tabla Forrajes'!$A$1,$C3,$AK$2,1,1) -> 0 | AL3: =OFFSET('Tabla Forrajes'!$A$1,$C3,$AL$2,1,1) -> 0.78 | AM3: =OFFSET('Tabla Forrajes'!$A$1,$C3,$AM$2,1,1) -> 535.9795542 | AN3: =IF('II_Plantear Ración'!$E4>0,IF(CálculosEV!E3>0,1,"No"),"") -> 1 | AO3: =IF('II_Plantear Ración'!$E4>0,IF(CálculosEV!F3>0,1,"No"),"") -> 1 | AP3: =IF('II_Plantear Ración'!$E4>0,IF(CálculosEV!G3>0,1,"No"),"") -> 1 | AQ3: =IF('II_Plantear Ración'!$E4>0,IF(CálculosEV!H3=0,"No",1),"") -> 1 | AR3: =IF('II_Plantear Ración'!$E4>0,IF(CálculosEV!I3>0,1,"No"),"") -> 1 | AS3: =IF('II_Plantear Ración'!$E4>0,IF(CálculosEV!J3>0,1,"No"),"") -> 1 | AT3: =IF('II_Plantear Ración'!$E4>0,IF(CálculosEV!K3>0,1,"No"),"") -> 1 | AU3: =IF('II_Plantear Ración'!$E4>0,IF(CálculosEV!L3>0,1,"No"),"") -> No | AV3: =IF('II_Plantear Ración'!$E4>0,IF(CálculosEV!M3>0,1,"No"),"") -> No | AW3: =IF('II_Plantear Ración'!$E4>0,IF(CálculosEV!N3>0,1,"No"),"") -> No | AX3: =IF('II_Plantear Ración'!$E4>0,IF(CálculosEV!O3>0,1,"No"),"") -> No | AY3: =IF('II_Plantear Ración'!$E4>0,IF(CálculosEV!P3>0,1,"No"),"") -> No | AZ3: =IF('II_Plantear Ración'!$E4>0,IF(CálculosEV!Q3>0,1,"No"),"") -> No | BA3: =IF('II_Plantear Ración'!$E4>0,IF(CálculosEV!R3>0,1,"No"),"") -> No | BB3: =IF('II_Plantear Ración'!$E4>0,IF(CálculosEV!S3>0,1,"No"),"") -> No | BC3: =IF('II_Plantear Ración'!$E4>0,IF(CálculosEV!T3>0,1,"No"),"") -> No | BD3: =IF('II_Plantear Ración'!$E4>0,IF(CálculosEV!U3>0,1,"No"),"") -> No | BE3: =IF('II_Plantear Ración'!$E4>0,IF(CálculosEV!V3>0,1,"No"),"") -> No | BF3: =IF('II_Plantear Ración'!$E4>0,IF(CálculosEV!W3>0,1,"No"),"") -> 1 | BG3: =IF('II_Plantear Ración'!$E4>0,IF(CálculosEV!X3>0,1,"No"),"") -> 1 | BH3: =IF('II_Plantear Ración'!$E4>0,IF(CálculosEV!Y3>0,1,"No"),"") -> 1 | BI3: =IF('II_Plantear Ración'!$E4>0,IF(CálculosEV!Z3>0,1,"No"),"") -> 1 | BJ3: =IF('II_Plantear Ración'!$E4>0,IF(CálculosEV!AA3>0,1,"No"),"") -> 1 | BK3: =IF('II_Plantear Ración'!$E4>0,IF(CálculosEV!AB3>0,1,"No"),"") -> 1 | BL3: =IF('II_Plantear Ración'!$E4>0,IF(CálculosEV!AC3>0,1,"No"),"") -> 1 | BM3: =IF('II_Plantear Ración'!$E4>0,IF(CálculosEV!AD3>0,1,"No"),"") -> 1 | BN3: =IF('II_Plantear Ración'!$E4>0,IF(CálculosEV!AE3>0,1,"No"),"") -> 1 | BO3: =IF('II_Plantear Ración'!$E4>0,IF(CálculosEV!AF3>0,1,"No"),"") -> 1 | BP3: =IF('II_Plantear Ración'!$E4>0,IF(CálculosEV!AG3>0,1,"No"),"") -> 1 | BQ3: =IF('II_Plantear Ración'!$E4>0,IF(CálculosEV!AH3>0,1,"No"),"") -> 1 | BR3: =IF('II_Plantear Ración'!$E4>0,IF(CálculosEV!AI3>0,1,"No"),"") -> No | BS3: =IF('II_Plantear Ración'!$E4>0,IF(CálculosEV!AJ3>0,1,"No"),"") -> 1 | BT3: =IF('II_Plantear Ración'!$E4>0,IF(CálculosEV!AK3>0,1,"No"),"") -> No | BU3: =IF('II_Plantear Ración'!$E4>0,IF(CálculosEV!AL3>0,1,"No"),"") -> 1 | BV3: =IF('II_Plantear Ración'!$E4>0,IF(CálculosEV!AM3>0,1,"No"),"") -> 1 | BW3: =IF(AN3="",0,1) -> 1 | BX3: 1 | BY3: 1 | BZ3: 1 | CA3: 1 | CB3: 1 | CC3: 1 | CD3: 1 | CE3: 1 | CF3: 1 | CG3: 1 | CH3: 1 | CI3: 1 | CJ3: 1 | CK3: 1 | CL3: 1 | CM3: 1 | CN3: 1 | CO3: 1 | CP3: 1 | CQ3: 1 | CR3: 1 | CS3: 1 | CT3: 1 | CU3: 1 | CV3: 1 | CW3: 1 | CX3: 1 | CY3: 1 | CZ3: 1 | DA3: 1 | DB3: 1 | DC3: 1 | DD3: 1 | DE3: 1
B4: =IF(OFFSET('Tabla Forrajes'!$A$1,C4,0,1,1)=0,"",OFFSET('Tabla Forrajes'!$A$1,C4,0,1,1)) -> HENO Bromo Final vegetación | C4: 55 | D4: =OFFSET('Tabla Forrajes'!$A$1,$C4,$D$2,1,1) -> 85 | E4: =OFFSET('Tabla Forrajes'!$A$1,$C4,$E$2,1,1) -> 1.149054212 | F4: =OFFSET('Tabla Forrajes'!$A$1,$C4,$F$2,1,1) -> 0.7641928518 | G4: =OFFSET('Tabla Forrajes'!$A$1,$C4,$G$2,1,1) -> 58.49315002 | H4: =OFFSET('Tabla Forrajes'!$A$1,$C4,$H$2,1,1) -> -20.42784718 | I4: =OFFSET('Tabla Forrajes'!$A$1,$C4,$I$2,1,1) -> 1.832722892 | J4: =OFFSET('Tabla Forrajes'!$A$1,$C4,$J$2,1,1) -> 1.24 | K4: =OFFSET('Tabla Forrajes'!$A$1,$C4,$K$2,1,1) -> 2.03 | L4: =OFFSET('Tabla Forrajes'!$A$1,$C4,$L$2,1,1) -> 0 | M4: =OFFSET('Tabla Forrajes'!$A$1,$C4,$M$2,1,1) -> 0 | N4: =OFFSET('Tabla Forrajes'!$A$1,$C4,$N$2,1,1) -> 0 | O4: =OFFSET('Tabla Forrajes'!$A$1,$C4,$O$2,1,1) -> 0 | P4: =OFFSET('Tabla Forrajes'!$A$1,$C4,$P$2,1,1) -> 0 | Q4: =OFFSET('Tabla Forrajes'!$A$1,$C4,$Q$2,1,1) -> 0 | R4: =OFFSET('Tabla Forrajes'!$A$1,$C4,$R$2,1,1) -> 0 | S4: =OFFSET('Tabla Forrajes'!$A$1,$C4,$S$2,1,1) -> 0 | T4: =OFFSET('Tabla Forrajes'!$A$1,$C4,$T$2,1,1) -> 0 | U4: =OFFSET('Tabla Forrajes'!$A$1,$C4,$U$2,1,1) -> 0 | V4: =OFFSET('Tabla Forrajes'!$A$1,$C4,$V$2,1,1) -> 0 | W4: =OFFSET('Tabla Forrajes'!$A$1,$C4,$W$2,1,1) -> 50000 | X4: =OFFSET('Tabla Forrajes'!$A$1,$C4,$X$2,1,1) -> 50 | Y4: =OFFSET('Tabla Forrajes'!$A$1,$C4,$Y$2,1,1) -> 5 | Z4: =OFFSET('Tabla Forrajes'!$A$1,$C4,$Z$2,1,1) -> 15.93 | AA4: =OFFSET('Tabla Forrajes'!$A$1,$C4,$AA$2,1,1) -> 100 | AB4: =OFFSET('Tabla Forrajes'!$A$1,$C4,$AB$2,1,1) -> 20.3 | AC4: =OFFSET('Tabla Forrajes'!$A$1,$C4,$AC$2,1,1) -> 0.62749 | AD4: =OFFSET('Tabla Forrajes'!$A$1,$C4,$AD$2,1,1) -> 564.741 | AE4: =OFFSET('Tabla Forrajes'!$A$1,$C4,$AE$2,1,1) -> 34 | AF4: =OFFSET('Tabla Forrajes'!$A$1,$C4,$AF$2,1,1) -> 320 | AG4: =OFFSET('Tabla Forrajes'!$A$1,$C4,$AG$2,1,1) -> 640 | AH4: =OFFSET('Tabla Forrajes'!$A$1,$C4,$AH$2,1,1) -> 333 | AI4: =OFFSET('Tabla Forrajes'!$A$1,$C4,$AI$2,1,1) -> 0 | AJ4: =OFFSET('Tabla Forrajes'!$A$1,$C4,$AJ$2,1,1) -> 100 | AK4: =OFFSET('Tabla Forrajes'!$A$1,$C4,$AK$2,1,1) -> 0 | AL4: =OFFSET('Tabla Forrajes'!$A$1,$C4,$AL$2,1,1) -> 0.71 | AM4: =OFFSET('Tabla Forrajes'!$A$1,$C4,$AM$2,1,1) -> 494.5458579 | AN4: =IF('II_Plantear Ración'!$E5>0,IF(CálculosEV!E4>0,1,"No"),"") ->  | AO4: =IF('II_Plantear Ración'!$E5>0,IF(CálculosEV!F4>0,1,"No"),"") ->  | AP4: =IF('II_Plantear Ración'!$E5>0,IF(CálculosEV!G4>0,1,"No"),"") ->  | AQ4: =IF('II_Plantear Ración'!$E5>0,IF(CálculosEV!H4=0,"No",1),"") ->  | AR4: =IF('II_Plantear Ración'!$E5>0,IF(CálculosEV!I4>0,1,"No"),"") ->  | AS4: =IF('II_Plantear Ración'!$E5>0,IF(CálculosEV!J4>0,1,"No"),"") ->  | AT4: =IF('II_Plantear Ración'!$E5>0,IF(CálculosEV!K4>0,1,"No"),"") ->  | AU4: =IF('II_Plantear Ración'!$E5>0,IF(CálculosEV!L4>0,1,"No"),"") ->  | AV4: =IF('II_Plantear Ración'!$E5>0,IF(CálculosEV!M4>0,1,"No"),"") ->  | AW4: =IF('II_Plantear Ración'!$E5>0,IF(CálculosEV!N4>0,1,"No"),"") ->  | AX4: =IF('II_Plantear Ración'!$E5>0,IF(CálculosEV!O4>0,1,"No"),"") ->  | AY4: =IF('II_Plantear Ración'!$E5>0,IF(CálculosEV!P4>0,1,"No"),"") ->  | AZ4: =IF('II_Plantear Ración'!$E5>0,IF(CálculosEV!Q4>0,1,"No"),"") ->  | BA4: =IF('II_Plantear Ración'!$E5>0,IF(CálculosEV!R4>0,1,"No"),"") ->  | BB4: =IF('II_Plantear Ración'!$E5>0,IF(CálculosEV!S4>0,1,"No"),"") ->  | BC4: =IF('II_Plantear Ración'!$E5>0,IF(CálculosEV!T4>0,1,"No"),"") ->  | BD4: =IF('II_Plantear Ración'!$E5>0,IF(CálculosEV!U4>0,1,"No"),"") ->  | BE4: =IF('II_Plantear Ración'!$E5>0,IF(CálculosEV!V4>0,1,"No"),"") ->  | BF4: =IF('II_Plantear Ración'!$E5>0,IF(CálculosEV!W4>0,1,"No"),"") ->  | BG4: =IF('II_Plantear Ración'!$E5>0,IF(CálculosEV!X4>0,1,"No"),"") ->  | BH4: =IF('II_Plantear Ración'!$E5>0,IF(CálculosEV!Y4>0,1,"No"),"") ->  | BI4: =IF('II_Plantear Ración'!$E5>0,IF(CálculosEV!Z4>0,1,"No"),"") ->  | BJ4: =IF('II_Plantear Ración'!$E5>0,IF(CálculosEV!AA4>0,1,"No"),"") ->  | BK4: =IF('II_Plantear Ración'!$E5>0,IF(CálculosEV!AB4>0,1,"No"),"") ->  | BL4: =IF('II_Plantear Ración'!$E5>0,IF(CálculosEV!AC4>0,1,"No"),"") ->  | BM4: =IF('II_Plantear Ración'!$E5>0,IF(CálculosEV!AD4>0,1,"No"),"") ->  | BN4: =IF('II_Plantear Ración'!$E5>0,IF(CálculosEV!AE4>0,1,"No"),"") ->  | BO4: =IF('II_Plantear Ración'!$E5>0,IF(CálculosEV!AF4>0,1,"No"),"") ->  | BP4: =IF('II_Plantear Ración'!$E5>0,IF(CálculosEV!AG4>0,1,"No"),"") ->  | BQ4: =IF('II_Plantear Ración'!$E5>0,IF(CálculosEV!AH4>0,1,"No"),"") ->  | BR4: =IF('II_Plantear Ración'!$E5>0,IF(CálculosEV!AI4>0,1,"No"),"") ->  | BS4: =IF('II_Plantear Ración'!$E5>0,IF(CálculosEV!AJ4>0,1,"No"),"") ->  | BT4: =IF('II_Plantear Ración'!$E5>0,IF(CálculosEV!AK4>0,1,"No"),"") ->  | BU4: =IF('II_Plantear Ración'!$E5>0,IF(CálculosEV!AL4>0,1,"No"),"") ->  | BV4: =IF('II_Plantear Ración'!$E5>0,IF(CálculosEV!AM4>0,1,"No"),"") ->  | BW4: =IF(AN4="",0,1) -> 0 | BX4: =IF(AO4="",0,1) -> 0 | BY4: =IF(AP4="",0,1) -> 0 | BZ4: =IF(AQ4="",0,1) -> 0 | CA4: =IF(AR4="",0,1) -> 0 | CB4: =IF(AS4="",0,1) -> 0 | CC4: =IF(AT4="",0,1) -> 0 | CD4: =IF(AU4="",0,1) -> 0 | CE4: =IF(AV4="",0,1) -> 0 | CF4: =IF(AW4="",0,1) -> 0 | CG4: =IF(AX4="",0,1) -> 0 | CH4: =IF(AY4="",0,1) -> 0 | CI4: =IF(AZ4="",0,1) -> 0 | CJ4: =IF(BA4="",0,1) -> 0 | CK4: =IF(BB4="",0,1) -> 0 | CL4: =IF(BC4="",0,1) -> 0 | CM4: =IF(BD4="",0,1) -> 0 | CN4: =IF(BE4="",0,1) -> 0 | CO4: =IF(BF4="",0,1) -> 0 | CP4: =IF(BG4="",0,1) -> 0 | CQ4: =IF(BH4="",0,1) -> 0 | CR4: =IF(BI4="",0,1) -> 0 | CS4: =IF(BJ4="",0,1) -> 0 | CT4: =IF(BK4="",0,1) -> 0 | CU4: =IF(BL4="",0,1) -> 0 | CV4: =IF(BM4="",0,1) -> 0 | CW4: =IF(BN4="",0,1) -> 0 | CX4: =IF(BO4="",0,1) -> 0 | CY4: =IF(BP4="",0,1) -> 0 | CZ4: =IF(BQ4="",0,1) -> 0 | DA4: =IF(BR4="",0,1) -> 0 | DB4: =IF(BS4="",0,1) -> 0 | DC4: =IF(BT4="",0,1) -> 0 | DD4: =IF(BU4="",0,1) -> 0 | DE4: =IF(BV4="",0,1) -> 0
B5: =IF(OFFSET('Tabla Forrajes'!$A$1,C5,0,1,1)=0,"",OFFSET('Tabla Forrajes'!$A$1,C5,0,1,1)) ->  | C5: 1 | D5: =OFFSET('Tabla Forrajes'!$A$1,$C5,$D$2,1,1) -> 0 | E5: =OFFSET('Tabla Forrajes'!$A$1,$C5,$E$2,1,1) -> 0 | F5: =OFFSET('Tabla Forrajes'!$A$1,$C5,$F$2,1,1) -> 0 | G5: =OFFSET('Tabla Forrajes'!$A$1,$C5,$G$2,1,1) -> 0 | H5: =OFFSET('Tabla Forrajes'!$A$1,$C5,$H$2,1,1) -> 0 | I5: =OFFSET('Tabla Forrajes'!$A$1,$C5,$I$2,1,1) -> 0 | J5: =OFFSET('Tabla Forrajes'!$A$1,$C5,$J$2,1,1) -> 0 | K5: =OFFSET('Tabla Forrajes'!$A$1,$C5,$K$2,1,1) -> 0 | L5: =OFFSET('Tabla Forrajes'!$A$1,$C5,$L$2,1,1) -> 0 | M5: =OFFSET('Tabla Forrajes'!$A$1,$C5,$M$2,1,1) -> 0 | N5: =OFFSET('Tabla Forrajes'!$A$1,$C5,$N$2,1,1) -> 0 | O5: =OFFSET('Tabla Forrajes'!$A$1,$C5,$O$2,1,1) -> 0 | P5: =OFFSET('Tabla Forrajes'!$A$1,$C5,$P$2,1,1) -> 0 | Q5: =OFFSET('Tabla Forrajes'!$A$1,$C5,$Q$2,1,1) -> 0 | R5: =OFFSET('Tabla Forrajes'!$A$1,$C5,$R$2,1,1) -> 0 | S5: =OFFSET('Tabla Forrajes'!$A$1,$C5,$S$2,1,1) -> 0 | T5: =OFFSET('Tabla Forrajes'!$A$1,$C5,$T$2,1,1) -> 0 | U5: =OFFSET('Tabla Forrajes'!$A$1,$C5,$U$2,1,1) -> 0 | V5: =OFFSET('Tabla Forrajes'!$A$1,$C5,$V$2,1,1) -> 0 | W5: =OFFSET('Tabla Forrajes'!$A$1,$C5,$W$2,1,1) -> 0 | X5: =OFFSET('Tabla Forrajes'!$A$1,$C5,$X$2,1,1) -> 0 | Y5: =OFFSET('Tabla Forrajes'!$A$1,$C5,$Y$2,1,1) -> 0 | Z5: =OFFSET('Tabla Forrajes'!$A$1,$C5,$Z$2,1,1) -> 0 | AA5: =OFFSET('Tabla Forrajes'!$A$1,$C5,$AA$2,1,1) -> 0 | AB5: =OFFSET('Tabla Forrajes'!$A$1,$C5,$AB$2,1,1) -> 0 | AC5: =OFFSET('Tabla Forrajes'!$A$1,$C5,$AC$2,1,1) -> 0 | AD5: =OFFSET('Tabla Forrajes'!$A$1,$C5,$AD$2,1,1) -> 0 | AE5: =OFFSET('Tabla Forrajes'!$A$1,$C5,$AE$2,1,1) -> 0 | AF5: =OFFSET('Tabla Forrajes'!$A$1,$C5,$AF$2,1,1) -> 0 | AG5: =OFFSET('Tabla Forrajes'!$A$1,$C5,$AG$2,1,1) -> 0 | AH5: =OFFSET('Tabla Forrajes'!$A$1,$C5,$AH$2,1,1) -> 0 | AI5: =OFFSET('Tabla Forrajes'!$A$1,$C5,$AI$2,1,1) -> 0 | AJ5: =OFFSET('Tabla Forrajes'!$A$1,$C5,$AJ$2,1,1) -> 0 | AK5: =OFFSET('Tabla Forrajes'!$A$1,$C5,$AK$2,1,1) -> 0 | AL5: =OFFSET('Tabla Forrajes'!$A$1,$C5,$AL$2,1,1) -> 0 | AM5: =OFFSET('Tabla Forrajes'!$A$1,$C5,$AM$2,1,1) -> 0 | AN5: =IF('II_Plantear Ración'!$E6>0,IF(CálculosEV!E5>0,1,"No"),"") ->  | AO5: =IF('II_Plantear Ración'!$E6>0,IF(CálculosEV!F5>0,1,"No"),"") ->  | AP5: =IF('II_Plantear Ración'!$E6>0,IF(CálculosEV!G5>0,1,"No"),"") ->  | AQ5: =IF('II_Plantear Ración'!$E6>0,IF(CálculosEV!H5=0,"No",1),"") ->  | AR5: =IF('II_Plantear Ración'!$E6>0,IF(CálculosEV!I5>0,1,"No"),"") ->  | AS5: =IF('II_Plantear Ración'!$E6>0,IF(CálculosEV!J5>0,1,"No"),"") ->  | AT5: =IF('II_Plantear Ración'!$E6>0,IF(CálculosEV!K5>0,1,"No"),"") ->  | AU5: =IF('II_Plantear Ración'!$E6>0,IF(CálculosEV!L5>0,1,"No"),"") ->  | AV5: =IF('II_Plantear Ración'!$E6>0,IF(CálculosEV!M5>0,1,"No"),"") ->  | AW5: =IF('II_Plantear Ración'!$E6>0,IF(CálculosEV!N5>0,1,"No"),"") ->  | AX5: =IF('II_Plantear Ración'!$E6>0,IF(CálculosEV!O5>0,1,"No"),"") ->  | AY5: =IF('II_Plantear Ración'!$E6>0,IF(CálculosEV!P5>0,1,"No"),"") ->  | AZ5: =IF('II_Plantear Ración'!$E6>0,IF(CálculosEV!Q5>0,1,"No"),"") ->  | BA5: =IF('II_Plantear Ración'!$E6>0,IF(CálculosEV!R5>0,1,"No"),"") ->  | BB5: =IF('II_Plantear Ración'!$E6>0,IF(CálculosEV!S5>0,1,"No"),"") ->  | BC5: =IF('II_Plantear Ración'!$E6>0,IF(CálculosEV!T5>0,1,"No"),"") ->  | BD5: =IF('II_Plantear Ración'!$E6>0,IF(CálculosEV!U5>0,1,"No"),"") ->  | BE5: =IF('II_Plantear Ración'!$E6>0,IF(CálculosEV!V5>0,1,"No"),"") ->  | BF5: =IF('II_Plantear Ración'!$E6>0,IF(CálculosEV!W5>0,1,"No"),"") ->  | BG5: =IF('II_Plantear Ración'!$E6>0,IF(CálculosEV!X5>0,1,"No"),"") ->  | BH5: =IF('II_Plantear Ración'!$E6>0,IF(CálculosEV!Y5>0,1,"No"),"") ->  | BI5: =IF('II_Plantear Ración'!$E6>0,IF(CálculosEV!Z5>0,1,"No"),"") ->  | BJ5: =IF('II_Plantear Ración'!$E6>0,IF(CálculosEV!AA5>0,1,"No"),"") ->  | BK5: =IF('II_Plantear Ración'!$E6>0,IF(CálculosEV!AB5>0,1,"No"),"") ->  | BL5: =IF('II_Plantear Ración'!$E6>0,IF(CálculosEV!AC5>0,1,"No"),"") ->  | BM5: =IF('II_Plantear Ración'!$E6>0,IF(CálculosEV!AD5>0,1,"No"),"") ->  | BN5: =IF('II_Plantear Ración'!$E6>0,IF(CálculosEV!AE5>0,1,"No"),"") ->  | BO5: =IF('II_Plantear Ración'!$E6>0,IF(CálculosEV!AF5>0,1,"No"),"") ->  | BP5: =IF('II_Plantear Ración'!$E6>0,IF(CálculosEV!AG5>0,1,"No"),"") ->  | BQ5: =IF('II_Plantear Ración'!$E6>0,IF(CálculosEV!AH5>0,1,"No"),"") ->  | BR5: =IF('II_Plantear Ración'!$E6>0,IF(CálculosEV!AI5>0,1,"No"),"") ->  | BS5: =IF('II_Plantear Ración'!$E6>0,IF(CálculosEV!AJ5>0,1,"No"),"") ->  | BT5: =IF('II_Plantear Ración'!$E6>0,IF(CálculosEV!AK5>0,1,"No"),"") ->  | BU5: =IF('II_Plantear Ración'!$E6>0,IF(CálculosEV!AL5>0,1,"No"),"") ->  | BV5: =IF('II_Plantear Ración'!$E6>0,IF(CálculosEV!AM5>0,1,"No"),"") ->  | BW5: 0 | BX5: 0 | BY5: 0 | BZ5: 0 | CA5: 0 | CB5: 0 | CC5: 0 | CD5: 0 | CE5: 0 | CF5: 0 | CG5: 0 | CH5: 0 | CI5: 0 | CJ5: 0 | CK5: 0 | CL5: 0 | CM5: 0 | CN5: 0 | CO5: 0 | CP5: 0 | CQ5: 0 | CR5: 0 | CS5: 0 | CT5: 0 | CU5: 0 | CV5: 0 | CW5: 0 | CX5: 0 | CY5: 0 | CZ5: 0 | DA5: 0 | DB5: 0 | DC5: 0 | DD5: 0 | DE5: 0
B6: =IF(OFFSET('Tabla Forrajes'!$A$1,C6,0,1,1)=0,"",OFFSET('Tabla Forrajes'!$A$1,C6,0,1,1)) ->  | C6: 1 | D6: =OFFSET('Tabla Forrajes'!$A$1,$C6,$D$2,1,1) -> 0 | E6: =OFFSET('Tabla Forrajes'!$A$1,$C6,$E$2,1,1) -> 0 | F6: =OFFSET('Tabla Forrajes'!$A$1,$C6,$F$2,1,1) -> 0 | G6: =OFFSET('Tabla Forrajes'!$A$1,$C6,$G$2,1,1) -> 0 | H6: =OFFSET('Tabla Forrajes'!$A$1,$C6,$H$2,1,1) -> 0 | I6: =OFFSET('Tabla Forrajes'!$A$1,$C6,$I$2,1,1) -> 0 | J6: =OFFSET('Tabla Forrajes'!$A$1,$C6,$J$2,1,1) -> 0 | K6: =OFFSET('Tabla Forrajes'!$A$1,$C6,$K$2,1,1) -> 0 | L6: =OFFSET('Tabla Forrajes'!$A$1,$C6,$L$2,1,1) -> 0 | M6: =OFFSET('Tabla Forrajes'!$A$1,$C6,$M$2,1,1) -> 0 | N6: =OFFSET('Tabla Forrajes'!$A$1,$C6,$N$2,1,1) -> 0 | O6: =OFFSET('Tabla Forrajes'!$A$1,$C6,$O$2,1,1) -> 0 | P6: =OFFSET('Tabla Forrajes'!$A$1,$C6,$P$2,1,1) -> 0 | Q6: =OFFSET('Tabla Forrajes'!$A$1,$C6,$Q$2,1,1) -> 0 | R6: =OFFSET('Tabla Forrajes'!$A$1,$C6,$R$2,1,1) -> 0 | S6: =OFFSET('Tabla Forrajes'!$A$1,$C6,$S$2,1,1) -> 0 | T6: =OFFSET('Tabla Forrajes'!$A$1,$C6,$T$2,1,1) -> 0 | U6: =OFFSET('Tabla Forrajes'!$A$1,$C6,$U$2,1,1) -> 0 | V6: =OFFSET('Tabla Forrajes'!$A$1,$C6,$V$2,1,1) -> 0 | W6: =OFFSET('Tabla Forrajes'!$A$1,$C6,$W$2,1,1) -> 0 | X6: =OFFSET('Tabla Forrajes'!$A$1,$C6,$X$2,1,1) -> 0 | Y6: =OFFSET('Tabla Forrajes'!$A$1,$C6,$Y$2,1,1) -> 0 | Z6: =OFFSET('Tabla Forrajes'!$A$1,$C6,$Z$2,1,1) -> 0 | AA6: =OFFSET('Tabla Forrajes'!$A$1,$C6,$AA$2,1,1) -> 0 | AB6: =OFFSET('Tabla Forrajes'!$A$1,$C6,$AB$2,1,1) -> 0 | AC6: =OFFSET('Tabla Forrajes'!$A$1,$C6,$AC$2,1,1) -> 0 | AD6: =OFFSET('Tabla Forrajes'!$A$1,$C6,$AD$2,1,1) -> 0 | AE6: =OFFSET('Tabla Forrajes'!$A$1,$C6,$AE$2,1,1) -> 0 | AF6: =OFFSET('Tabla Forrajes'!$A$1,$C6,$AF$2,1,1) -> 0 | AG6: =OFFSET('Tabla Forrajes'!$A$1,$C6,$AG$2,1,1) -> 0 | AH6: =OFFSET('Tabla Forrajes'!$A$1,$C6,$AH$2,1,1) -> 0 | AI6: =OFFSET('Tabla Forrajes'!$A$1,$C6,$AI$2,1,1) -> 0 | AJ6: =OFFSET('Tabla Forrajes'!$A$1,$C6,$AJ$2,1,1) -> 0 | AK6: =OFFSET('Tabla Forrajes'!$A$1,$C6,$AK$2,1,1) -> 0 | AL6: =OFFSET('Tabla Forrajes'!$A$1,$C6,$AL$2,1,1) -> 0 | AM6: =OFFSET('Tabla Forrajes'!$A$1,$C6,$AM$2,1,1) -> 0 | AN6: =IF('II_Plantear Ración'!$E7>0,IF(CálculosEV!E6>0,1,"No"),"") ->  | AO6: =IF('II_Plantear Ración'!$E7>0,IF(CálculosEV!F6>0,1,"No"),"") ->  | AP6: =IF('II_Plantear Ración'!$E7>0,IF(CálculosEV!G6>0,1,"No"),"") ->  | AQ6: =IF('II_Plantear Ración'!$E7>0,IF(CálculosEV!H6=0,"No",1),"") ->  | AR6: =IF('II_Plantear Ración'!$E7>0,IF(CálculosEV!I6>0,1,"No"),"") ->  | AS6: =IF('II_Plantear Ración'!$E7>0,IF(CálculosEV!J6>0,1,"No"),"") ->  | AT6: =IF('II_Plantear Ración'!$E7>0,IF(CálculosEV!K6>0,1,"No"),"") ->  | AU6: =IF('II_Plantear Ración'!$E7>0,IF(CálculosEV!L6>0,1,"No"),"") ->  | AV6: =IF('II_Plantear Ración'!$E7>0,IF(CálculosEV!M6>0,1,"No"),"") ->  | AW6: =IF('II_Plantear Ración'!$E7>0,IF(CálculosEV!N6>0,1,"No"),"") ->  | AX6: =IF('II_Plantear Ración'!$E7>0,IF(CálculosEV!O6>0,1,"No"),"") ->  | AY6: =IF('II_Plantear Ración'!$E7>0,IF(CálculosEV!P6>0,1,"No"),"") ->  | AZ6: =IF('II_Plantear Ración'!$E7>0,IF(CálculosEV!Q6>0,1,"No"),"") ->  | BA6: =IF('II_Plantear Ración'!$E7>0,IF(CálculosEV!R6>0,1,"No"),"") ->  | BB6: =IF('II_Plantear Ración'!$E7>0,IF(CálculosEV!S6>0,1,"No"),"") ->  | BC6: =IF('II_Plantear Ración'!$E7>0,IF(CálculosEV!T6>0,1,"No"),"") ->  | BD6: =IF('II_Plantear Ración'!$E7>0,IF(CálculosEV!U6>0,1,"No"),"") ->  | BE6: =IF('II_Plantear Ración'!$E7>0,IF(CálculosEV!V6>0,1,"No"),"") ->  | BF6: =IF('II_Plantear Ración'!$E7>0,IF(CálculosEV!W6>0,1,"No"),"") ->  | BG6: =IF('II_Plantear Ración'!$E7>0,IF(CálculosEV!X6>0,1,"No"),"") ->  | BH6: =IF('II_Plantear Ración'!$E7>0,IF(CálculosEV!Y6>0,1,"No"),"") ->  | BI6: =IF('II_Plantear Ración'!$E7>0,IF(CálculosEV!Z6>0,1,"No"),"") ->  | BJ6: =IF('II_Plantear Ración'!$E7>0,IF(CálculosEV!AA6>0,1,"No"),"") ->  | BK6: =IF('II_Plantear Ración'!$E7>0,IF(CálculosEV!AB6>0,1,"No"),"") ->  | BL6: =IF('II_Plantear Ración'!$E7>0,IF(CálculosEV!AC6>0,1,"No"),"") ->  | BM6: =IF('II_Plantear Ración'!$E7>0,IF(CálculosEV!AD6>0,1,"No"),"") ->  | BN6: =IF('II_Plantear Ración'!$E7>0,IF(CálculosEV!AE6>0,1,"No"),"") ->  | BO6: =IF('II_Plantear Ración'!$E7>0,IF(CálculosEV!AF6>0,1,"No"),"") ->  | BP6: =IF('II_Plantear Ración'!$E7>0,IF(CálculosEV!AG6>0,1,"No"),"") ->  | BQ6: =IF('II_Plantear Ración'!$E7>0,IF(CálculosEV!AH6>0,1,"No"),"") ->  | BR6: =IF('II_Plantear Ración'!$E7>0,IF(CálculosEV!AI6>0,1,"No"),"") ->  | BS6: =IF('II_Plantear Ración'!$E7>0,IF(CálculosEV!AJ6>0,1,"No"),"") ->  | BT6: =IF('II_Plantear Ración'!$E7>0,IF(CálculosEV!AK6>0,1,"No"),"") ->  | BU6: =IF('II_Plantear Ración'!$E7>0,IF(CálculosEV!AL6>0,1,"No"),"") ->  | BV6: =IF('II_Plantear Ración'!$E7>0,IF(CálculosEV!AM6>0,1,"No"),"") ->  | BW6: 0 | BX6: 0 | BY6: 0 | BZ6: 0 | CA6: 0 | CB6: 0 | CC6: 0 | CD6: 0 | CE6: 0 | CF6: 0 | CG6: 0 | CH6: 0 | CI6: 0 | CJ6: 0 | CK6: 0 | CL6: 0 | CM6: 0 | CN6: 0 | CO6: 0 | CP6: 0 | CQ6: 0 | CR6: 0 | CS6: 0 | CT6: 0 | CU6: 0 | CV6: 0 | CW6: 0 | CX6: 0 | CY6: 0 | CZ6: 0 | DA6: 0 | DB6: 0 | DC6: 0 | DD6: 0 | DE6: 0
B7: =IF(OFFSET('Tabla Forrajes'!$A$1,C7,0,1,1)=0,"",OFFSET('Tabla Forrajes'!$A$1,C7,0,1,1)) ->  | C7: 1 | D7: =OFFSET('Tabla Forrajes'!$A$1,$C7,$D$2,1,1) -> 0 | E7: =OFFSET('Tabla Forrajes'!$A$1,$C7,$E$2,1,1) -> 0 | F7: =OFFSET('Tabla Forrajes'!$A$1,$C7,$F$2,1,1) -> 0 | G7: =OFFSET('Tabla Forrajes'!$A$1,$C7,$G$2,1,1) -> 0 | H7: =OFFSET('Tabla Forrajes'!$A$1,$C7,$H$2,1,1) -> 0 | I7: =OFFSET('Tabla Forrajes'!$A$1,$C7,$I$2,1,1) -> 0 | J7: =OFFSET('Tabla Forrajes'!$A$1,$C7,$J$2,1,1) -> 0 | K7: =OFFSET('Tabla Forrajes'!$A$1,$C7,$K$2,1,1) -> 0 | L7: =OFFSET('Tabla Forrajes'!$A$1,$C7,$L$2,1,1) -> 0 | M7: =OFFSET('Tabla Forrajes'!$A$1,$C7,$M$2,1,1) -> 0 | N7: =OFFSET('Tabla Forrajes'!$A$1,$C7,$N$2,1,1) -> 0 | O7: =OFFSET('Tabla Forrajes'!$A$1,$C7,$O$2,1,1) -> 0 | P7: =OFFSET('Tabla Forrajes'!$A$1,$C7,$P$2,1,1) -> 0 | Q7: =OFFSET('Tabla Forrajes'!$A$1,$C7,$Q$2,1,1) -> 0 | R7: =OFFSET('Tabla Forrajes'!$A$1,$C7,$R$2,1,1) -> 0 | S7: =OFFSET('Tabla Forrajes'!$A$1,$C7,$S$2,1,1) -> 0 | T7: =OFFSET('Tabla Forrajes'!$A$1,$C7,$T$2,1,1) -> 0 | U7: =OFFSET('Tabla Forrajes'!$A$1,$C7,$U$2,1,1) -> 0 | V7: =OFFSET('Tabla Forrajes'!$A$1,$C7,$V$2,1,1) -> 0 | W7: =OFFSET('Tabla Forrajes'!$A$1,$C7,$W$2,1,1) -> 0 | X7: =OFFSET('Tabla Forrajes'!$A$1,$C7,$X$2,1,1) -> 0 | Y7: =OFFSET('Tabla Forrajes'!$A$1,$C7,$Y$2,1,1) -> 0 | Z7: =OFFSET('Tabla Forrajes'!$A$1,$C7,$Z$2,1,1) -> 0 | AA7: =OFFSET('Tabla Forrajes'!$A$1,$C7,$AA$2,1,1) -> 0 | AB7: =OFFSET('Tabla Forrajes'!$A$1,$C7,$AB$2,1,1) -> 0 | AC7: =OFFSET('Tabla Forrajes'!$A$1,$C7,$AC$2,1,1) -> 0 | AD7: =OFFSET('Tabla Forrajes'!$A$1,$C7,$AD$2,1,1) -> 0 | AE7: =OFFSET('Tabla Forrajes'!$A$1,$C7,$AE$2,1,1) -> 0 | AF7: =OFFSET('Tabla Forrajes'!$A$1,$C7,$AF$2,1,1) -> 0 | AG7: =OFFSET('Tabla Forrajes'!$A$1,$C7,$AG$2,1,1) -> 0 | AH7: =OFFSET('Tabla Forrajes'!$A$1,$C7,$AH$2,1,1) -> 0 | AI7: =OFFSET('Tabla Forrajes'!$A$1,$C7,$AI$2,1,1) -> 0 | AJ7: =OFFSET('Tabla Forrajes'!$A$1,$C7,$AJ$2,1,1) -> 0 | AK7: =OFFSET('Tabla Forrajes'!$A$1,$C7,$AK$2,1,1) -> 0 | AL7: =OFFSET('Tabla Forrajes'!$A$1,$C7,$AL$2,1,1) -> 0 | AM7: =OFFSET('Tabla Forrajes'!$A$1,$C7,$AM$2,1,1) -> 0 | AN7: =IF('II_Plantear Ración'!$E8>0,IF(CálculosEV!E7>0,1,"No"),"") ->  | AO7: =IF('II_Plantear Ración'!$E8>0,IF(CálculosEV!F7>0,1,"No"),"") ->  | AP7: =IF('II_Plantear Ración'!$E8>0,IF(CálculosEV!G7>0,1,"No"),"") ->  | AQ7: =IF('II_Plantear Ración'!$E8>0,IF(CálculosEV!H7=0,"No",1),"") ->  | AR7: =IF('II_Plantear Ración'!$E8>0,IF(CálculosEV!I7>0,1,"No"),"") ->  | AS7: =IF('II_Plantear Ración'!$E8>0,IF(CálculosEV!J7>0,1,"No"),"") ->  | AT7: =IF('II_Plantear Ración'!$E8>0,IF(CálculosEV!K7>0,1,"No"),"") ->  | AU7: =IF('II_Plantear Ración'!$E8>0,IF(CálculosEV!L7>0,1,"No"),"") ->  | AV7: =IF('II_Plantear Ración'!$E8>0,IF(CálculosEV!M7>0,1,"No"),"") ->  | AW7: =IF('II_Plantear Ración'!$E8>0,IF(CálculosEV!N7>0,1,"No"),"") ->  | AX7: =IF('II_Plantear Ración'!$E8>0,IF(CálculosEV!O7>0,1,"No"),"") ->  | AY7: =IF('II_Plantear Ración'!$E8>0,IF(CálculosEV!P7>0,1,"No"),"") ->  | AZ7: =IF('II_Plantear Ración'!$E8>0,IF(CálculosEV!Q7>0,1,"No"),"") ->  | BA7: =IF('II_Plantear Ración'!$E8>0,IF(CálculosEV!R7>0,1,"No"),"") ->  | BB7: =IF('II_Plantear Ración'!$E8>0,IF(CálculosEV!S7>0,1,"No"),"") ->  | BC7: =IF('II_Plantear Ración'!$E8>0,IF(CálculosEV!T7>0,1,"No"),"") ->  | BD7: =IF('II_Plantear Ración'!$E8>0,IF(CálculosEV!U7>0,1,"No"),"") ->  | BE7: =IF('II_Plantear Ración'!$E8>0,IF(CálculosEV!V7>0,1,"No"),"") ->  | BF7: =IF('II_Plantear Ración'!$E8>0,IF(CálculosEV!W7>0,1,"No"),"") ->  | BG7: =IF('II_Plantear Ración'!$E8>0,IF(CálculosEV!X7>0,1,"No"),"") ->  | BH7: =IF('II_Plantear Ración'!$E8>0,IF(CálculosEV!Y7>0,1,"No"),"") ->  | BI7: =IF('II_Plantear Ración'!$E8>0,IF(CálculosEV!Z7>0,1,"No"),"") ->  | BJ7: =IF('II_Plantear Ración'!$E8>0,IF(CálculosEV!AA7>0,1,"No"),"") ->  | BK7: =IF('II_Plantear Ración'!$E8>0,IF(CálculosEV!AB7>0,1,"No"),"") ->  | BL7: =IF('II_Plantear Ración'!$E8>0,IF(CálculosEV!AC7>0,1,"No"),"") ->  | BM7: =IF('II_Plantear Ración'!$E8>0,IF(CálculosEV!AD7>0,1,"No"),"") ->  | BN7: =IF('II_Plantear Ración'!$E8>0,IF(CálculosEV!AE7>0,1,"No"),"") ->  | BO7: =IF('II_Plantear Ración'!$E8>0,IF(CálculosEV!AF7>0,1,"No"),"") ->  | BP7: =IF('II_Plantear Ración'!$E8>0,IF(CálculosEV!AG7>0,1,"No"),"") ->  | BQ7: =IF('II_Plantear Ración'!$E8>0,IF(CálculosEV!AH7>0,1,"No"),"") ->  | BR7: =IF('II_Plantear Ración'!$E8>0,IF(CálculosEV!AI7>0,1,"No"),"") ->  | BS7: =IF('II_Plantear Ración'!$E8>0,IF(CálculosEV!AJ7>0,1,"No"),"") ->  | BT7: =IF('II_Plantear Ración'!$E8>0,IF(CálculosEV!AK7>0,1,"No"),"") ->  | BU7: =IF('II_Plantear Ración'!$E8>0,IF(CálculosEV!AL7>0,1,"No"),"") ->  | BV7: =IF('II_Plantear Ración'!$E8>0,IF(CálculosEV!AM7>0,1,"No"),"") ->  | BW7: 0 | BX7: 0 | BY7: 0 | BZ7: 0 | CA7: 0 | CB7: 0 | CC7: 0 | CD7: 0 | CE7: 0 | CF7: 0 | CG7: 0 | CH7: 0 | CI7: 0 | CJ7: 0 | CK7: 0 | CL7: 0 | CM7: 0 | CN7: 0 | CO7: 0 | CP7: 0 | CQ7: 0 | CR7: 0 | CS7: 0 | CT7: 0 | CU7: 0 | CV7: 0 | CW7: 0 | CX7: 0 | CY7: 0 | CZ7: 0 | DA7: 0 | DB7: 0 | DC7: 0 | DD7: 0 | DE7: 0
A8: CONCENTRATS | B8: =IF(OFFSET('Tabla Concentrados'!$A$1,C8,0,1,1)=0,"",OFFSET('Tabla Concentrados'!$A$1,C8,0,1,1)) ->  | C8: 1 | D8: =OFFSET('Tabla Concentrados'!$A$1,$C8,$D$2,1,1) -> 0 | E8: =OFFSET('Tabla Concentrados'!$A$1,$C8,$E$2,1,1) -> 0 | F8: =OFFSET('Tabla Concentrados'!$A$1,$C8,$F$2,1,1) -> 0 | G8: =OFFSET('Tabla Concentrados'!$A$1,$C8,$G$2,1,1) -> 0 | H8: =OFFSET('Tabla Concentrados'!$A$1,$C8,$H$2,1,1) -> 0 | I8: =OFFSET('Tabla Concentrados'!$A$1,$C8,$I$2,1,1) -> 0 | J8: =OFFSET('Tabla Concentrados'!$A$1,$C8,$J$2,1,1) -> 0 | K8: =OFFSET('Tabla Concentrados'!$A$1,$C8,$K$2,1,1) -> 0 | L8: =OFFSET('Tabla Concentrados'!$A$1,$C8,$L$2,1,1) -> 0 | M8: =OFFSET('Tabla Concentrados'!$A$1,$C8,$M$2,1,1) -> 0 | N8: =OFFSET('Tabla Concentrados'!$A$1,$C8,$N$2,1,1) -> 0 | O8: =OFFSET('Tabla Concentrados'!$A$1,$C8,$O$2,1,1) -> 0 | P8: =OFFSET('Tabla Concentrados'!$A$1,$C8,$P$2,1,1) -> 0 | Q8: =OFFSET('Tabla Concentrados'!$A$1,$C8,$Q$2,1,1) -> 0 | R8: =OFFSET('Tabla Concentrados'!$A$1,$C8,$R$2,1,1) -> 0 | S8: =OFFSET('Tabla Concentrados'!$A$1,$C8,$S$2,1,1) -> 0 | T8: =OFFSET('Tabla Concentrados'!$A$1,$C8,$T$2,1,1) -> 0 | U8: =OFFSET('Tabla Concentrados'!$A$1,$C8,$U$2,1,1) -> 0 | V8: =OFFSET('Tabla Concentrados'!$A$1,$C8,$V$2,1,1) -> 0 | W8: =OFFSET('Tabla Concentrados'!$A$1,$C8,$W$2,1,1) -> 0 | X8: =OFFSET('Tabla Concentrados'!$A$1,$C8,$X$2,1,1) -> 0 | Y8: =OFFSET('Tabla Concentrados'!$A$1,$C8,$Y$2,1,1) -> 0 | Z8: =OFFSET('Tabla Concentrados'!$A$1,$C8,$Z$2,1,1) -> 0 | AA8: =OFFSET('Tabla Concentrados'!$A$1,$C8,$AA$2,1,1) -> 0 | AB8: =OFFSET('Tabla Concentrados'!$A$1,$C8,$AB$2,1,1) -> 0 | AC8: =OFFSET('Tabla Concentrados'!$A$1,$C8,$AC$2,1,1) -> 0 | AD8: =OFFSET('Tabla Concentrados'!$A$1,$C8,$AD$2,1,1) -> 0 | AE8: =OFFSET('Tabla Concentrados'!$A$1,$C8,$AE$2,1,1) -> 0 | AF8: =OFFSET('Tabla Concentrados'!$A$1,$C8,$AF$2,1,1) -> 0 | AG8: =OFFSET('Tabla Concentrados'!$A$1,$C8,$AG$2,1,1) -> 0 | AH8: =OFFSET('Tabla Concentrados'!$A$1,$C8,$AH$2,1,1) -> 0 | AI8: =OFFSET('Tabla Concentrados'!$A$1,$C8,$AI$2,1,1) -> 0 | AJ8: =OFFSET('Tabla Concentrados'!$A$1,$C8,$AJ$2,1,1) -> 0 | AK8: =OFFSET('Tabla Concentrados'!$A$1,$C8,$AK$2,1,1) -> 0 | AL8: =OFFSET('Tabla Concentrados'!$A$1,$C8,$AL$2,1,1) -> 0 | AM8: =OFFSET('Tabla Concentrados'!$A$1,$C8,$AM$2,1,1) -> 0 | AN8: =IF('II_Plantear Ración'!$E9>0,IF(CálculosEV!E8>=0,1,"No"),"") ->  | AO8: =IF('II_Plantear Ración'!$E9>0,IF(CálculosEV!F8>0,1,"No"),"") ->  | AP8: =IF('II_Plantear Ración'!$E9>0,IF(CálculosEV!G8>0,1,"No"),"") ->  | AQ8: =IF('II_Plantear Ración'!$E9>0,IF(CálculosEV!H8=0,"No",1),"") ->  | AR8: =IF('II_Plantear Ración'!$E9>0,IF(CálculosEV!I8>0,1,"No"),"") ->  | AS8: =IF('II_Plantear Ración'!$E9>0,IF(CálculosEV!J8>0,1,"No"),"") ->  | AT8: =IF('II_Plantear Ración'!$E9>0,IF(CálculosEV!K8>0,1,"No"),"") ->  | AU8: =IF('II_Plantear Ración'!$E9>0,IF(CálculosEV!L8>0,1,"No"),"") ->  | AV8: =IF('II_Plantear Ración'!$E9>0,IF(CálculosEV!M8>0,1,"No"),"") ->  | AW8: =IF('II_Plantear Ración'!$E9>0,IF(CálculosEV!N8>0,1,"No"),"") ->  | AX8: =IF('II_Plantear Ración'!$E9>0,IF(CálculosEV!O8>0,1,"No"),"") ->  | AY8: =IF('II_Plantear Ración'!$E9>0,IF(CálculosEV!P8>0,1,"No"),"") ->  | AZ8: =IF('II_Plantear Ración'!$E9>0,IF(CálculosEV!Q8>0,1,"No"),"") ->  | BA8: =IF('II_Plantear Ración'!$E9>0,IF(CálculosEV!R8>0,1,"No"),"") ->  | BB8: =IF('II_Plantear Ración'!$E9>0,IF(CálculosEV!S8>0,1,"No"),"") ->  | BC8: =IF('II_Plantear Ración'!$E9>0,IF(CálculosEV!T8>0,1,"No"),"") ->  | BD8: =IF('II_Plantear Ración'!$E9>0,IF(CálculosEV!U8>0,1,"No"),"") ->  | BE8: =IF('II_Plantear Ración'!$E9>0,IF(CálculosEV!V8>0,1,"No"),"") ->  | BF8: =IF('II_Plantear Ración'!$E9>0,IF(CálculosEV!W8>0,1,"No"),"") ->  | BG8: =IF('II_Plantear Ración'!$E9>0,IF(CálculosEV!X8>0,1,"No"),"") ->  | BH8: =IF('II_Plantear Ración'!$E9>0,IF(CálculosEV!Y8>0,1,"No"),"") ->  | BI8: =IF('II_Plantear Ración'!$E9>0,IF(CálculosEV!Z8>0,1,"No"),"") ->  | BJ8: =IF('II_Plantear Ración'!$E9>0,IF(CálculosEV!AA8>0,1,"No"),"") ->  | BK8: =IF('II_Plantear Ración'!$E9>0,IF(CálculosEV!AB8>0,1,"No"),"") ->  | BL8: =IF('II_Plantear Ración'!$E9>0,IF(CálculosEV!AC8>0,1,"No"),"") ->  | BM8: =IF('II_Plantear Ración'!$E9>0,IF(CálculosEV!AD8>0,1,"No"),"") ->  | BN8: =IF('II_Plantear Ración'!$E9>0,IF(CálculosEV!AE8>0,1,"No"),"") ->  | BO8: =IF('II_Plantear Ración'!$E9>0,IF(CálculosEV!AF8>0,1,"No"),"") ->  | BP8: =IF('II_Plantear Ración'!$E9>0,IF(CálculosEV!AG8>0,1,"No"),"") ->  | BQ8: =IF('II_Plantear Ración'!$E9>0,IF(CálculosEV!AH8>0,1,"No"),"") ->  | BR8: =IF('II_Plantear Ración'!$E9>0,IF(CálculosEV!AI8>0,1,"No"),"") ->  | BS8: =IF('II_Plantear Ración'!$E9>0,IF(CálculosEV!AJ8>0,1,"No"),"") ->  | BT8: =IF('II_Plantear Ración'!$E9>0,IF(CálculosEV!AK8>0,1,"No"),"") ->  | BU8: =IF('II_Plantear Ración'!$E9>0,IF(CálculosEV!AL8>0,1,"No"),"") ->  | BV8: =IF('II_Plantear Ración'!$E9>0,IF(CálculosEV!AM8>0,1,"No"),"") ->  | BW8: 0 | BX8: 0 | BY8: 0 | BZ8: 0 | CA8: 0 | CB8: 0 | CC8: 0 | CD8: 0 | CE8: 0 | CF8: 0 | CG8: 0 | CH8: 0 | CI8: 0 | CJ8: 0 | CK8: 0 | CL8: 0 | CM8: 0 | CN8: 0 | CO8: 0 | CP8: 0 | CQ8: 0 | CR8: 0 | CS8: 0 | CT8: 0 | CU8: 0 | CV8: 0 | CW8: 0 | CX8: 0 | CY8: 0 | CZ8: 0 | DA8: 0 | DB8: 0 | DC8: 0 | DD8: 0 | DE8: 0
B9: =IF(OFFSET('Tabla Concentrados'!$A$1,C9,0,1,1)=0,"",OFFSET('Tabla Concentrados'!$A$1,C9,0,1,1)) -> Cebada grano | C9: 2 | D9: =OFFSET('Tabla Concentrados'!$A$1,$C9,$D$2,1,1) -> 88.8 | E9: =OFFSET('Tabla Concentrados'!$A$1,$C9,$E$2,1,1) -> 0 | F9: =OFFSET('Tabla Concentrados'!$A$1,$C9,$F$2,1,1) -> 1.078969989 | G9: =OFFSET('Tabla Concentrados'!$A$1,$C9,$G$2,1,1) -> 89.46220189 | H9: =OFFSET('Tabla Concentrados'!$A$1,$C9,$H$2,1,1) -> -31.34737412 | I9: =OFFSET('Tabla Concentrados'!$A$1,$C9,$I$2,1,1) -> 2 | J9: =OFFSET('Tabla Concentrados'!$A$1,$C9,$J$2,1,1) -> 0.44 | K9: =OFFSET('Tabla Concentrados'!$A$1,$C9,$K$2,1,1) -> 2.964 | L9: =OFFSET('Tabla Concentrados'!$A$1,$C9,$L$2,1,1) -> 1.3 | M9: =OFFSET('Tabla Concentrados'!$A$1,$C9,$M$2,1,1) -> 5.55 | N9: =OFFSET('Tabla Concentrados'!$A$1,$C9,$N$2,1,1) -> 0.35 | O9: =OFFSET('Tabla Concentrados'!$A$1,$C9,$O$2,1,1) -> 0 | P9: =OFFSET('Tabla Concentrados'!$A$1,$C9,$P$2,1,1) -> 0 | Q9: =OFFSET('Tabla Concentrados'!$A$1,$C9,$Q$2,1,1) -> 0.01 | R9: =OFFSET('Tabla Concentrados'!$A$1,$C9,$R$2,1,1) -> 4.1 | S9: =OFFSET('Tabla Concentrados'!$A$1,$C9,$S$2,1,1) -> 17.6 | T9: =OFFSET('Tabla Concentrados'!$A$1,$C9,$T$2,1,1) -> 24.4 | U9: =OFFSET('Tabla Concentrados'!$A$1,$C9,$U$2,1,1) -> 0 | V9: =OFFSET('Tabla Concentrados'!$A$1,$C9,$V$2,1,1) -> 0.02 | W9: =OFFSET('Tabla Concentrados'!$A$1,$C9,$W$2,1,1) -> 1000 | X9: =OFFSET('Tabla Concentrados'!$A$1,$C9,$X$2,1,1) -> 0 | Y9: =OFFSET('Tabla Concentrados'!$A$1,$C9,$Y$2,1,1) -> 25 | Z9: =OFFSET('Tabla Concentrados'!$A$1,$C9,$Z$2,1,1) -> 14.25 | AA9: =OFFSET('Tabla Concentrados'!$A$1,$C9,$AA$2,1,1) -> 112 | AB9: =OFFSET('Tabla Concentrados'!$A$1,$C9,$AB$2,1,1) -> 27.59508246 | AC9: =OFFSET('Tabla Concentrados'!$A$1,$C9,$AC$2,1,1) -> 0.837328 | AD9: =OFFSET('Tabla Concentrados'!$A$1,$C9,$AD$2,1,1) -> 816.3948 | AE9: =OFFSET('Tabla Concentrados'!$A$1,$C9,$AE$2,1,1) -> 19 | AF9: =OFFSET('Tabla Concentrados'!$A$1,$C9,$AF$2,1,1) -> 54 | AG9: =OFFSET('Tabla Concentrados'!$A$1,$C9,$AG$2,1,1) -> 215 | AH9: =OFFSET('Tabla Concentrados'!$A$1,$C9,$AH$2,1,1) -> 65 | AI9: =OFFSET('Tabla Concentrados'!$A$1,$C9,$AI$2,1,1) -> 12 | AJ9: =OFFSET('Tabla Concentrados'!$A$1,$C9,$AJ$2,1,1) -> 25 | AK9: =OFFSET('Tabla Concentrados'!$A$1,$C9,$AK$2,1,1) -> 0.3 | AL9: =OFFSET('Tabla Concentrados'!$A$1,$C9,$AL$2,1,1) -> 0.7349259949 | AM9: =OFFSET('Tabla Concentrados'!$A$1,$C9,$AM$2,1,1) -> 596.0833771 | AN9: =IF('II_Plantear Ración'!$E10>0,IF(CálculosEV!E9>=0,1,"No"),"") -> 1 | AO9: =IF('II_Plantear Ración'!$E10>0,IF(CálculosEV!F9>0,1,"No"),"") -> 1 | AP9: =IF('II_Plantear Ración'!$E10>0,IF(CálculosEV!G9>0,1,"No"),"") -> 1 | AQ9: =IF('II_Plantear Ración'!$E10>0,IF(CálculosEV!H9=0,"No",1),"") -> 1 | AR9: =IF('II_Plantear Ración'!$E10>0,IF(CálculosEV!I9>0,1,"No"),"") -> 1 | AS9: =IF('II_Plantear Ración'!$E10>0,IF(CálculosEV!J9>0,1,"No"),"") -> 1 | AT9: =IF('II_Plantear Ración'!$E10>0,IF(CálculosEV!K9>0,1,"No"),"") -> 1 | AU9: =IF('II_Plantear Ración'!$E10>0,IF(CálculosEV!L9>0,1,"No"),"") -> 1 | AV9: =IF('II_Plantear Ración'!$E10>0,IF(CálculosEV!M9>0,1,"No"),"") -> 1 | AW9: =IF('II_Plantear Ración'!$E10>0,IF(CálculosEV!N9>0,1,"No"),"") -> 1 | AX9: =IF('II_Plantear Ración'!$E10>0,IF(CálculosEV!O9>0,1,"No"),"") -> No | AY9: =IF('II_Plantear Ración'!$E10>0,IF(CálculosEV!P9>0,1,"No"),"") -> No | AZ9: =IF('II_Plantear Ración'!$E10>0,IF(CálculosEV!Q9>0,1,"No"),"") -> 1 | BA9: =IF('II_Plantear Ración'!$E10>0,IF(CálculosEV!R9>0,1,"No"),"") -> 1 | BB9: =IF('II_Plantear Ración'!$E10>0,IF(CálculosEV!S9>0,1,"No"),"") -> 1 | BC9: =IF('II_Plantear Ración'!$E10>0,IF(CálculosEV!T9>0,1,"No"),"") -> 1 | BD9: =IF('II_Plantear Ración'!$E10>0,IF(CálculosEV!U9>0,1,"No"),"") -> No | BE9: =IF('II_Plantear Ración'!$E10>0,IF(CálculosEV!V9>0,1,"No"),"") -> 1 | BF9: =IF('II_Plantear Ración'!$E10>0,IF(CálculosEV!W9>0,1,"No"),"") -> 1 | BG9: =IF('II_Plantear Ración'!$E10>0,IF(CálculosEV!X9>0,1,"No"),"") -> No | BH9: =IF('II_Plantear Ración'!$E10>0,IF(CálculosEV!Y9>0,1,"No"),"") -> 1 | BI9: =IF('II_Plantear Ración'!$E10>0,IF(CálculosEV!Z9>0,1,"No"),"") -> 1 | BJ9: =IF('II_Plantear Ración'!$E10>0,IF(CálculosEV!AA9>0,1,"No"),"") -> 1 | BK9: =IF('II_Plantear Ración'!$E10>0,IF(CálculosEV!AB9>0,1,"No"),"") -> 1 | BL9: =IF('II_Plantear Ración'!$E10>0,IF(CálculosEV!AC9>0,1,"No"),"") -> 1 | BM9: =IF('II_Plantear Ración'!$E10>0,IF(CálculosEV!AD9>0,1,"No"),"") -> 1 | BN9: =IF('II_Plantear Ración'!$E10>0,IF(CálculosEV!AE9>0,1,"No"),"") -> 1 | BO9: =IF('II_Plantear Ración'!$E10>0,IF(CálculosEV!AF9>0,1,"No"),"") -> 1 | BP9: =IF('II_Plantear Ración'!$E10>0,IF(CálculosEV!AG9>0,1,"No"),"") -> 1 | BQ9: =IF('II_Plantear Ración'!$E10>0,IF(CálculosEV!AH9>0,1,"No"),"") -> 1 | BR9: =IF('II_Plantear Ración'!$E10>0,IF(CálculosEV!AI9>0,1,"No"),"") -> 1 | BS9: =IF('II_Plantear Ración'!$E10>0,IF(CálculosEV!AJ9>0,1,"No"),"") -> 1 | BT9: =IF('II_Plantear Ración'!$E10>0,IF(CálculosEV!AK9>0,1,"No"),"") -> 1 | BU9: =IF('II_Plantear Ración'!$E10>0,IF(CálculosEV!AL9>0,1,"No"),"") -> 1 | BV9: =IF('II_Plantear Ración'!$E10>0,IF(CálculosEV!AM9>0,1,"No"),"") -> 1 | BW9: 1 | BX9: 1 | BY9: 1 | BZ9: 1 | CA9: 1 | CB9: 1 | CC9: 1 | CD9: 1 | CE9: 1 | CF9: 1 | CG9: 1 | CH9: 1 | CI9: 1 | CJ9: 1 | CK9: 1 | CL9: 1 | CM9: 1 | CN9: 1 | CO9: 1 | CP9: 1 | CQ9: 1 | CR9: 1 | CS9: 1 | CT9: 1 | CU9: 1 | CV9: 1 | CW9: 1 | CX9: 1 | CY9: 1 | CZ9: 1 | DA9: 1 | DB9: 1 | DC9: 1 | DD9: 1 | DE9: 1
B10: =IF(OFFSET('Tabla Concentrados'!$A$1,C10,0,1,1)=0,"",OFFSET('Tabla Concentrados'!$A$1,C10,0,1,1)) -> Colza, turtó | C10: 32 | D10: =OFFSET('Tabla Concentrados'!$A$1,$C10,$D$2,1,1) -> 90 | E10: =OFFSET('Tabla Concentrados'!$A$1,$C10,$E$2,1,1) -> 0 | F10: =OFFSET('Tabla Concentrados'!$A$1,$C10,$F$2,1,1) -> 0.958005025 | G10: =OFFSET('Tabla Concentrados'!$A$1,$C10,$G$2,1,1) -> 155.8627084 | H10: =OFFSET('Tabla Concentrados'!$A$1,$C10,$H$2,1,1) -> 193.047004 | I10: =OFFSET('Tabla Concentrados'!$A$1,$C10,$I$2,1,1) -> 2 | J10: =OFFSET('Tabla Concentrados'!$A$1,$C10,$J$2,1,1) -> 4.62 | K10: =OFFSET('Tabla Concentrados'!$A$1,$C10,$K$2,1,1) -> 8.804 | L10: =OFFSET('Tabla Concentrados'!$A$1,$C10,$L$2,1,1) -> 5.15 | M10: =OFFSET('Tabla Concentrados'!$A$1,$C10,$M$2,1,1) -> 12.4 | N10: =OFFSET('Tabla Concentrados'!$A$1,$C10,$N$2,1,1) -> 0.75 | O10: =OFFSET('Tabla Concentrados'!$A$1,$C10,$O$2,1,1) -> 0 | P10: =OFFSET('Tabla Concentrados'!$A$1,$C10,$P$2,1,1) -> 0 | Q10: =OFFSET('Tabla Concentrados'!$A$1,$C10,$Q$2,1,1) -> 0.1 | R10: =OFFSET('Tabla Concentrados'!$A$1,$C10,$R$2,1,1) -> 5.5 | S10: =OFFSET('Tabla Concentrados'!$A$1,$C10,$S$2,1,1) -> 63.5 | T10: =OFFSET('Tabla Concentrados'!$A$1,$C10,$T$2,1,1) -> 64.5 | U10: =OFFSET('Tabla Concentrados'!$A$1,$C10,$U$2,1,1) -> 0 | V10: =OFFSET('Tabla Concentrados'!$A$1,$C10,$V$2,1,1) -> 0.07 | W10: =OFFSET('Tabla Concentrados'!$A$1,$C10,$W$2,1,1) -> 0 | X10: =OFFSET('Tabla Concentrados'!$A$1,$C10,$X$2,1,1) -> 0 | Y10: =OFFSET('Tabla Concentrados'!$A$1,$C10,$Y$2,1,1) -> 20 | Z10: =OFFSET('Tabla Concentrados'!$A$1,$C10,$Z$2,1,1) -> 20.8 | AA10: =OFFSET('Tabla Concentrados'!$A$1,$C10,$AA$2,1,1) -> 418 | AB10: =OFFSET('Tabla Concentrados'!$A$1,$C10,$AB$2,1,1) -> 103.9119909 | AC10: =OFFSET('Tabla Concentrados'!$A$1,$C10,$AC$2,1,1) -> 0.7842 | AD10: =OFFSET('Tabla Concentrados'!$A$1,$C10,$AD$2,1,1) -> 704.9958 | AE10: =OFFSET('Tabla Concentrados'!$A$1,$C10,$AE$2,1,1) -> 26 | AF10: =OFFSET('Tabla Concentrados'!$A$1,$C10,$AF$2,1,1) -> 120 | AG10: =OFFSET('Tabla Concentrados'!$A$1,$C10,$AG$2,1,1) -> 287 | AH10: =OFFSET('Tabla Concentrados'!$A$1,$C10,$AH$2,1,1) -> 182 | AI10: =OFFSET('Tabla Concentrados'!$A$1,$C10,$AI$2,1,1) -> 74 | AJ10: =OFFSET('Tabla Concentrados'!$A$1,$C10,$AJ$2,1,1) -> 101 | AK10: =OFFSET('Tabla Concentrados'!$A$1,$C10,$AK$2,1,1) -> 0.5 | AL10: =OFFSET('Tabla Concentrados'!$A$1,$C10,$AL$2,1,1) -> 0.7277738088 | AM10: =OFFSET('Tabla Concentrados'!$A$1,$C10,$AM$2,1,1) -> 325.121416 | AN10: =IF('II_Plantear Ración'!$E11>0,IF(CálculosEV!E10>=0,1,"No"),"") ->  | AO10: =IF('II_Plantear Ración'!$E11>0,IF(CálculosEV!F10>0,1,"No"),"") ->  | AP10: =IF('II_Plantear Ración'!$E11>0,IF(CálculosEV!G10>0,1,"No"),"") ->  | AQ10: =IF('II_Plantear Ración'!$E11>0,IF(CálculosEV!H10=0,"No",1),"") ->  | AR10: =IF('II_Plantear Ración'!$E11>0,IF(CálculosEV!I10>0,1,"No"),"") ->  | AS10: =IF('II_Plantear Ración'!$E11>0,IF(CálculosEV!J10>0,1,"No"),"") ->  | AT10: =IF('II_Plantear Ración'!$E11>0,IF(CálculosEV!K10>0,1,"No"),"") ->  | AU10: =IF('II_Plantear Ración'!$E11>0,IF(CálculosEV!L10>0,1,"No"),"") ->  | AV10: =IF('II_Plantear Ración'!$E11>0,IF(CálculosEV!M10>0,1,"No"),"") ->  | AW10: =IF('II_Plantear Ración'!$E11>0,IF(CálculosEV!N10>0,1,"No"),"") ->  | AX10: =IF('II_Plantear Ración'!$E11>0,IF(CálculosEV!O10>0,1,"No"),"") ->  | AY10: =IF('II_Plantear Ración'!$E11>0,IF(CálculosEV!P10>0,1,"No"),"") ->  | AZ10: =IF('II_Plantear Ración'!$E11>0,IF(CálculosEV!Q10>0,1,"No"),"") ->  | BA10: =IF('II_Plantear Ración'!$E11>0,IF(CálculosEV!R10>0,1,"No"),"") ->  | BB10: =IF('II_Plantear Ración'!$E11>0,IF(CálculosEV!S10>0,1,"No"),"") ->  | BC10: =IF('II_Plantear Ración'!$E11>0,IF(CálculosEV!T10>0,1,"No"),"") ->  | BD10: =IF('II_Plantear Ración'!$E11>0,IF(CálculosEV!U10>0,1,"No"),"") ->  | BE10: =IF('II_Plantear Ración'!$E11>0,IF(CálculosEV!V10>0,1,"No"),"") ->  | BF10: =IF('II_Plantear Ración'!$E11>0,IF(CálculosEV!W10>0,1,"No"),"") ->  | BG10: =IF('II_Plantear Ración'!$E11>0,IF(CálculosEV!X10>0,1,"No"),"") ->  | BH10: =IF('II_Plantear Ración'!$E11>0,IF(CálculosEV!Y10>0,1,"No"),"") ->  | BI10: =IF('II_Plantear Ración'!$E11>0,IF(CálculosEV!Z10>0,1,"No"),"") ->  | BJ10: =IF('II_Plantear Ración'!$E11>0,IF(CálculosEV!AA10>0,1,"No"),"") ->  | BK10: =IF('II_Plantear Ración'!$E11>0,IF(CálculosEV!AB10>0,1,"No"),"") ->  | BL10: =IF('II_Plantear Ración'!$E11>0,IF(CálculosEV!AC10>0,1,"No"),"") ->  | BM10: =IF('II_Plantear Ración'!$E11>0,IF(CálculosEV!AD10>0,1,"No"),"") ->  | BN10: =IF('II_Plantear Ración'!$E11>0,IF(CálculosEV!AE10>0,1,"No"),"") ->  | BO10: =IF('II_Plantear Ración'!$E11>0,IF(CálculosEV!AF10>0,1,"No"),"") ->  | BP10: =IF('II_Plantear Ración'!$E11>0,IF(CálculosEV!AG10>0,1,"No"),"") ->  | BQ10: =IF('II_Plantear Ración'!$E11>0,IF(CálculosEV!AH10>0,1,"No"),"") ->  | BR10: =IF('II_Plantear Ración'!$E11>0,IF(CálculosEV!AI10>0,1,"No"),"") ->  | BS10: =IF('II_Plantear Ración'!$E11>0,IF(CálculosEV!AJ10>0,1,"No"),"") ->  | BT10: =IF('II_Plantear Ración'!$E11>0,IF(CálculosEV!AK10>0,1,"No"),"") ->  | BU10: =IF('II_Plantear Ración'!$E11>0,IF(CálculosEV!AL10>0,1,"No"),"") ->  | BV10: =IF('II_Plantear Ración'!$E11>0,IF(CálculosEV!AM10>0,1,"No"),"") ->  | BW10: 0 | BX10: 0 | BY10: 0 | BZ10: 0 | CA10: 0 | CB10: 0 | CC10: 0 | CD10: 0 | CE10: 0 | CF10: 0 | CG10: 0 | CH10: 0 | CI10: 0 | CJ10: 0 | CK10: 0 | CL10: 0 | CM10: 0 | CN10: 0 | CO10: 0 | CP10: 0 | CQ10: 0 | CR10: 0 | CS10: 0 | CT10: 0 | CU10: 0 | CV10: 0 | CW10: 0 | CX10: 0 | CY10: 0 | CZ10: 0 | DA10: 0 | DB10: 0 | DC10: 0 | DD10: 0 | DE10: 0
B11: =IF(OFFSET('Tabla Concentrados'!$A$1,C11,0,1,1)=0,"",OFFSET('Tabla Concentrados'!$A$1,C11,0,1,1)) -> Maíz grano | C11: 3 | D11: =OFFSET('Tabla Concentrados'!$A$1,$C11,$D$2,1,1) -> 86 | E11: =OFFSET('Tabla Concentrados'!$A$1,$C11,$E$2,1,1) -> 0 | F11: =OFFSET('Tabla Concentrados'!$A$1,$C11,$F$2,1,1) -> 1.24475541 | G11: =OFFSET('Tabla Concentrados'!$A$1,$C11,$G$2,1,1) -> 94 | H11: =OFFSET('Tabla Concentrados'!$A$1,$C11,$H$2,1,1) -> -53 | I11: =OFFSET('Tabla Concentrados'!$A$1,$C11,$I$2,1,1) -> 2 | J11: =OFFSET('Tabla Concentrados'!$A$1,$C11,$J$2,1,1) -> 0.275 | K11: =OFFSET('Tabla Concentrados'!$A$1,$C11,$K$2,1,1) -> 2.175 | L11: =OFFSET('Tabla Concentrados'!$A$1,$C11,$L$2,1,1) -> 1.4 | M11: =OFFSET('Tabla Concentrados'!$A$1,$C11,$M$2,1,1) -> 3.6 | N11: =OFFSET('Tabla Concentrados'!$A$1,$C11,$N$2,1,1) -> 0.33 | O11: =OFFSET('Tabla Concentrados'!$A$1,$C11,$O$2,1,1) -> 0 | P11: =OFFSET('Tabla Concentrados'!$A$1,$C11,$P$2,1,1) -> 0 | Q11: =OFFSET('Tabla Concentrados'!$A$1,$C11,$Q$2,1,1) -> 0.02 | R11: =OFFSET('Tabla Concentrados'!$A$1,$C11,$R$2,1,1) -> 2.3 | S11: =OFFSET('Tabla Concentrados'!$A$1,$C11,$S$2,1,1) -> 10.8 | T11: =OFFSET('Tabla Concentrados'!$A$1,$C11,$T$2,1,1) -> 21.4 | U11: =OFFSET('Tabla Concentrados'!$A$1,$C11,$U$2,1,1) -> 0 | V11: =OFFSET('Tabla Concentrados'!$A$1,$C11,$V$2,1,1) -> 0.02 | W11: =OFFSET('Tabla Concentrados'!$A$1,$C11,$W$2,1,1) -> 0 | X11: =OFFSET('Tabla Concentrados'!$A$1,$C11,$X$2,1,1) -> 0 | Y11: =OFFSET('Tabla Concentrados'!$A$1,$C11,$Y$2,1,1) -> 0 | Z11: =OFFSET('Tabla Concentrados'!$A$1,$C11,$Z$2,1,1) -> 36.55 | AA11: =OFFSET('Tabla Concentrados'!$A$1,$C11,$AA$2,1,1) -> 89 | AB11: =OFFSET('Tabla Concentrados'!$A$1,$C11,$AB$2,1,1) -> 43 | AC11: =OFFSET('Tabla Concentrados'!$A$1,$C11,$AC$2,1,1) -> 0.882846 | AD11: =OFFSET('Tabla Concentrados'!$A$1,$C11,$AD$2,1,1) -> 870.486156 | AE11: =OFFSET('Tabla Concentrados'!$A$1,$C11,$AE$2,1,1) -> 43 | AF11: =OFFSET('Tabla Concentrados'!$A$1,$C11,$AF$2,1,1) -> 26 | AG11: =OFFSET('Tabla Concentrados'!$A$1,$C11,$AG$2,1,1) -> 125 | AH11: =OFFSET('Tabla Concentrados'!$A$1,$C11,$AH$2,1,1) -> 31 | AI11: =OFFSET('Tabla Concentrados'!$A$1,$C11,$AI$2,1,1) -> 60 | AJ11: =OFFSET('Tabla Concentrados'!$A$1,$C11,$AJ$2,1,1) -> 14 | AK11: =OFFSET('Tabla Concentrados'!$A$1,$C11,$AK$2,1,1) -> 0.3 | AL11: =OFFSET('Tabla Concentrados'!$A$1,$C11,$AL$2,1,1) -> 0.4465708975 | AM11: =OFFSET('Tabla Concentrados'!$A$1,$C11,$AM$2,1,1) -> 780.9036423 | AN11: =IF('II_Plantear Ración'!$E12>0,IF(CálculosEV!E11>=0,1,"No"),"") ->  | AO11: =IF('II_Plantear Ración'!$E12>0,IF(CálculosEV!F11>0,1,"No"),"") ->  | AP11: =IF('II_Plantear Ración'!$E12>0,IF(CálculosEV!G11>0,1,"No"),"") ->  | AQ11: =IF('II_Plantear Ración'!$E12>0,IF(CálculosEV!H11=0,"No",1),"") ->  | AR11: =IF('II_Plantear Ración'!$E12>0,IF(CálculosEV!I11>0,1,"No"),"") ->  | AS11: =IF('II_Plantear Ración'!$E12>0,IF(CálculosEV!J11>0,1,"No"),"") ->  | AT11: =IF('II_Plantear Ración'!$E12>0,IF(CálculosEV!K11>0,1,"No"),"") ->  | AU11: =IF('II_Plantear Ración'!$E12>0,IF(CálculosEV!L11>0,1,"No"),"") ->  | AV11: =IF('II_Plantear Ración'!$E12>0,IF(CálculosEV!M11>0,1,"No"),"") ->  | AW11: =IF('II_Plantear Ración'!$E12>0,IF(CálculosEV!N11>0,1,"No"),"") ->  | AX11: =IF('II_Plantear Ración'!$E12>0,IF(CálculosEV!O11>0,1,"No"),"") ->  | AY11: =IF('II_Plantear Ración'!$E12>0,IF(CálculosEV!P11>0,1,"No"),"") ->  | AZ11: =IF('II_Plantear Ración'!$E12>0,IF(CálculosEV!Q11>0,1,"No"),"") ->  | BA11: =IF('II_Plantear Ración'!$E12>0,IF(CálculosEV!R11>0,1,"No"),"") ->  | BB11: =IF('II_Plantear Ración'!$E12>0,IF(CálculosEV!S11>0,1,"No"),"") ->  | BC11: =IF('II_Plantear Ración'!$E12>0,IF(CálculosEV!T11>0,1,"No"),"") ->  | BD11: =IF('II_Plantear Ración'!$E12>0,IF(CálculosEV!U11>0,1,"No"),"") ->  | BE11: =IF('II_Plantear Ración'!$E12>0,IF(CálculosEV!V11>0,1,"No"),"") ->  | BF11: =IF('II_Plantear Ración'!$E12>0,IF(CálculosEV!W11>0,1,"No"),"") ->  | BG11: =IF('II_Plantear Ración'!$E12>0,IF(CálculosEV!X11>0,1,"No"),"") ->  | BH11: =IF('II_Plantear Ración'!$E12>0,IF(CálculosEV!Y11>0,1,"No"),"") ->  | BI11: =IF('II_Plantear Ración'!$E12>0,IF(CálculosEV!Z11>0,1,"No"),"") ->  | BJ11: =IF('II_Plantear Ración'!$E12>0,IF(CálculosEV!AA11>0,1,"No"),"") ->  | BK11: =IF('II_Plantear Ración'!$E12>0,IF(CálculosEV!AB11>0,1,"No"),"") ->  | BL11: =IF('II_Plantear Ración'!$E12>0,IF(CálculosEV!AC11>0,1,"No"),"") ->  | BM11: =IF('II_Plantear Ración'!$E12>0,IF(CálculosEV!AD11>0,1,"No"),"") ->  | BN11: =IF('II_Plantear Ración'!$E12>0,IF(CálculosEV!AE11>0,1,"No"),"") ->  | BO11: =IF('II_Plantear Ración'!$E12>0,IF(CálculosEV!AF11>0,1,"No"),"") ->  | BP11: =IF('II_Plantear Ración'!$E12>0,IF(CálculosEV!AG11>0,1,"No"),"") ->  | BQ11: =IF('II_Plantear Ración'!$E12>0,IF(CálculosEV!AH11>0,1,"No"),"") ->  | BR11: =IF('II_Plantear Ración'!$E12>0,IF(CálculosEV!AI11>0,1,"No"),"") ->  | BS11: =IF('II_Plantear Ración'!$E12>0,IF(CálculosEV!AJ11>0,1,"No"),"") ->  | BT11: =IF('II_Plantear Ración'!$E12>0,IF(CálculosEV!AK11>0,1,"No"),"") ->  | BU11: =IF('II_Plantear Ración'!$E12>0,IF(CálculosEV!AL11>0,1,"No"),"") ->  | BV11: =IF('II_Plantear Ración'!$E12>0,IF(CálculosEV!AM11>0,1,"No"),"") ->  | BW11: 0 | BX11: 0 | BY11: 0 | BZ11: 0 | CA11: 0 | CB11: 0 | CC11: 0 | CD11: 0 | CE11: 0 | CF11: 0 | CG11: 0 | CH11: 0 | CI11: 0 | CJ11: 0 | CK11: 0 | CL11: 0 | CM11: 0 | CN11: 0 | CO11: 0 | CP11: 0 | CQ11: 0 | CR11: 0 | CS11: 0 | CT11: 0 | CU11: 0 | CV11: 0 | CW11: 0 | CX11: 0 | CY11: 0 | CZ11: 0 | DA11: 0 | DB11: 0 | DC11: 0 | DD11: 0 | DE11: 0
B12: =IF(OFFSET('Tabla Concentrados'!$A$1,C12,0,1,1)=0,"",OFFSET('Tabla Concentrados'!$A$1,C12,0,1,1)) -> Soja torta 44 | C12: 48 | D12: =OFFSET('Tabla Concentrados'!$A$1,$C12,$D$2,1,1) -> 87.2 | E12: =OFFSET('Tabla Concentrados'!$A$1,$C12,$E$2,1,1) -> 0 | F12: =OFFSET('Tabla Concentrados'!$A$1,$C12,$F$2,1,1) -> 1.165625863 | G12: =OFFSET('Tabla Concentrados'!$A$1,$C12,$G$2,1,1) -> 207.0695265 | H12: =OFFSET('Tabla Concentrados'!$A$1,$C12,$H$2,1,1) -> 219.1726116 | I12: =OFFSET('Tabla Concentrados'!$A$1,$C12,$I$2,1,1) -> 2 | J12: =OFFSET('Tabla Concentrados'!$A$1,$C12,$J$2,1,1) -> 1.87 | K12: =OFFSET('Tabla Concentrados'!$A$1,$C12,$K$2,1,1) -> 4.9 | L12: =OFFSET('Tabla Concentrados'!$A$1,$C12,$L$2,1,1) -> 2.7 | M12: =OFFSET('Tabla Concentrados'!$A$1,$C12,$M$2,1,1) -> 20 | N12: =OFFSET('Tabla Concentrados'!$A$1,$C12,$N$2,1,1) -> 1.95 | O12: =OFFSET('Tabla Concentrados'!$A$1,$C12,$O$2,1,1) -> 0 | P12: =OFFSET('Tabla Concentrados'!$A$1,$C12,$P$2,1,1) -> 0 | Q12: =OFFSET('Tabla Concentrados'!$A$1,$C12,$Q$2,1,1) -> 0.3 | R12: =OFFSET('Tabla Concentrados'!$A$1,$C12,$R$2,1,1) -> 17.1 | S12: =OFFSET('Tabla Concentrados'!$A$1,$C12,$S$2,1,1) -> 43.7 | T12: =OFFSET('Tabla Concentrados'!$A$1,$C12,$T$2,1,1) -> 54.6 | U12: =OFFSET('Tabla Concentrados'!$A$1,$C12,$U$2,1,1) -> 0 | V12: =OFFSET('Tabla Concentrados'!$A$1,$C12,$V$2,1,1) -> 0.2 | W12: =OFFSET('Tabla Concentrados'!$A$1,$C12,$W$2,1,1) -> 0 | X12: =OFFSET('Tabla Concentrados'!$A$1,$C12,$X$2,1,1) -> 0 | Y12: =OFFSET('Tabla Concentrados'!$A$1,$C12,$Y$2,1,1) -> 7 | Z12: =OFFSET('Tabla Concentrados'!$A$1,$C12,$Z$2,1,1) -> 16.5 | AA12: =OFFSET('Tabla Concentrados'!$A$1,$C12,$AA$2,1,1) -> 488 | AB12: =OFFSET('Tabla Concentrados'!$A$1,$C12,$AB$2,1,1) -> 153.419998 | AC12: =OFFSET('Tabla Concentrados'!$A$1,$C12,$AC$2,1,1) -> 0.849655 | AD12: =OFFSET('Tabla Concentrados'!$A$1,$C12,$AD$2,1,1) -> 779.133635 | AE12: =OFFSET('Tabla Concentrados'!$A$1,$C12,$AE$2,1,1) -> 22 | AF12: =OFFSET('Tabla Concentrados'!$A$1,$C12,$AF$2,1,1) -> 84 | AG12: =OFFSET('Tabla Concentrados'!$A$1,$C12,$AG$2,1,1) -> 163 | AH12: =OFFSET('Tabla Concentrados'!$A$1,$C12,$AH$2,1,1) -> 104 | AI12: =OFFSET('Tabla Concentrados'!$A$1,$C12,$AI$2,1,1) -> 8 | AJ12: =OFFSET('Tabla Concentrados'!$A$1,$C12,$AJ$2,1,1) -> 83 | AK12: =OFFSET('Tabla Concentrados'!$A$1,$C12,$AK$2,1,1) -> 2.3 | AL12: =OFFSET('Tabla Concentrados'!$A$1,$C12,$AL$2,1,1) -> 0.6819996035 | AM12: =OFFSET('Tabla Concentrados'!$A$1,$C12,$AM$2,1,1) -> 737.9075552 | AN12: =IF('II_Plantear Ración'!$E13>0,IF(CálculosEV!E12>=0,1,"No"),"") -> 1 | AO12: =IF('II_Plantear Ración'!$E13>0,IF(CálculosEV!F12>0,1,"No"),"") -> 1 | AP12: =IF('II_Plantear Ración'!$E13>0,IF(CálculosEV!G12>0,1,"No"),"") -> 1 | AQ12: =IF('II_Plantear Ración'!$E13>0,IF(CálculosEV!H12=0,"No",1),"") -> 1 | AR12: =IF('II_Plantear Ración'!$E13>0,IF(CálculosEV!I12>0,1,"No"),"") -> 1 | AS12: =IF('II_Plantear Ración'!$E13>0,IF(CálculosEV!J12>0,1,"No"),"") -> 1 | AT12: =IF('II_Plantear Ración'!$E13>0,IF(CálculosEV!K12>0,1,"No"),"") -> 1 | AU12: =IF('II_Plantear Ración'!$E13>0,IF(CálculosEV!L12>0,1,"No"),"") -> 1 | AV12: =IF('II_Plantear Ración'!$E13>0,IF(CálculosEV!M12>0,1,"No"),"") -> 1 | AW12: =IF('II_Plantear Ración'!$E13>0,IF(CálculosEV!N12>0,1,"No"),"") -> 1 | AX12: =IF('II_Plantear Ración'!$E13>0,IF(CálculosEV!O12>0,1,"No"),"") -> No | AY12: =IF('II_Plantear Ración'!$E13>0,IF(CálculosEV!P12>0,1,"No"),"") -> No | AZ12: =IF('II_Plantear Ración'!$E13>0,IF(CálculosEV!Q12>0,1,"No"),"") -> 1 | BA12: =IF('II_Plantear Ración'!$E13>0,IF(CálculosEV!R12>0,1,"No"),"") -> 1 | BB12: =IF('II_Plantear Ración'!$E13>0,IF(CálculosEV!S12>0,1,"No"),"") -> 1 | BC12: =IF('II_Plantear Ración'!$E13>0,IF(CálculosEV!T12>0,1,"No"),"") -> 1 | BD12: =IF('II_Plantear Ración'!$E13>0,IF(CálculosEV!U12>0,1,"No"),"") -> No | BE12: =IF('II_Plantear Ración'!$E13>0,IF(CálculosEV!V12>0,1,"No"),"") -> 1 | BF12: =IF('II_Plantear Ración'!$E13>0,IF(CálculosEV!W12>0,1,"No"),"") -> No | BG12: =IF('II_Plantear Ración'!$E13>0,IF(CálculosEV!X12>0,1,"No"),"") -> No | BH12: =IF('II_Plantear Ración'!$E13>0,IF(CálculosEV!Y12>0,1,"No"),"") -> 1 | BI12: =IF('II_Plantear Ración'!$E13>0,IF(CálculosEV!Z12>0,1,"No"),"") -> 1 | BJ12: =IF('II_Plantear Ración'!$E13>0,IF(CálculosEV!AA12>0,1,"No"),"") -> 1 | BK12: =IF('II_Plantear Ración'!$E13>0,IF(CálculosEV!AB12>0,1,"No"),"") -> 1 | BL12: =IF('II_Plantear Ración'!$E13>0,IF(CálculosEV!AC12>0,1,"No"),"") -> 1 | BM12: =IF('II_Plantear Ración'!$E13>0,IF(CálculosEV!AD12>0,1,"No"),"") -> 1 | BN12: =IF('II_Plantear Ración'!$E13>0,IF(CálculosEV!AE12>0,1,"No"),"") -> 1 | BO12: =IF('II_Plantear Ración'!$E13>0,IF(CálculosEV!AF12>0,1,"No"),"") -> 1 | BP12: =IF('II_Plantear Ración'!$E13>0,IF(CálculosEV!AG12>0,1,"No"),"") -> 1 | BQ12: =IF('II_Plantear Ración'!$E13>0,IF(CálculosEV!AH12>0,1,"No"),"") -> 1 | BR12: =IF('II_Plantear Ración'!$E13>0,IF(CálculosEV!AI12>0,1,"No"),"") -> 1 | BS12: =IF('II_Plantear Ración'!$E13>0,IF(CálculosEV!AJ12>0,1,"No"),"") -> 1 | BT12: =IF('II_Plantear Ración'!$E13>0,IF(CálculosEV!AK12>0,1,"No"),"") -> 1 | BU12: =IF('II_Plantear Ración'!$E13>0,IF(CálculosEV!AL12>0,1,"No"),"") -> 1 | BV12: =IF('II_Plantear Ración'!$E13>0,IF(CálculosEV!AM12>0,1,"No"),"") -> 1 | BW12: 1 | BX12: 1 | BY12: 1 | BZ12: 1 | CA12: 1 | CB12: 1 | CC12: 1 | CD12: 1 | CE12: 1 | CF12: 1 | CG12: 1 | CH12: 1 | CI12: 1 | CJ12: 1 | CK12: 1 | CL12: 1 | CM12: 1 | CN12: 1 | CO12: 1 | CP12: 1 | CQ12: 1 | CR12: 1 | CS12: 1 | CT12: 1 | CU12: 1 | CV12: 1 | CW12: 1 | CX12: 1 | CY12: 1 | CZ12: 1 | DA12: 1 | DB12: 1 | DC12: 1 | DD12: 1 | DE12: 1
B13: =IF(OFFSET('Tabla Concentrados'!$A$1,C13,0,1,1)=0,"",OFFSET('Tabla Concentrados'!$A$1,C13,0,1,1)) -> Mandioca | C13: 78 | D13: =OFFSET('Tabla Concentrados'!$A$1,$C13,$D$2,1,1) -> 85 | E13: =OFFSET('Tabla Concentrados'!$A$1,$C13,$E$2,1,1) -> 0 | F13: =OFFSET('Tabla Concentrados'!$A$1,$C13,$F$2,1,1) -> 1.142097463 | G13: =OFFSET('Tabla Concentrados'!$A$1,$C13,$G$2,1,1) -> 75.49002249 | H13: =OFFSET('Tabla Concentrados'!$A$1,$C13,$H$2,1,1) -> -97.45343744 | I13: =OFFSET('Tabla Concentrados'!$A$1,$C13,$I$2,1,1) -> 2 | J13: =OFFSET('Tabla Concentrados'!$A$1,$C13,$J$2,1,1) -> 1.375 | K13: =OFFSET('Tabla Concentrados'!$A$1,$C13,$K$2,1,1) -> 0.68 | L13: =OFFSET('Tabla Concentrados'!$A$1,$C13,$L$2,1,1) -> 0.9 | M13: =OFFSET('Tabla Concentrados'!$A$1,$C13,$M$2,1,1) -> 7.5 | N13: =OFFSET('Tabla Concentrados'!$A$1,$C13,$N$2,1,1) -> 0.35 | O13: =OFFSET('Tabla Concentrados'!$A$1,$C13,$O$2,1,1) -> 0 | P13: =OFFSET('Tabla Concentrados'!$A$1,$C13,$P$2,1,1) -> 0 | Q13: =OFFSET('Tabla Concentrados'!$A$1,$C13,$Q$2,1,1) -> 0 | R13: =OFFSET('Tabla Concentrados'!$A$1,$C13,$R$2,1,1) -> 2 | S13: =OFFSET('Tabla Concentrados'!$A$1,$C13,$S$2,1,1) -> 5 | T13: =OFFSET('Tabla Concentrados'!$A$1,$C13,$T$2,1,1) -> 30 | U13: =OFFSET('Tabla Concentrados'!$A$1,$C13,$U$2,1,1) -> 0 | V13: =OFFSET('Tabla Concentrados'!$A$1,$C13,$V$2,1,1) -> 0 | W13: =OFFSET('Tabla Concentrados'!$A$1,$C13,$W$2,1,1) -> 0 | X13: =OFFSET('Tabla Concentrados'!$A$1,$C13,$X$2,1,1) -> 0 | Y13: =OFFSET('Tabla Concentrados'!$A$1,$C13,$Y$2,1,1) -> 0 | Z13: =OFFSET('Tabla Concentrados'!$A$1,$C13,$Z$2,1,1) -> 6.56 | AA13: =OFFSET('Tabla Concentrados'!$A$1,$C13,$AA$2,1,1) -> 31 | AB13: =OFFSET('Tabla Concentrados'!$A$1,$C13,$AB$2,1,1) -> 10.10542253 | AC13: =OFFSET('Tabla Concentrados'!$A$1,$C13,$AC$2,1,1) -> 0.91762 | AD13: =OFFSET('Tabla Concentrados'!$A$1,$C13,$AD$2,1,1) -> 861.64518 | AE13: =OFFSET('Tabla Concentrados'!$A$1,$C13,$AE$2,1,1) -> 8.2 | AF13: =OFFSET('Tabla Concentrados'!$A$1,$C13,$AF$2,1,1) -> 54 | AG13: =OFFSET('Tabla Concentrados'!$A$1,$C13,$AG$2,1,1) -> 118 | AH13: =OFFSET('Tabla Concentrados'!$A$1,$C13,$AH$2,1,1) -> 59 | AI13: =OFFSET('Tabla Concentrados'!$A$1,$C13,$AI$2,1,1) -> 14.01 | AJ13: =OFFSET('Tabla Concentrados'!$A$1,$C13,$AJ$2,1,1) -> 61 | AK13: =OFFSET('Tabla Concentrados'!$A$1,$C13,$AK$2,1,1) -> 0 | AL13: =OFFSET('Tabla Concentrados'!$A$1,$C13,$AL$2,1,1) -> 0.638999494 | AM13: =OFFSET('Tabla Concentrados'!$A$1,$C13,$AM$2,1,1) -> 0 | AN13: =IF('II_Plantear Ración'!$E14>0,IF(CálculosEV!E13>=0,1,"No"),"") ->  | AO13: =IF('II_Plantear Ración'!$E14>0,IF(CálculosEV!F13>0,1,"No"),"") ->  | AP13: =IF('II_Plantear Ración'!$E14>0,IF(CálculosEV!G13>0,1,"No"),"") ->  | AQ13: =IF('II_Plantear Ración'!$E14>0,IF(CálculosEV!H13=0,"No",1),"") ->  | AR13: =IF('II_Plantear Ración'!$E14>0,IF(CálculosEV!I13>0,1,"No"),"") ->  | AS13: =IF('II_Plantear Ración'!$E14>0,IF(CálculosEV!J13>0,1,"No"),"") ->  | AT13: =IF('II_Plantear Ración'!$E14>0,IF(CálculosEV!K13>0,1,"No"),"") ->  | AU13: =IF('II_Plantear Ración'!$E14>0,IF(CálculosEV!L13>0,1,"No"),"") ->  | AV13: =IF('II_Plantear Ración'!$E14>0,IF(CálculosEV!M13>0,1,"No"),"") ->  | AW13: =IF('II_Plantear Ración'!$E14>0,IF(CálculosEV!N13>0,1,"No"),"") ->  | AX13: =IF('II_Plantear Ración'!$E14>0,IF(CálculosEV!O13>0,1,"No"),"") ->  | AY13: =IF('II_Plantear Ración'!$E14>0,IF(CálculosEV!P13>0,1,"No"),"") ->  | AZ13: =IF('II_Plantear Ración'!$E14>0,IF(CálculosEV!Q13>0,1,"No"),"") ->  | BA13: =IF('II_Plantear Ración'!$E14>0,IF(CálculosEV!R13>0,1,"No"),"") ->  | BB13: =IF('II_Plantear Ración'!$E14>0,IF(CálculosEV!S13>0,1,"No"),"") ->  | BC13: =IF('II_Plantear Ración'!$E14>0,IF(CálculosEV!T13>0,1,"No"),"") ->  | BD13: =IF('II_Plantear Ración'!$E14>0,IF(CálculosEV!U13>0,1,"No"),"") ->  | BE13: =IF('II_Plantear Ración'!$E14>0,IF(CálculosEV!V13>0,1,"No"),"") ->  | BF13: =IF('II_Plantear Ración'!$E14>0,IF(CálculosEV!W13>0,1,"No"),"") ->  | BG13: =IF('II_Plantear Ración'!$E14>0,IF(CálculosEV!X13>0,1,"No"),"") ->  | BH13: =IF('II_Plantear Ración'!$E14>0,IF(CálculosEV!Y13>0,1,"No"),"") ->  | BI13: =IF('II_Plantear Ración'!$E14>0,IF(CálculosEV!Z13>0,1,"No"),"") ->  | BJ13: =IF('II_Plantear Ración'!$E14>0,IF(CálculosEV!AA13>0,1,"No"),"") ->  | BK13: =IF('II_Plantear Ración'!$E14>0,IF(CálculosEV!AB13>0,1,"No"),"") ->  | BL13: =IF('II_Plantear Ración'!$E14>0,IF(CálculosEV!AC13>0,1,"No"),"") ->  | BM13: =IF('II_Plantear Ración'!$E14>0,IF(CálculosEV!AD13>0,1,"No"),"") ->  | BN13: =IF('II_Plantear Ración'!$E14>0,IF(CálculosEV!AE13>0,1,"No"),"") ->  | BO13: =IF('II_Plantear Ración'!$E14>0,IF(CálculosEV!AF13>0,1,"No"),"") ->  | BP13: =IF('II_Plantear Ración'!$E14>0,IF(CálculosEV!AG13>0,1,"No"),"") ->  | BQ13: =IF('II_Plantear Ración'!$E14>0,IF(CálculosEV!AH13>0,1,"No"),"") ->  | BR13: =IF('II_Plantear Ración'!$E14>0,IF(CálculosEV!AI13>0,1,"No"),"") ->  | BS13: =IF('II_Plantear Ración'!$E14>0,IF(CálculosEV!AJ13>0,1,"No"),"") ->  | BT13: =IF('II_Plantear Ración'!$E14>0,IF(CálculosEV!AK13>0,1,"No"),"") ->  | BU13: =IF('II_Plantear Ración'!$E14>0,IF(CálculosEV!AL13>0,1,"No"),"") ->  | BV13: =IF('II_Plantear Ración'!$E14>0,IF(CálculosEV!AM13>0,1,"No"),"") ->  | BW13: 0 | BX13: 0 | BY13: 0 | BZ13: 0 | CA13: 0 | CB13: 0 | CC13: 0 | CD13: 0 | CE13: 0 | CF13: 0 | CG13: 0 | CH13: 0 | CI13: 0 | CJ13: 0 | CK13: 0 | CL13: 0 | CM13: 0 | CN13: 0 | CO13: 0 | CP13: 0 | CQ13: 0 | CR13: 0 | CS13: 0 | CT13: 0 | CU13: 0 | CV13: 0 | CW13: 0 | CX13: 0 | CY13: 0 | CZ13: 0 | DA13: 0 | DB13: 0 | DC13: 0 | DD13: 0 | DE13: 0
B14: =IF(OFFSET('Tabla Concentrados'!$A$1,C14,0,1,1)=0,"",OFFSET('Tabla Concentrados'!$A$1,C14,0,1,1)) -> Cebada bagazo cervecería seco | C14: 24 | D14: =OFFSET('Tabla Concentrados'!$A$1,$C14,$D$2,1,1) -> 91.9 | E14: =OFFSET('Tabla Concentrados'!$A$1,$C14,$E$2,1,1) -> 0 | F14: =OFFSET('Tabla Concentrados'!$A$1,$C14,$F$2,1,1) -> 0.871193565 | G14: =OFFSET('Tabla Concentrados'!$A$1,$C14,$G$2,1,1) -> 151.6383987 | H14: =OFFSET('Tabla Concentrados'!$A$1,$C14,$H$2,1,1) -> 35.09442835 | I14: =OFFSET('Tabla Concentrados'!$A$1,$C14,$I$2,1,1) -> 2 | J14: =OFFSET('Tabla Concentrados'!$A$1,$C14,$J$2,1,1) -> 1.265 | K14: =OFFSET('Tabla Concentrados'!$A$1,$C14,$K$2,1,1) -> 4.914 | L14: =OFFSET('Tabla Concentrados'!$A$1,$C14,$L$2,1,1) -> 0 | M14: =OFFSET('Tabla Concentrados'!$A$1,$C14,$M$2,1,1) -> 0 | N14: =OFFSET('Tabla Concentrados'!$A$1,$C14,$N$2,1,1) -> 0 | O14: =OFFSET('Tabla Concentrados'!$A$1,$C14,$O$2,1,1) -> 0 | P14: =OFFSET('Tabla Concentrados'!$A$1,$C14,$P$2,1,1) -> 0 | Q14: =OFFSET('Tabla Concentrados'!$A$1,$C14,$Q$2,1,1) -> 0.08 | R14: =OFFSET('Tabla Concentrados'!$A$1,$C14,$R$2,1,1) -> 22.2 | S14: =OFFSET('Tabla Concentrados'!$A$1,$C14,$S$2,1,1) -> 38.5 | T14: =OFFSET('Tabla Concentrados'!$A$1,$C14,$T$2,1,1) -> 85 | U14: =OFFSET('Tabla Concentrados'!$A$1,$C14,$U$2,1,1) -> 0 | V14: =OFFSET('Tabla Concentrados'!$A$1,$C14,$V$2,1,1) -> 0.06 | W14: =OFFSET('Tabla Concentrados'!$A$1,$C14,$W$2,1,1) -> 0 | X14: =OFFSET('Tabla Concentrados'!$A$1,$C14,$X$2,1,1) -> 0 | Y14: =OFFSET('Tabla Concentrados'!$A$1,$C14,$Y$2,1,1) -> 29 | Z14: =OFFSET('Tabla Concentrados'!$A$1,$C14,$Z$2,1,1) -> 35.955 | AA14: =OFFSET('Tabla Concentrados'!$A$1,$C14,$AA$2,1,1) -> 262.4 | AB14: =OFFSET('Tabla Concentrados'!$A$1,$C14,$AB$2,1,1) -> 107.6156328 | AC14: =OFFSET('Tabla Concentrados'!$A$1,$C14,$AC$2,1,1) -> 0.62732 | AD14: =OFFSET('Tabla Concentrados'!$A$1,$C14,$AD$2,1,1) -> 601.348952 | AE14: =OFFSET('Tabla Concentrados'!$A$1,$C14,$AE$2,1,1) -> 79.9 | AF14: =OFFSET('Tabla Concentrados'!$A$1,$C14,$AF$2,1,1) -> 161.6 | AG14: =OFFSET('Tabla Concentrados'!$A$1,$C14,$AG$2,1,1) -> 643.3 | AH14: =OFFSET('Tabla Concentrados'!$A$1,$C14,$AH$2,1,1) -> 236.4 | AI14: =OFFSET('Tabla Concentrados'!$A$1,$C14,$AI$2,1,1) -> 78.9 | AJ14: =OFFSET('Tabla Concentrados'!$A$1,$C14,$AJ$2,1,1) -> 41.4 | AK14: =OFFSET('Tabla Concentrados'!$A$1,$C14,$AK$2,1,1) -> 0.5 | AL14: =OFFSET('Tabla Concentrados'!$A$1,$C14,$AL$2,1,1) -> 0.5371850665 | AM14: =OFFSET('Tabla Concentrados'!$A$1,$C14,$AM$2,1,1) -> 529.6572154 | AN14: =IF('II_Plantear Ración'!$E15>0,IF(CálculosEV!E14>=0,1,"No"),"") ->  | AO14: =IF('II_Plantear Ración'!$E15>0,IF(CálculosEV!F14>0,1,"No"),"") ->  | AP14: =IF('II_Plantear Ración'!$E15>0,IF(CálculosEV!G14>0,1,"No"),"") ->  | AQ14: =IF('II_Plantear Ración'!$E15>0,IF(CálculosEV!H14=0,"No",1),"") ->  | AR14: =IF('II_Plantear Ración'!$E15>0,IF(CálculosEV!I14>0,1,"No"),"") ->  | AS14: =IF('II_Plantear Ración'!$E15>0,IF(CálculosEV!J14>0,1,"No"),"") ->  | AT14: =IF('II_Plantear Ración'!$E15>0,IF(CálculosEV!K14>0,1,"No"),"") ->  | AU14: =IF('II_Plantear Ración'!$E15>0,IF(CálculosEV!L14>0,1,"No"),"") ->  | AV14: =IF('II_Plantear Ración'!$E15>0,IF(CálculosEV!M14>0,1,"No"),"") ->  | AW14: =IF('II_Plantear Ración'!$E15>0,IF(CálculosEV!N14>0,1,"No"),"") ->  | AX14: =IF('II_Plantear Ración'!$E15>0,IF(CálculosEV!O14>0,1,"No"),"") ->  | AY14: =IF('II_Plantear Ración'!$E15>0,IF(CálculosEV!P14>0,1,"No"),"") ->  | AZ14: =IF('II_Plantear Ración'!$E15>0,IF(CálculosEV!Q14>0,1,"No"),"") ->  | BA14: =IF('II_Plantear Ración'!$E15>0,IF(CálculosEV!R14>0,1,"No"),"") ->  | BB14: =IF('II_Plantear Ración'!$E15>0,IF(CálculosEV!S14>0,1,"No"),"") ->  | BC14: =IF('II_Plantear Ración'!$E15>0,IF(CálculosEV!T14>0,1,"No"),"") ->  | BD14: =IF('II_Plantear Ración'!$E15>0,IF(CálculosEV!U14>0,1,"No"),"") ->  | BE14: =IF('II_Plantear Ración'!$E15>0,IF(CálculosEV!V14>0,1,"No"),"") ->  | BF14: =IF('II_Plantear Ración'!$E15>0,IF(CálculosEV!W14>0,1,"No"),"") ->  | BG14: =IF('II_Plantear Ración'!$E15>0,IF(CálculosEV!X14>0,1,"No"),"") ->  | BH14: =IF('II_Plantear Ración'!$E15>0,IF(CálculosEV!Y14>0,1,"No"),"") ->  | BI14: =IF('II_Plantear Ración'!$E15>0,IF(CálculosEV!Z14>0,1,"No"),"") ->  | BJ14: =IF('II_Plantear Ración'!$E15>0,IF(CálculosEV!AA14>0,1,"No"),"") ->  | BK14: =IF('II_Plantear Ración'!$E15>0,IF(CálculosEV!AB14>0,1,"No"),"") ->  | BL14: =IF('II_Plantear Ración'!$E15>0,IF(CálculosEV!AC14>0,1,"No"),"") ->  | BM14: =IF('II_Plantear Ración'!$E15>0,IF(CálculosEV!AD14>0,1,"No"),"") ->  | BN14: =IF('II_Plantear Ración'!$E15>0,IF(CálculosEV!AE14>0,1,"No"),"") ->  | BO14: =IF('II_Plantear Ración'!$E15>0,IF(CálculosEV!AF14>0,1,"No"),"") ->  | BP14: =IF('II_Plantear Ración'!$E15>0,IF(CálculosEV!AG14>0,1,"No"),"") ->  | BQ14: =IF('II_Plantear Ración'!$E15>0,IF(CálculosEV!AH14>0,1,"No"),"") ->  | BR14: =IF('II_Plantear Ración'!$E15>0,IF(CálculosEV!AI14>0,1,"No"),"") ->  | BS14: =IF('II_Plantear Ración'!$E15>0,IF(CálculosEV!AJ14>0,1,"No"),"") ->  | BT14: =IF('II_Plantear Ración'!$E15>0,IF(CálculosEV!AK14>0,1,"No"),"") ->  | BU14: =IF('II_Plantear Ración'!$E15>0,IF(CálculosEV!AL14>0,1,"No"),"") ->  | BV14: =IF('II_Plantear Ración'!$E15>0,IF(CálculosEV!AM14>0,1,"No"),"") ->  | BW14: 0 | BX14: 0 | BY14: 0 | BZ14: 0 | CA14: 0 | CB14: 0 | CC14: 0 | CD14: 0 | CE14: 0 | CF14: 0 | CG14: 0 | CH14: 0 | CI14: 0 | CJ14: 0 | CK14: 0 | CL14: 0 | CM14: 0 | CN14: 0 | CO14: 0 | CP14: 0 | CQ14: 0 | CR14: 0 | CS14: 0 | CT14: 0 | CU14: 0 | CV14: 0 | CW14: 0 | CX14: 0 | CY14: 0 | CZ14: 0 | DA14: 0 | DB14: 0 | DC14: 0 | DD14: 0 | DE14: 0
B15: =IF(OFFSET('Tabla Concentrados'!$A$1,C15,0,1,1)=0,"",OFFSET('Tabla Concentrados'!$A$1,C15,0,1,1)) -> Algodón, grano | C15: 34 | D15: =OFFSET('Tabla Concentrados'!$A$1,$C15,$D$2,1,1) -> 92 | E15: =OFFSET('Tabla Concentrados'!$A$1,$C15,$E$2,1,1) -> 0 | F15: =OFFSET('Tabla Concentrados'!$A$1,$C15,$F$2,1,1) -> 1.105745464 | G15: =OFFSET('Tabla Concentrados'!$A$1,$C15,$G$2,1,1) -> 91.65479282 | H15: =OFFSET('Tabla Concentrados'!$A$1,$C15,$H$2,1,1) -> 70.58383788 | I15: =OFFSET('Tabla Concentrados'!$A$1,$C15,$I$2,1,1) -> 2 | J15: =OFFSET('Tabla Concentrados'!$A$1,$C15,$J$2,1,1) -> 1.155 | K15: =OFFSET('Tabla Concentrados'!$A$1,$C15,$K$2,1,1) -> 4.736 | L15: =OFFSET('Tabla Concentrados'!$A$1,$C15,$L$2,1,1) -> 0 | M15: =OFFSET('Tabla Concentrados'!$A$1,$C15,$M$2,1,1) -> 0 | N15: =OFFSET('Tabla Concentrados'!$A$1,$C15,$N$2,1,1) -> 0 | O15: =OFFSET('Tabla Concentrados'!$A$1,$C15,$O$2,1,1) -> 0 | P15: =OFFSET('Tabla Concentrados'!$A$1,$C15,$P$2,1,1) -> 0 | Q15: =OFFSET('Tabla Concentrados'!$A$1,$C15,$Q$2,1,1) -> 0 | R15: =OFFSET('Tabla Concentrados'!$A$1,$C15,$R$2,1,1) -> 0 | S15: =OFFSET('Tabla Concentrados'!$A$1,$C15,$S$2,1,1) -> 0 | T15: =OFFSET('Tabla Concentrados'!$A$1,$C15,$T$2,1,1) -> 0 | U15: =OFFSET('Tabla Concentrados'!$A$1,$C15,$U$2,1,1) -> 0 | V15: =OFFSET('Tabla Concentrados'!$A$1,$C15,$V$2,1,1) -> 0 | W15: =OFFSET('Tabla Concentrados'!$A$1,$C15,$W$2,1,1) -> 0 | X15: =OFFSET('Tabla Concentrados'!$A$1,$C15,$X$2,1,1) -> 0 | Y15: =OFFSET('Tabla Concentrados'!$A$1,$C15,$Y$2,1,1) -> 0 | Z15: =OFFSET('Tabla Concentrados'!$A$1,$C15,$Z$2,1,1) -> 188.1 | AA15: =OFFSET('Tabla Concentrados'!$A$1,$C15,$AA$2,1,1) -> 220 | AB15: =OFFSET('Tabla Concentrados'!$A$1,$C15,$AB$2,1,1) -> 48.76444907 | AC15: =OFFSET('Tabla Concentrados'!$A$1,$C15,$AC$2,1,1) -> 0.64652 | AD15: =OFFSET('Tabla Concentrados'!$A$1,$C15,$AD$2,1,1) -> 618.71964 | AE15: =OFFSET('Tabla Concentrados'!$A$1,$C15,$AE$2,1,1) -> 198 | AF15: =OFFSET('Tabla Concentrados'!$A$1,$C15,$AF$2,1,1) -> 276 | AG15: =OFFSET('Tabla Concentrados'!$A$1,$C15,$AG$2,1,1) -> 456 | AH15: =OFFSET('Tabla Concentrados'!$A$1,$C15,$AH$2,1,1) -> 354 | AI15: =OFFSET('Tabla Concentrados'!$A$1,$C15,$AI$2,1,1) -> 105 | AJ15: =OFFSET('Tabla Concentrados'!$A$1,$C15,$AJ$2,1,1) -> 43 | AK15: =OFFSET('Tabla Concentrados'!$A$1,$C15,$AK$2,1,1) -> 0 | AL15: =OFFSET('Tabla Concentrados'!$A$1,$C15,$AL$2,1,1) -> 0.7394108541 | AM15: =OFFSET('Tabla Concentrados'!$A$1,$C15,$AM$2,1,1) -> 581.8575174 | AN15: =IF('II_Plantear Ración'!$E16>0,IF(CálculosEV!E15>=0,1,"No"),"") ->  | AO15: =IF('II_Plantear Ración'!$E16>0,IF(CálculosEV!F15>0,1,"No"),"") ->  | AP15: =IF('II_Plantear Ración'!$E16>0,IF(CálculosEV!G15>0,1,"No"),"") ->  | AQ15: =IF('II_Plantear Ración'!$E16>0,IF(CálculosEV!H15=0,"No",1),"") ->  | AR15: =IF('II_Plantear Ración'!$E16>0,IF(CálculosEV!I15>0,1,"No"),"") ->  | AS15: =IF('II_Plantear Ración'!$E16>0,IF(CálculosEV!J15>0,1,"No"),"") ->  | AT15: =IF('II_Plantear Ración'!$E16>0,IF(CálculosEV!K15>0,1,"No"),"") ->  | AU15: =IF('II_Plantear Ración'!$E16>0,IF(CálculosEV!L15>0,1,"No"),"") ->  | AV15: =IF('II_Plantear Ración'!$E16>0,IF(CálculosEV!M15>0,1,"No"),"") ->  | AW15: =IF('II_Plantear Ración'!$E16>0,IF(CálculosEV!N15>0,1,"No"),"") ->  | AX15: =IF('II_Plantear Ración'!$E16>0,IF(CálculosEV!O15>0,1,"No"),"") ->  | AY15: =IF('II_Plantear Ración'!$E16>0,IF(CálculosEV!P15>0,1,"No"),"") ->  | AZ15: =IF('II_Plantear Ración'!$E16>0,IF(CálculosEV!Q15>0,1,"No"),"") ->  | BA15: =IF('II_Plantear Ración'!$E16>0,IF(CálculosEV!R15>0,1,"No"),"") ->  | BB15: =IF('II_Plantear Ración'!$E16>0,IF(CálculosEV!S15>0,1,"No"),"") ->  | BC15: =IF('II_Plantear Ración'!$E16>0,IF(CálculosEV!T15>0,1,"No"),"") ->  | BD15: =IF('II_Plantear Ración'!$E16>0,IF(CálculosEV!U15>0,1,"No"),"") ->  | BE15: =IF('II_Plantear Ración'!$E16>0,IF(CálculosEV!V15>0,1,"No"),"") ->  | BF15: =IF('II_Plantear Ración'!$E16>0,IF(CálculosEV!W15>0,1,"No"),"") ->  | BG15: =IF('II_Plantear Ración'!$E16>0,IF(CálculosEV!X15>0,1,"No"),"") ->  | BH15: =IF('II_Plantear Ración'!$E16>0,IF(CálculosEV!Y15>0,1,"No"),"") ->  | BI15: =IF('II_Plantear Ración'!$E16>0,IF(CálculosEV!Z15>0,1,"No"),"") ->  | BJ15: =IF('II_Plantear Ración'!$E16>0,IF(CálculosEV!AA15>0,1,"No"),"") ->  | BK15: =IF('II_Plantear Ración'!$E16>0,IF(CálculosEV!AB15>0,1,"No"),"") ->  | BL15: =IF('II_Plantear Ración'!$E16>0,IF(CálculosEV!AC15>0,1,"No"),"") ->  | BM15: =IF('II_Plantear Ración'!$E16>0,IF(CálculosEV!AD15>0,1,"No"),"") ->  | BN15: =IF('II_Plantear Ración'!$E16>0,IF(CálculosEV!AE15>0,1,"No"),"") ->  | BO15: =IF('II_Plantear Ración'!$E16>0,IF(CálculosEV!AF15>0,1,"No"),"") ->  | BP15: =IF('II_Plantear Ración'!$E16>0,IF(CálculosEV!AG15>0,1,"No"),"") ->  | BQ15: =IF('II_Plantear Ración'!$E16>0,IF(CálculosEV!AH15>0,1,"No"),"") ->  | BR15: =IF('II_Plantear Ración'!$E16>0,IF(CálculosEV!AI15>0,1,"No"),"") ->  | BS15: =IF('II_Plantear Ración'!$E16>0,IF(CálculosEV!AJ15>0,1,"No"),"") ->  | BT15: =IF('II_Plantear Ración'!$E16>0,IF(CálculosEV!AK15>0,1,"No"),"") ->  | BU15: =IF('II_Plantear Ración'!$E16>0,IF(CálculosEV!AL15>0,1,"No"),"") ->  | BV15: =IF('II_Plantear Ración'!$E16>0,IF(CálculosEV!AM15>0,1,"No"),"") ->  | BW15: 0 | BX15: 0 | BY15: 0 | BZ15: 0 | CA15: 0 | CB15: 0 | CC15: 0 | CD15: 0 | CE15: 0 | CF15: 0 | CG15: 0 | CH15: 0 | CI15: 0 | CJ15: 0 | CK15: 0 | CL15: 0 | CM15: 0 | CN15: 0 | CO15: 0 | CP15: 0 | CQ15: 0 | CR15: 0 | CS15: 0 | CT15: 0 | CU15: 0 | CV15: 0 | CW15: 0 | CX15: 0 | CY15: 0 | CZ15: 0 | DA15: 0 | DB15: 0 | DC15: 0 | DD15: 0 | DE15: 0
B16: =IF(OFFSET('Tabla Concentrados'!$A$1,C16,0,1,1)=0,"",OFFSET('Tabla Concentrados'!$A$1,C16,0,1,1)) -> Levadura cervecería | C16: 75 | D16: =OFFSET('Tabla Concentrados'!$A$1,$C16,$D$2,1,1) -> 93.3 | E16: =OFFSET('Tabla Concentrados'!$A$1,$C16,$E$2,1,1) -> 0 | F16: =OFFSET('Tabla Concentrados'!$A$1,$C16,$F$2,1,1) -> 1.18 | G16: =OFFSET('Tabla Concentrados'!$A$1,$C16,$G$2,1,1) -> 143 | H16: =OFFSET('Tabla Concentrados'!$A$1,$C16,$H$2,1,1) -> 278 | I16: =OFFSET('Tabla Concentrados'!$A$1,$C16,$I$2,1,1) -> 2 | J16: =OFFSET('Tabla Concentrados'!$A$1,$C16,$J$2,1,1) -> 1.65 | K16: =OFFSET('Tabla Concentrados'!$A$1,$C16,$K$2,1,1) -> 9.18 | L16: =OFFSET('Tabla Concentrados'!$A$1,$C16,$L$2,1,1) -> 2.4 | M16: =OFFSET('Tabla Concentrados'!$A$1,$C16,$M$2,1,1) -> 0 | N16: =OFFSET('Tabla Concentrados'!$A$1,$C16,$N$2,1,1) -> 0 | O16: =OFFSET('Tabla Concentrados'!$A$1,$C16,$O$2,1,1) -> 0 | P16: =OFFSET('Tabla Concentrados'!$A$1,$C16,$P$2,1,1) -> 0 | Q16: =OFFSET('Tabla Concentrados'!$A$1,$C16,$Q$2,1,1) -> 0 | R16: =OFFSET('Tabla Concentrados'!$A$1,$C16,$R$2,1,1) -> 0 | S16: =OFFSET('Tabla Concentrados'!$A$1,$C16,$S$2,1,1) -> 0 | T16: =OFFSET('Tabla Concentrados'!$A$1,$C16,$T$2,1,1) -> 0 | U16: =OFFSET('Tabla Concentrados'!$A$1,$C16,$U$2,1,1) -> 0 | V16: =OFFSET('Tabla Concentrados'!$A$1,$C16,$V$2,1,1) -> 0 | W16: =OFFSET('Tabla Concentrados'!$A$1,$C16,$W$2,1,1) -> 0 | X16: =OFFSET('Tabla Concentrados'!$A$1,$C16,$X$2,1,1) -> 0 | Y16: =OFFSET('Tabla Concentrados'!$A$1,$C16,$Y$2,1,1) -> 0 | Z16: =OFFSET('Tabla Concentrados'!$A$1,$C16,$Z$2,1,1) -> 32 | AA16: =OFFSET('Tabla Concentrados'!$A$1,$C16,$AA$2,1,1) -> 476 | AB16: =OFFSET('Tabla Concentrados'!$A$1,$C16,$AB$2,1,1) -> 87 | AC16: =OFFSET('Tabla Concentrados'!$A$1,$C16,$AC$2,1,1) -> 0.84 | AD16: =OFFSET('Tabla Concentrados'!$A$1,$C16,$AD$2,1,1) -> 756 | AE16: =OFFSET('Tabla Concentrados'!$A$1,$C16,$AE$2,1,1) -> 40 | AF16: =OFFSET('Tabla Concentrados'!$A$1,$C16,$AF$2,1,1) -> 21 | AG16: =OFFSET('Tabla Concentrados'!$A$1,$C16,$AG$2,1,1) -> 88 | AH16: =OFFSET('Tabla Concentrados'!$A$1,$C16,$AH$2,1,1) -> 25 | AI16: =OFFSET('Tabla Concentrados'!$A$1,$C16,$AI$2,1,1) -> 7 | AJ16: =OFFSET('Tabla Concentrados'!$A$1,$C16,$AJ$2,1,1) -> 32 | AK16: =OFFSET('Tabla Concentrados'!$A$1,$C16,$AK$2,1,1) -> 0 | AL16: =OFFSET('Tabla Concentrados'!$A$1,$C16,$AL$2,1,1) -> 0.815157707 | AM16: =OFFSET('Tabla Concentrados'!$A$1,$C16,$AM$2,1,1) -> 0 | AN16: =IF('II_Plantear Ración'!$E17>0,IF(CálculosEV!E16>=0,1,"No"),"") ->  | AO16: =IF('II_Plantear Ración'!$E17>0,IF(CálculosEV!F16>0,1,"No"),"") ->  | AP16: =IF('II_Plantear Ración'!$E17>0,IF(CálculosEV!G16>0,1,"No"),"") ->  | AQ16: =IF('II_Plantear Ración'!$E17>0,IF(CálculosEV!H16=0,"No",1),"") ->  | AR16: =IF('II_Plantear Ración'!$E17>0,IF(CálculosEV!I16>0,1,"No"),"") ->  | AS16: =IF('II_Plantear Ración'!$E17>0,IF(CálculosEV!J16>0,1,"No"),"") ->  | AT16: =IF('II_Plantear Ración'!$E17>0,IF(CálculosEV!K16>0,1,"No"),"") ->  | AU16: =IF('II_Plantear Ración'!$E17>0,IF(CálculosEV!L16>0,1,"No"),"") ->  | AV16: =IF('II_Plantear Ración'!$E17>0,IF(CálculosEV!M16>0,1,"No"),"") ->  | AW16: =IF('II_Plantear Ración'!$E17>0,IF(CálculosEV!N16>0,1,"No"),"") ->  | AX16: =IF('II_Plantear Ración'!$E17>0,IF(CálculosEV!O16>0,1,"No"),"") ->  | AY16: =IF('II_Plantear Ración'!$E17>0,IF(CálculosEV!P16>0,1,"No"),"") ->  | AZ16: =IF('II_Plantear Ración'!$E17>0,IF(CálculosEV!Q16>0,1,"No"),"") ->  | BA16: =IF('II_Plantear Ración'!$E17>0,IF(CálculosEV!R16>0,1,"No"),"") ->  | BB16: =IF('II_Plantear Ración'!$E17>0,IF(CálculosEV!S16>0,1,"No"),"") ->  | BC16: =IF('II_Plantear Ración'!$E17>0,IF(CálculosEV!T16>0,1,"No"),"") ->  | BD16: =IF('II_Plantear Ración'!$E17>0,IF(CálculosEV!U16>0,1,"No"),"") ->  | BE16: =IF('II_Plantear Ración'!$E17>0,IF(CálculosEV!V16>0,1,"No"),"") ->  | BF16: =IF('II_Plantear Ración'!$E17>0,IF(CálculosEV!W16>0,1,"No"),"") ->  | BG16: =IF('II_Plantear Ración'!$E17>0,IF(CálculosEV!X16>0,1,"No"),"") ->  | BH16: =IF('II_Plantear Ración'!$E17>0,IF(CálculosEV!Y16>0,1,"No"),"") ->  | BI16: =IF('II_Plantear Ración'!$E17>0,IF(CálculosEV!Z16>0,1,"No"),"") ->  | BJ16: =IF('II_Plantear Ración'!$E17>0,IF(CálculosEV!AA16>0,1,"No"),"") ->  | BK16: =IF('II_Plantear Ración'!$E17>0,IF(CálculosEV!AB16>0,1,"No"),"") ->  | BL16: =IF('II_Plantear Ración'!$E17>0,IF(CálculosEV!AC16>0,1,"No"),"") ->  | BM16: =IF('II_Plantear Ración'!$E17>0,IF(CálculosEV!AD16>0,1,"No"),"") ->  | BN16: =IF('II_Plantear Ración'!$E17>0,IF(CálculosEV!AE16>0,1,"No"),"") ->  | BO16: =IF('II_Plantear Ración'!$E17>0,IF(CálculosEV!AF16>0,1,"No"),"") ->  | BP16: =IF('II_Plantear Ración'!$E17>0,IF(CálculosEV!AG16>0,1,"No"),"") ->  | BQ16: =IF('II_Plantear Ración'!$E17>0,IF(CálculosEV!AH16>0,1,"No"),"") ->  | BR16: =IF('II_Plantear Ración'!$E17>0,IF(CálculosEV!AI16>0,1,"No"),"") ->  | BS16: =IF('II_Plantear Ración'!$E17>0,IF(CálculosEV!AJ16>0,1,"No"),"") ->  | BT16: =IF('II_Plantear Ración'!$E17>0,IF(CálculosEV!AK16>0,1,"No"),"") ->  | BU16: =IF('II_Plantear Ración'!$E17>0,IF(CálculosEV!AL16>0,1,"No"),"") ->  | BV16: =IF('II_Plantear Ración'!$E17>0,IF(CálculosEV!AM16>0,1,"No"),"") ->  | BW16: 0 | BX16: 0 | BY16: 0 | BZ16: 0 | CA16: 0 | CB16: 0 | CC16: 0 | CD16: 0 | CE16: 0 | CF16: 0 | CG16: 0 | CH16: 0 | CI16: 0 | CJ16: 0 | CK16: 0 | CL16: 0 | CM16: 0 | CN16: 0 | CO16: 0 | CP16: 0 | CQ16: 0 | CR16: 0 | CS16: 0 | CT16: 0 | CU16: 0 | CV16: 0 | CW16: 0 | CX16: 0 | CY16: 0 | CZ16: 0 | DA16: 0 | DB16: 0 | DC16: 0 | DD16: 0 | DE16: 0
B17: =IF(OFFSET('Tabla Concentrados'!$A$1,C17,0,1,1)=0,"",OFFSET('Tabla Concentrados'!$A$1,C17,0,1,1)) -> Grasa vegetal, manteca de cerdo (todos los tipos) | C17: 74 | D17: =OFFSET('Tabla Concentrados'!$A$1,$C17,$D$2,1,1) -> 99.9 | E17: =OFFSET('Tabla Concentrados'!$A$1,$C17,$E$2,1,1) -> 0 | F17: =OFFSET('Tabla Concentrados'!$A$1,$C17,$F$2,1,1) -> 3.61 | G17: =OFFSET('Tabla Concentrados'!$A$1,$C17,$G$2,1,1) -> 1e-07 | H17: =OFFSET('Tabla Concentrados'!$A$1,$C17,$H$2,1,1) -> -14 | I17: =OFFSET('Tabla Concentrados'!$A$1,$C17,$I$2,1,1) -> 2 | J17: =OFFSET('Tabla Concentrados'!$A$1,$C17,$J$2,1,1) -> 5.5e-08 | K17: =OFFSET('Tabla Concentrados'!$A$1,$C17,$K$2,1,1) -> 6.8e-08 | L17: =OFFSET('Tabla Concentrados'!$A$1,$C17,$L$2,1,1) -> 1e-07 | M17: =OFFSET('Tabla Concentrados'!$A$1,$C17,$M$2,1,1) -> 1e-07 | N17: =OFFSET('Tabla Concentrados'!$A$1,$C17,$N$2,1,1) -> 1e-07 | O17: =OFFSET('Tabla Concentrados'!$A$1,$C17,$O$2,1,1) -> 1e-07 | P17: =OFFSET('Tabla Concentrados'!$A$1,$C17,$P$2,1,1) -> 1e-07 | Q17: =OFFSET('Tabla Concentrados'!$A$1,$C17,$Q$2,1,1) -> 1e-07 | R17: =OFFSET('Tabla Concentrados'!$A$1,$C17,$R$2,1,1) -> 1e-07 | S17: =OFFSET('Tabla Concentrados'!$A$1,$C17,$S$2,1,1) -> 1e-07 | T17: =OFFSET('Tabla Concentrados'!$A$1,$C17,$T$2,1,1) -> 1e-07 | U17: =OFFSET('Tabla Concentrados'!$A$1,$C17,$U$2,1,1) -> 0 | V17: =OFFSET('Tabla Concentrados'!$A$1,$C17,$V$2,1,1) -> 1e-07 | W17: =OFFSET('Tabla Concentrados'!$A$1,$C17,$W$2,1,1) -> 1300 | X17: =OFFSET('Tabla Concentrados'!$A$1,$C17,$X$2,1,1) -> 1e-07 | Y17: =OFFSET('Tabla Concentrados'!$A$1,$C17,$Y$2,1,1) -> 95 | Z17: =OFFSET('Tabla Concentrados'!$A$1,$C17,$Z$2,1,1) -> 999 | AA17: =OFFSET('Tabla Concentrados'!$A$1,$C17,$AA$2,1,1) -> 1e-07 | AB17: =OFFSET('Tabla Concentrados'!$A$1,$C17,$AB$2,1,1) -> 1e-07 | AC17: =OFFSET('Tabla Concentrados'!$A$1,$C17,$AC$2,1,1) -> 0.9 | AD17: =OFFSET('Tabla Concentrados'!$A$1,$C17,$AD$2,1,1) -> 1e-07 | AE17: =OFFSET('Tabla Concentrados'!$A$1,$C17,$AE$2,1,1) -> 999 | AF17: =OFFSET('Tabla Concentrados'!$A$1,$C17,$AF$2,1,1) -> 1e-07 | AG17: =OFFSET('Tabla Concentrados'!$A$1,$C17,$AG$2,1,1) -> 1e-07 | AH17: =OFFSET('Tabla Concentrados'!$A$1,$C17,$AH$2,1,1) -> 1e-07 | AI17: =OFFSET('Tabla Concentrados'!$A$1,$C17,$AI$2,1,1) -> 1e-07 | AJ17: =OFFSET('Tabla Concentrados'!$A$1,$C17,$AJ$2,1,1) -> 1e-07 | AK17: =OFFSET('Tabla Concentrados'!$A$1,$C17,$AK$2,1,1) -> 1e-07 | AL17: =OFFSET('Tabla Concentrados'!$A$1,$C17,$AL$2,1,1) -> 0 | AM17: =OFFSET('Tabla Concentrados'!$A$1,$C17,$AM$2,1,1) -> 0 | AN17: =IF('II_Plantear Ración'!$E18>0,IF(CálculosEV!E17>=0,1,"No"),"") -> 1 | AO17: =IF('II_Plantear Ración'!$E18>0,IF(CálculosEV!F17>0,1,"No"),"") -> 1 | AP17: =IF('II_Plantear Ración'!$E18>0,IF(CálculosEV!G17>0,1,"No"),"") -> 1 | AQ17: =IF('II_Plantear Ración'!$E18>0,IF(CálculosEV!H17=0,"No",1),"") -> 1 | AR17: =IF('II_Plantear Ración'!$E18>0,IF(CálculosEV!I17>0,1,"No"),"") -> 1 | AS17: =IF('II_Plantear Ración'!$E18>0,IF(CálculosEV!J17>0,1,"No"),"") -> 1 | AT17: =IF('II_Plantear Ración'!$E18>0,IF(CálculosEV!K17>0,1,"No"),"") -> 1 | AU17: =IF('II_Plantear Ración'!$E18>0,IF(CálculosEV!L17>0,1,"No"),"") -> 1 | AV17: =IF('II_Plantear Ración'!$E18>0,IF(CálculosEV!M17>0,1,"No"),"") -> 1 | AW17: =IF('II_Plantear Ración'!$E18>0,IF(CálculosEV!N17>0,1,"No"),"") -> 1 | AX17: =IF('II_Plantear Ración'!$E18>0,IF(CálculosEV!O17>0,1,"No"),"") -> 1 | AY17: =IF('II_Plantear Ración'!$E18>0,IF(CálculosEV!P17>0,1,"No"),"") -> 1 | AZ17: =IF('II_Plantear Ración'!$E18>0,IF(CálculosEV!Q17>0,1,"No"),"") -> 1 | BA17: =IF('II_Plantear Ración'!$E18>0,IF(CálculosEV!R17>0,1,"No"),"") -> 1 | BB17: =IF('II_Plantear Ración'!$E18>0,IF(CálculosEV!S17>0,1,"No"),"") -> 1 | BC17: =IF('II_Plantear Ración'!$E18>0,IF(CálculosEV!T17>0,1,"No"),"") -> 1 | BD17: =IF('II_Plantear Ración'!$E18>0,IF(CálculosEV!U17>0,1,"No"),"") -> No | BE17: =IF('II_Plantear Ración'!$E18>0,IF(CálculosEV!V17>0,1,"No"),"") -> 1 | BF17: =IF('II_Plantear Ración'!$E18>0,IF(CálculosEV!W17>0,1,"No"),"") -> 1 | BG17: =IF('II_Plantear Ración'!$E18>0,IF(CálculosEV!X17>0,1,"No"),"") -> 1 | BH17: =IF('II_Plantear Ración'!$E18>0,IF(CálculosEV!Y17>0,1,"No"),"") -> 1 | BI17: =IF('II_Plantear Ración'!$E18>0,IF(CálculosEV!Z17>0,1,"No"),"") -> 1 | BJ17: =IF('II_Plantear Ración'!$E18>0,IF(CálculosEV!AA17>0,1,"No"),"") -> 1 | BK17: =IF('II_Plantear Ración'!$E18>0,IF(CálculosEV!AB17>0,1,"No"),"") -> 1 | BL17: =IF('II_Plantear Ración'!$E18>0,IF(CálculosEV!AC17>0,1,"No"),"") -> 1 | BM17: =IF('II_Plantear Ración'!$E18>0,IF(CálculosEV!AD17>0,1,"No"),"") -> 1 | BN17: =IF('II_Plantear Ración'!$E18>0,IF(CálculosEV!AE17>0,1,"No"),"") -> 1 | BO17: =IF('II_Plantear Ración'!$E18>0,IF(CálculosEV!AF17>0,1,"No"),"") -> 1 | BP17: =IF('II_Plantear Ración'!$E18>0,IF(CálculosEV!AG17>0,1,"No"),"") -> 1 | BQ17: =IF('II_Plantear Ración'!$E18>0,IF(CálculosEV!AH17>0,1,"No"),"") -> 1 | BR17: =IF('II_Plantear Ración'!$E18>0,IF(CálculosEV!AI17>0,1,"No"),"") -> 1 | BS17: =IF('II_Plantear Ración'!$E18>0,IF(CálculosEV!AJ17>0,1,"No"),"") -> 1 | BT17: =IF('II_Plantear Ración'!$E18>0,IF(CálculosEV!AK17>0,1,"No"),"") -> 1 | BU17: =IF('II_Plantear Ración'!$E18>0,IF(CálculosEV!AL17>0,1,"No"),"") -> No | BV17: =IF('II_Plantear Ración'!$E18>0,IF(CálculosEV!AM17>0,1,"No"),"") -> No | BW17: 1 | BX17: 1 | BY17: 1 | BZ17: 1 | CA17: 1 | CB17: 1 | CC17: 1 | CD17: 1 | CE17: 1 | CF17: 1 | CG17: 1 | CH17: 1 | CI17: 1 | CJ17: 1 | CK17: 1 | CL17: 1 | CM17: 1 | CN17: 1 | CO17: 1 | CP17: 1 | CQ17: 1 | CR17: 1 | CS17: 1 | CT17: 1 | CU17: 1 | CV17: 1 | CW17: 1 | CX17: 1 | CY17: 1 | CZ17: 1 | DA17: 1 | DB17: 1 | DC17: 1 | DD17: 1 | DE17: 1
B18: =IF(OFFSET('Tabla Concentrados'!$A$1,C18,0,1,1)=0,"",OFFSET('Tabla Concentrados'!$A$1,C18,0,1,1)) -> Urea | C18: 76 | D18: =OFFSET('Tabla Concentrados'!$A$1,$C18,$D$2,1,1) -> 99 | E18: =OFFSET('Tabla Concentrados'!$A$1,$C18,$E$2,1,1) -> 0 | F18: =OFFSET('Tabla Concentrados'!$A$1,$C18,$F$2,1,1) -> 0.26 | G18: =OFFSET('Tabla Concentrados'!$A$1,$C18,$G$2,1,1) -> 71 | H18: =OFFSET('Tabla Concentrados'!$A$1,$C18,$H$2,1,1) -> 2557 | I18: =OFFSET('Tabla Concentrados'!$A$1,$C18,$I$2,1,1) -> 2 | J18: =OFFSET('Tabla Concentrados'!$A$1,$C18,$J$2,1,1) -> 0 | K18: =OFFSET('Tabla Concentrados'!$A$1,$C18,$K$2,1,1) -> 0 | L18: =OFFSET('Tabla Concentrados'!$A$1,$C18,$L$2,1,1) -> 1e-06 | M18: =OFFSET('Tabla Concentrados'!$A$1,$C18,$M$2,1,1) -> 1e-06 | N18: =OFFSET('Tabla Concentrados'!$A$1,$C18,$N$2,1,1) -> 1e-06 | O18: =OFFSET('Tabla Concentrados'!$A$1,$C18,$O$2,1,1) -> 1e-06 | P18: =OFFSET('Tabla Concentrados'!$A$1,$C18,$P$2,1,1) -> 1e-06 | Q18: =OFFSET('Tabla Concentrados'!$A$1,$C18,$Q$2,1,1) -> 1e-06 | R18: =OFFSET('Tabla Concentrados'!$A$1,$C18,$R$2,1,1) -> 1e-06 | S18: =OFFSET('Tabla Concentrados'!$A$1,$C18,$S$2,1,1) -> 1e-06 | T18: =OFFSET('Tabla Concentrados'!$A$1,$C18,$T$2,1,1) -> 1e-06 | U18: =OFFSET('Tabla Concentrados'!$A$1,$C18,$U$2,1,1) -> 0 | V18: =OFFSET('Tabla Concentrados'!$A$1,$C18,$V$2,1,1) -> 1e-06 | W18: =OFFSET('Tabla Concentrados'!$A$1,$C18,$W$2,1,1) -> 1e-06 | X18: =OFFSET('Tabla Concentrados'!$A$1,$C18,$X$2,1,1) -> 1e-06 | Y18: =OFFSET('Tabla Concentrados'!$A$1,$C18,$Y$2,1,1) -> 1e-06 | Z18: =OFFSET('Tabla Concentrados'!$A$1,$C18,$Z$2,1,1) -> 0 | AA18: =OFFSET('Tabla Concentrados'!$A$1,$C18,$AA$2,1,1) -> 2870 | AB18: =OFFSET('Tabla Concentrados'!$A$1,$C18,$AB$2,1,1) -> 1e-06 | AC18: =OFFSET('Tabla Concentrados'!$A$1,$C18,$AC$2,1,1) -> 0.99 | AD18: =OFFSET('Tabla Concentrados'!$A$1,$C18,$AD$2,1,1) -> 1e-06 | AE18: =OFFSET('Tabla Concentrados'!$A$1,$C18,$AE$2,1,1) -> 1e-06 | AF18: =OFFSET('Tabla Concentrados'!$A$1,$C18,$AF$2,1,1) -> 1e-06 | AG18: =OFFSET('Tabla Concentrados'!$A$1,$C18,$AG$2,1,1) -> 1e-06 | AH18: =OFFSET('Tabla Concentrados'!$A$1,$C18,$AH$2,1,1) -> 1e-06 | AI18: =OFFSET('Tabla Concentrados'!$A$1,$C18,$AI$2,1,1) -> 1e-06 | AJ18: =OFFSET('Tabla Concentrados'!$A$1,$C18,$AJ$2,1,1) -> 1e-06 | AK18: =OFFSET('Tabla Concentrados'!$A$1,$C18,$AK$2,1,1) -> 1e-06 | AL18: =OFFSET('Tabla Concentrados'!$A$1,$C18,$AL$2,1,1) -> 0 | AM18: =OFFSET('Tabla Concentrados'!$A$1,$C18,$AM$2,1,1) -> 0 | AN18: =IF('II_Plantear Ración'!$E19>0,IF(CálculosEV!E18>=0,1,"No"),"") ->  | AO18: =IF('II_Plantear Ración'!$E19>0,IF(CálculosEV!F18>0,1,"No"),"") ->  | AP18: =IF('II_Plantear Ración'!$E19>0,IF(CálculosEV!G18>0,1,"No"),"") ->  | AQ18: =IF('II_Plantear Ración'!$E19>0,IF(CálculosEV!H18=0,"No",1),"") ->  | AR18: =IF('II_Plantear Ración'!$E19>0,IF(CálculosEV!I18>0,1,"No"),"") ->  | AS18: =IF('II_Plantear Ración'!$E19>0,IF(CálculosEV!J18>0,1,"No"),"") ->  | AT18: =IF('II_Plantear Ración'!$E19>0,IF(CálculosEV!K18>0,1,"No"),"") ->  | AU18: =IF('II_Plantear Ración'!$E19>0,IF(CálculosEV!L18>0,1,"No"),"") ->  | AV18: =IF('II_Plantear Ración'!$E19>0,IF(CálculosEV!M18>0,1,"No"),"") ->  | AW18: =IF('II_Plantear Ración'!$E19>0,IF(CálculosEV!N18>0,1,"No"),"") ->  | AX18: =IF('II_Plantear Ración'!$E19>0,IF(CálculosEV!O18>0,1,"No"),"") ->  | AY18: =IF('II_Plantear Ración'!$E19>0,IF(CálculosEV!P18>0,1,"No"),"") ->  | AZ18: =IF('II_Plantear Ración'!$E19>0,IF(CálculosEV!Q18>0,1,"No"),"") ->  | BA18: =IF('II_Plantear Ración'!$E19>0,IF(CálculosEV!R18>0,1,"No"),"") ->  | BB18: =IF('II_Plantear Ración'!$E19>0,IF(CálculosEV!S18>0,1,"No"),"") ->  | BC18: =IF('II_Plantear Ración'!$E19>0,IF(CálculosEV!T18>0,1,"No"),"") ->  | BD18: =IF('II_Plantear Ración'!$E19>0,IF(CálculosEV!U18>0,1,"No"),"") ->  | BE18: =IF('II_Plantear Ración'!$E19>0,IF(CálculosEV!V18>0,1,"No"),"") ->  | BF18: =IF('II_Plantear Ración'!$E19>0,IF(CálculosEV!W18>0,1,"No"),"") ->  | BG18: =IF('II_Plantear Ración'!$E19>0,IF(CálculosEV!X18>0,1,"No"),"") ->  | BH18: =IF('II_Plantear Ración'!$E19>0,IF(CálculosEV!Y18>0,1,"No"),"") ->  | BI18: =IF('II_Plantear Ración'!$E19>0,IF(CálculosEV!Z18>0,1,"No"),"") ->  | BJ18: =IF('II_Plantear Ración'!$E19>0,IF(CálculosEV!AA18>0,1,"No"),"") ->  | BK18: =IF('II_Plantear Ración'!$E19>0,IF(CálculosEV!AB18>0,1,"No"),"") ->  | BL18: =IF('II_Plantear Ración'!$E19>0,IF(CálculosEV!AC18>0,1,"No"),"") ->  | BM18: =IF('II_Plantear Ración'!$E19>0,IF(CálculosEV!AD18>0,1,"No"),"") ->  | BN18: =IF('II_Plantear Ración'!$E19>0,IF(CálculosEV!AE18>0,1,"No"),"") ->  | BO18: =IF('II_Plantear Ración'!$E19>0,IF(CálculosEV!AF18>0,1,"No"),"") ->  | BP18: =IF('II_Plantear Ración'!$E19>0,IF(CálculosEV!AG18>0,1,"No"),"") ->  | BQ18: =IF('II_Plantear Ración'!$E19>0,IF(CálculosEV!AH18>0,1,"No"),"") ->  | BR18: =IF('II_Plantear Ración'!$E19>0,IF(CálculosEV!AI18>0,1,"No"),"") ->  | BS18: =IF('II_Plantear Ración'!$E19>0,IF(CálculosEV!AJ18>0,1,"No"),"") ->  | BT18: =IF('II_Plantear Ración'!$E19>0,IF(CálculosEV!AK18>0,1,"No"),"") ->  | BU18: =IF('II_Plantear Ración'!$E19>0,IF(CálculosEV!AL18>0,1,"No"),"") ->  | BV18: =IF('II_Plantear Ración'!$E19>0,IF(CálculosEV!AM18>0,1,"No"),"") ->  | BW18: 0 | BX18: 0 | BY18: 0 | BZ18: 0 | CA18: 0 | CB18: 0 | CC18: 0 | CD18: 0 | CE18: 0 | CF18: 0 | CG18: 0 | CH18: 0 | CI18: 0 | CJ18: 0 | CK18: 0 | CL18: 0 | CM18: 0 | CN18: 0 | CO18: 0 | CP18: 0 | CQ18: 0 | CR18: 0 | CS18: 0 | CT18: 0 | CU18: 0 | CV18: 0 | CW18: 0 | CX18: 0 | CY18: 0 | CZ18: 0 | DA18: 0 | DB18: 0 | DC18: 0 | DD18: 0 | DE18: 0
B19: =IF(OFFSET('Tabla Concentrados'!$A$1,C19,0,1,1)=0,"",OFFSET('Tabla Concentrados'!$A$1,C19,0,1,1)) ->  | C19: 1 | D19: =OFFSET('Tabla Concentrados'!$A$1,$C19,$D$2,1,1) -> 0 | E19: =OFFSET('Tabla Concentrados'!$A$1,$C19,$E$2,1,1) -> 0 | F19: =OFFSET('Tabla Concentrados'!$A$1,$C19,$F$2,1,1) -> 0 | G19: =OFFSET('Tabla Concentrados'!$A$1,$C19,$G$2,1,1) -> 0 | H19: =OFFSET('Tabla Concentrados'!$A$1,$C19,$H$2,1,1) -> 0 | I19: =OFFSET('Tabla Concentrados'!$A$1,$C19,$I$2,1,1) -> 0 | J19: =OFFSET('Tabla Concentrados'!$A$1,$C19,$J$2,1,1) -> 0 | K19: =OFFSET('Tabla Concentrados'!$A$1,$C19,$K$2,1,1) -> 0 | L19: =OFFSET('Tabla Concentrados'!$A$1,$C19,$L$2,1,1) -> 0 | M19: =OFFSET('Tabla Concentrados'!$A$1,$C19,$M$2,1,1) -> 0 | N19: =OFFSET('Tabla Concentrados'!$A$1,$C19,$N$2,1,1) -> 0 | O19: =OFFSET('Tabla Concentrados'!$A$1,$C19,$O$2,1,1) -> 0 | P19: =OFFSET('Tabla Concentrados'!$A$1,$C19,$P$2,1,1) -> 0 | Q19: =OFFSET('Tabla Concentrados'!$A$1,$C19,$Q$2,1,1) -> 0 | R19: =OFFSET('Tabla Concentrados'!$A$1,$C19,$R$2,1,1) -> 0 | S19: =OFFSET('Tabla Concentrados'!$A$1,$C19,$S$2,1,1) -> 0 | T19: =OFFSET('Tabla Concentrados'!$A$1,$C19,$T$2,1,1) -> 0 | U19: =OFFSET('Tabla Concentrados'!$A$1,$C19,$U$2,1,1) -> 0 | V19: =OFFSET('Tabla Concentrados'!$A$1,$C19,$V$2,1,1) -> 0 | W19: =OFFSET('Tabla Concentrados'!$A$1,$C19,$W$2,1,1) -> 0 | X19: =OFFSET('Tabla Concentrados'!$A$1,$C19,$X$2,1,1) -> 0 | Y19: =OFFSET('Tabla Concentrados'!$A$1,$C19,$Y$2,1,1) -> 0 | Z19: =OFFSET('Tabla Concentrados'!$A$1,$C19,$Z$2,1,1) -> 0 | AA19: =OFFSET('Tabla Concentrados'!$A$1,$C19,$AA$2,1,1) -> 0 | AB19: =OFFSET('Tabla Concentrados'!$A$1,$C19,$AB$2,1,1) -> 0 | AC19: =OFFSET('Tabla Concentrados'!$A$1,$C19,$AC$2,1,1) -> 0 | AD19: =OFFSET('Tabla Concentrados'!$A$1,$C19,$AD$2,1,1) -> 0 | AE19: =OFFSET('Tabla Concentrados'!$A$1,$C19,$AE$2,1,1) -> 0 | AF19: =OFFSET('Tabla Concentrados'!$A$1,$C19,$AF$2,1,1) -> 0 | AG19: =OFFSET('Tabla Concentrados'!$A$1,$C19,$AG$2,1,1) -> 0 | AH19: =OFFSET('Tabla Concentrados'!$A$1,$C19,$AH$2,1,1) -> 0 | AI19: =OFFSET('Tabla Concentrados'!$A$1,$C19,$AI$2,1,1) -> 0 | AJ19: =OFFSET('Tabla Concentrados'!$A$1,$C19,$AJ$2,1,1) -> 0 | AK19: =OFFSET('Tabla Concentrados'!$A$1,$C19,$AK$2,1,1) -> 0 | AL19: =OFFSET('Tabla Concentrados'!$A$1,$C19,$AL$2,1,1) -> 0 | AM19: =OFFSET('Tabla Concentrados'!$A$1,$C19,$AM$2,1,1) -> 0 | AN19: =IF('II_Plantear Ración'!$E20>0,IF(CálculosEV!E19>=0,1,"No"),"") ->  | AO19: =IF('II_Plantear Ración'!$E20>0,IF(CálculosEV!F19>0,1,"No"),"") ->  | AP19: =IF('II_Plantear Ración'!$E20>0,IF(CálculosEV!G19>0,1,"No"),"") ->  | AQ19: =IF('II_Plantear Ración'!$E20>0,IF(CálculosEV!H19=0,"No",1),"") ->  | AR19: =IF('II_Plantear Ración'!$E20>0,IF(CálculosEV!I19>0,1,"No"),"") ->  | AS19: =IF('II_Plantear Ración'!$E20>0,IF(CálculosEV!J19>0,1,"No"),"") ->  | AT19: =IF('II_Plantear Ración'!$E20>0,IF(CálculosEV!K19>0,1,"No"),"") ->  | AU19: =IF('II_Plantear Ración'!$E20>0,IF(CálculosEV!L19>0,1,"No"),"") ->  | AV19: =IF('II_Plantear Ración'!$E20>0,IF(CálculosEV!M19>0,1,"No"),"") ->  | AW19: =IF('II_Plantear Ración'!$E20>0,IF(CálculosEV!N19>0,1,"No"),"") ->  | AX19: =IF('II_Plantear Ración'!$E20>0,IF(CálculosEV!O19>0,1,"No"),"") ->  | AY19: =IF('II_Plantear Ración'!$E20>0,IF(CálculosEV!P19>0,1,"No"),"") ->  | AZ19: =IF('II_Plantear Ración'!$E20>0,IF(CálculosEV!Q19>0,1,"No"),"") ->  | BA19: =IF('II_Plantear Ración'!$E20>0,IF(CálculosEV!R19>0,1,"No"),"") ->  | BB19: =IF('II_Plantear Ración'!$E20>0,IF(CálculosEV!S19>0,1,"No"),"") ->  | BC19: =IF('II_Plantear Ración'!$E20>0,IF(CálculosEV!T19>0,1,"No"),"") ->  | BD19: =IF('II_Plantear Ración'!$E20>0,IF(CálculosEV!U19>0,1,"No"),"") ->  | BE19: =IF('II_Plantear Ración'!$E20>0,IF(CálculosEV!V19>0,1,"No"),"") ->  | BF19: =IF('II_Plantear Ración'!$E20>0,IF(CálculosEV!W19>0,1,"No"),"") ->  | BG19: =IF('II_Plantear Ración'!$E20>0,IF(CálculosEV!X19>0,1,"No"),"") ->  | BH19: =IF('II_Plantear Ración'!$E20>0,IF(CálculosEV!Y19>0,1,"No"),"") ->  | BI19: =IF('II_Plantear Ración'!$E20>0,IF(CálculosEV!Z19>0,1,"No"),"") ->  | BJ19: =IF('II_Plantear Ración'!$E20>0,IF(CálculosEV!AA19>0,1,"No"),"") ->  | BK19: =IF('II_Plantear Ración'!$E20>0,IF(CálculosEV!AB19>0,1,"No"),"") ->  | BL19: =IF('II_Plantear Ración'!$E20>0,IF(CálculosEV!AC19>0,1,"No"),"") ->  | BM19: =IF('II_Plantear Ración'!$E20>0,IF(CálculosEV!AD19>0,1,"No"),"") ->  | BN19: =IF('II_Plantear Ración'!$E20>0,IF(CálculosEV!AE19>0,1,"No"),"") ->  | BO19: =IF('II_Plantear Ración'!$E20>0,IF(CálculosEV!AF19>0,1,"No"),"") ->  | BP19: =IF('II_Plantear Ración'!$E20>0,IF(CálculosEV!AG19>0,1,"No"),"") ->  | BQ19: =IF('II_Plantear Ración'!$E20>0,IF(CálculosEV!AH19>0,1,"No"),"") ->  | BR19: =IF('II_Plantear Ración'!$E20>0,IF(CálculosEV!AI19>0,1,"No"),"") ->  | BS19: =IF('II_Plantear Ración'!$E20>0,IF(CálculosEV!AJ19>0,1,"No"),"") ->  | BT19: =IF('II_Plantear Ración'!$E20>0,IF(CálculosEV!AK19>0,1,"No"),"") ->  | BU19: =IF('II_Plantear Ración'!$E20>0,IF(CálculosEV!AL19>0,1,"No"),"") ->  | BV19: =IF('II_Plantear Ración'!$E20>0,IF(CálculosEV!AM19>0,1,"No"),"") ->  | BW19: 0 | BX19: 0 | BY19: 0 | BZ19: 0 | CA19: 0 | CB19: 0 | CC19: 0 | CD19: 0 | CE19: 0 | CF19: 0 | CG19: 0 | CH19: 0 | CI19: 0 | CJ19: 0 | CK19: 0 | CL19: 0 | CM19: 0 | CN19: 0 | CO19: 0 | CP19: 0 | CQ19: 0 | CR19: 0 | CS19: 0 | CT19: 0 | CU19: 0 | CV19: 0 | CW19: 0 | CX19: 0 | CY19: 0 | CZ19: 0 | DA19: 0 | DB19: 0 | DC19: 0 | DD19: 0 | DE19: 0
A20: MINERALS | B20: =IF(OFFSET('Tabla Minerales-aa'!$A$1,C20,0,1,1)=0,"",OFFSET('Tabla Minerales-aa'!$A$1,C20,0,1,1)) -> Carbonato de cobalto | C20: 10 | D20: =OFFSET('Tabla Minerales-aa'!$A$1,$C20,D2,1,1) -> 100 | E20: =OFFSET('Tabla Minerales-aa'!$A$1,$C20,E2,1,1) -> 0 | F20: =OFFSET('Tabla Minerales-aa'!$A$1,$C20,F2,1,1) -> 0 | G20: =OFFSET('Tabla Minerales-aa'!$A$1,$C20,G2,1,1) -> 0 | H20: =OFFSET('Tabla Minerales-aa'!$A$1,$C20,H2,1,1) -> 0 | I20: =OFFSET('Tabla Minerales-aa'!$A$1,$C20,I2,1,1) -> 0 | J20: =OFFSET('Tabla Minerales-aa'!$A$1,$C20,J2,1,1) -> 0 | K20: =OFFSET('Tabla Minerales-aa'!$A$1,$C20,K2,1,1) -> 0 | L20: =OFFSET('Tabla Minerales-aa'!$A$1,$C20,L$2,1,1) -> 0 | M20: =OFFSET('Tabla Minerales-aa'!$A$1,$C20,M$2,1,1) -> 0 | N20: =OFFSET('Tabla Minerales-aa'!$A$1,$C20,N$2,1,1) -> 0 | O20: =OFFSET('Tabla Minerales-aa'!$A$1,$C20,O$2,1,1) -> 0 | P20: =OFFSET('Tabla Minerales-aa'!$A$1,$C20,P$2,1,1) -> 0 | Q20: =OFFSET('Tabla Minerales-aa'!$A$1,$C20,Q$2,1,1) -> 49 | R20: =OFFSET('Tabla Minerales-aa'!$A$1,$C20,R$2,1,1) -> 0 | S20: =OFFSET('Tabla Minerales-aa'!$A$1,$C20,S$2,1,1) -> 0 | T20: =OFFSET('Tabla Minerales-aa'!$A$1,$C20,T$2,1,1) -> 0 | U20: =OFFSET('Tabla Minerales-aa'!$A$1,$C20,U$2,1,1) -> 0 | V20: =OFFSET('Tabla Minerales-aa'!$A$1,$C20,V$2,1,1) -> 0 | W20: =OFFSET('Tabla Minerales-aa'!$A$1,$C20,W$2,1,1) -> 0 | X20: =OFFSET('Tabla Minerales-aa'!$A$1,$C20,X$2,1,1) -> 0 | Y20: =OFFSET('Tabla Minerales-aa'!$A$1,$C20,Y$2,1,1) -> 0 | Z20: =OFFSET('Tabla Minerales-aa'!$A$1,$C20,Z$2,1,1) -> 0 | AA20: =OFFSET('Tabla Minerales-aa'!$A$1,$C20,AA$2,1,1) -> 0 | AB20: =OFFSET('Tabla Minerales-aa'!$A$1,$C20,AB$2,1,1) -> 0 | AC20: =OFFSET('Tabla Minerales-aa'!$A$1,$C20,AC$2,1,1) -> 0 | AD20: =OFFSET('Tabla Minerales-aa'!$A$1,$C20,AD$2,1,1) -> 0 | AE20: =OFFSET('Tabla Minerales-aa'!$A$1,$C20,AE$2,1,1) -> 0 | AF20: =OFFSET('Tabla Minerales-aa'!$A$1,$C20,AF$2,1,1) -> 0 | AG20: =OFFSET('Tabla Minerales-aa'!$A$1,$C20,AG$2,1,1) -> 0 | AH20: =OFFSET('Tabla Minerales-aa'!$A$1,$C20,AH$2,1,1) -> 0 | AI20: =OFFSET('Tabla Minerales-aa'!$A$1,$C20,AI$2,1,1) -> 0 | AJ20: =OFFSET('Tabla Minerales-aa'!$A$1,$C20,AJ$2,1,1) -> 0 | AK20: =OFFSET('Tabla Minerales-aa'!$A$1,$C20,AK$2,1,1) -> 0 | AL20: =OFFSET('Tabla Minerales-aa'!$A$1,$C20,AL$2,1,1) -> 0 | AM20: =OFFSET('Tabla Minerales-aa'!$A$1,$C20,AM$2,1,1) -> 0 | AN20: =SUM(AN3:AN19) -> 4 | AO20: 4 | AP20: 4 | AQ20: 4 | AR20: 4 | AS20: 4 | AT20: 4 | AU20: 3 | AV20: 3 | AW20: 3 | AX20: 1 | AY20: 1 | AZ20: 3 | BA20: 3 | BB20: 3 | BC20: 3 | BD20: 0 | BE20: 3 | BF20: 3 | BG20: 2 | BH20: 4 | BI20: 4 | BJ20: 4 | BK20: 4 | BL20: 4 | BM20: 4 | BN20: 4 | BO20: 4 | BP20: 4 | BQ20: 4 | BR20: 3 | BS20: 4 | BT20: 3 | BU20: 3 | BV20: 3 | BW20: =SUM(BW3:BW19) -> 4 | BX20: 4 | BY20: 4 | BZ20: 4 | CA20: 4 | CB20: 4 | CC20: 4 | CD20: 4 | CE20: 4 | CF20: 4 | CG20: 4 | CH20: 4 | CI20: 4 | CJ20: 4 | CK20: 4 | CL20: 4 | CM20: 4 | CN20: 4 | CO20: 4 | CP20: 4 | CQ20: 4 | CR20: 4 | CS20: 4 | CT20: 4 | CU20: 4 | CV20: 4 | CW20: 4 | CX20: 4 | CY20: 4 | CZ20: =SUM(CZ3:CZ19) -> 4 | DA20: 4 | DB20: 4 | DC20: 4 | DD20: 4 | DE20: 4
B21: =IF(OFFSET('Tabla Minerales-aa'!$A$1,C21,0,1,1)=0,"",OFFSET('Tabla Minerales-aa'!$A$1,C21,0,1,1)) -> Fosfato bicálcico | C21: 3 | D21: =OFFSET('Tabla Minerales-aa'!$A$1,$C21,D2,1,1) -> 98.8 | E21: =OFFSET('Tabla Minerales-aa'!$A$1,$C21,E2,1,1) -> 0 | F21: =OFFSET('Tabla Minerales-aa'!$A$1,$C21,F2,1,1) -> 0 | G21: =OFFSET('Tabla Minerales-aa'!$A$1,$C21,G2,1,1) -> 0 | H21: =OFFSET('Tabla Minerales-aa'!$A$1,$C21,H2,1,1) -> 0 | I21: =OFFSET('Tabla Minerales-aa'!$A$1,$C21,I2,1,1) -> 0 | J21: =OFFSET('Tabla Minerales-aa'!$A$1,$C21,J2,1,1) -> 244 | K21: =OFFSET('Tabla Minerales-aa'!$A$1,$C21,K2,1,1) -> 122.4 | L21: =OFFSET('Tabla Minerales-aa'!$A$1,$C21,L$2,1,1) -> 5 | M21: =OFFSET('Tabla Minerales-aa'!$A$1,$C21,M$2,1,1) -> 1.2 | N21: =OFFSET('Tabla Minerales-aa'!$A$1,$C21,N$2,1,1) -> 0.8 | O21: =OFFSET('Tabla Minerales-aa'!$A$1,$C21,O$2,1,1) -> 11 | P21: =OFFSET('Tabla Minerales-aa'!$A$1,$C21,P$2,1,1) -> 0.4 | Q21: =OFFSET('Tabla Minerales-aa'!$A$1,$C21,Q$2,1,1) -> 0 | R21: =OFFSET('Tabla Minerales-aa'!$A$1,$C21,R$2,1,1) -> 15 | S21: =OFFSET('Tabla Minerales-aa'!$A$1,$C21,S$2,1,1) -> 0 | T21: =OFFSET('Tabla Minerales-aa'!$A$1,$C21,T$2,1,1) -> 0 | U21: =OFFSET('Tabla Minerales-aa'!$A$1,$C21,U$2,1,1) -> 0 | V21: =OFFSET('Tabla Minerales-aa'!$A$1,$C21,V$2,1,1) -> 0 | W21: =OFFSET('Tabla Minerales-aa'!$A$1,$C21,W$2,1,1) -> 0 | X21: =OFFSET('Tabla Minerales-aa'!$A$1,$C21,X$2,1,1) -> 0 | Y21: =OFFSET('Tabla Minerales-aa'!$A$1,$C21,Y$2,1,1) -> 0 | Z21: =OFFSET('Tabla Minerales-aa'!$A$1,$C21,Z$2,1,1) -> 0 | AA21: =OFFSET('Tabla Minerales-aa'!$A$1,$C21,AA$2,1,1) -> 0 | AB21: =OFFSET('Tabla Minerales-aa'!$A$1,$C21,AB$2,1,1) -> 0 | AC21: =OFFSET('Tabla Minerales-aa'!$A$1,$C21,AC$2,1,1) -> 0 | AD21: =OFFSET('Tabla Minerales-aa'!$A$1,$C21,AD$2,1,1) -> 0 | AE21: =OFFSET('Tabla Minerales-aa'!$A$1,$C21,AE$2,1,1) -> 0 | AF21: =OFFSET('Tabla Minerales-aa'!$A$1,$C21,AF$2,1,1) -> 0 | AG21: =OFFSET('Tabla Minerales-aa'!$A$1,$C21,AG$2,1,1) -> 0 | AH21: =OFFSET('Tabla Minerales-aa'!$A$1,$C21,AH$2,1,1) -> 0 | AI21: =OFFSET('Tabla Minerales-aa'!$A$1,$C21,AI$2,1,1) -> 0 | AJ21: =OFFSET('Tabla Minerales-aa'!$A$1,$C21,AJ$2,1,1) -> 836 | AK21: =OFFSET('Tabla Minerales-aa'!$A$1,$C21,AK$2,1,1) -> 0 | AL21: =OFFSET('Tabla Minerales-aa'!$A$1,$C21,AL$2,1,1) -> 0 | AM21: =OFFSET('Tabla Minerales-aa'!$A$1,$C21,AM$2,1,1) -> 0 | AN21: =IF(AN20/BW20=1,"",AN2) ->  | AU21: =IF(AU20/CD20=1,"", AU2) -> Mg | AV21: K | AW21: Na | AX21: S | AY21: Cl | AZ21: Co | BA21: Cu | BB21: Mn | BC21: Zn | BD21: Iodo | BE21: Se | BF21: Vit A | BG21: Vit D | BR21: Lignina | BT21: Mo | BU21: DT_N | BV21: MOF
B22: =IF(OFFSET('Tabla Minerales-aa'!$A$1,C22,0,1,1)=0,"",OFFSET('Tabla Minerales-aa'!$A$1,C22,0,1,1)) -> Carbonato cálcico | C22: 2 | D22: =OFFSET('Tabla Minerales-aa'!$A$1,$C22,D2,1,1) -> 98 | E22: =OFFSET('Tabla Minerales-aa'!$A$1,$C22,E2,1,1) -> 0 | F22: =OFFSET('Tabla Minerales-aa'!$A$1,$C22,F2,1,1) -> 0 | G22: =OFFSET('Tabla Minerales-aa'!$A$1,$C22,G2,1,1) -> 0 | H22: =OFFSET('Tabla Minerales-aa'!$A$1,$C22,H2,1,1) -> 0 | I22: =OFFSET('Tabla Minerales-aa'!$A$1,$C22,I2,1,1) -> 0 | J22: =OFFSET('Tabla Minerales-aa'!$A$1,$C22,J2,1,1) -> 145.54 | K22: =OFFSET('Tabla Minerales-aa'!$A$1,$C22,K2,1,1) -> 0 | L22: =OFFSET('Tabla Minerales-aa'!$A$1,$C22,L$2,1,1) -> 14 | M22: =OFFSET('Tabla Minerales-aa'!$A$1,$C22,M$2,1,1) -> 0.7 | N22: =OFFSET('Tabla Minerales-aa'!$A$1,$C22,N$2,1,1) -> 0.7 | O22: =OFFSET('Tabla Minerales-aa'!$A$1,$C22,O$2,1,1) -> 0.7 | P22: =OFFSET('Tabla Minerales-aa'!$A$1,$C22,P$2,1,1) -> 0.2 | Q22: =OFFSET('Tabla Minerales-aa'!$A$1,$C22,Q$2,1,1) -> 0 | R22: =OFFSET('Tabla Minerales-aa'!$A$1,$C22,R$2,1,1) -> 12 | S22: =OFFSET('Tabla Minerales-aa'!$A$1,$C22,S$2,1,1) -> 0 | T22: =OFFSET('Tabla Minerales-aa'!$A$1,$C22,T$2,1,1) -> 0 | U22: =OFFSET('Tabla Minerales-aa'!$A$1,$C22,U$2,1,1) -> 0 | V22: =OFFSET('Tabla Minerales-aa'!$A$1,$C22,V$2,1,1) -> 0 | W22: =OFFSET('Tabla Minerales-aa'!$A$1,$C22,W$2,1,1) -> 0 | X22: =OFFSET('Tabla Minerales-aa'!$A$1,$C22,X$2,1,1) -> 0 | Y22: =OFFSET('Tabla Minerales-aa'!$A$1,$C22,Y$2,1,1) -> 0 | Z22: =OFFSET('Tabla Minerales-aa'!$A$1,$C22,Z$2,1,1) -> 0 | AA22: =OFFSET('Tabla Minerales-aa'!$A$1,$C22,AA$2,1,1) -> 0 | AB22: =OFFSET('Tabla Minerales-aa'!$A$1,$C22,AB$2,1,1) -> 0 | AC22: =OFFSET('Tabla Minerales-aa'!$A$1,$C22,AC$2,1,1) -> 0 | AD22: =OFFSET('Tabla Minerales-aa'!$A$1,$C22,AD$2,1,1) -> 0 | AE22: =OFFSET('Tabla Minerales-aa'!$A$1,$C22,AE$2,1,1) -> 0 | AF22: =OFFSET('Tabla Minerales-aa'!$A$1,$C22,AF$2,1,1) -> 0 | AG22: =OFFSET('Tabla Minerales-aa'!$A$1,$C22,AG$2,1,1) -> 0 | AH22: =OFFSET('Tabla Minerales-aa'!$A$1,$C22,AH$2,1,1) -> 0 | AI22: =OFFSET('Tabla Minerales-aa'!$A$1,$C22,AI$2,1,1) -> 0 | AJ22: =OFFSET('Tabla Minerales-aa'!$A$1,$C22,AJ$2,1,1) -> 955 | AK22: =OFFSET('Tabla Minerales-aa'!$A$1,$C22,AK$2,1,1) -> 0 | AL22: =OFFSET('Tabla Minerales-aa'!$A$1,$C22,AL$2,1,1) -> 0 | AM22: =OFFSET('Tabla Minerales-aa'!$A$1,$C22,AM$2,1,1) -> 0
B23: =IF(OFFSET('Tabla Minerales-aa'!$A$1,C23,0,1,1)=0,"",OFFSET('Tabla Minerales-aa'!$A$1,C23,0,1,1)) -> Fosfato sódico | C23: 7 | D23: =OFFSET('Tabla Minerales-aa'!$A$1,$C23,D2,1,1) -> 100 | E23: =OFFSET('Tabla Minerales-aa'!$A$1,$C23,E2,1,1) -> 0 | F23: =OFFSET('Tabla Minerales-aa'!$A$1,$C23,F2,1,1) -> 0 | G23: =OFFSET('Tabla Minerales-aa'!$A$1,$C23,G2,1,1) -> 0 | H23: =OFFSET('Tabla Minerales-aa'!$A$1,$C23,H2,1,1) -> 0 | I23: =OFFSET('Tabla Minerales-aa'!$A$1,$C23,I2,1,1) -> 0 | J23: =OFFSET('Tabla Minerales-aa'!$A$1,$C23,J2,1,1) -> 0 | K23: =OFFSET('Tabla Minerales-aa'!$A$1,$C23,K2,1,1) -> 13.6 | L23: =OFFSET('Tabla Minerales-aa'!$A$1,$C23,L$2,1,1) -> 0 | M23: =OFFSET('Tabla Minerales-aa'!$A$1,$C23,M$2,1,1) -> 0 | N23: =OFFSET('Tabla Minerales-aa'!$A$1,$C23,N$2,1,1) -> 19 | O23: =OFFSET('Tabla Minerales-aa'!$A$1,$C23,O$2,1,1) -> 0 | P23: =OFFSET('Tabla Minerales-aa'!$A$1,$C23,P$2,1,1) -> 0 | Q23: =OFFSET('Tabla Minerales-aa'!$A$1,$C23,Q$2,1,1) -> 0 | R23: =OFFSET('Tabla Minerales-aa'!$A$1,$C23,R$2,1,1) -> 0 | S23: =OFFSET('Tabla Minerales-aa'!$A$1,$C23,S$2,1,1) -> 0 | T23: =OFFSET('Tabla Minerales-aa'!$A$1,$C23,T$2,1,1) -> 0 | U23: =OFFSET('Tabla Minerales-aa'!$A$1,$C23,U$2,1,1) -> 0 | V23: =OFFSET('Tabla Minerales-aa'!$A$1,$C23,V$2,1,1) -> 0 | W23: =OFFSET('Tabla Minerales-aa'!$A$1,$C23,W$2,1,1) -> 0 | X23: =OFFSET('Tabla Minerales-aa'!$A$1,$C23,X$2,1,1) -> 0 | Y23: =OFFSET('Tabla Minerales-aa'!$A$1,$C23,Y$2,1,1) -> 0 | Z23: =OFFSET('Tabla Minerales-aa'!$A$1,$C23,Z$2,1,1) -> 0 | AA23: =OFFSET('Tabla Minerales-aa'!$A$1,$C23,AA$2,1,1) -> 0 | AB23: =OFFSET('Tabla Minerales-aa'!$A$1,$C23,AB$2,1,1) -> 0 | AC23: =OFFSET('Tabla Minerales-aa'!$A$1,$C23,AC$2,1,1) -> 0 | AD23: =OFFSET('Tabla Minerales-aa'!$A$1,$C23,AD$2,1,1) -> 0 | AE23: =OFFSET('Tabla Minerales-aa'!$A$1,$C23,AE$2,1,1) -> 0 | AF23: =OFFSET('Tabla Minerales-aa'!$A$1,$C23,AF$2,1,1) -> 0 | AG23: =OFFSET('Tabla Minerales-aa'!$A$1,$C23,AG$2,1,1) -> 0 | AH23: =OFFSET('Tabla Minerales-aa'!$A$1,$C23,AH$2,1,1) -> 0 | AI23: =OFFSET('Tabla Minerales-aa'!$A$1,$C23,AI$2,1,1) -> 0 | AJ23: =OFFSET('Tabla Minerales-aa'!$A$1,$C23,AJ$2,1,1) -> 0 | AK23: =OFFSET('Tabla Minerales-aa'!$A$1,$C23,AK$2,1,1) -> 0 | AL23: =OFFSET('Tabla Minerales-aa'!$A$1,$C23,AL$2,1,1) -> 0 | AM23: =OFFSET('Tabla Minerales-aa'!$A$1,$C23,AM$2,1,1) -> 0
B24: =IF(OFFSET('Tabla Minerales-aa'!$A$1,C24,0,1,1)=0,"",OFFSET('Tabla Minerales-aa'!$A$1,C24,0,1,1)) ->  | C24: 1 | D24: =OFFSET('Tabla Minerales-aa'!$A$1,$C24,D2,1,1) -> 0 | E24: =OFFSET('Tabla Minerales-aa'!$A$1,$C24,E2,1,1) -> 0 | F24: =OFFSET('Tabla Minerales-aa'!$A$1,$C24,F2,1,1) -> 0 | G24: =OFFSET('Tabla Minerales-aa'!$A$1,$C24,G2,1,1) -> 0 | H24: =OFFSET('Tabla Minerales-aa'!$A$1,$C24,H2,1,1) -> 0 | I24: =OFFSET('Tabla Minerales-aa'!$A$1,$C24,I2,1,1) -> 0 | J24: =OFFSET('Tabla Minerales-aa'!$A$1,$C24,J2,1,1) -> 0 | K24: =OFFSET('Tabla Minerales-aa'!$A$1,$C24,K2,1,1) -> 0 | L24: =OFFSET('Tabla Minerales-aa'!$A$1,$C24,L$2,1,1) -> 0 | M24: =OFFSET('Tabla Minerales-aa'!$A$1,$C24,M$2,1,1) -> 0 | N24: =OFFSET('Tabla Minerales-aa'!$A$1,$C24,N$2,1,1) -> 0 | O24: =OFFSET('Tabla Minerales-aa'!$A$1,$C24,O$2,1,1) -> 0 | P24: =OFFSET('Tabla Minerales-aa'!$A$1,$C24,P$2,1,1) -> 0 | Q24: =OFFSET('Tabla Minerales-aa'!$A$1,$C24,Q$2,1,1) -> 0 | R24: =OFFSET('Tabla Minerales-aa'!$A$1,$C24,R$2,1,1) -> 0 | S24: =OFFSET('Tabla Minerales-aa'!$A$1,$C24,S$2,1,1) -> 0 | T24: =OFFSET('Tabla Minerales-aa'!$A$1,$C24,T$2,1,1) -> 0 | U24: =OFFSET('Tabla Minerales-aa'!$A$1,$C24,U$2,1,1) -> 0 | V24: =OFFSET('Tabla Minerales-aa'!$A$1,$C24,V$2,1,1) -> 0 | W24: =OFFSET('Tabla Minerales-aa'!$A$1,$C24,W$2,1,1) -> 0 | X24: =OFFSET('Tabla Minerales-aa'!$A$1,$C24,X$2,1,1) -> 0 | Y24: =OFFSET('Tabla Minerales-aa'!$A$1,$C24,Y$2,1,1) -> 0 | Z24: =OFFSET('Tabla Minerales-aa'!$A$1,$C24,Z$2,1,1) -> 0 | AA24: =OFFSET('Tabla Minerales-aa'!$A$1,$C24,AA$2,1,1) -> 0 | AB24: =OFFSET('Tabla Minerales-aa'!$A$1,$C24,AB$2,1,1) -> 0 | AC24: =OFFSET('Tabla Minerales-aa'!$A$1,$C24,AC$2,1,1) -> 0 | AD24: =OFFSET('Tabla Minerales-aa'!$A$1,$C24,AD$2,1,1) -> 0 | AE24: =OFFSET('Tabla Minerales-aa'!$A$1,$C24,AE$2,1,1) -> 0 | AF24: =OFFSET('Tabla Minerales-aa'!$A$1,$C24,AF$2,1,1) -> 0 | AG24: =OFFSET('Tabla Minerales-aa'!$A$1,$C24,AG$2,1,1) -> 0 | AH24: =OFFSET('Tabla Minerales-aa'!$A$1,$C24,AH$2,1,1) -> 0 | AI24: =OFFSET('Tabla Minerales-aa'!$A$1,$C24,AI$2,1,1) -> 0 | AJ24: =OFFSET('Tabla Minerales-aa'!$A$1,$C24,AJ$2,1,1) -> 0 | AK24: =OFFSET('Tabla Minerales-aa'!$A$1,$C24,AK$2,1,1) -> 0 | AL24: =OFFSET('Tabla Minerales-aa'!$A$1,$C24,AL$2,1,1) -> 0 | AM24: =OFFSET('Tabla Minerales-aa'!$A$1,$C24,AM$2,1,1) -> 0
B25: =IF(OFFSET('Tabla Minerales-aa'!$A$1,C25,0,1,1)=0,"",OFFSET('Tabla Minerales-aa'!$A$1,C25,0,1,1)) ->  | C25: 1 | D25: =OFFSET('Tabla Minerales-aa'!$A$1,$C25,D2,1,1) -> 0 | E25: =OFFSET('Tabla Minerales-aa'!$A$1,$C25,E2,1,1) -> 0 | F25: =OFFSET('Tabla Minerales-aa'!$A$1,$C25,F2,1,1) -> 0 | G25: =OFFSET('Tabla Minerales-aa'!$A$1,$C25,G2,1,1) -> 0 | H25: =OFFSET('Tabla Minerales-aa'!$A$1,$C25,H2,1,1) -> 0 | I25: =OFFSET('Tabla Minerales-aa'!$A$1,$C25,I2,1,1) -> 0 | J25: =OFFSET('Tabla Minerales-aa'!$A$1,$C25,J2,1,1) -> 0 | K25: =OFFSET('Tabla Minerales-aa'!$A$1,$C25,K2,1,1) -> 0 | L25: =OFFSET('Tabla Minerales-aa'!$A$1,$C25,L$2,1,1) -> 0 | M25: =OFFSET('Tabla Minerales-aa'!$A$1,$C25,M$2,1,1) -> 0 | N25: =OFFSET('Tabla Minerales-aa'!$A$1,$C25,N$2,1,1) -> 0 | O25: =OFFSET('Tabla Minerales-aa'!$A$1,$C25,O$2,1,1) -> 0 | P25: =OFFSET('Tabla Minerales-aa'!$A$1,$C25,P$2,1,1) -> 0 | Q25: =OFFSET('Tabla Minerales-aa'!$A$1,$C25,Q$2,1,1) -> 0 | R25: =OFFSET('Tabla Minerales-aa'!$A$1,$C25,R$2,1,1) -> 0 | S25: =OFFSET('Tabla Minerales-aa'!$A$1,$C25,S$2,1,1) -> 0 | T25: =OFFSET('Tabla Minerales-aa'!$A$1,$C25,T$2,1,1) -> 0 | U25: =OFFSET('Tabla Minerales-aa'!$A$1,$C25,U$2,1,1) -> 0 | V25: =OFFSET('Tabla Minerales-aa'!$A$1,$C25,V$2,1,1) -> 0 | W25: =OFFSET('Tabla Minerales-aa'!$A$1,$C25,W$2,1,1) -> 0 | X25: =OFFSET('Tabla Minerales-aa'!$A$1,$C25,X$2,1,1) -> 0 | Y25: =OFFSET('Tabla Minerales-aa'!$A$1,$C25,Y$2,1,1) -> 0 | Z25: =OFFSET('Tabla Minerales-aa'!$A$1,$C25,Z$2,1,1) -> 0 | AA25: =OFFSET('Tabla Minerales-aa'!$A$1,$C25,AA$2,1,1) -> 0 | AB25: =OFFSET('Tabla Minerales-aa'!$A$1,$C25,AB$2,1,1) -> 0 | AC25: =OFFSET('Tabla Minerales-aa'!$A$1,$C25,AC$2,1,1) -> 0 | AD25: =OFFSET('Tabla Minerales-aa'!$A$1,$C25,AD$2,1,1) -> 0 | AE25: =OFFSET('Tabla Minerales-aa'!$A$1,$C25,AE$2,1,1) -> 0 | AF25: =OFFSET('Tabla Minerales-aa'!$A$1,$C25,AF$2,1,1) -> 0 | AG25: =OFFSET('Tabla Minerales-aa'!$A$1,$C25,AG$2,1,1) -> 0 | AH25: =OFFSET('Tabla Minerales-aa'!$A$1,$C25,AH$2,1,1) -> 0 | AI25: =OFFSET('Tabla Minerales-aa'!$A$1,$C25,AI$2,1,1) -> 0 | AJ25: =OFFSET('Tabla Minerales-aa'!$A$1,$C25,AJ$2,1,1) -> 0 | AK25: =OFFSET('Tabla Minerales-aa'!$A$1,$C25,AK$2,1,1) -> 0 | AL25: =OFFSET('Tabla Minerales-aa'!$A$1,$C25,AL$2,1,1) -> 0 | AM25: =OFFSET('Tabla Minerales-aa'!$A$1,$C25,AM$2,1,1) -> 0
E26: =SUMPRODUCT(E3:E25,'II_Plantear Ración'!$E$4:$E$26) -> 3.715998752 | F26: =SUMPRODUCT(F3:F25,'II_Plantear Ración'!$E$4:$E$26) -> 6.659698234 | G26: =SUMPRODUCT(G3:G25,'II_Plantear Ración'!$E$4:$E$26) -> 446.668358 | H26: =SUMPRODUCT(H3:H25,'II_Plantear Ración'!$E$4:$E$26) -> -37.0712939 | I26: =SUMPRODUCT(I3:I25,'II_Plantear Ración'!$E$4:$E$26)/SUM('II_Plantear Ración'!$E$4:$E$26) -> 1.815503792 | J26: =SUMPRODUCT(J3:J25,'II_Plantear Ración'!$E$4:$E$26) -> 13.90786459 | K26: =SUMPRODUCT(K3:K25,'II_Plantear Ración'!$E$4:$E$26) -> 15.43868795 | L26: =SUMPRODUCT(L3:L25,'II_Plantear Ración'!$E$4:$E$26) -> 4.174296231 | M26: =SUMPRODUCT(M3:M25,'II_Plantear Ración'!$E$4:$E$26) -> 20.10582548 | N26: =SUMPRODUCT(N3:N25,'II_Plantear Ración'!$E$4:$E$26) -> 1.470264852 | O26: =SUMPRODUCT(O3:O25,'II_Plantear Ración'!$E$4:$E$26) -> 0.07735365803 | P26: =SUMPRODUCT(P3:P25,'II_Plantear Ración'!$E$4:$E$26) -> 0.002812879545 | Q26: =SUMPRODUCT(Q3:Q25,'II_Plantear Ración'!$E$4:$E$26) -> 1.158591865 | R26: =SUMPRODUCT(R3:R25,'II_Plantear Ración'!$E$4:$E$26) -> 15.61808275 | S26: =SUMPRODUCT(S3:S25,'II_Plantear Ración'!$E$4:$E$26) -> 58.08399349 | T26: =SUMPRODUCT(T3:T25,'II_Plantear Ración'!$E$4:$E$26) -> 78.81185299 | U26: =SUMPRODUCT(U3:U25,'II_Plantear Ración'!$E$4:$E$26) -> 0 | V26: =SUMPRODUCT(V3:V25,'II_Plantear Ración'!$E$4:$E$26) -> 0.1090581695 | W26: =SUMPRODUCT(W3:W25,'II_Plantear Ración'!$E$4:$E$26) -> 27026.53639 | X26: =SUMPRODUCT(X3:X25,'II_Plantear Ración'!$E$4:$E$26) -> 604.4405299 | Y26: =SUMPRODUCT(Y3:Y25,'II_Plantear Ración'!$E$4:$E$26) -> 100.8260057 | Z26: =SUMPRODUCT(Z3:Z25,'II_Plantear Ración'!$E$4:$E$26) -> 296.3971563 | AA26: =SUMPRODUCT(AA3:AA25,'II_Plantear Ración'!$E$4:$E$26) -> 775.1755198 | AB26: =SUMPRODUCT(AB3:AB25,'II_Plantear Ración'!$E$4:$E$26) -> 160.9816677 | AC26: =SUMPRODUCT(AC3:AC25,'II_Plantear Ración'!$E$4:$E$26)/SUM('II_Plantear Ración'!$E$4:$E$26) -> 0.7528808293 | AD26: =SUMPRODUCT(AD3:AD25,'II_Plantear Ración'!$E$4:$E$26) -> 4147.710398 | AE26: =SUMPRODUCT(AE3:AE25,'II_Plantear Ración'!$E$4:$E$26) -> 322.1876385 | AF26: =SUMPRODUCT(AF3:AF25,'II_Plantear Ración'!$E$4:$E$26) -> 1104.682496 | AG26: =SUMPRODUCT(AG3:AG25,'II_Plantear Ración'!$E$4:$E$26) -> 2368.92229 | AH26: =SUMPRODUCT(AH3:AH25,'II_Plantear Ración'!$E$4:$E$26) -> 1361.627223 | AI26: =SUMPRODUCT(AI3:AI25,'II_Plantear Ración'!$E$4:$E$26) -> 33.36108816 | AJ26: =SUMPRODUCT(AJ3:AJ25,'II_Plantear Ración'!$E$4:$E$26) -> 408.6863098 | AK26: =SUMPRODUCT(AK3:AK25,'II_Plantear Ración'!$E$4:$E$26) -> 1.435411003 | AL26: =SUMPRODUCT(AL3:AL25,'II_Plantear Ración'!$E$4:$E$26)/SUM('II_Plantear Ración'!$E$4:$E$26) -> 0.7273123976 | AM26: =SUMPRODUCT(AM3:AM25,'II_Plantear Ración'!$E$4:$E$26) -> 3374.52009
E27: =SUMPRODUCT(E8:E19,'II_Plantear Ración'!$E$9:$E$20) -> 0 | F27: =SUMPRODUCT(F8:F19,'II_Plantear Ración'!$E$9:$E$20) -> 3.848724371
E28: =E26-E27 -> 3.715998752 | F28: =F26-F27 -> 2.810973862
E29: =IF(I_Necesidades!B14="UFL",1,2) -> 1
B37: =CálculosEV!B3 -> ENSILADO Prat natural plano, gramíneas en gran parte
B38: =CálculosEV!B4 -> HENO Bromo Final vegetación
B39: =CálculosEV!B5 -> 
B40: =CálculosEV!B6 -> 
B41: =CálculosEV!B7 -> 
B42: =CálculosEV!B8 -> 
B43: =CálculosEV!B9 -> Cebada grano
B44: =CálculosEV!B10 -> Colza, turtó
B45: =CálculosEV!B11 -> Maíz grano
B46: =CálculosEV!B12 -> Soja torta 44
B47: =CálculosEV!B13 -> Mandioca
B48: =CálculosEV!B14 -> Cebada bagazo cervecería seco
B49: =CálculosEV!B15 -> Algodón, grano
B50: =CálculosEV!B16 -> Levadura cervecería
B51: =CálculosEV!B17 -> Grasa vegetal, manteca de cerdo (todos los tipos)
B52: =CálculosEV!B18 -> Urea
B53: =CálculosEV!B19 -> 

Sheet Apuntes Cria
B1: Cría terneros para engorde o reposición (Guía)
B2: Del nacimiento al destete (6 meses lecheras; 8,5 meses otros). Objetivo: peso final de la cría tres veces el peso al nacimiento. Después de la cría: machos en engorde, hembras en reposición (crecimiento de 700 a 1.000 g/día, potencial elevado crecimiento esqueleto y músculos). Objetivo reposición: si parto precoz, crecimiento alto. Objetivo engorde: si edad sacrificio precoz, crecimiento alto. Incremento volumen rumen: más forrajes que concentrados. Concentrado rico en energía asegura un aumento de peso alto después del destete. La cría tiene tres periodos: 1) Calostro; 2) Hasta destete; 3) pos destete
B8: 1.- Período CALOSTRO. Ejemplo o recomendación INRA | H8: Datos para la cría | L8: 2.- Período hasta destete
H9: Peso al nacer, kg | J9: 45 | L9: Semana destete 8ª. Objetivo: doblar peso al nacer
H10: Tiempo, meses | J10: 4
H11: Peso final, kg | J11: =J9*3 -> 135
H12: Crecimiento medio, g/día | J12: =1000*(J11-J9)/(J10*30.5) -> 737.704918 | L12: Peso objetivo al destete | O12: =2*J9 -> 90 | P12: kg
L13: Tipo alimento | M13: Composición % | P13: Sum. al día | Q13: Tª ºC
M14: Leche entera | N14: Alimento destete | O14: Agua
B15: 3.- Período posdestete | L15: A | M15: 100 | N15: 0 | O15: 0 | P15: 2 | Q15: 40
B16: Tiempo, días | C16: =J10*30.5-8*7 -> 66 | D16: =C16/30.5 -> 2.163934426 | E16: meses | L16: B | M16: 0 | N16: 13 | O16: 87 | P16: 2 | Q16: 40
B17: Cálculo aportaciones diarias de forrajes y concentrado | L17: C | M17: 0 | N17: 22 | O17: 78 | P17: 1 | Q17: 40
B18: Forrajes (buena calidad) | C18: MS % | D18: UE | E18: Composición en la ración | G18: kg MS/día | H18: Kg fresco/día | L18: D | M18: 75 | N18: 12.5 | O18: 12.5 | P18: 1 | Q18: 40
B19: Heno | C19: 0.85 | D19: 1.1 | E19: 0.32 | G19: =(C26-C27)*E19 -> 0.5434905875 | H19: =G19/C19 -> 0.6394006911 | M19: Cantidad (kg) tipo alimento
B20: Ensilado | C20: 0.33 | D20: 1.2 | E20: =1-E19 -> 0.68 | G20: =(C26-C27)*E20 -> 1.154917498 | H20: =G20/C20 -> 3.499749995 | L20: Semana | M20: Nº días | N20: A | O20: B | P20: C | Q20: D
B21: kg mezcla concentrados (75 a 80% cereales; resto turtó) 1,16 UFL i 120 PDI | H21: =IF(J12<901,1.5,3) -> 1.5 | L21: 1 | M21: 1 | N21: 6 | O21: 6 | P21: 3 | Q21: 3
B22: CI inicio período, UE | C22: =0.039*(J11-8*7*J12/1000)^0.9 -> 2.320504243 | D22: 0,039 x (Peso final - Δ kg/día x 7 x 8)0,9 | L22: 2 | M22: 7 | N22: 8 | O22: 8 | P22: 4 | Q22: 4
B23: CI, final período, UE | C23: =0.039*J11^0.9 -> 3.223777046 | D23: 0,039 x Peso final0,9 | L23: 3* | M23: 7 | N23: 8 | O23: 8 | P23: 5 | Q23: 5
B24: CI, media | C24: =AVERAGE(C22:C23) -> 2.772140644 | L24: 4 | M24: 7 | N24: 8 | O24: 8 | P24: 5 | Q24: 5
B25: UE mezcla forrajera | C25: =D19*E19+D20*E20 -> 1.168 | L25: 5 | M25: 7 | N25: 8 | O25: 8 | P25: 5 | Q25: 5
B26: Kg MS forrajera | C26: =C24/C25 -> 2.373408086 | D26: kg MS mezcla forrajera = CI/(UE mezcla forrajera) | L26: 6 | M26: 7 | N26: 8 | O26: 8 | P26: 5 | Q26: 5
C27: =0.45*H21 -> 0.675 | D27: kg MS mezcla forrajera que deja de comer si incorporamos concentrado Sg= 0,45 | L27: 7 | M27: 7 | N27: 6 | O27: 6 | P27: 3.5 | Q27: 3.5
B28: HENO, kg | C28: =H19 -> 0.6394006911 | L28: 8 | M28: 7 | N28: 3 | O28: 3 | P28: 2 | Q28: 2
B29: ENSILADO, kg | C29: =H20 -> 3.499749995 | L29: kg leche entera | N29: =SUMPRODUCT(M21:M28,N21:N28) -> 349 | O29: 0 | P29: 0 | Q29: =SUMPRODUCT(M21:M28,Q21:Q28)*M18/100 -> 157.125
B30: MEZCLA CONCENTRADO, kg | C30: =H21 -> 1.5 | L30: kg alimento destete | N30: 0 | O30: =N29*N16/100 -> 45.37 | P30: =SUMPRODUCT(M21:M28,P21:P28)*N17/100 -> 46.09 | Q30: =SUMPRODUCT(M21:M28,Q21:Q28)*N18/100 -> 26.1875
L31: * A la tercera semana se introduce heno bien conservado

Sheet NR (hidden)
AM1: ok | AN1: ok
B2: Pvinicial | C2: Pvfinal | D2: d1 | E2: d2 | F2: CDinicial %PV | G2: CDfinal %Pv | H2: Lipinicial %Pvvacio | I2: Lipfinal %Pvvacio | J2: recEN_mant Kcla/KgPV0,75 | K2: Pv adult | L2: Pv t | M2: GMD | N2: Peso v t | O2: ΔPv t | P2: Pvvacio inicial | Q2: Pv vacio final | R2: c1 | S2: c0 | T2: Pvvacio t1 | U2: Pv vacio t2 | V2: Dif pv vacio | W2: Lip_corp_i | X2: Lip_corp_t | Y2: b1 | Z2: b0 | AA2: Lip_corp t1 | AB2: Lip_corp t2 | AC2: Dif Lip_corp | AD2: Mdel t1 | AE2: Mdel t2 | AF2: Dif Mdel | AG2: Prot_corp_t1 | AH2: Prot_corp_t2 | AI2: Dif Prot_corp | AJ2: q | AK2: km | AL2: EN mant | AM2: NecEN_guany | AN2: Ep | AO2: kpf | AP2: kf | AQ2: kmf | AR2: NecUFL_mant | AS2: NecUFLguany | AT2: EfPDI | AU2: BPR máx | AV2: BPR mín | AW2: MOND g/kg MS | AX2: CI MSI | AY2: NecPDI_PEF | AZ2: NecPDI_Uendo | BA2: NecPDI_epidèrmiques | BB2: NecPDI_guany | BC2: Itip | BD2: c | BE2: UFV | BF2: PDI | BG2: CI UEB | BH2: Pabs | BI2: Caabs | BJ2: Mg | BK2: Cl | BL2: K | BM2: Na | BN2: S | BO2: Co | BP2: Cu | BQ2: Mo | BR2: Iode | BS2: Fe | BT2: Mn | BU2: Se | BV2: Zn | BW2: Vit A | BX2: Vit D | BY2: Vit E
A3: 1.-Terneros Engorde (finalización) gran formato tardíos (Charolés, p.e) | B3: 300 | C3: 800 | D3: 1.1028 | E3: 0.0037 | F3: 16 | G3: 11 | H3: 8 | I3: 16 | J3: 102 | K3: =B3*EXP(D3) -> 903.7768428 | L3: =IF(I_Necesidades!$C$6=1,I_Necesidades!$C$10,"") ->  | M3: =IF(I_Necesidades!$C$6=1,I_Necesidades!$C$11,"") ->  | N3: =IF(L3="","",L3+M3) ->  | O3: =IF(L3="","",E3*L3*LN(K3/L3)) ->  | P3: =B3*(100-F3)/100 -> 252 | Q3: =C3*(100-G3)/100 -> 712 | R3: =LN(Q3/P3)/LN(C3/B3) -> 1.05894968 | S3: =EXP(LN(P3)-R3*LN(B3)) -> 0.6001416667 | T3: =IF(L3="","",S3*L3^R3) ->  | U3: =IF(M3="","",S3*N3^R3) ->  | V3: =IF(L3="","",U3-T3) ->  | W3: =H3*P3/100 -> 20.16 | X3: =I3*Q3/100 -> 113.92 | Y3: =LN(X3/W3)/LN(Q3/P3) -> 1.667354706 | Z3: =EXP(LN(X3)-Y3*LN(Q3)) -> 0.001997579328 | AA3: =IF(L3="","",Z3*T3^Y3) ->  | AB3: =IF(M3="","",Z3*U3^Y3) ->  | AC3: =IF(L3="","",AB3-AA3) ->  | AD3: =IF(L3="","",T3-AA3) ->  | AE3: =IF(L3="","",U3-AB3) ->  | AF3: =IF(L3="","",AE3-AD3) ->  | AG3: =IF(L3="","",0.1436*AD3^1.0723) ->  | AH3: =IF(L3="","",0.1436*AE3^1.0723) ->  | AI3: =IF(L3="","",AH3-AG3) ->  | AJ3: =IF(M3="","",IF(M3>1,0.6,0.62-0.262*EXP(-3.175*M3))) ->  | AK3: =IF(L3="","",0.287*AJ3+0.554) ->  | AL3: =IF(L3="","",(J3*L3^0.75)/1000) ->  | AM3: =IF(L3="","",5.48*AI3+9.39*AC3) ->  | AN3: =IF(L3="","",5.48*AI3/(5.48*AI3+9.39*AC3)) ->  | AO3: =IF(L3="","",0.35+0.25*(1-AN3)^2) ->  | AP3: =IF(L3="","",0.78*0.6+0.006) ->  | AQ3: =IF(L3="","",(AK3*AP3*1.5)/(AP3+0.5*AK3)) ->  | AR3: =IF(L3="","",AM3/AO3*AQ3/1.76) ->  | AS3: =IF(L3="","",AL3/AK3*AQ3/1.76) ->  | AT3: =IF(L3="","",IF(L3<550,0.64,0.47)) ->  | AU3: =IF(L3="","",IF(L3<550,-2,-6.6)) ->  | AV3: =IF(L3="","",IF(L3<550,-7.5,-13.3)) ->  | AW3: =IF(L3="","",IF(L3<550,262,240)) ->  | AX3: =IF(L3="","",95*L3^0.75/1000) ->  | AY3: =IF(AX3="","",(AX3*(0.5*(5.7+0.074*AW3)))/AT3) ->  | AZ3: =IF(L3="","",0.312*L3) ->  | BA3: =IF(L3="","",(0.2*L3^0.6)/AT3) ->  | BB3: =IF(AI3="","",AI3*1000/AT3) ->  | BC3: 0.284 | BD3: 0.54 | BE3: =IF(L3="","",AR3+AS3) ->  | BF3: =IF(L3="","",AY3+AZ3+BA3+BB3) ->  | BG3: =IF(L3="","",BC3*L3^BD3) ->  | BH3: =IF(L3="","",0.025*L3+(((1.2+((4.655*K3^0.22)*(L3^-0.22)))*M3))) ->  | BI3: =IF(L3="","",0.015*L3+(((9.83*(K3^0.22)*(L3^-0.22)*M3)))) ->  | BJ3: =IF(L3="","",(0.003*L3+0.45*M3)/0.16) ->  | BK3: =IF(L3="","",(0.003*L3+0.45*M3)/0.16) ->  | BL3: =IF(L3="","",((2.6*AX3)+0.038*L3+1.6*M3)/0.9) ->  | BM3: =IF(L3="","",(0.015*L3+1.4*M3)/0.99) ->  | BN3: =IF(BP3="","",2*AX3) ->  | BO3: =IF(BP3="","",0.11*AX3) ->  | BP3: =IF(L3="","",(0.0071*L3+1.15*M3)/0.04) ->  | BR3: =IF(L3="","",0.006*L3) ->  | BS3: =IF(M3="","",34*M3/0.1) ->  | BT3: =IF(M3="","",(0.002*L3+0.7*M3)/0.0075) ->  | BU3: =IF(BP3="","",0.3*AX3) ->  | BV3: =IF(L3="","",(0.045*L3+24*M3)/0.15) ->  | BW3: =IF(L3="","",110*L3) ->  | BX3: =IF(L3="","",16*L3) ->  | BY3: =IF(L3="","",2.6*L3) -> 
A4: 2.-Terneros Engorde (finalización) tardíos (Limousines, p.e) | B4: 330 | C4: 730 | D4: 1.1028 | E4: 0.0037 | F4: 15 | G4: 10.8 | H4: 8 | I4: 15 | J4: 98 | K4: =B4*EXP(D4) -> 994.1545271 | L4: =IF(I_Necesidades!$C$6=2,I_Necesidades!$C$10,"") ->  | M4: =IF(I_Necesidades!$C$6=2,I_Necesidades!$C$11,"") ->  | N4: =IF(L4="","",L4+M4) ->  | O4: =IF(L4="","",E4*L4*LN(K4/L4)) ->  | P4: =B4*(100-F4)/100 -> 280.5 | Q4: 651.16 | R4: =LN(Q4/P4)/LN(C4/B4) -> 1.060746481 | S4: =EXP(LN(P4)-R4*LN(B4)) -> 0.5976240488 | T4: =IF(L4="","",S4*L4^R4) ->  | U4: =IF(M4="","",S4*N4^R4) ->  | V4: =IF(L4="","",U4-T4) ->  | W4: =H4*P4/100 -> 22.44 | X4: 97.674 | Y4: =LN(X4/W4)/LN(Q4/P4) -> 1.746405066 | Z4: =EXP(LN(X4)-Y4*LN(Q4)) -> 0.001191078802 | AA4: =IF(L4="","",Z4*T4^Y4) ->  | AB4: =IF(M4="","",Z4*U4^Y4) ->  | AC4: =IF(L4="","",AB4-AA4) ->  | AD4: =IF(L4="","",T4-AA4) ->  | AE4: =IF(L4="","",U4-AB4) ->  | AF4: =IF(L4="","",AE4-AD4) ->  | AG4: =IF(L4="","",0.1436*AD4^1.0723) ->  | AH4: =IF(L4="","",0.1436*AE4^1.0723) ->  | AI4: =IF(L4="","",AH4-AG4) ->  | AJ4: =IF(M4="","",IF(M4>1,0.6,0.62-0.262*EXP(-3.175*M4))) ->  | AK4: =IF(L4="","",0.287*AJ4+0.554) ->  | AL4: =IF(L4="","",(J4*L4^0.75)/1000) ->  | AM4: =IF(L4="","",5.48*AI4+9.39*AC4) ->  | AN4: =IF(L4="","",5.48*AI4/(5.48*AI4+9.39*AC4)) ->  | AO4: =IF(L4="","",0.35+0.25*(1-AN4)^2) ->  | AP4: =IF(L4="","",0.78*0.6+0.006) ->  | AQ4: =IF(L4="","",(AK4*AP4*1.5)/(AP4+0.5*AK4)) ->  | AR4: =IF(L4="","",AM4/AO4*AQ4/1.76) ->  | AS4: =IF(L4="","",AL4/AK4*AQ4/1.76) ->  | AT4: =IF(L4="","",IF(L4<550,0.64,0.47)) ->  | AU4: =IF(L4="","",IF(L4<550,-2,-6.6)) ->  | AV4: =IF(L4="","",IF(L4<550,-7.5,-13.3)) ->  | AW4: =IF(L4="","",IF(L4<550,262,240)) ->  | AY4: =IF(AX4="","",(AX4*(0.5*(5.7+0.074*AW4)))/AT4) ->  | BC4: 0.22 | BD4: 0.57 | BH4: =IF(L4="","",0.025*L4+(((1.2+((4.655*K4^0.22)*(L4^-0.22))))*M4)) ->  | BN4: =IF(BP4="","",2*AX4) ->  | BO4: =IF(BP4="","",0.11*AX4) ->  | BU4: =IF(BP4="","",0.3*AX4) -> 
A5: 3.-Terneros Engorde (finalización) precocidad media (vacas rústicas) | B5: 250 | C5: 680 | D5: 1.4078 | E5: 0.003763 | F5: 18 | G5: 12 | H5: 10 | I5: 19.5 | J5: 100 | K5: 1021.738552 | L5: =IF(I_Necesidades!$C$6=3,I_Necesidades!$C$10,"") ->  | M5: =IF(I_Necesidades!$C$6=3,I_Necesidades!$C$11,"") ->  | P5: 205 | Q5: 598.4 | R5: 1.070572974 | S5: 0.5553721475 | W5: 20.5 | X5: 116.688 | Y5: 1.623411638 | Z5: 0.003620976775 | BC5: 0.233 | BD5: 0.575 | BH5: =IF(L5="","",0.025*L5+(((1.2+((4.655*K5^0.22)*(L5^-0.22)))*M5))) -> 
A6: 4.-Terneros Engorde (finalización) precocidad alta (vacas lecheras) | B6: 200 | C6: 550 | D6: 1.4078 | E6: 0.003763 | F6: 20 | G6: 12 | H6: 7.5 | I6: 21 | J6: 95 | K6: =B6*EXP(D6) -> 817.3908414 | L6: =IF(I_Necesidades!$C$6=4,I_Necesidades!$C$10,"") ->  | M6: =IF(I_Necesidades!$C$6=4,I_Necesidades!$C$11,"") ->  | P6: =B6*(100-F6)/100 -> 160 | Q6: =C6*(100-G6)/100 -> 484 | R6: =LN(Q6/P6)/LN(C6/B6) -> 1.094217175 | S6: =EXP(LN(P6)-R6*LN(B6)) -> 0.4856165083 | W6: =H6*P6/100 -> 12 | X6: =I6*Q6/100 -> 101.64 | Y6: =LN(X6/W6)/LN(Q6/P6) -> 1.930173548 | Z6: =EXP(LN(X6)-Y6*LN(Q6)) -> 0.0006681087492 | BC6: 0.157 | BD6: 0.652
A7: 5.-Toros tardíos Engorde (finalización) de 20 a 33 meses | B7: 500 | C7: 750 | D7: 0.629 | E7: 0.0035 | F7: 12 | G7: 10 | H7: 11 | I7: 16.5 | J7: 106 | K7: =B7*EXP(D7) -> 937.8669536 | L7: =IF(I_Necesidades!$C$6=5,I_Necesidades!$C$10,"") ->  | M7: =IF(I_Necesidades!$C$6=5,I_Necesidades!$C$11,"") ->  | P7: =B7*(100-F7)/100 -> 440 | Q7: 675 | R7: =LN(Q7/P7)/LN(C7/B7) -> 1.055424882 | S7: =EXP(LN(P7)-R7*LN(B7)) -> 0.6235805742 | W7: =H7*P7/100 -> 48.4 | X7: 111.375 | Y7: =LN(X7/W7)/LN(Q7/P7) -> 1.947485716 | Z7: =EXP(LN(X7)-Y7*LN(Q7)) -> 0.0003441589228 | BC7: 0.2205 | BD7: 0.6
A8: 6.-Toros precoces Engorde (finalización) de 24 a 28 meses | B8: 540 | C8: 660 | D8: 0.629 | E8: 0.0035 | F8: 13 | G8: 11 | H8: 16 | I8: 21.2 | J8: 108 | K8: 1012.89631 | L8: =IF(I_Necesidades!$C$6=6,I_Necesidades!$C$10,"") ->  | M8: =IF(I_Necesidades!$C$6=6,I_Necesidades!$C$11,"") ->  | P8: 469.8 | Q8: 587.4 | R8: 1.113261436 | S8: 0.4266231445 | W8: 75.168 | X8: 124.5288 | Y8: 2.259685705 | Z8: 6.892064866e-05 | BC8: 0.2425 | BD8: 0.6
A9: 7.-Terneras tardías Engorde (finalización) de 15 a 30 meses | B9: 450 | C9: 700 | D9: 0.6174 | E9: 0.0035 | F9: 13 | G9: 10 | H9: 13 | I9: 18 | J9: 106 | K9: 834.345498 | L9: =IF(I_Necesidades!$C$6=7,I_Necesidades!$C$10,"") ->  | M9: =IF(I_Necesidades!$C$6=7,I_Necesidades!$C$11,"") ->  | P9: 391.5 | Q9: 630 | R9: 1.076729377 | S9: 0.5444273197 | W9: 50.895 | X9: 113.4 | Y9: 1.684042327 | Z9: 0.002189803174 | BC9: 0.2205 | BD9: 0.6
A10: 8.-Terneros tardíos Crecimiento de 8 a 24 meses | B10: 300 | C10: 540 | D10: 1.114 | E10: 0.0025 | F10: 16 | G10: 12 | H10: 8 | I10: 11 | J10: 94 | K10: 913.9560406 | L10: =IF(I_Necesidades!$C$6=8,I_Necesidades!$C$10,"") ->  | M10: =IF(I_Necesidades!$C$6=8,I_Necesidades!$C$11,"") ->  | P10: 252 | Q10: 475.2 | R10: 1.079144388 | S10: 0.5348463561 | W10: 20.16 | X10: 52.272 | Y10: 1.502050098 | Z10: 0.004982721459 | BC10: 0.03459 | BD10: 0.9
A11: 9.-Terneros precoces Crecimiento de 6 a 24 meses | B11: 200 | C11: 520 | D11: 1.5013 | E11: 0.0025 | F11: 20 | G11: 13 | H11: 7.5 | I11: 18 | J11: 94 | K11: 897.503811 | L11: =IF(I_Necesidades!$C$6=9,I_Necesidades!$C$10,"") -> 400 | M11: =IF(I_Necesidades!$C$6=9,I_Necesidades!$C$11,"") -> 1.03 | N11: 401.03 | O11: 0.8081528194 | P11: 160 | Q11: 452.4 | R11: 1.087787001 | S11: 0.5024460831 | T11: 340.0764033 | U11: 341.0290824 | V11: 0.9526791096 | W11: 12 | X11: 81.432 | Y11: 1.842288525 | Z11: 0.001043653403 | AA11: 48.1338531 | AB11: 48.38256148 | AC11: 0.2487083769 | AD11: 291.9425502 | AE11: 292.6465209 | AF11: 0.7039707327 | AG11: 63.19647273 | AH11: 63.35989234 | AI11: 0.1634196135 | AJ11: 0.6 | AK11: 0.7262 | AL11: 8.407615595 | AM11: 3.230911141 | AN11: 0.2771786171 | AO11: 0.4806176879 | AP11: 0.474 | AQ11: 0.6168058774 | AR11: 2.355923041 | AS11: 4.057443099 | AT11: 0.64 | AU11: -2 | AV11: -7.5 | AW11: 262 | AX11: 8.497058314 | AY11: 166.542343 | AZ11: 124.8 | BA11: 11.37852627 | BB11: 255.3431461 | BC11: 0.03115 | BD11: 0.9 | BE11: 6.41336614 | BF11: 558.0640154 | BG11: 6.844032185 | BH11: 16.96358705 | BI11: 18.09499048 | BJ11: 10.396875 | BK11: 10.396875 | BL11: 43.26705735 | BM11: 7.517171717 | BN11: 16.99411663 | BO11: 0.9346764146 | BP11: 100.6125 | BR11: 2.4 | BS11: 350.2 | BT11: 202.8 | BU11: 2.549117494 | BV11: 284.8 | BW11: 44000 | BX11: 6400 | BY11: 1040
A12: 10.-Terneras tardías Crecimiento de 8 a 28 meses | B12: 300 | C12: 600 | D12: 1.114 | E12: 0.0025 | F12: 18 | G12: 13 | H12: 9 | I12: 14 | J12: 94 | K12: 913.9560406 | L12: =IF(I_Necesidades!$C$6=10,I_Necesidades!$C$10,"") ->  | M12: =IF(I_Necesidades!$C$6=10,I_Necesidades!$C$11,"") ->  | P12: 246 | Q12: 522 | R12: 1.085391491 | S12: 0.5038355117 | W12: 22.14 | X12: 73.08 | Y12: 1.587281111 | Z12: 0.003548881384 | BC12: 0.03459 | BD12: 0.9
A13: 11.-Terneras lecheras Crecimiento de 6 a 24 meses | B13: 150 | C13: 600 | D13: 1.5013 | E13: 0.0025 | F13: 20 | G13: 13 | H13: 9 | I13: 21 | J13: 94 | K13: 673.1278582 | L13: =IF(I_Necesidades!$C$6=11,I_Necesidades!$C$10,"") ->  | M13: =IF(I_Necesidades!$C$6=11,I_Necesidades!$C$11,"") ->  | P13: 120 | Q13: 522 | R13: 1.0605077 | S13: 0.5907717353 | W13: 10.8 | X13: 109.62 | Y13: 1.576324161 | Z13: 0.005701119212 | BC13: 0.03915 | BD13: 0.9
A15: =I_Necesidades!C6 -> 9
A16: =IF($A$15=1,A3,IF($A$15=2,A4,IF($A$15=3,A5,IF($A$15=4,A6,IF($A$15=5,A7,IF($A$15=6,A8,IF($A$15=7,A9,IF($A$15=8,A10,IF($A$15=9,A11,IF($A$15=10,A12,A13)))))))))) -> 9.-Terneros precoces Crecimiento de 6 a 24 meses | B16: =IF($A$15=1,B3,IF($A$15=2,B4,IF($A$15=3,B5,IF($A$15=4,B6,IF($A$15=5,B7,IF($A$15=6,B8,IF($A$15=7,B9,IF($A$15=8,B10,IF($A$15=9,B11,IF($A$15=10,B12,B13)))))))))) -> 200 | C16: =IF($A$15=1,C3,IF($A$15=2,C4,IF($A$15=3,C5,IF($A$15=4,C6,IF($A$15=5,C7,IF($A$15=6,C8,IF($A$15=7,C9,IF($A$15=8,C10,IF($A$15=9,C11,IF($A$15=10,C12,C13)))))))))) -> 520 | K16: =IF($A$15=1,K3,IF($A$15=2,K4,IF($A$15=3,K5,IF($A$15=4,K6,IF($A$15=5,K7,IF($A$15=6,K8,IF($A$15=7,K9,IF($A$15=8,K10,IF($A$15=9,K11,IF($A$15=10,K12,K13)))))))))) -> 897.503811 | L16: =SUM(L3:L13) -> 400 | M16: =SUM(M3:M13) -> 1.03 | N16: 401.03 | O16: 0.8081528194 | P16: 2976.8 | Q16: 6309.56 | R16: 11.84273258 | S16: 5.965285096 | T16: 340.0764033 | U16: 341.0290824 | V16: 0.9526791096 | W16: 314.663 | X16: 1095.6298 | Y16: 19.3665026 | Z16: 0.02535700186 | AA16: =SUM(AA3:AA13) -> 48.1338531 | AB16: =SUM(AB3:AB13) -> 48.38256148 | AC16: 0.2487083769 | AD16: 291.9425502 | AE16: 292.6465209 | AF16: 0.7039707327 | AG16: 63.19647273 | AH16: 63.35989234 | AI16: 0.1634196135 | AJ16: 0.6 | AK16: 0.7262 | AL16: 8.407615595 | AM16: 3.230911141 | AN16: 0.2771786171 | AO16: 0.4806176879 | AP16: 0.474 | AQ16: 0.6168058774 | AR16: 2.355923041 | AS16: 4.057443099 | AT16: 0.64 | AU16: -2 | AV16: -7.5 | AW16: 262 | AX16: 8.497058314 | AY16: 166.542343 | AZ16: 124.8 | BA16: 11.37852627 | BB16: 255.3431461 | BC16: 1.71698 | BD16: 7.737 | BE16: 6.41336614 | BF16: 558.0640154 | BG16: 6.844032185 | BH16: 16.96358705 | BI16: 18.09499048 | BJ16: 10.396875 | BK16: 10.396875 | BL16: 43.26705735 | BM16: 7.517171717 | BN16: 16.99411663 | BO16: 0.9346764146 | BP16: 100.6125 | BQ16: 0 | BR16: 2.4 | BS16: 350.2 | BT16: 202.8 | BU16: 2.549117494 | BV16: 284.8 | BW16: 44000 | BX16: 6400 | BY16: 1040
AZ17: =AZ16/AY16 -> 0.7493589785
A20: Farratge i complementació
A21: Pinso i palla
A23: Dades orientatives: Vedelles precoces de 350 a 600 kg; GPV de 0,8 a 1,2 kg; Pv adult = 700 kg
A24: Dades orientatives: Vedelles carn gran format (Llemosina, Blonda) de 450 a 600 kg; GPV de 0,8 a 1,2 kg.; Pv adult = 850 kg
A25: Dades orientatives: Vedelles carn tardanes (Xarolés i creuaments) de 450 a 600 kg; GPV de 0,8 a 1,2 kg; Pv adult = 850 kg
A26: Dades orientatives: Vedells frisons de 150 a 650 kg; GPV de 0,8 a 1,6 kg. Pv adult = 750 kg
A27: Dades orientatives: Vedells altres lleteres i creuaments Xarolés de 200 a 550 kg; GPV d'1 a 1,6 kg; Pv adult = 750 kg
A28: Dades orientatives: Vedells rústiques de 250 a 800 kg; GPV d'1 a 2 kg; Pv adult = 750 kg | H28: Padult | I28: =450*EXP(I9*(1-EXP(-J9*B9))) -> 2.954698611e+10 | J28: =J9*I28*LN((D9*EXP(I9))/I28) -> -2.064440502e+13 | L28: =(I28-D9)/B9 -> 65659969.14
A29: Dades orientatives: Vedells carn gran format (Llemosina, Blonda) de 300 a 650 kg; GPV d'1 a 2 kg; Pv adult = 900 kg
A30: Dades orientatives: Vedells carn tardanes (Xarolés i creuaments alletants) de 300 a 700 kg; GPV d'1 a 2 kg; Pv adult = 900 kg
A34: Peso nacimiento 47 kg. Destete a 6-8 meses. Ternero de 15 meses Pv = 550 kg. Ganancia media diaria 1.400 g. IC (4,6) Rendimiento a la canal 65-70%. Rendimiento carnicero 79-85% carne. | W34: Charolais
A35: Peso nacimiento 42 kg. Destete a 7-8 meses. Ternero de 15 meses Pv = 550 kg Ganancia media diario 1.500 g. Rendimiento canal 70%. Rendimiento carnicero 73% carne. | W35: Limousin
A36: Ganancia media diaria 1.500 a 1.700 g. Aprovechamiento de los terneros en matadero de 65 hasta 68%. Aprovechamiento de carne neta 75% hasta 80%. | W36: Blonde d’Aquitaine
A37: Ganancia media diaria: 1.400 g. Ternero a 12 meses (480 kg); Ternero 15-16 meses (650 kg); precoz; Edad al primer parto 32 meses; Rendimiento canal 66%. | W37: Blanco azul belga
A38: Peso nacimiento 47 kg. Ganancia media diaria: 1.300 a 1.400 g. Ternero a 12 meses (510 kg); Rendimientos canal de 57 a 60%. | W38: Fleckvieh-Simmenthal
A39: Ganancia media diaria: 1.560 g. IC (4,1) hasta 460 kg .; Ganancia media diaria: 1.580 g. IC (4,3) hasta 550 kg. Rendimiento canal: 60%. Rendimiento carnicero 73% carne, 8,8% grasa, 18,1% hueso. Producción de añojo (añojo): ciclo corto (14 meses y 500 kg), ciclo medio (18 meses y 600 kg). Ganancia media diaria: 1.400 g. IC (4,2) hasta 460 kg .; Ganancia media diaria: 1.530 g. IC (4,3) hasta 550 kg .; Rendimiento canal: 64%. Rendimiento carnicero 76,9% carne, 7,1% grasa, 16% hueso. | W39: Rubia Gallega
A40: Terneros 9-10 meses (300-350 kg), Terneros 12 meses (430 kg). Añojo pesado (550-600 kg). Ganancia media diaria: 1.540 g. IC (4,3) hasta 300 kg .; Ganancia media diaria: 1.670 g. IC (4,1) hasta 460 kg .; Ganancia media diaria: 1.750 g. IC (4,3) hasta 550 kg. | W40: Pirenaica
A41: Terneros "pastero" 5-6 meses (120-130 kg). | W41: Tudanca
A42: Ternero 12 meses (323 kg), Ganancia media diario: 1.940 g. IC (3,6) hasta 300 kg .; Ganancia media diaria: 1.350 g. IC (4,4) hasta 460 kg .; Ganancia media diaria: 1.590 g. IC (4,6) hasta 550 kg. | W42: Avileña-Negra Iberica
A43: Ternero 12 meses (393 kg). Ganancia media diaria: 1.360 g. IC (5,1) hasta 300 kg .; Ganancia media diaria: 1.510 g. IC (4,8) hasta 460 kg .; Ganancia media diaria: 1.400 g. IC (5,1) hasta 550 kg. | W43: Retinto
A44: Ternero pastero 5-9 meses (pesos escasos y variables). Ganancia media diaria: 1.200 g. IC (4,1) hasta 300 kg .; Ganancia media diaria: 1.240 g. IC (4,6) hasta 460 kg .; Ganancia media diaria: 1.280 g. IC (4,9) hasta 550 kg. Rendimiento canal: 56%. | W44: Morucha
A45: Peso medio vacas 600-700 kg, machos 800 a 1100 kg. Peso vivo sacrificio 550 kg. Ganancia media diaria: 1.850 g. IC (3,9) hasta 300 kg .; Ganancia media diaria: 1.690 g. IC (4,1) hasta 460 kg .; Ganancia media diaria: 1.740 g. IC (4,2) hasta 550 kg. Rendimiento canal: 60,9%. Rendimiento carnicero: 71,7% carne, 10% grasa, 18,3% hueso. | W45: Parda
A47: Frisona-Holstein; Pardo-Suiza; Jersey; Ayshire; Guernsey; Menorquina; Shorthorn; Tarentaise; Normanda; Montbeliarda; Abondance; Danesa vermella; Bretona; Simental o Fleckvieh, etc.
A48: Blonde d’Aquitaine; Charolaise; Blanco azul belga; Limousin; Hereford; Aberdeen angus; Shorthorn Durhan; Piamontesa; Rubia Gallega; Asturiana de los Valles; Retinta; Parda; etc. | W48: Leche
A49: Pardas Aubrac, Salers, Retinta, Avileña, Morucha, Cachena, Tudanca, Asturiana de los Montes, etc. | W49: Carne
W50: Rústicas
A52: Fase d’engreix (del deslletament endavant): En el punt d’inflexió el creixement és màxim, el pes a la pubertat és 2/3 del pes adult. Si l’alimentació és adequada les vedelles de raça lletera arriben a la pubertat entre 9 i 11 mesos, i els vedells entre 11 i 12 mesos. A les races de carn el període és més llarg.

Sheet I_Necesidades
A1: Producción de carne: Engorde y finalización | J1: Guías
J2: Características de algunas razas | O2: Razas de leche, carne, rústicas
J3: 7 | O3: 1
J4: =IF(J3=1,NR!A34,IF(J3=2,NR!A35,IF(J3=3,NR!A36,IF(J3=4,NR!A37,IF(J3=5,NR!A38,IF(J3=6,NR!A39,IF(J3=7,NR!A40,IF(J3=8,NR!A41,IF(J3=9,NR!A42,IF(J3=10,NR!A43,IF(J3=11,NR!A44,IF(J3=12,NR!A45)))))))))))) -> Terneros 9-10 meses (300-350 kg), Terneros 12 meses (430 kg). Añojo pesado (550-600 kg). Ganancia media diaria: 1.540 g. IC (4,3) hasta 300 kg .; Ganancia media diaria: 1.670 g. IC (4,1) hasta 460 kg .; Ganancia media diaria: 1.750 g. IC (4,3) hasta 550 kg. | O4: =IF(O3=1,NR!A47,IF(O3=2,NR!A48,IF(O3=3,NR!A49))) -> Frisona-Holstein; Pardo-Suiza; Jersey; Ayshire; Guernsey; Menorquina; Shorthorn; Tarentaise; Normanda; Montbeliarda; Abondance; Danesa vermella; Bretona; Simental o Fleckvieh, etc.
B5: Elegir tipo de bovíno
C6: 9
B7: Datos orientativos
B8: Peso vivo inicial a partir de | D8: =NR!B16 -> 200
B9: Peso vivo final hasta | D9: =NR!C16 -> 520
B10: Peso inicio | C10: 400 | D10: Para el peso inicial: GMD, kg/día alrededor de ... | G10: =NR!O16 -> 0.8081528194
B11: GMD, kg/día | C11: 1.03 | D11: Período racionamiento, tiempo en días | G11: 30 | J11: Fase de engorde (del destete en adelante): En el punto de inflexión el crecimiento es máximo, el peso a la pubertad es 2/3 del peso adulto. Si la alimentación es adecuada las terneras de raza lechera llegan a la pubertad entre 9 y 11 meses, y los terneros entre 11 y 12 meses. En las razas de carne el período es más largo.
B12: =IF(C11>1.15*G10,"GMD excessiu",IF(C11<0.85*G10,"GMD tan baix?","GMD normal")) -> GMD excessiu | D12: Posible peso final | F12: =IF(C10+C11*G11>D9*1.2,"Temps excessiu",C10+C11*G11) -> 430.9
B13: Necesidades Totales
B14: =IF(C6>=8,"UFL","UFV") -> UFL | C14: =NR!BE16 -> 6.41336614 | E14: Datos para el racionamiento
B15: PDI | C15: =NR!BF16 -> 558.0640154 | E15: Elegir modalidad racionamiento
B16: Ca | C16: =NR!BI16/0.4 -> 45.23747619 | E16: 1
B17: P | C17: =NR!BH16/0.65 -> 26.09782623
B18: CI, UEB | C18: =NR!BG16 -> 6.844032185 | E18: Tolerancia cálculos (%) | G18: 12.5 | I18: =E16 -> 1
B19: Mg | C19: =NR!BJ16 -> 10.396875 | E19: Mínimo % MS Forraje | G19: 50
B20: Cl | C20: =NR!BK16 -> 10.396875
B21: K | C21: =NR!BL16 -> 43.26705735
B22: Na | C22: =NR!BM16 -> 7.517171717
B23: S | C23: =NR!BN16 -> 16.99411663
B24: Co | C24: =NR!BO16 -> 0.9346764146
B25: Cu | C25: =NR!BP16 -> 100.6125
B26: Mo | C26: =NR!BQ16 -> 0
B27: Iodo | C27: =NR!BR16 -> 2.4
B28: Fe | C28: =NR!BS16 -> 350.2
B29: Mn | C29: =NR!BT16 -> 202.8
B30: Se | C30: =NR!BU16 -> 2.549117494
B31: Zn | C31: =NR!BV16 -> 284.8
B32: Vit A | C32: =NR!BW16 -> 44000
B33: Vit D | C33: =NR!BX16 -> 6400
B34: Vit E | C34: =NR!BY16 -> 1040
B35: Gproteínas/EfPDI | C35: =NR!AI16*1000/NR!AT16 -> 255.3431461
B36: CI, MSI | C36: =NR!AX16 -> 8.497058314
B37: EfPDI | C37: =NR!AT16 -> 0.64
B38: BPR máximo | C38: =NR!AU16 -> -2
B39: BPR mínimo | C39: =NR!AV16 -> -7.5

Sheet II_Plantear Ración
A1: Selección d'ingredients, límites d'incorporació i preu | H1: Hoja no protegida. Sólo se deben seleccionar los ingredientes, y para cada uno de ellos añadir las cantidades mínimas y máximas, que nunca deben ser negativas, y el precio de cada uno de ellos
B2: Límites d'incorporació | D2: Cálculos | G2: Precio Ingrediente
B3: kg mín | C3: kg máx. | D3: kg fresco | E3: kg MS | F3: % fresco ración | G3: €/kg fresco | H3: kg fresco total
B4: 0 | C4: 100 | D4: 6.296255519 | E4: =D4*CálculosEV!D3/100 -> 3.022202649 | F4: =(D4*100)/$K$4 -> 64.4521501 | G4: 0.04 | K4: =SUM(D4:D26) -> 9.768883597 | L4: =K22 -> 62.70876484 | M4: %MS
A5: 0 | B5: 0 | C5: 5 | D5: 0 | E5: =D5*CálculosEV!D4/100 -> 0 | F5: 0 | G5: 0.03 | H5: kg forraje fresco total | K5: =SUM(D4:D8) -> 6.296255519
A6: 0 | B6: 0 | C6: 0 | D6: 0 | E6: =D6*CálculosEV!D5/100 -> 0 | F6: 0 | G6: 0.03 | H6: kg concentrat fresco total | K6: =K4-K5 -> 3.472628078
A7: 0 | B7: 0 | C7: 0 | D7: 0 | E7: =D7*CálculosEV!D6/100 -> 0 | F7: 0 | G7: 0.01 | H7: Aportaciones totales UE | K7: =SUMPRODUCT($E$4:$E$8,CálculosEV!E3:E7) -> 3.715998752 | L7: =L23 -> 0.7226688432 | M7: UE/kg MS
A8: 0 | B8: 0 | C8: 0 | D8: 0 | E8: =D8*CálculosEV!D7/100 -> 0 | F8: 0 | G8: 0.03 | H8: kg MS total | K8: =SUM(E4:E26) -> 6.125946242 | L8: =I_Necesidades!C36 -> 8.497058314 | M8: =K8-L8 -> -2.371112072 | N8: Diferencia MSI real y calculada
A9: 0 | B9: 0 | C9: 0 | D9: 0 | E9: =D9*CálculosEV!D8/100 -> 0 | F9: 0 | G9: 0.21 | H9: kg MS total forraje | K9: =SUM(E4:E8) -> 3.022202649 | M9: =I_Necesidades!E18 -> Tolerancia cálculos (%) | O9: =I_Necesidades!G18 -> 12.5
A10: 0 | B10: 0 | C10: 4 | D10: 2.91573783 | E10: =D10*CálculosEV!D9/100 -> 2.589175193 | F10: 29.84719595 | G10: 0.21 | H10: kg MS total concentrado | K10: =K8-K9 -> 3.103743593 | L10: =K7/K9 -> 1.229566374 | M10: =I_Necesidades!E19 -> Mínimo % MS Forraje | O10: =I_Necesidades!G19 -> 50
A11: 0 | B11: 0 | C11: 6 | D11: 0 | E11: =D11*CálculosEV!D10/100 -> 0 | F11: 0 | G11: 0.3 | H11: % MS forraje en la ración | K11: =(K9*100)/K8 -> 49.33446246
A12: 0 | B12: 0 | C12: 8 | D12: 0 | E12: =D12*CálculosEV!D11/100 -> 0 | F12: 0 | G12: 0.643 | H12: PCO | K12: =(K10)/K8 -> 0.5066553754 | L12: Auxiliar cálculo Sg | M12: A | N12: =IF(N17-0.85<0,1,1-(1.26*(N17-0.85)^0.84)) -> 0.441565503
A13: 0 | B13: 0 | C13: 2 | D13: 0.3284096654 | E13: =D13*CálculosEV!D12/100 -> 0.2863732283 | F13: 3.36179321 | G13: 0.15 | H13: Relación UF/UEB forraje | K13: =SUMPRODUCT($E$4:$E$8,CálculosEV!$F$3:$F$7)/SUMPRODUCT($E$4:$E$8,CálculosEV!$E$3:$E$7) -> 0.7564517779 | M13: D | N13: =(1/N17)-N12 -> 0.3717293476
A14: 0 | B14: 0 | C14: 0 | D14: 0 | E14: =D14*CálculosEV!D13/100 -> 0 | F14: 0 | G14: 0.12 | H14: Tasa de sustitución global | K14: =(0.86/N17)*(1-N15*EXP(-N14/(1-K12))) -> 0.5782784466 | M14: B | N14: =N17/(2.04*N13) -> 1.62141789
A15: 0 | B15: 0 | C15: 0 | D15: 0 | E15: =D15*CálculosEV!D14/100 -> 0 | F15: 0 | G15: 0.312 | M15: K | N15: =N17*N13*EXP(N14/0.7) -> 4.633829293
A16: 0 | B16: 0 | C16: 0 | D16: 0 | E16: =D16*CálculosEV!D15/100 -> 0 | F16: 0 | G16: 0.215 | H16: VALOR FUNCIÓN OBJETIVO €/ración | K16: =SUMPRODUCT(D4:D26,G4:G26) -> 0.947288768 | M16: UEc | N16: =0.86*(1-N15*EXP(-N14/(1-K12))) -> 0.7110317325 | O16: =N16/N17 -> 0.5782784466
A17: 0 | B17: 0 | C17: 0.5 | D17: 0 | E17: =D17*CálculosEV!D16/100 -> 0 | F17: 0 | G17: 0.146 | H17: COSTE PARTE FORRAJERA | K17: =SUMPRODUCT(D4:D8,G4:G8) -> 0.2518502208 | M17: UEf | N17: =K7/K9 -> 1.229566374
B18: 0 | C18: 0.2 | D18: 0.2 | E18: =D18*CálculosEV!D17/100 -> 0.1998 | F18: 2.047316851 | G18: 0.136 | H18: COSTE PARTE CONCENTRADA | K18: =K16-K17 -> 0.6954385472
A19: 0 | B19: 0 | C19: 0.3 | D19: 0 | E19: =D19*CálculosEV!D18/100 -> 0 | F19: 0 | G19: 0.438 | H19: Parámetros nutritivos, límites, valores finales
A20: 0 | B20: 0 | C20: 0 | D20: 0 | E20: =D20*CálculosEV!D19/100 -> 0 | F20: 0 | G20: 0.6 | H20: Parámetros | I20: Mínimo | J20: Máximo | K20: Valor | L20: Valor/kg MS o % | M20: En algunos ingredientes de la ración no constan los nutrientes ...
A21: 0 | B21: 0 | C21: 1 | D21: 0.02136302296 | E21: =D21*CálculosEV!D20/100 -> 0.02136302296 | F21: 0.2186843844 | G21: 0.29 | H21: MSI (kg/día) | I21: 0 | J21: 999 | K21: =K8 -> 6.125946242
A22: 0 | B22: 0 | C22: 1 | D22: 0.007117559629 | E22: =D22*CálculosEV!D21/100 -> 0.007032148913 | F22: 0.07285949882 | G22: 0.067 | H22: %MS ración | I22: 0 | J22: 999 | K22: =SUMPRODUCT(F4:F26,CálculosEV!D3:D25)/100 -> 62.70876484
B23: 0 | C23: 0 | D23: 0 | E23: =D23*CálculosEV!D22/100 -> 0 | F23: 0 | G23: 0.285 | H23: UEB | I23: =0.7*I_Necesidades!C18 -> 4.790822529 | J23: =I_Necesidades!C18 -> 6.844032185 | K23: =CálculosEV!E26+0.86*(1-'II_Plantear Ración'!N15*EXP(-'II_Plantear Ración'!N14/(1-'II_Plantear Ración'!K12))) -> 4.427030484 | L23: =K23/$K$8 -> 0.7226688432 | M23: =CálculosEV!AN$21 -> 
B24: 0 | C24: 0 | D24: 0 | E24: =D24*CálculosEV!D23/100 -> 0 | F24: 0 | G24: 0.01 | H24: =I_Necesidades!B14 -> UFL | I24: =IF(I_Necesidades!E16=2,I_Necesidades!C14,I_Necesidades!C14*B47/B48) -> 6.793318597 | J24: =IF(I_Necesidades!E16=2,I_Necesidades!C14,I_Necesidades!C14*B47/B48) -> 6.793318597 | K24: =CálculosEV!F26 -> 6.659698234 | L24: =K24/$K$8 -> 1.087129722 | M24: =CálculosEV!AO$21 -> 
B25: 0 | C25: 0 | D25: 0 | E25: =D25*CálculosEV!D24/100 -> 0 | F25: 0 | G25: 0.01 | H25: PDI | I25: =IF(I_Necesidades!E16=2,((100-$O$9)/100)*G31,((100-$O$9)/100)*(G32+(G33+M8*0.5*(5.7+0.074*B57)/B79)*G34/B79)) -> 463.4814999 | J25: =IF(I_Necesidades!E16=2,(100+$O$9)/100*G31,(100+$O$9)/100*(G32+(G33+M8*0.5*(5.7+0.074*B57)/B79)*G34/B79)) -> 595.9047856 | K25: =CálculosEV!G26 -> 446.668358 | L25: =K25/$K$8 -> 72.9141818 | M25: =CálculosEV!AP$21 -> 
B26: 0 | C26: 0 | D26: 0 | E26: =D26*CálculosEV!D25/100 -> 0 | F26: 0 | G26: 0.01 | H26: BPR | I26: =ABS(I_Necesidades!C39) -> 7.5 | J26: =ABS(I_Necesidades!C38) -> 2 | K26: =CálculosEV!H26 -> -37.0712939 | L26: =ABS(K26/K21) -> 6.051521256 | M26: =CálculosEV!AQ$21 -> 
F27: =SUM(F4:F26) -> 100 | H27: NI | I27: =CálculosEV!I26 -> 1.815503792 | J27: =CálculosEV!I26 -> 1.815503792 | K27: =K21*100/I_Necesidades!C10 -> 1.531486561 | L27: =K27 -> 1.531486561 | M27: =CálculosEV!AR$21 -> 
A28: Efecto NI | E28: =I_Necesidades!B7 -> Datos orientativos | H28: Ca | I28: =((100-$O$9)/100)*I_Necesidades!C16 -> 39.58279167 | J28: =(100+$O$9)/100*I_Necesidades!C16 -> 50.89216072 | K28: =CálculosEV!J26 -> 13.90786459 | L28: =K28/$K$8 -> 2.270321031 | M28: =CálculosEV!AS$21 -> 
A29: NIref | B29: =J27 -> 1.815503792 | F29: CI | G29: =I_Necesidades!C18 -> 6.844032185 | H29: P | I29: =((100-$O$9)/100)*I_Necesidades!C17 -> 22.83559795 | J29: =(100+$O$9)/100*I_Necesidades!C17 -> 29.3600545 | K29: =CálculosEV!K26 -> 15.43868795 | L29: 2.520212771 | M29: =CálculosEV!AT21 -> 
A30: NI % PV | B30: =K27 -> 1.531486561 | F30: UFV | G30: =I_Necesidades!C14 -> 6.41336614 | H30: Mg | I30: =((100-$O$9)/100)*I_Necesidades!C19 -> 9.097265625 | J30: =(100+$O$9)/100*I_Necesidades!C19 -> 11.69648437 | K30: =CálculosEV!L26 -> 4.174296231 | L30: 0.6814124817 | M30: =CálculosEV!AU21 -> Mg
A31: dMOm | B31: =76-2.74*B30 -> 71.80372682 | F31: PDI | G31: =I_Necesidades!C15 -> 558.0640154 | H31: K | I31: =((100-$O$9)/100)*I_Necesidades!C21 -> 37.85867518 | J31: =(100+$O$9)/100*I_Necesidades!C21 -> 48.67543952 | K31: =CálculosEV!M26 -> 20.10582548 | L31: 3.282076709 | M31: =CálculosEV!AV21 -> K
A32: Δ dMO_NI | B32: =-2.74*(B30-B29)/100 -> 0.007782072152 | F32: NecPDI_PUendo | G32: =B68 -> 124.8 | H32: Na | I32: =((100-$O$9)/100)*I_Necesidades!C22 -> 6.577525253 | J32: =(100+$O$9)/100*I_Necesidades!C22 -> 8.456818182 | K32: =CálculosEV!N26 -> 1.470264852 | L32: 0.2400061629 | M32: =CálculosEV!AW21 -> Na
A33: Efecto %Co (PCO) | E33: PDI - NecPDI_PUendo | G33: =G31-G32 -> 433.2640154 | H33: S | I33: =((100-$O$9)/100)*I_Necesidades!C23 -> 14.86985205 | J33: =(100+$O$9)/100*I_Necesidades!C23 -> 19.11838121 | K33: =CálculosEV!O26 -> 0.07735365803 | L33: 0.0126272179 | M33: =CálculosEV!AX21 -> S
A34: PCO | B34: =K12 -> 0.5066553754 | F34: EfPDI | G34: =I_Necesidades!C37 -> 0.64 | H34: Cl | I34: =((100-$O$9)/100)*I_Necesidades!C20 -> 9.097265625 | J34: =(100+$O$9)/100*I_Necesidades!C20 -> 11.69648437 | K34: =CálculosEV!P26 -> 0.002812879545 | L34: 0.0004591747028 | M34: =CálculosEV!AY21 -> Cl
A35: Δ dMO_CO | B35: =IF(B34=0,0,(-6.5/(1+(0.35/B34)^3))/100) -> -0.04888467967 | H35: Co | I35: =((100-$O$9)/100)*I_Necesidades!C24 -> 0.8178418628 | J35: =(100+$O$9)/100*I_Necesidades!C24 -> 1.051510966 | K35: =CálculosEV!Q26 -> 1.158591865 | L35: 0.1891286373 | M35: =CálculosEV!AZ21 -> Co
A36: Efecto balance proteico rumen | H36: Cu | I36: =((100-$O$9)/100)*I_Necesidades!C25 -> 88.0359375 | J36: =(100+$O$9)/100*I_Necesidades!C25 -> 113.1890625 | K36: =CálculosEV!R26 -> 15.61808275 | L36: 2.549497193 | M36: =CálculosEV!AN$21 -> 
A37: MNT ingerida | B37: =L45 -> 126.5397196 | H37: Mn | I37: =((100-$O$9)/100)*I_Necesidades!C29 -> 177.45 | J37: =(100+$O$9)/100*I_Necesidades!C29 -> 228.15 | K37: =CálculosEV!S26 -> 58.08399349 | L37: 9.481636174 | M37: =CálculosEV!BB21 -> Mn
A38: MOrD o MOF | B38: =L57 -> 550.8569545 | H38: Zn | I38: =((100-$O$9)/100)*I_Necesidades!C31 -> 249.2 | J38: =(100+$O$9)/100*I_Necesidades!C27 -> 2.7 | K38: =CálculosEV!T26 -> 78.81185299 | L38: 12.86525377 | M38: =CálculosEV!BC21 -> Zn
A39: MNrD_rumen (MNF) fermentadas rumen | B39: =B37*L56 -> 92.03390686 | H39: Iodo | I39: =((100-$O$9)/100)*I_Necesidades!C27 -> 2.1 | J39: =(100+$O$9)/100*I_Necesidades!C27 -> 2.7 | K39: =CálculosEV!U26 -> 0 | L39: 0 | M39: =CálculosEV!BD21 -> Iodo
A40: MN alim_duodeno (PIA) no ferm en rumen | B40: =B37*(1-L56) -> 34.50581275 | H40: Se | I40: =((100-$O$9)/100)*I_Necesidades!C30 -> 2.230477808 | J40: =(100+$O$9)/100*I_Necesidades!C30 -> 2.867757181 | K40: =CálculosEV!V26 -> 0.1090581695 | L40: 0.01780266512 | M40: =CálculosEV!BE21 -> Se
A41: MN microbiana intestíno ( 41,7 + 71,9 x 10^-3 x MOrD_rumen + 8,40 x PCO) | B41: =41.7+(B38*71.9*10^-3)+8.4*B34 -> 85.56252018 | H41: Vit A | I41: =((100-$O$9)/100)*I_Necesidades!C32 -> 38500 | J41: =(100+$O$9)/100*I_Necesidades!C32 -> 49500 | K41: =CálculosEV!W26 -> 27026.53639 | L41: 4411.814162 | M41: =CálculosEV!BF21 -> Vit A
A42: MN endógena | B42: 14.2 | H42: Vit D | I42: =((100-$O$9)/100)*I_Necesidades!C33 -> 5600 | J42: =(100+$O$9)/100*I_Necesidades!C33 -> 7200 | K42: =CálculosEV!X26 -> 604.4405299 | L42: 98.66892493 | M42: =CálculosEV!BG21 -> Vit D
A43: BPR ración | B43: =B37-(B40+B41+B42) -> -7.728613321 | H43: Vit E | I43: =((100-$O$9)/100)*I_Necesidades!C34 -> 910 | J43: =(100+$O$9)/100*I_Necesidades!C34 -> 1170 | K43: =CálculosEV!Y26 -> 100.8260057 | L43: 16.45884598 | M43: =CálculosEV!BH21 -> 
A44: BPR ref | B44: =-L26 -> -6.051521256 | H44: AG | K44: =CálculosEV!Z26 -> 296.3971563 | L44: 48.3838977 | M44: =CálculosEV!BI21 -> 
A45: Δ dMO_BPR | B45: =(0.06*(B43-B44))/100 -> -0.001006255239 | H45: MNT_PB | K45: =CálculosEV!AA26 -> 775.1755198 | L45: 126.5397196 | M45: =CálculosEV!BJ21 -> 
H46: PDIA | K46: =CálculosEV!AB26 -> 160.9816677 | L46: 26.27866151 | M46: =CálculosEV!BK21 -> 
A47: ∑ dMO x PMO | B47: =K47 -> 0.7528808293 | H47: dMO | J47: =B48 -> 0.7107719665 | K47: =CálculosEV!AC26 -> 0.7528808293 | L47: =J47 -> 0.7107719665 | M47: =CálculosEV!BL21 -> 
A48: Efecto total interacciones | B48: =B47+(B32+B35+B45) -> 0.7107719665 | H48: MOD | K48: =CálculosEV!AD26 -> 4147.710398 | L48: =K48/$K$8 -> 677.0726078 | M48: =CálculosEV!BM21 -> 
H49: EE | K49: =CálculosEV!AE26 -> 322.1876385 | L49: =K49/($K$8*10) -> 5.259393827 | M49: =CálculosEV!BN21 -> 
A50: MODc_rumen (MOF corregida) | B50: =B38*B48/B47 -> 520.0473509 | H50: FB | K50: =CálculosEV!AF26 -> 1104.682496 | L50: =K50/$K$8 -> 180.3284673 | M50: =CálculosEV!BO21 -> 
A51: PANDI | B51: =0.193*B40 -> 6.65962186 | H51: NDF | K51: =CálculosEV!AG26 -> 2368.92229 | L51: 386.7030817 | M51: =CálculosEV!BP21 -> 
A52: dr | B52: =(B40-B51)/B40 -> 0.807 | H52: ADF | K52: =CálculosEV!AH26 -> 1361.627223 | L52: 222.2721469 | M52: =CálculosEV!BQ21 -> 
A53: PDIA | B53: =B37*(1-L56)*B52 -> 27.84619089 | H53: Lignina | K53: =CálculosEV!AI26 -> 33.36108816 | L53: 5.445866947 | M53: =CálculosEV!BR21 -> Lignina
A54: MN microbianas_duodeno (corregida) | B54: =40.7+75.6*10^-3*B50+8.07*B34-0.0114*B43 -> 84.1923948 | H54: cendres | K54: =CálculosEV!AJ26 -> 408.6863098 | L54: 66.71398893 | M54: =CálculosEV!BS21 -> 
A55: PDI = PDIA + MN microbianas_duodeno x 0,8 x 0,8 | B55: =B53+B54*0.8*0.8 -> 81.72932356 | H55: Mo | K55: =CálculosEV!AK26 -> 1.435411003 | L55: 0.2343166176 | M55: =CálculosEV!BT21 -> Mo
A56: flux de N duodenal endógeno (Actualización) | H56: DT_N | K56: =CálculosEV!AL26 -> 0.7273123976 | L56: =K56 -> 0.7273123976 | M56: =CálculosEV!BU21 -> DT_N
A57: MOND = MO - MODc_rumen | B57: =L58-B50 -> 379.2617848 | H57: MOF | K57: =CálculosEV!AM26 -> 3374.52009 | L57: =K57/K21 -> 550.8569545 | M57: =CálculosEV!BV21 -> MOF
A58: N duodenal endo, g MNT/kg MSI = 14,2 x MSI | B58: =14.2*K8 -> 86.98843664 | H58: MO | K58: =K48/K47 -> 5509.11942 | L58: =K58/K21 -> 899.3091357 | M58: =CálculosEV!AN$21 -> 
A59: PÉRDIDAS FECALES ENDÓGENAS (PEF) i (NEC_PDI Actualización) | H59: PDI/UFL | I59: =((100-$O$9)/100)*I_Necesidades!C15/I_Necesidades!C14 -> 76.1388018 | J59: =((100+$O$9)/100)*I_Necesidades!C15/I_Necesidades!C14 -> 97.89274517 | K59: =K25/K24 -> 67.07035999 | L59: =K59 -> 67.07035999
A60: MNND = 0,163 x MN alim_duodeno + 0,20 x MN mic_duodeno + 5,7 + 0,074 x MOND | B60: =0.163*B40+0.2*B54+5.7+0.074*B57 -> 56.22829851
A61: PEF (proteínas endógenas fecales) = 5,7 + 0,074 x MOND | B61: =5.7+0.074*B57 -> 33.76537207
A62: Nec PDI_PEF = MSI x [0,5 x (5,7 + 0,074 x MOND)]/EfPDI | B62: =K8*(0.5*(5.7+0.074*B57))/B79 -> 179.9420828
A63: PÉRDIDAS ENDÓGENAS URINÁRIAS Y (NEC_PDI Actualización)
A64: log10 NU (N urinario g/día) log10 NU = - 1,17 + 1,00 x log10 Pv | B64: =-1.17+LOG10(I_Necesidades!C10) -> 1.432059991
A65: NU | B65: =10^B64 -> 27.04331902
A66: NUNP microbiano/NU = 0,3325/(1 + (NU/0,203)) | B66: =0.3325/(1+(B65/0.203)) -> 0.002477307117
A67: NU endo | B67: =0.05*I_Necesidades!C10 -> 20
A68: Nec PDI_NU endo | B68: =0.312*I_Necesidades!C10 -> 124.8
A69: PÉRDIDAS NITROGENADES POR LA EPIDERMIS Y (Nec_PDI Actualización)
A70: P epidérmicas (0,2 g PDI/kg Pv0,60) | B70: =0.2*I_Necesidades!C10^0.6 -> 7.282256812
A71: Nec PDI_P epidérmicas = 0,2 x Pv0,60/EffPDI | B71: =B70/B79 -> 12.67021569
A72: Nec_PDI no productivas | B72: =B62+B68+B71 -> 317.4122985
A73: Eficacia de la síntesis proteica en lactación
A74: PDI disponible = PDI ingerida - Nec PDI_NU endógenas | B74: =K25-B68 -> 321.868358
A75: EfPDI = ∑ usos prot/PDI disponible = 0,67xEXP(-0,007x(PDI-100) | B75: =0.67*EXP(-0.007*(L25-100)) -> 0.8098738055
A76: Bal EN | B76: =K24-G30 -> 0.2463320931
A77: bal Proteína | B77: =K25-G31 -> -111.3956574
A78: Incremento o ganancia Proteína | B78: =I_Necesidades!C35 -> 255.3431461
A79: EfPDI = (PEF + P epid + MP + bal Prote)/(PDI disponible) | B79: =IF(B76>0,(B61+B70+B78+B77)/B74,(B61+B70+B78)/(B74+ABS(B77))) -> 0.5747539733
A81: NUcal=0,79xBPR/6,25 + (PDI/6,25) x (1-E·fPDI)+Nuendo + NUNPmic + 0,47X bal N | B81: =(0.79*B43/6.25+(K25/6.25)*(1-B79)+B67/6.25+(B41/6.25)+0.47*ABS(B77)/6.25)/I_Necesidades!C10 -> 0.1367027276

Sheet III_Resultado Ración
A1: Explotación: | B1: Fecha | C1: =TODAY() -> 2023-10-19 | D1: Peso inicial | E1: =I_Necesidades!C10 -> 400 | F1: Tiempo en días | H1: =I_Necesidades!G11 -> 30
A2: =NR!A16 -> 9.-Terneros precoces Crecimiento de 6 a 24 meses | B2: GMD, kg/día | C2: =I_Necesidades!C11 -> 1.03 | D2: Peso final | E2: =I_Necesidades!F12 -> 430.9
A4: INGREDIENTES | B4: kg/día | C4: % MF | D4: kg/tonelada | E4: COSTE | G4: NUTRIENTES | H4: ANÁLISIS
A5: =IF(B5="","",CálculosEV!B3) -> ENSILADO Prat natural plano, gramíneas en gran parte | B5: =IF('II_Plantear Ración'!D4=0,"",'II_Plantear Ración'!D4) -> 6.296255519 | C5: =IF('II_Plantear Ración'!D4=0,"",'II_Plantear Ración'!F4) -> 64.4521501 | D5: =IF('II_Plantear Ración'!D4=0,"",('II_Plantear Ración'!D4*1000)/('II_Plantear Ración'!$K$4)) -> 644.521501 | E5: =IF('II_Plantear Ración'!D4=0,"",'II_Plantear Ración'!G4*B5) -> 0.2518502208 | G5: MSI (kg/día) | H5: ='II_Plantear Ración'!K21 -> 6.125946242 | I5: Kg
A6: =IF(B6="","",CálculosEV!B4) ->  | B6: =IF('II_Plantear Ración'!D5=0,"",'II_Plantear Ración'!D5) ->  | C6: =IF('II_Plantear Ración'!D5=0,"",'II_Plantear Ración'!F5) ->  | D6: =IF('II_Plantear Ración'!D5=0,"",('II_Plantear Ración'!D5*1000)/('II_Plantear Ración'!$K$4)) ->  | E6: =IF('II_Plantear Ración'!D5=0,"",'II_Plantear Ración'!G5*B6) ->  | G6: %MS ración | H6: ='II_Plantear Ración'!K22 -> 62.70876484 | I6: =IF('II_Plantear Ración'!L23=1,"g","%") -> %
A7: =IF(B7="","",CálculosEV!B5) ->  | B7: =IF('II_Plantear Ración'!D6=0,"",'II_Plantear Ración'!D6) ->  | C7: =IF('II_Plantear Ración'!D6=0,"",'II_Plantear Ración'!F6) ->  | D7: =IF('II_Plantear Ración'!D6=0,"",('II_Plantear Ración'!D6*1000)/('II_Plantear Ración'!$K$4)) ->  | E7: =IF('II_Plantear Ración'!D6=0,"",'II_Plantear Ración'!G6*B7) ->  | G7: UEB | H7: ='II_Plantear Ración'!L23 -> 0.7226688432 | I7: UEB/kg MS
A8: =IF(B8="","",CálculosEV!B6) ->  | B8: =IF('II_Plantear Ración'!D7=0,"",'II_Plantear Ración'!D7) ->  | C8: =IF('II_Plantear Ración'!D7=0,"",'II_Plantear Ración'!F7) ->  | D8: =IF('II_Plantear Ración'!D7=0,"",('II_Plantear Ración'!D7*1000)/('II_Plantear Ración'!$K$4)) ->  | E8: =IF('II_Plantear Ración'!D7=0,"",'II_Plantear Ración'!G7*B8) ->  | G8: UFV | H8: ='II_Plantear Ración'!L24 -> 1.087129722 | I8: UFV/kg MS
A9: =IF(B9="","",CálculosEV!B7) ->  | B9: =IF('II_Plantear Ración'!D8=0,"",'II_Plantear Ración'!D8) ->  | C9: =IF('II_Plantear Ración'!D8=0,"",'II_Plantear Ración'!F8) ->  | D9: =IF('II_Plantear Ración'!D8=0,"",('II_Plantear Ración'!D8*1000)/('II_Plantear Ración'!$K$4)) ->  | E9: =IF('II_Plantear Ración'!D8=0,"",'II_Plantear Ración'!G8*B9) ->  | G9: PDI | H9: ='II_Plantear Ración'!L25 -> 72.9141818 | I9: g/kg MS | J9: ='II_Plantear Ración'!M20 -> En algunos ingredientes de la ración no constan los nutrientes ...
A10: =IF(B10="","",CálculosEV!B8) ->  | B10: =IF('II_Plantear Ración'!D9=0,"",'II_Plantear Ración'!D9) ->  | C10: =IF('II_Plantear Ración'!D9=0,"",'II_Plantear Ración'!F9) ->  | D10: =IF('II_Plantear Ración'!D9=0,"",('II_Plantear Ración'!D9*1000)/('II_Plantear Ración'!$K$4)) ->  | E10: =IF('II_Plantear Ración'!D9=0,"",'II_Plantear Ración'!G9*B10) ->  | G10: BPR | H10: ='II_Plantear Ración'!L26 -> 6.051521256 | I10: g PDI/kg MS
A11: =IF(B11="","",CálculosEV!B9) -> Cebada grano | B11: =IF('II_Plantear Ración'!D10=0,"",'II_Plantear Ración'!D10) -> 2.91573783 | C11: =IF('II_Plantear Ración'!D10=0,"",'II_Plantear Ración'!F10) -> 29.84719595 | D11: =IF('II_Plantear Ración'!D10=0,"",('II_Plantear Ración'!D10*1000)/('II_Plantear Ración'!$K$4)) -> 298.4719595 | E11: =IF('II_Plantear Ración'!D10=0,"",'II_Plantear Ración'!G10*B11) -> 0.6123049442 | G11: NI | H11: ='II_Plantear Ración'!L27 -> 1.531486561 | I11: % Pv
A12: =IF(B12="","",CálculosEV!B10) ->  | B12: =IF('II_Plantear Ración'!D11=0,"",'II_Plantear Ración'!D11) ->  | C12: =IF('II_Plantear Ración'!D11=0,"",'II_Plantear Ración'!F11) ->  | D12: =IF('II_Plantear Ración'!D11=0,"",('II_Plantear Ración'!D11*1000)/('II_Plantear Ración'!$K$4)) ->  | E12: =IF('II_Plantear Ración'!D11=0,"",'II_Plantear Ración'!G11*B12) ->  | G12: Ca | H12: ='II_Plantear Ración'!L28 -> 2.270321031 | I12: g/kg MS | J12: ='II_Plantear Ración'!M28 -> 
A13: =IF(B13="","",CálculosEV!B11) ->  | B13: =IF('II_Plantear Ración'!D12=0,"",'II_Plantear Ración'!D12) ->  | C13: =IF('II_Plantear Ración'!D12=0,"",'II_Plantear Ración'!F12) ->  | D13: =IF('II_Plantear Ración'!D12=0,"",('II_Plantear Ración'!D12*1000)/('II_Plantear Ración'!$K$4)) ->  | E13: =IF('II_Plantear Ración'!D12=0,"",'II_Plantear Ración'!G12*B13) ->  | G13: P | H13: ='II_Plantear Ración'!L29 -> 2.520212771 | I13: g/kg MS | J13: ='II_Plantear Ración'!M29 -> 
A14: =IF(B14="","",CálculosEV!B12) -> Soja torta 44 | B14: =IF('II_Plantear Ración'!D13=0,"",'II_Plantear Ración'!D13) -> 0.3284096654 | C14: =IF('II_Plantear Ración'!D13=0,"",'II_Plantear Ración'!F13) -> 3.36179321 | D14: =IF('II_Plantear Ración'!D13=0,"",('II_Plantear Ración'!D13*1000)/('II_Plantear Ración'!$K$4)) -> 33.6179321 | E14: =IF('II_Plantear Ración'!D13=0,"",'II_Plantear Ración'!G13*B14) -> 0.04926144981 | G14: Mg | H14: ='II_Plantear Ración'!L30 -> 0.6814124817 | I14: g/kg MS | J14: ='II_Plantear Ración'!M30 -> Mg
A15: =IF(B15="","",CálculosEV!B13) ->  | B15: =IF('II_Plantear Ración'!D14=0,"",'II_Plantear Ración'!D14) ->  | C15: =IF('II_Plantear Ración'!D14=0,"",'II_Plantear Ración'!F14) ->  | D15: =IF('II_Plantear Ración'!D14=0,"",('II_Plantear Ración'!D14*1000)/('II_Plantear Ración'!$K$4)) ->  | E15: =IF('II_Plantear Ración'!D14=0,"",'II_Plantear Ración'!G14*B15) ->  | G15: K | H15: ='II_Plantear Ración'!L31 -> 3.282076709 | I15: g/kg MS | J15: ='II_Plantear Ración'!M31 -> K
A16: =IF(B16="","",CálculosEV!B14) ->  | B16: =IF('II_Plantear Ración'!D15=0,"",'II_Plantear Ración'!D15) ->  | C16: =IF('II_Plantear Ración'!D15=0,"",'II_Plantear Ración'!F15) ->  | D16: =IF('II_Plantear Ración'!D15=0,"",('II_Plantear Ración'!D15*1000)/('II_Plantear Ración'!$K$4)) ->  | E16: =IF('II_Plantear Ración'!D15=0,"",'II_Plantear Ración'!G15*B16) ->  | G16: Na | H16: ='II_Plantear Ración'!L32 -> 0.2400061629 | I16: g/kg MS | J16: ='II_Plantear Ración'!M32 -> Na
A17: =IF(B17="","",CálculosEV!B15) ->  | B17: =IF('II_Plantear Ración'!D16=0,"",'II_Plantear Ración'!D16) ->  | C17: =IF('II_Plantear Ración'!D16=0,"",'II_Plantear Ración'!F16) ->  | D17: =IF('II_Plantear Ración'!D16=0,"",('II_Plantear Ración'!D16*1000)/('II_Plantear Ración'!$K$4)) ->  | E17: =IF('II_Plantear Ración'!D16=0,"",'II_Plantear Ración'!G16*B17) ->  | G17: S | H17: ='II_Plantear Ración'!L33 -> 0.0126272179 | I17: g/kg MS | J17: ='II_Plantear Ración'!M33 -> S
A18: =IF(B18="","",CálculosEV!B16) ->  | B18: =IF('II_Plantear Ración'!D17=0,"",'II_Plantear Ración'!D17) ->  | C18: =IF('II_Plantear Ración'!D17=0,"",'II_Plantear Ración'!F17) ->  | D18: =IF('II_Plantear Ración'!D17=0,"",('II_Plantear Ración'!D17*1000)/('II_Plantear Ración'!$K$4)) ->  | E18: =IF('II_Plantear Ración'!D17=0,"",'II_Plantear Ración'!G17*B18) ->  | G18: Cl | H18: ='II_Plantear Ración'!L34 -> 0.0004591747028 | I18: g/kg MS | J18: ='II_Plantear Ración'!M34 -> Cl
A19: =IF(B19="","",CálculosEV!B17) -> Grasa vegetal, manteca de cerdo (todos los tipos) | B19: =IF('II_Plantear Ración'!D18=0,"",'II_Plantear Ración'!D18) -> 0.2 | C19: =IF('II_Plantear Ración'!D18=0,"",'II_Plantear Ración'!F18) -> 2.047316851 | D19: =IF('II_Plantear Ración'!D18=0,"",('II_Plantear Ración'!D18*1000)/('II_Plantear Ración'!$K$4)) -> 20.47316851 | E19: =IF('II_Plantear Ración'!D18=0,"",'II_Plantear Ración'!G18*B19) -> 0.0272 | G19: Co | H19: ='II_Plantear Ración'!L35 -> 0.1891286373 | I19: mg/kg MS | J19: ='II_Plantear Ración'!M35 -> Co
A20: =IF(B20="","",CálculosEV!B18) ->  | B20: =IF('II_Plantear Ración'!D19=0,"",'II_Plantear Ración'!D19) ->  | C20: =IF('II_Plantear Ración'!D19=0,"",'II_Plantear Ración'!F19) ->  | D20: =IF('II_Plantear Ración'!D19=0,"",('II_Plantear Ración'!D19*1000)/('II_Plantear Ración'!$K$4)) ->  | E20: =IF('II_Plantear Ración'!D19=0,"",'II_Plantear Ración'!G19*B20) ->  | G20: Cu | H20: ='II_Plantear Ración'!L36 -> 2.549497193 | I20: mg/kg MS | J20: ='II_Plantear Ración'!M36 -> 
A21: =IF(B21="","",CálculosEV!B19) ->  | B21: =IF('II_Plantear Ración'!D20=0,"",'II_Plantear Ración'!D20) ->  | C21: =IF('II_Plantear Ración'!D20=0,"",'II_Plantear Ración'!F20) ->  | D21: =IF('II_Plantear Ración'!D20=0,"",('II_Plantear Ración'!D20*1000)/('II_Plantear Ración'!$K$4)) ->  | E21: =IF('II_Plantear Ración'!D20=0,"",'II_Plantear Ración'!G20*B21) ->  | G21: Mn | H21: ='II_Plantear Ración'!L37 -> 9.481636174 | I21: mg/kg MS | J21: ='II_Plantear Ración'!M37 -> Mn
A22: =IF(B22="","",CálculosEV!B20) -> Carbonato de cobalto | B22: =IF('II_Plantear Ración'!D21=0,"",'II_Plantear Ración'!D21) -> 0.02136302296 | C22: =IF('II_Plantear Ración'!D21=0,"",'II_Plantear Ración'!F21) -> 0.2186843844 | D22: =IF('II_Plantear Ración'!D21=0,"",('II_Plantear Ración'!D21*1000)/('II_Plantear Ración'!$K$4)) -> 2.186843844 | E22: =IF('II_Plantear Ración'!D21=0,"",'II_Plantear Ración'!G21*B22) -> 0.006195276657 | G22: Zn | H22: ='II_Plantear Ración'!L38 -> 12.86525377 | I22: mg/kg MS | J22: ='II_Plantear Ración'!M38 -> Zn
A23: =IF(B23="","",CálculosEV!B21) -> Fosfato bicálcico | B23: =IF('II_Plantear Ración'!D22=0,"",'II_Plantear Ración'!D22) -> 0.007117559629 | C23: =IF('II_Plantear Ración'!D22=0,"",'II_Plantear Ración'!F22) -> 0.07285949882 | D23: =IF('II_Plantear Ración'!D22=0,"",('II_Plantear Ración'!D22*1000)/('II_Plantear Ración'!$K$4)) -> 0.7285949882 | E23: =IF('II_Plantear Ración'!D22=0,"",'II_Plantear Ración'!G22*B23) -> 0.0004768764951 | G23: Iodo | H23: ='II_Plantear Ración'!L39 -> 0 | I23: mg/kg MS | J23: ='II_Plantear Ración'!M39 -> Iodo
A24: =IF(B24="","",CálculosEV!B22) ->  | B24: =IF('II_Plantear Ración'!D23=0,"",'II_Plantear Ración'!D23) ->  | C24: =IF('II_Plantear Ración'!D23=0,"",'II_Plantear Ración'!F23) ->  | D24: =IF('II_Plantear Ración'!D23=0,"",('II_Plantear Ración'!D23*1000)/('II_Plantear Ración'!$K$4)) ->  | E24: =IF('II_Plantear Ración'!D23=0,"",'II_Plantear Ración'!G23*B24) ->  | G24: Se | H24: ='II_Plantear Ración'!L40 -> 0.01780266512 | I24: mg/kg MS | J24: ='II_Plantear Ración'!M40 -> Se
A25: =IF(B25="","",CálculosEV!B23) ->  | B25: =IF('II_Plantear Ración'!D24=0,"",'II_Plantear Ración'!D24) ->  | C25: =IF('II_Plantear Ración'!D24=0,"",'II_Plantear Ración'!F24) ->  | D25: =IF('II_Plantear Ración'!D24=0,"",('II_Plantear Ración'!D24*1000)/('II_Plantear Ración'!$K$4)) ->  | E25: =IF('II_Plantear Ración'!D24=0,"",'II_Plantear Ración'!G24*B25) ->  | G25: Vit A | H25: ='II_Plantear Ración'!L41 -> 4411.814162 | I25: UI | J25: ='II_Plantear Ración'!M41 -> Vit A
A26: =IF(B26="","",CálculosEV!B24) ->  | B26: =IF('II_Plantear Ración'!D25=0,"",'II_Plantear Ración'!D25) ->  | C26: =IF('II_Plantear Ración'!D25=0,"",'II_Plantear Ración'!F25) ->  | D26: =IF('II_Plantear Ración'!D25=0,"",('II_Plantear Ración'!D25*1000)/('II_Plantear Ración'!$K$4)) ->  | E26: =IF('II_Plantear Ración'!D25=0,"",'II_Plantear Ración'!G25*B26) ->  | G26: Vit D | H26: ='II_Plantear Ración'!L42 -> 98.66892493 | I26: UI | J26: ='II_Plantear Ración'!M42 -> Vit D
A27: =IF(B27="","",CálculosEV!B25) ->  | B27: =IF('II_Plantear Ración'!D26=0,"",'II_Plantear Ración'!D26) ->  | C27: =IF('II_Plantear Ración'!D26=0,"",'II_Plantear Ración'!F26) ->  | D27: =IF('II_Plantear Ración'!D26=0,"",('II_Plantear Ración'!D26*1000)/('II_Plantear Ración'!$K$4)) ->  | E27: =IF('II_Plantear Ración'!D26=0,"",'II_Plantear Ración'!G26*B27) ->  | G27: Vit E | H27: ='II_Plantear Ración'!L43 -> 16.45884598 | I27: UI | J27: ='II_Plantear Ración'!M43 -> 
A28: TOTAL | B28: =SUM(B5:B27) -> 9.768883597 | C28: =SUM(C5:C27) -> 100 | D28: =SUM(D5:D27) -> 1000 | E28: ='II_Plantear Ración'!K16 -> 0.947288768 | G28: AG | H28: ='II_Plantear Ración'!L44 -> 48.3838977 | I28: g/kg MS | J28: ='II_Plantear Ración'!M44 -> 
G29: MNT_PB | H29: ='II_Plantear Ración'!L45 -> 126.5397196 | I29: g/kg MS | J29: ='II_Plantear Ración'!M45 -> 
B30: F % | C30: ='II_Plantear Ración'!K11 -> 49.33446246 | D30: % grasa s/MS | E30: ='II_Plantear Ración'!L49 -> 5.259393827 | G30: PDIA | H30: ='II_Plantear Ración'!L46 -> 26.27866151 | I30: g/kg MS | J30: ='II_Plantear Ración'!M46 -> 
B31: C % | C31: ='II_Plantear Ración'!K12*100 -> 50.66553754 | G31: dMO | H31: ='II_Plantear Ración'!L47 -> 0.7107719665 | J31: ='II_Plantear Ración'!M47 -> 
G32: MOD | H32: ='II_Plantear Ración'!L48 -> 677.0726078 | I32: g/kg MS | J32: ='II_Plantear Ración'!M48 -> 
G33: EE | H33: ='II_Plantear Ración'!L49 -> 5.259393827 | I33: % | J33: ='II_Plantear Ración'!M49 -> 
G34: FB | H34: ='II_Plantear Ración'!L50 -> 180.3284673 | I34: g/kg MS | J34: ='II_Plantear Ración'!M50 -> 
G35: NDF | H35: ='II_Plantear Ración'!L51 -> 386.7030817 | I35: g/kg MS | J35: ='II_Plantear Ración'!M51 -> 
G36: ADF | H36: ='II_Plantear Ración'!L52 -> 222.2721469 | I36: g/kg MS | J36: ='II_Plantear Ración'!M52 -> 
G37: Lignina | H37: ='II_Plantear Ración'!L53 -> 5.445866947 | I37: g/kg MS | J37: ='II_Plantear Ración'!M53 -> Lignina
G38: Cenizas | H38: ='II_Plantear Ración'!L54 -> 66.71398893 | I38: g/kg MS | J38: ='II_Plantear Ración'!M54 -> 
G39: Mo | H39: ='II_Plantear Ración'!L55 -> 0.2343166176 | I39: mg/kg MS | J39: ='II_Plantear Ración'!M55 -> Mo
G40: DT_N | H40: ='II_Plantear Ración'!L56 -> 0.7273123976 | J40: ='II_Plantear Ración'!M56 -> DT_N
G41: MOF | H41: ='II_Plantear Ración'!L57 -> 550.8569545 | I41: g/kg MS | J41: ='II_Plantear Ración'!M57 -> MOF
G42: MO | H42: ='II_Plantear Ración'!L58 -> 899.3091357 | I42: g/kg MS | J42: ='II_Plantear Ración'!M58 -> 
G43: PDI/UFL | H43: ='II_Plantear Ración'!L59 -> 67.07035999 | I43: g | J43: ='II_Plantear Ración'!M58 -> 
A59: =IF(B59="","",CálculosEV!B26) ->  | B59: =IF('II_Plantear Ración'!D27=0,"",'II_Plantear Ración'!D27) -> 
